Workbook

Sheet GUIA PARA PREENCHIMENTO
A1: GUIA PARA PREENCHIMENTO
A3: 1 - Preencher apenas as guias azuis:
A5: 2 - Recomendamos preencher somente as células com fundo azul claro. As demais possuem fórmulas e sugerimos não alterá-las.

Sheet MODELO PROPOSTA
B2: MODELO DA PROPOSTA COMPLETA
B4: .
B5: I – FORMALIZAÇÃO
B7: PREGÃO ELETRÔNICO N. 118/22
B8: OBJETO: Prestação de serviços continuados de atendimento e suporte técnico à microinformática, com dedicação exclusiva de profissionais, por empresa especializada, para cerca de 12.000 (doze mil) estações de trabalho, pelo período de doze meses.
B9: LICITANTE: _____________________________________________________
B10: CNPJ: ________________________________________________________
B11: ENDEREÇO COMPLETO: _________________________________________
B12: TELEFONE:_____________________________________________________
B13: E-MAIL: ________________________________________________________
B15: Apresentamos nossa proposta para o item único da presente licitação, de acordo com as disposições do Edital.
B16: Decorre do conteúdo da presente proposta a explicitação do seguinte PREÇO DE JULGAMENTO (GLOBAL ANUAL) PARA O ITEM ÚNICO:
B17: =' RESUMO'!H73 -> 14154888.21
B18: =Extenso_Valor(B17) -> quatorze milhões, cento e cinquenta e quatro mil, oitocentos e oitenta e oito reais e vinte e um centavos
B20: (por extenso)
B22: No valor proposto estão incluídos todos os custos e todas as despesas, diretas e indiretas, para a execução dos serviços objeto da licitação, em conformidade com as especificações e demais condições e exigências constantes do Edital.
B23: Informamos que eventuais rubricas dispostas em Acordo ou Convenção Coletiva de Trabalho que não se relacionem ao custo direto da venda do serviço, tais como “Participação nos Resultados” e “Abono substitutivo de Participação nos Resultados”, serão consideradas nos custos indiretos da proposta.
B24: O prazo de validade da presente proposta é de ______ (por extenso) dias. (observado o disposto no Título 11 do Edital).
B26: Convenção coletiva de trabalho ou a norma coletiva a que estamos obrigados:
B27: Data-Base:
B28: Número do Registro SRT:
B29: Regime de tributação da empresa:
B30: Empresa é beneficiada pela desoneração da folha de pagamento instituída pela Lei n. 12.546, de 2001, alterada pela Lei n. 13.161, de 2015?
B31: Empresa adere ao PAT (Programa de Alimentação do Trabalhador)?
B32: (Se adere ao PAT): Os valores do auxílio-alimentação apresentados na presente proposta correspondem somente aos efetivamente pagos pela empresa aos empregados?
B34: DECLARAÇÕES
B36: A SEREM PRESTADAS SOMENTE NA HIPÓTESE DE LICITANTE MICROEMPRESA OU EMPRESA DE PEQUENO PORTE, EM CONFORMIDADE COM OS ARTIGOS 17, 18, 30 E 31 DA LEI COMPLEMENTAR N. 123, de 2006, E O ACÓRDÃO TCU 2798/2010-PLENÁRIO
B37: Declaramos que:
B38: a) em se tratando dos serviços vedados descritos no artigo 17 da Lei Complementar n. 123, de 2006, notadamente os descritos no inciso XII (cessão ou locação de mão de obra), ressalvados os serviços listados nos parágrafos 5o-B a 5o-E do artigo 18 da referida Lei, a proposta apresentada não contempla qualquer benefício tributário referente ao SIMPLES NACIONAL, conforme os subitens 5.7 e 5.8 do Edital;
B39: b) na hipótese de contratação desta Microempresa ou Empresa de Pequeno Porte inscrita no SIMPLES NACIONAL e executora de atividade vedada, ficamos sujeitos à exclusão obrigatória no SIMPLES NACIONAL a contar do mês seguinte ao da contratação, em consequência do que dispõem o artigo 17, inciso XII e o artigo 31, inciso II da Lei Complementar n, 123, de 2006, devendo entregar à Câmara dos Deputados, à título de comprovação, cópia de ofício – com comprovante de entrega e recebimento, que comunique a assinatura do contrato de prestação de serviços mediante cessão de mão de obra e encaminhado pela contratada à Receita Federal do Brasil até o último dia útil do mês subsequente ao da contratação, consoante artigo 30, § 1º, inciso II da Lei Complementar n. 123, de 2006.
B41: A SEREM PRESTADAS SOMENTE NA HIPÓTESE DE LICITANTE BENEFICIADA PELA DESONERAÇÃO DA FOLHA DE PAGAMENTO INSTITUÍDA PELA LEI N. 12.546, DE 2011, ALTERADA PELA LEI N. 13.161, DE 2015.
B43: Declaramos, sob as penas da Lei, que:
B44: a) recolhemos a contribuição previdenciária incidente sobre o valor da receita bruta, em substituição às contribuições previdenciárias incidentes sobre a folha de pagamento, previstas nos incisos I e III do caput do artigo 22 da Lei n. 8.212, de 24 de julho de 1991, na forma do caput do artigo 7º (ou 8º) da Lei n. 12.546, de 14 de dezembro de 2011, alterada pela Lei n. 13.161, de 31 de agosto de 2015;
B45: b) temos ciência que nossa manifestação, conforme alínea “a” anterior, será remetida à Receita Federal do Brasil e que, em caso de constatação de falsidade, estará sujeita às sanções administrativas cabíveis, sem prejuízo do encaminhamento dos documentos ao Ministério Público para apuração de eventual responsabilidade criminal desta declarante.
B47: É OBRIGATÓRIA A COMPROVAÇÃO A QUE SE REFERE O SUBITEM 5.9.4 DO TÍTULO 5 DO EDITAL.
B49: DADOS PARA ASSINATURA DO CONTRATO
B50: Nome do signatário
B51: Cargo
B52: Qualificação (CPF, naturalidade e domicílio)
B53: OBS.: O signatário deve possuir poderes de administração estabelecidos em contrato social e/ou possuir procuração com poderes para assinar contratos em nome da empresa. A documentação comprobatória deverá ser encaminhada quando da assinatura do contrato.
B56: Brasília, de de 2022.
B58: Assinatura do representante legal da empresa
B61: Nome do representante legal da empresa

Sheet Remunerações
B1: QUADRO DE REMUNERAÇÕES
C3: ITEM | D3: POSTO DE TRABALHO | E3: QUANTIDADE | F3: SALÁRIO | G3: ADICIONAL DE PERICULOSIDADE | H3: ADICIONAL DE INSALUBRIDADE | I3: ADICIONAL NOTURNO | J3: OUTROS | K3: SALÁRIO COM ADICIONAIS
D4: POSTO DE TRABALHO - EQUIPE DE TRABALHO
C5: 1 | D5: =HLOOKUP($C5,'Dados Gerais'!$D$5:$O$68,6) -> Analista de suporte técnico | E5: =HLOOKUP($C5,'Dados Gerais'!$D$5:$O$68,10) -> 87 | F5: =HLOOKUP($C5,'Dados Gerais'!$D$5:$O$68,8) -> 3698.66 | G5: =HLOOKUP($C5,'Dados Gerais'!$D$5:$O$68,25) -> 0 | H5: =HLOOKUP($C5,'Dados Gerais'!$D$5:$O$68,31) -> 0 | I5: =HLOOKUP($C5,'Dados Gerais'!$D$5:$O$68,46) -> 0 | J5: =HLOOKUP($C5,'Dados Gerais'!$D$5:$O$68,33) -> 0 | K5: =SUM(F5:J5) -> 3698.66 | M5: =E5*K5 -> 321783.42
C6: 2 | D6: =HLOOKUP($C6,'Dados Gerais'!$D$5:$O$68,6) -> Encarregado de suporte técnico | E6: =HLOOKUP($C6,'Dados Gerais'!$D$5:$O$68,10) -> 14 | F6: =HLOOKUP($C6,'Dados Gerais'!$D$5:$O$68,8) -> 5377.41 | G6: =HLOOKUP($C6,'Dados Gerais'!$D$5:$O$68,25) -> 0 | H6: =HLOOKUP($C6,'Dados Gerais'!$D$5:$O$68,31) -> 0 | I6: =HLOOKUP($C6,'Dados Gerais'!$D$5:$O$68,46) -> 0 | J6: =HLOOKUP($C6,'Dados Gerais'!$D$5:$O$68,33) -> 0 | K6: =SUM(F6:J6) -> 5377.41 | M6: =E6*K6 -> 75283.74
C7: 3 | D7: =HLOOKUP($C7,'Dados Gerais'!$D$5:$O$68,6) -> Analista de contratos especializado em gerenciamento de fornecedores e contratos de informática | E7: =HLOOKUP($C7,'Dados Gerais'!$D$5:$O$68,10) -> 2 | F7: =HLOOKUP($C7,'Dados Gerais'!$D$5:$O$68,8) -> 6483.53 | G7: =HLOOKUP($C7,'Dados Gerais'!$D$5:$O$68,25) -> 0 | H7: =HLOOKUP($C7,'Dados Gerais'!$D$5:$O$68,31) -> 0 | I7: =HLOOKUP($C7,'Dados Gerais'!$D$5:$O$68,46) -> 0 | J7: =HLOOKUP($C7,'Dados Gerais'!$D$5:$O$68,33) -> 0 | K7: 6483.53 | M7: 12967.06
C8: 4 | D8: =HLOOKUP($C8,'Dados Gerais'!$D$5:$O$68,6) -> Analista de suporte técnico especializado em gerenciamento de software de microinformática | E8: =HLOOKUP($C8,'Dados Gerais'!$D$5:$O$68,10) -> 2 | F8: =HLOOKUP($C8,'Dados Gerais'!$D$5:$O$68,8) -> 4846.14 | G8: =HLOOKUP($C8,'Dados Gerais'!$D$5:$O$68,25) -> 0 | H8: =HLOOKUP($C8,'Dados Gerais'!$D$5:$O$68,31) -> 0 | I8: =HLOOKUP($C8,'Dados Gerais'!$D$5:$O$68,46) -> 0 | J8: =HLOOKUP($C8,'Dados Gerais'!$D$5:$O$68,33) -> 0 | K8: 4846.14 | M8: 9692.28
C9: 5 | D9: =HLOOKUP($C9,'Dados Gerais'!$D$5:$O$68,6) -> Analista de suporte técnico especializado em levantamento de requisitos, especificação e orçamento de contratações de microinformática | E9: =HLOOKUP($C9,'Dados Gerais'!$D$5:$O$68,10) -> 2 | F9: =HLOOKUP($C9,'Dados Gerais'!$D$5:$O$68,8) -> 5809.79 | G9: =HLOOKUP($C9,'Dados Gerais'!$D$5:$O$68,25) -> 0 | H9: =HLOOKUP($C9,'Dados Gerais'!$D$5:$O$68,31) -> 0 | I9: =HLOOKUP($C9,'Dados Gerais'!$D$5:$O$68,46) -> 0 | J9: =HLOOKUP($C9,'Dados Gerais'!$D$5:$O$68,33) -> 0 | K9: 5809.79 | M9: 11619.58
C10: 6 | D10: =HLOOKUP($C10,'Dados Gerais'!$D$5:$O$68,6) -> Analista de qualidade especializado em monitoramento e controle de qualidade de service desk | E10: =HLOOKUP($C10,'Dados Gerais'!$D$5:$O$68,10) -> 2 | F10: =HLOOKUP($C10,'Dados Gerais'!$D$5:$O$68,8) -> 4582.85 | G10: =HLOOKUP($C10,'Dados Gerais'!$D$5:$O$68,25) -> 0 | H10: =HLOOKUP($C10,'Dados Gerais'!$D$5:$O$68,31) -> 0 | I10: =HLOOKUP($C10,'Dados Gerais'!$D$5:$O$68,46) -> 0 | J10: =HLOOKUP($C10,'Dados Gerais'!$D$5:$O$68,33) -> 0 | K10: 4582.85 | M10: 9165.7
C11: 7 | D11: =HLOOKUP($C11,'Dados Gerais'!$D$5:$O$68,6) -> Líder de service desk | E11: =HLOOKUP($C11,'Dados Gerais'!$D$5:$O$68,10) -> 2 | F11: =HLOOKUP($C11,'Dados Gerais'!$D$5:$O$68,8) -> 6970.64 | G11: =HLOOKUP($C11,'Dados Gerais'!$D$5:$O$68,25) -> 0 | H11: =HLOOKUP($C11,'Dados Gerais'!$D$5:$O$68,31) -> 0 | I11: =HLOOKUP($C11,'Dados Gerais'!$D$5:$O$68,46) -> 0 | J11: =HLOOKUP($C11,'Dados Gerais'!$D$5:$O$68,33) -> 0 | K11: 6970.64 | M11: 13941.28
M12: 0
D13: TOTAL DE POSTOS | E13: =SUM(E5:E12) -> 111

Sheet RESUMO
B3: RESUMO - TOTAIS MENSAIS - FATURA ORDINÁRIA (SEM O 13º E SEM OS ITENS SOB DEMANDA)
C6: ITEM | D6: POSTO DE TRABALHO | E6: QUANTIDADE | F6: PREÇO UNIT (SEM O 13º) | G6: DESTAQUE DO 13º | H6: PREÇO POR EMPREGADO | I6: PREÇO TOTAL (MENSAL)
C7: 1 | D7: =HLOOKUP(C7,'Dados Gerais'!$D$5:$BJ$10,6) -> Analista de suporte técnico | E7: =HLOOKUP(C7,'Dados Gerais'!$D$5:$BJ$14,10) -> 87 | F7: ='1'!$E$116 -> 8935.918299 | G7: 0 | H7: =G7+F7 -> 8935.918299 | I7: =H7*E7 -> 777424.892
C8: 2 | D8: =HLOOKUP(C8,'Dados Gerais'!$D$5:$BJ$10,6) -> Encarregado de suporte técnico | E8: =HLOOKUP(C8,'Dados Gerais'!$D$5:$BJ$14,10) -> 14 | F8: ='2'!$E$116 -> 12171.09194 | G8: 0 | H8: 12171.09194 | I8: 170395.2871
C9: 3 | D9: =HLOOKUP(C9,'Dados Gerais'!$D$5:$BJ$10,6) -> Analista de contratos especializado em gerenciamento de fornecedores e contratos de informática | E9: =HLOOKUP(C9,'Dados Gerais'!$D$5:$BJ$14,10) -> 2 | F9: ='3'!$E$116 -> 14408.56775 | G9: 0 | H9: 14408.56775 | I9: 28817.1355
C10: 4 | D10: =HLOOKUP(C10,'Dados Gerais'!$D$5:$BJ$10,6) -> Analista de suporte técnico especializado em gerenciamento de software de microinformática | E10: =HLOOKUP(C10,'Dados Gerais'!$D$5:$BJ$14,10) -> 2 | F10: ='4'!$E$116 -> 11109.40319 | G10: 0 | H10: 11109.40319 | I10: 22218.80639
C11: 5 | D11: =HLOOKUP(C11,'Dados Gerais'!$D$5:$BJ$10,6) -> Analista de suporte técnico especializado em levantamento de requisitos, especificação e orçamento de contratações de microinformática | E11: =HLOOKUP(C11,'Dados Gerais'!$D$5:$BJ$14,10) -> 2 | F11: ='5'!$E$116 -> 13045.70204 | G11: 0 | H11: 13045.70204 | I11: 26091.40408
C12: 6 | D12: =HLOOKUP(C12,'Dados Gerais'!$D$5:$BJ$10,6) -> Analista de qualidade especializado em monitoramento e controle de qualidade de service desk | E12: =HLOOKUP(C12,'Dados Gerais'!$D$5:$BJ$14,10) -> 2 | F12: ='6'!$E$116 -> 10596.84194 | G12: 0 | H12: 10596.84194 | I12: 21193.68388
C13: 7 | D13: =HLOOKUP(C13,'Dados Gerais'!$D$5:$BJ$10,6) -> Líder de service desk | E13: =HLOOKUP(C13,'Dados Gerais'!$D$5:$BJ$14,10) -> 2 | F13: ='7'!$E$116 -> 15393.91623 | G13: 0 | H13: =G13+F13 -> 15393.91623 | I13: =H13*E13 -> 30787.83247
D15: TOTAL MENSAL - SALÁRIOS | I15: =SUM(I7:I14) -> 1076929.041
B18: RESUMO - TOTAIS MENSAIS - DESTAQUE DO 13º SALÁRIO
C21: ITEM | D21: POSTO DE TRABALHO | E21: QUANTIDADE | F21: PREÇO UNIT (SEM O 13º) | G21: DESTAQUE DO 13º | H21: PREÇO POR EMPREGADO | I21: PREÇO TOTAL (MENSAL)
C22: 1 | D22: =HLOOKUP(C22,'Dados Gerais'!$D$5:$BJ$10,6) -> Analista de suporte técnico | E22: =HLOOKUP(C22,'Dados Gerais'!$D$5:$BJ$14,10) -> 87 | F22: 0 | G22: =G37 -> 564.56 | H22: =G22+F22 -> 564.56 | I22: =H22*E22 -> 49116.72
C23: 2 | D23: =HLOOKUP(C23,'Dados Gerais'!$D$5:$BJ$10,6) -> Encarregado de suporte técnico | E23: =HLOOKUP(C23,'Dados Gerais'!$D$5:$BJ$14,10) -> 14 | F23: 0 | G23: =G38 -> 820.82 | H23: =G23+F23 -> 820.82 | I23: 11491.48
C24: 3 | D24: =HLOOKUP(C24,'Dados Gerais'!$D$5:$BJ$10,6) -> Analista de contratos especializado em gerenciamento de fornecedores e contratos de informática | E24: =HLOOKUP(C24,'Dados Gerais'!$D$5:$BJ$14,10) -> 2 | F24: 0 | G24: 989.63 | H24: 989.63 | I24: 1979.26
C25: 4 | D25: =HLOOKUP(C25,'Dados Gerais'!$D$5:$BJ$10,6) -> Analista de suporte técnico especializado em gerenciamento de software de microinformática | E25: =HLOOKUP(C25,'Dados Gerais'!$D$5:$BJ$14,10) -> 2 | F25: 0 | G25: 739.72 | H25: 739.72 | I25: 1479.44
C26: 5 | D26: =HLOOKUP(C26,'Dados Gerais'!$D$5:$BJ$10,6) -> Analista de suporte técnico especializado em levantamento de requisitos, especificação e orçamento de contratações de microinformática | E26: =HLOOKUP(C26,'Dados Gerais'!$D$5:$BJ$14,10) -> 2 | F26: 0 | G26: 886.8 | H26: 886.8 | I26: 1773.6
C27: 6 | D27: =HLOOKUP(C27,'Dados Gerais'!$D$5:$BJ$10,6) -> Analista de qualidade especializado em monitoramento e controle de qualidade de service desk | E27: =HLOOKUP(C27,'Dados Gerais'!$D$5:$BJ$14,10) -> 2 | F27: 0 | G27: 699.51 | H27: 699.51 | I27: 1399.02
C28: 7 | D28: =HLOOKUP(C28,'Dados Gerais'!$D$5:$BJ$10,6) -> Líder de service desk | E28: =HLOOKUP(C28,'Dados Gerais'!$D$5:$BJ$14,10) -> 2 | F28: 0 | G28: 1064.01 | H28: 1064.01 | I28: =H28*E28 -> 2128.02
D30: TOTAL MENSAL - DESTAQUE DO 13º | I30: =SUM(I22:I29) -> 69367.54
B33: RESUMO - TOTAIS MENSAIS - FATURA ORDINÁRIA TOTAL
C36: ITEM | D36: POSTO DE TRABALHO | E36: QUANTIDADE | F36: PREÇO UNIT (SEM O 13º) | G36: DESTAQUE DO 13º | H36: PREÇO POR EMPREGADO | I36: PREÇO TOTAL (MENSAL)
C37: 1 | D37: =HLOOKUP(C37,'Dados Gerais'!$D$5:$BJ$10,6) -> Analista de suporte técnico | E37: =HLOOKUP(C37,'Dados Gerais'!$D$5:$BJ$14,10) -> 87 | F37: ='1'!$E$116 -> 8935.918299 | G37: ='1'!$E$117 -> 564.56 | H37: =G37+F37 -> 9500.478299 | I37: =H37*E37 -> 826541.612 | K37: =I37/$I$45 -> 0.7210538925 | L37: =$I$58*K37 -> 23994.82496
C38: 2 | D38: =HLOOKUP(C38,'Dados Gerais'!$D$5:$BJ$10,6) -> Encarregado de suporte técnico | E38: =HLOOKUP(C38,'Dados Gerais'!$D$5:$BJ$14,10) -> 14 | F38: ='2'!$E$116 -> 12171.09194 | G38: ='2'!$E$117 -> 820.82 | H38: 12991.91194 | I38: 181886.7671 | K38: 0.1586733923 | L38: 5280.2437
C39: 3 | D39: =HLOOKUP(C39,'Dados Gerais'!$D$5:$BJ$10,6) -> Analista de contratos especializado em gerenciamento de fornecedores e contratos de informática | E39: =HLOOKUP(C39,'Dados Gerais'!$D$5:$BJ$14,10) -> 2 | F39: ='3'!$E$116 -> 14408.56775 | G39: ='3'!$E$117 -> 989.63 | H39: 15398.19775 | I39: 30796.3955 | K39: 0.02686599262 | L39: 894.0313572
C40: 4 | D40: =HLOOKUP(C40,'Dados Gerais'!$D$5:$BJ$10,6) -> Analista de suporte técnico especializado em gerenciamento de software de microinformática | E40: =HLOOKUP(C40,'Dados Gerais'!$D$5:$BJ$14,10) -> 2 | F40: ='4'!$E$116 -> 11109.40319 | G40: ='4'!$E$117 -> 739.72 | H40: 11849.12319 | I40: 23698.24639 | K40: 0.02067374777 | L40: 687.9693238
C41: 5 | D41: =HLOOKUP(C41,'Dados Gerais'!$D$5:$BJ$10,6) -> Analista de suporte técnico especializado em levantamento de requisitos, especificação e orçamento de contratações de microinformática | E41: =HLOOKUP(C41,'Dados Gerais'!$D$5:$BJ$14,10) -> 2 | F41: ='5'!$E$116 -> 13045.70204 | G41: ='5'!$E$117 -> 886.8 | H41: 13932.50204 | I41: 27865.00408 | K41: 0.02430872126 | L41: 808.9319224
C42: 6 | D42: =HLOOKUP(C42,'Dados Gerais'!$D$5:$BJ$10,6) -> Analista de qualidade especializado em monitoramento e controle de qualidade de service desk | E42: =HLOOKUP(C42,'Dados Gerais'!$D$5:$BJ$14,10) -> 2 | F42: ='6'!$E$116 -> 10596.84194 | G42: ='6'!$E$117 -> 699.51 | H42: 11296.35194 | I42: 22592.70388 | K42: 0.01970930058 | L42: 655.8749941
C43: 7 | D43: =HLOOKUP(C43,'Dados Gerais'!$D$5:$BJ$10,6) -> Líder de service desk | E43: =HLOOKUP(C43,'Dados Gerais'!$D$5:$BJ$14,10) -> 2 | F43: ='7'!$E$116 -> 15393.91623 | G43: ='7'!$E$117 -> 1064.01 | H43: =G43+F43 -> 16457.92623 | I43: =H43*E43 -> 32915.85247 | K43: 0.028714953 | L43: 955.5600186
K44: 0 | L44: =#REF!*K44 -> 
D45: TOTAL MENSAL - SALÁRIOS | I45: =SUM(I37:I44) -> 1146296.581
C47: ITEM | D47: DESCRIÇÃO | I47: PREÇO TOTAL (MENSAL) | L47: PREÇO TOTAL (MENSAL)
C48: EQUIP | D48: EQUIPAMENTOS NÃO RELACIONADOS DIRETAMENTE A UM POSTO DE TRABALHO | I48: ='Não Rel - Ferram.Depr'!M41 -> 0 | L48: 0
C49: HEXTRA | D49: HORAS EXTRAS | I49: ='Não Rel - Ferram.Depr'!M41 -> 0 | L49: 0
C50: HNOT | D50: ADICIONAL DE HORAS NOTURNAS (SOB DEMANDA) | I50: 255.2587712 | K50: =L50/$H$69 -> 8.152504884e-05 | L50: 96.16482941
C51: SREP | D51: SISTEMA DE REGISTRO ELETRÔNICO DE PRESENÇA - SREP | I51: =SREP!$M$45 -> 2543.13 | K51: =L51/$H$69 -> 0.0004593098795 | L51: 541.79
C52: EPI - N.REL | D52: EQUIPAMENTOS DE PROTEÇÃO INDIVIDUAL NÃO RELACIONADOS DIRETAMENTE A UM POSTO DE TRABALHO | I52: ='Não Rel - EPI'!K19 -> 0 | K52: 0 | L52: 0
C53: FERR - N.REL | D53: FERRAMENTAS NÃO RELACIONADAS DIRETAMENTE A UM POSTO DE TRABALHO | I53: ='Não Rel - Ferram.Depr'!M42 -> 689.21 | K53: 0.001505263742 | L53: 1775.57
C54: UNIFORM - NAO REL | D54: UNIFORMES NÃO RELACIONADOS DIRETAMENTE A UM POSTO DE TRABALHO | I54: ='Não Rel - Uniformes'!L48 -> 29789.8375 | K54: 0.008387058818 | L54: 9893.156667
C55: MAT CONS DURAVEL SOB DEMANDA | D55: MATERIAIS DE CONSUMO DURÁVEL NÃO RELACIONADOS DIRETAMENTE A UM POSTO DE TRABALHO - AQUISIÇÃO SOB DEMANDA | I55: ='Não Rel - Mat Cons Durável'!L42 -> 0 | K55: =I55/$H$69 -> 0 | L55: 0
C56: EQ SOB DEMANDA | D56: SERVIÇOS NÃO RELACIONADOS DIRETAMENTE A UM POSTO DE TRABALHO - AQUISIÇÃO SOB DEMANDA | I56: ='Não Rel - Serviços'!K18 -> 0 | K56: =I56/$H$69 -> 0 | L56: 0
D58: TOTAL MENSAL - ITENS SOB DEMANDA | I58: =SUM(I48:I57) -> 33277.43627 | K58: =L58/$H$69 -> 0.01043315749 | L58: 12306.6815
D60: TOTAL MENSAL - ITENS ORDINÁRIOS + ITENS SOB DEMANDA
D61: DESCRIÇÃO | H61: VALOR
D62: Postos de Trabalho - Inclusive 13º Salário | H62: =I45 -> 1146296.581
D63: Adicional de Horas Noturnas | H63: 255.2587712
D64: Sistema de Registro Eletrônico de Presença - SREP | H64: =I51 -> 2543.13
D65: Equipamentos de Proteção Individual não relacionados diretamente a um posto de trabalho | H65: =I52 -> 0
D66: Uniformes não relacionados diretamente a um posto de trabalho | H66: ='Não Rel - Uniformes'!L48 -> 29789.8375
D67: Ferramentas não relacionadas diretamente a um posto de trabalho - pagamento da manutenção e depreciação dos bens | H67: =I53 -> 689.21
G69: TOTAL MENSAL DA CONTRATAÇÃO | H69: =SUM(H62:H68) -> 1179574.018 | K69: =Extenso_Valor(H69) -> um milhão, cento e setenta e nove mil, quinhentos e setenta e quatro reais e dois centavos
D71: TOTAL ANUAL - ITENS ORDINÁRIOS + ITENS SOB DEMANDA
G73: 12 x TOTAL MENSAL | H73: =H69*12 -> 14154888.21
D75: TOTAL 30 MESES - ITENS ORDINÁRIOS + ITENS SOB DEMANDA
G77: 30 x TOTAL MENSAL | H77: =H69*30 -> 35387220.53

Sheet 1
B2: PLANILHA DE ESTIMATIVA DE CUSTOS
B3: Padrão IN 05/2017 e IN 07/2018 - MPDG
B5: 1 | D5: =HLOOKUP($B$5,'Dados Gerais'!$D$5:$BJ$20,6) -> Analista de suporte técnico | E5: QUANTIDADE | F5: =HLOOKUP($B$5,'Dados Gerais'!$D$5:$BJ$20,10) -> 87
B6: CCT | D6: =HLOOKUP($B$5,'Dados Gerais'!$D$5:$BJ$20,15) -> SINDPD/DF X SINDESEI/DF 2021/2022 Nº DF000608/2021 | E6: DATA-BASE | F6: =HLOOKUP($B$5,'Dados Gerais'!$D$5:$BJ$20,16) -> 44317
B8: MÓDULO 1 - COMPOSIÇÃO DA REMUNERAÇÃO | F8: Valor
C9: A | D9: Salário-Base | F9: =HLOOKUP($B$5,'Dados Gerais'!$D$5:$BJ$20,8) -> 3698.66
C10: B | D10: Adicional de Periculosidade | F10: =HLOOKUP($B$5,'Dados Gerais'!$D$5:$BJ$37,25) -> 0
C11: C | D11: Adicional de Insalubridade | F11: =HLOOKUP($B$5,'Dados Gerais'!$D$5:$BJ$37,31) -> 0
C12: D | D12: Adicional Noturno | F12: =HLOOKUP($B$5,'Dados Gerais'!$D$5:$BJ$50,46) -> 0 | H12: * Nota 1 - O Módulo 1 refere-se ao valor mensal devido ao empregado pela prestação do serviço no período de 12 meses.
C13: E | D13: Adicional de Hora Extra | F13: =HLOOKUP($B$5,'Dados Gerais'!$D$5:$BJ$67,63) -> 0 | H13: * Nota 2 - O adicional de hora extra no feriado trabalhado foi suprimido pela Lei 13.467/17
C14: F | D14: Outros (especificar) | F14: =HLOOKUP($B$5,'Dados Gerais'!$D$5:$BJ$59,33) -> 0 | H14: * Nota 3 - ART. 7º, § 2º, DA LEI Nº 605/49.Sendo mensalista o obreiro, o adicional noturno pago de forma fixa já é considerado integrado para os efeitos do pagamento do repouso semanal remunerado, nos termos do art. 7º, § 2º, da Lei nº 605/49.
D16: TOTAL DA REMUNERAÇÃO | F16: =SUM(F9:F14) -> 3698.66
B18: MÓDULO 2 - ENCARGOS E BENEFÍCIOS ANUAIS, MENSAIS E DIÁRIOS | E18: Percentuais | F18: Valor
B19: Submódulo 2.1 - 13º Salário, Férias e Adicional de Férias
C20: A | D20: 13º Salário - Calculado no Módulo 7 - Destacado | E20: 0 | F20: =ROUND(E20*F$16,2) -> 0
C21: B | D21: Adicional de Férias | E21: ='Encargos Sociais'!E30 -> 0.0303030303 | F21: =ROUND(E21*F$16,2) -> 112.08 | H21: * Nota 1 - Provisiona-se, mensalmente, o proporcional a 1/12 dos valores referentes a gratificação natalina, férias e adicional de férias.
H22: * Nota 2 - O adicional de férias contido no Submódulo 2.1 corresponde a 1/3 da remuneração que, por sua vez, é dividida por 12 contome Nota 1.
B23: Submódulo 2.2 - Encargos Previdenciários (GPS), Fundo de Garantia por Tempo de Serviço (FGTS) e Outras Contribuições
C24: A | D24: INSS (art. 22, inciso I, Lei nº 8.212/91) | E24: ='Encargos Sociais'!E13 -> 0.2 | F24: =ROUND(E24*($F$16+$F$41+$F$73),2) -> 844.22
C25: B | D25: Salário Educação (art. 3º, inciso I, Decreto nº 87.043/82) | E25: ='Encargos Sociais'!E14 -> 0.025 | F25: =ROUND(E25*($F$16+$F$41+$F$73),2) -> 105.53
C26: C | D26: SAT/RAT (art. 22, II, Lei 8.212/91 e Anexo V, Decreto 6.042/07) - Enquadramento 8211-3/00 | E26: ='Encargos Sociais'!E15 -> 0.01 | F26: 42.21
C27: D | D27: SESC ou SESI (art. 30, Lei nº 8.036/90 e art. 1º, Lei 8.154/90) | E27: ='Encargos Sociais'!E16 -> 0.015 | F27: 63.32
C28: E | D28: SENAI ou SENAC (Decreto nº 2.318/86) | E28: ='Encargos Sociais'!E17 -> 0.01 | F28: 42.21
C29: F | D29: SEBRAE (§ 3º, art. 8º, Lei 8.029/90, alterada pela Lei nº 8.154/90) | E29: ='Encargos Sociais'!E18 -> 0.006 | F29: 25.33
C30: G | D30: INCRA (art. 1º, I, Decreto Lei 1.146/70 e Lei 7.787, de 30/06/89) | E30: ='Encargos Sociais'!E19 -> 0.002 | F30: 8.44 | H30: * Nota 1 - Os percentuais dos encargos previdenciários, do FGTS e demais contribuições são estabelecidos por legislação vigente.
C31: H | D31: FGTS (Lei Complementar nº 110/01 e art. 30, Lei nº 8.036/90) | E31: ='Encargos Sociais'!E20 -> 0.08 | F31: 337.69 | H31: * Nota 2 - O SAT, a depender do grau de risco do serviço, irá variar entre 1%, para risco leve, de 2%, para risco médio, e de 3% para risco grave.
C32: I | D32: SECONCI (Convenções Coletivas de Trabalho da construção) | E32: ='Encargos Sociais'!E21 -> 0 | F32: 0 | H32: * Nota 3 - Os percentuais do Submódulo 2.2 incidem sobre o Módulo 1 e o Submódulo 2.1.
B34: Submódulo 2.3 - Benefícios Mensais e Diários
C35: A | D35: Auxílio Transporte | F35: =HLOOKUP($B$5,'Dados Gerais'!$D$5:$BJ$93,82) -> 79.08
C36: B | D36: Auxílio Alimentação | F36: =HLOOKUP($B$5,'Dados Gerais'!$D$5:$BJ$93,89) -> 770
C37: C | D37: Assistência Médica e Familiar | F37: =HLOOKUP($B$5,'Dados Gerais'!$D$5:$BJ$101,97) -> 285.5
C38: D | D38: Outros (Seguro de vida e auxílio funeral e auxílio odontológico) | F38: =HLOOKUP($B$5,'Dados Gerais'!$D$5:$BJ$118,114) -> 12.36 | H38: * Nota 1 - O valor informado deverá ser o custo real do benefício (descontado o valor eventualmente pago pelo empregado).
H39: * Nota 2 - Observar a previsão dos benefícios contidos em Acordos, Convenções e Dissídios Coletivos de Trabalho e o disposto no art. 6º da IN 5/2017
D40: QUADRO-RESUMO DO MÓDULO 2
D41: 2.1 - 13º Salário, Férias e Adicional de Férias - 13º Destacado - Calculado no Módulo 7 | E41: =SUM(E20:E21) -> 0.0303030303 | F41: =F20+F21 -> 112.08
D42: 2.2 - Encargos Previdenciários (GPS), Fundo de Garantia por Tempo de Serviço (FGTS) e Contribuições | E42: =SUM(E24:E32) -> 0.348 | F42: =SUM(F24:F32) -> 1468.95
D43: 2.3 - Benefícios Mensais e Diários | F43: =SUM(F35:F38) -> 1146.94
D45: TOTAL DOS ENCARGOS E BENEFÍCIOS | F45: =SUM(F41:F43) -> 2727.97
B47: MÓDULO 3 - PREVISÃO PARA RESCISÃO | E47: Percentuais | F47: Valor
C48: A | D48: Aviso Prévio Indenizado (Art. 7º, inciso XXI, da CF/1988 e arts. 477, 487, §1º, e 491 da CLT) | E48: ='Encargos Sociais'!E35 -> 0.008333333333 | F48: =ROUND(E48*$F$16,2) -> 30.82
C49: B | D49: Incidência do FGTS sobre o Aviso Prévio Indenizado (Súmula 305 TST) | E49: ='Encargos Sociais'!E36 -> 0.0006666666667 | F49: 2.47 | H49: * Nota 1 - Adotou-se os parâmetros do estudo do STF (http://www.stf.jus.br/arquivo/cms/sobrestfestudosci/anexo/encargos_sociais_03102007.pdf), onde 5% do pessoal é demitido pelo empregador no decurso do contrato (para estes, considerou-se o aviso prévio indenizado). Desprezou-se as demissões por justa causa e os pedidos de demissão.
C50: C | D50: Multa do FGTS e Contribuição Social sobre o Aviso Prévio Indenizado (Art. 18, §1º, da Lei 8.036/1990 e art. 1º da LC nº 110/2001) | E50: ='Encargos Sociais'!E37 -> 0.001274074074 | F50: 4.71 | H50: * Nota 2 - No cálculo do percentual, considerou-se 36 dias, correspondendo à metade da duração média dos contratos (2 anos)
C51: D | D51: Aviso Prévio Trabalhado (Art. 488, parágrafo único, CLT) | E51: ='Encargos Sociais'!E38 -> 0.01203703704 | F51: 44.52 | H51: * Nota 3 - Incide sobre a Remuneração + 13º salário (1/12) + Férias (1/12) + Adicional de Férias (1/36) x 50% multa (40% para o empregado e 10% de contribuição social) x 8% FGTS
C52: E | D52: Incidência de GPS, FGTS e outras contribuições sobre o Aviso Prévio Trabalhado | E52: ='Encargos Sociais'!E39 -> 0.004188888889 | F52: 15.49 | H52: * Nota 4 - Os 95% restantes do cálculo, a um prazo médio de contrato de 4 anos. Assim, calcula-se 7 dias para o 1º ano de contrato e mais 3 dias para os 3 anos seguintes.
C53: F | D53: Multa do FGTS e Contribuição Social sobre o Aviso Prévio Trabalhado | E53: ='Encargos Sociais'!E40 -> 0.03050515556 | F53: 112.83
D55: TOTAL DE PREVISÃO PARA RESCISÃO | F55: =SUM(F48:F53) -> 210.84
B57: MÓDULO 4 - CUSTO DE REPOSIÇÃO DO PROFISSIONAL AUSENTE | E57: Percentuais | F57: Valor
B58: Submódulo 4.1 - Ausências Legais
C59: A | D59: Férias (Arts. 129 e 130, inc. I, da CLT) | E59: ='Encargos Sociais'!E24 -> 0.09090909091 | F59: =ROUND(E59*$F$16,2) -> 336.24 | H59: * Nota 1 - As alíneas “A” a “F” referem-se somente ao custo que será pago ao repositor pelos dias trabalhados quando da necessidade de substituir a mão de obra alocada na prestação do serviço.
C60: B | D60: Ausências Legais (Arts. 131 e 473 da CLT) | E60: ='Encargos Sociais'!E25 -> 0.007936507937 | F60: 29.35 | H60: * Nota 2 - Adotou-se a estimativa do SINAPI de 2 dias por ano.
C61: C | D61: Licença-Paternidade (Art. 7º, XIX, e art. 10, §1º, do ADCT, CF/1988 e Art. 1º, II, da Lei 11.770/2008) | E61: ='Encargos Sociais'!E26 -> 0.0008277777778 | F61: 3.06 | H61: * Nota 3 - Utilizada a proporção de 50% para homens, 5 dias de afastamento, e a probabilidade de um trabalhador requerer a Licença Paternidade em 5,22%, conforme SINAPI (citando dados da PNAD 2015)
C62: D | D62: Ausência por Acidente de Trabalho (Art. 131, III, da CLT) | E62: ='Encargos Sociais'!E27 -> 0.0008541666667 | F62: 3.16 | H62: * Nota 4 - Utilzada a estatística de 1,96% dos contribuintes beneficiados com a emissão do auxílio, conforme Anuário Estatístico da Previdência Social. Afastamento de 15 dias a cargo da empresa.
C63: E | D63: Afastamento Maternidade (Art. 71 da Lei nº 8.213/1991) | E63: ='Encargos Sociais'!E28 -> 0.003292592593 | F63: 12.18 | H63: * Nota 5 - Utilizada a proporção de 50% para mulheres, 180 dias de afastamento, e a probabilidade de uma trabalhadora requerer a Licença Maternidade em 4,91%, conforme SINAPI (citando dados do IBGE 2016)
C64: F | D64: Auxílio Enfermidade - Doença (Art. 59 da Lei nº 8.213/1991) | E64: ='Encargos Sociais'!E29 -> 0.007122222222 | F64: 26.34 | H64: * Nota 6 - Utilizada a estatística de 3,37% dos contribuintes beneficiados com o auxílio, conforme Anuário Estatístico da Previdência Social de 2015 (acrescidos de 2 dias ao ano, para os quais o trabalhador nem requer o benefício da Previdência - conforme SINAPI)
B66: Submódulo 4.2 - Intrajornada
C67: A | D67: Intervalo para repouso ou alimentação | E67: ='Encargos Sociais'!E32 -> 0 | F67: =ROUND(E67*$F$16,2) -> 0
D69: QUADRO-RESUMO DO MÓDULO 4 | F69: Valor
D70: 4.1 - Ausências Legais | E70: =SUM(E59:E64) -> 0.1109423581 | F70: =ROUND(E70*$F$16,2) -> 410.34
D71: 4.2 - Intrajornada | E71: =E67 -> 0 | F71: =ROUND(E71*$F$16,2) -> 0
D73: TOTAL DE PREVISÃO PARA RESCISÃO E INTERVALO INTRAJORNADA | F73: =SUM(F70:F71) -> 410.34
B75: MÓDULO 5 - INSUMOS DIVERSOS | F75: Valor
C76: A | D76: Uniformes - aquisição | F76: =ROUND(HLOOKUP($B$5,Uniformes!K11:DZ29,3)/12,2) -> 0
C77: B | D77: Materiais de consumo relacionados ao posto - aquisição | F77: =ROUND(HLOOKUP(B5,'Mat Cons'!I11:DX13,3)/12,2) -> 0
C78: C | D78: Materiais permanentes relacionados ao posto - remuneração da sua depreciação / manutenção | F78: =HLOOKUP(B5,'Mat Perm'!Q11:EF13,3) -> 0
C79: D | D79: Equipamentos relacionados ao posto - remuneração da sua depreciação / manutenção | F79: =HLOOKUP(B5,'Equip Rel'!Q11:EF13,3) -> 0
C80: E | D80: Equipamentos de Proteção Individual - EPI - aquisição | F80: =ROUND(HLOOKUP(B5,EPI!I11:DX202,3)/12,2) -> 0
D82: TOTAL DE INSUMOS DIVERSOS | F82: =SUM(F76:F81) -> 0 | H82: * Nota - Valores mensais por empregado
B84: MÓDULO 6 - CUSTOS INDIRETOS, TRIBUTOS E LUCRO - BDI | E84: Percentuais | F84: Valor
C85: A | D85: Custos Indiretos | E85: =BDI!E6 -> 0.0628
C86: A.1 | D86: Administração Central | E86: =BDI!E7 -> 0.026
C87: A.2 | D87: Seguros, Garantias e Riscos | E87: =BDI!E8 -> 0.0368
C88: B | D88: Lucro | E88: =BDI!E10 -> 0.04
C89: C | D89: Tributos | E89: =SUM(E90:E91) -> 0.124
C90: C.1 | D90: Tributos Federais (COFINS, PIS e CPRB) | E90: =BDI!E18 -> 0.074
C91: C.2 | D91: Tributos Distritais (ISS) | E91: =BDI!E23 -> 0.05 | H91: * Nota - Utilizou-se o indicado pelo Sindicato da Arquitetura e da Engenharia (Sinaenco, 2008, p. 22), que adota um percentual redutor de 20% no cálculo dos custos tributários relativos às contribuições PIS e COFINS
C92: D | D92: Despesas Financeiras | E92: =BDI!E13 -> 0.004861120438
D94: TOTAL DE BDI | E94: =BDI!E26 -> 0.2679 | F94: =E94*E102 -> 1888.108299
D96: QUADRO-RESUMO DO CUSTO MENSAL POR EMPREGADO - SEM O 13º | E96: Valor
D97: Módulo 1 - Composição da Remuneração | E97: =F16 -> 3698.66
D98: Módulo 2 - Encargos e Benefícios Anuais, Mensais e Diários | E98: =F45 -> 2727.97
D99: Módulo 3 - Provisão para Rescisão | E99: =F55 -> 210.84
D100: Módulo 4 - Custo de Reposição do Profissional Ausente | E100: =F73 -> 410.34
D101: Módulo 5 - Insumos Diversos | E101: =F82 -> 0
D102: SUBTOTAL (A+B+C+D+E) | E102: =SUM(E97:E101) -> 7047.81
D103: Módulo 6 - Custos Indiretos, Tributos e Lucro | E103: =F94 -> 1888.108299
D105: TOTAL DO POSTO | E105: =SUM(E102:E103) -> 8935.918299
B107: MÓDULO 7 - DESTAQUE DO MÓDULO 2 - 13º SALÁRIO | E107: Percentuais | F107: Valor
C108: A | D108: 13º Salário | E108: ='Encargos Sociais'!E31 -> 0.08333333333 | F108: =ROUND(E108*F$16,2) -> 308.22
C109: B | D109: Encargos Sociais sobre o 13º Salário - Taxa calculada no SUBMÓDULO 2.2 | E109: =SUM($E$24:$E$32) -> 0.348 | F109: =ROUND(E109*$F$108,2) -> 107.26 | H109: * Nota 1 - Provisiona-se, mensalmente, o proporcional a 1/12 dos valores referentes a gratificação natalina e adicional de férias.
C110: C | D110: Reincidência de férias sobre o 13º salário | E110: =E59 -> 0.09090909091 | F110: =ROUND(E110*($F$108+$F$109),2) -> 37.77
C111: D | D111: BDI sobre o 13º Salário - Taxa calculada no MÓDULO 6 | E111: =E94 -> 0.2679 | F111: =ROUND(E111*($F$108+$F$109),2) -> 111.31
D113: TOTAL DO DESTAQUE DO 13º SALÁRIO | F113: =SUM(F108:F111) -> 564.56
D115: QUADRO-RESUMO DO CUSTO MENSAL POR EMPREGADO | E115: Valor
D116: Custo total - sem o 13º Salário | E116: =E105 -> 8935.918299
D117: Destaque do 13º Salário (valor mensal) | E117: =F113 -> 564.56
D119: TOTAL DO POSTO | E119: =E116+E117 -> 9500.478299

Sheet 2
B2: PLANILHA DE ESTIMATIVA DE CUSTOS
B3: Padrão IN 05/2017 e IN 07/2018 - MPDG
B5: 2 | D5: =HLOOKUP($B$5,'Dados Gerais'!$D$5:$BJ$20,6) -> Encarregado de suporte técnico | E5: QUANTIDADE | F5: =HLOOKUP($B$5,'Dados Gerais'!$D$5:$BJ$20,10) -> 14
B6: CCT | D6: =HLOOKUP($B$5,'Dados Gerais'!$D$5:$BJ$20,15) -> SINDPD/DF X SINDESEI/DF 2021/2022 Nº DF000608/2021 | E6: DATA-BASE | F6: =HLOOKUP($B$5,'Dados Gerais'!$D$5:$BJ$20,16) -> 44317
B8: MÓDULO 1 - COMPOSIÇÃO DA REMUNERAÇÃO | F8: Valor
C9: A | D9: Salário-Base | F9: =HLOOKUP($B$5,'Dados Gerais'!$D$5:$BJ$20,8) -> 5377.41
C10: B | D10: Adicional de Periculosidade | F10: =HLOOKUP($B$5,'Dados Gerais'!$D$5:$BJ$37,25) -> 0
C11: C | D11: Adicional de Insalubridade | F11: =HLOOKUP($B$5,'Dados Gerais'!$D$5:$BJ$37,31) -> 0
C12: D | D12: Adicional Noturno | F12: =HLOOKUP($B$5,'Dados Gerais'!$D$5:$BJ$50,46) -> 0 | H12: * Nota 1 - O Módulo 1 refere-se ao valor mensal devido ao empregado pela prestação do serviço no período de 12 meses.
C13: E | D13: Adicional de Hora Extra | F13: =HLOOKUP($B$5,'Dados Gerais'!$D$5:$BJ$67,63) -> 0 | H13: * Nota 2 - O adicional de hora extra no feriado trabalhado foi suprimido pela Lei 13.467/17
C14: F | D14: Outros (especificar) | F14: =HLOOKUP($B$5,'Dados Gerais'!$D$5:$BJ$59,33) -> 0 | H14: * Nota 3 - ART. 7º, § 2º, DA LEI Nº 605/49.Sendo mensalista o obreiro, o adicional noturno pago de forma fixa já é considerado integrado para os efeitos do pagamento do repouso semanal remunerado, nos termos do art. 7º, § 2º, da Lei nº 605/49.
D16: TOTAL DA REMUNERAÇÃO | F16: =SUM(F9:F14) -> 5377.41
B18: MÓDULO 2 - ENCARGOS E BENEFÍCIOS ANUAIS, MENSAIS E DIÁRIOS | E18: Percentuais | F18: Valor
B19: Submódulo 2.1 - 13º Salário, Férias e Adicional de Férias
C20: A | D20: 13º Salário - Calculado no Módulo 7 - Destacado | E20: 0 | F20: =ROUND(E20*F$16,2) -> 0
C21: B | D21: Adicional de Férias | E21: ='Encargos Sociais'!E30 -> 0.0303030303 | F21: =ROUND(E21*F$16,2) -> 162.95 | H21: * Nota 1 - Provisiona-se, mensalmente, o proporcional a 1/12 dos valores referentes a gratificação natalina, férias e adicional de férias.
H22: * Nota 2 - O adicional de férias contido no Submódulo 2.1 corresponde a 1/3 da remuneração que, por sua vez, é dividida por 12 contome Nota 1.
B23: Submódulo 2.2 - Encargos Previdenciários (GPS), Fundo de Garantia por Tempo de Serviço (FGTS) e Outras Contribuições
C24: A | D24: INSS (art. 22, inciso I, Lei nº 8.212/91) | E24: ='Encargos Sociais'!E13 -> 0.2 | F24: =ROUND(E24*($F$16+$F$41+$F$73),2) -> 1227.39
C25: B | D25: Salário Educação (art. 3º, inciso I, Decreto nº 87.043/82) | E25: ='Encargos Sociais'!E14 -> 0.025 | F25: =ROUND(E25*($F$16+$F$41+$F$73),2) -> 153.42
C26: C | D26: SAT/RAT (art. 22, II, Lei 8.212/91 e Anexo V, Decreto 6.042/07) - Enquadramento 8211-3/00 | E26: ='Encargos Sociais'!E15 -> 0.01 | F26: 61.37
C27: D | D27: SESC ou SESI (art. 30, Lei nº 8.036/90 e art. 1º, Lei 8.154/90) | E27: ='Encargos Sociais'!E16 -> 0.015 | F27: 92.05
C28: E | D28: SENAI ou SENAC (Decreto nº 2.318/86) | E28: ='Encargos Sociais'!E17 -> 0.01 | F28: 61.37
C29: F | D29: SEBRAE (§ 3º, art. 8º, Lei 8.029/90, alterada pela Lei nº 8.154/90) | E29: ='Encargos Sociais'!E18 -> 0.006 | F29: 36.82
C30: G | D30: INCRA (art. 1º, I, Decreto Lei 1.146/70 e Lei 7.787, de 30/06/89) | E30: ='Encargos Sociais'!E19 -> 0.002 | F30: 12.27 | H30: * Nota 1 - Os percentuais dos encargos previdenciários, do FGTS e demais contribuições são estabelecidos por legislação vigente.
C31: H | D31: FGTS (Lei Complementar nº 110/01 e art. 30, Lei nº 8.036/90) | E31: ='Encargos Sociais'!E20 -> 0.08 | F31: 490.96 | H31: * Nota 2 - O SAT, a depender do grau de risco do serviço, irá variar entre 1%, para risco leve, de 2%, para risco médio, e de 3% para risco grave.
C32: I | D32: SECONCI (Convenções Coletivas de Trabalho da construção) | E32: ='Encargos Sociais'!E21 -> 0 | F32: 0 | H32: * Nota 3 - Os percentuais do Submódulo 2.2 incidem sobre o Módulo 1 e o Submódulo 2.1.
B34: Submódulo 2.3 - Benefícios Mensais e Diários
C35: A | D35: Auxílio Transporte | F35: =HLOOKUP($B$5,'Dados Gerais'!$D$5:$BJ$93,82) -> 0
C36: B | D36: Auxílio Alimentação | F36: =HLOOKUP($B$5,'Dados Gerais'!$D$5:$BJ$93,89) -> 770
C37: C | D37: Assistência Médica e Familiar | F37: =HLOOKUP($B$5,'Dados Gerais'!$D$5:$BJ$101,97) -> 237.92
C38: D | D38: Outros (Seguro de vida e auxílio funeral e auxílio odontológico) | F38: =HLOOKUP($B$5,'Dados Gerais'!$D$5:$BJ$118,114) -> 12.36 | H38: * Nota 1 - O valor informado deverá ser o custo real do benefício (descontado o valor eventualmente pago pelo empregado).
H39: * Nota 2 - Observar a previsão dos benefícios contidos em Acordos, Convenções e Dissídios Coletivos de Trabalho e o disposto no art. 6º da IN 5/2017
D40: QUADRO-RESUMO DO MÓDULO 2
D41: 2.1 - 13º Salário, Férias e Adicional de Férias - 13º Destacado - Calculado no Módulo 7 | E41: =SUM(E20:E21) -> 0.0303030303 | F41: =F20+F21 -> 162.95
D42: 2.2 - Encargos Previdenciários (GPS), Fundo de Garantia por Tempo de Serviço (FGTS) e Contribuições | E42: =SUM(E24:E32) -> 0.348 | F42: =SUM(F24:F32) -> 2135.65
D43: 2.3 - Benefícios Mensais e Diários | F43: =SUM(F35:F38) -> 1020.28
D45: TOTAL DOS ENCARGOS E BENEFÍCIOS | F45: =SUM(F41:F43) -> 3318.88
B47: MÓDULO 3 - PREVISÃO PARA RESCISÃO | E47: Percentuais | F47: Valor
C48: A | D48: Aviso Prévio Indenizado (Art. 7º, inciso XXI, da CF/1988 e arts. 477, 487, §1º, e 491 da CLT) | E48: ='Encargos Sociais'!E35 -> 0.008333333333 | F48: =ROUND(E48*$F$16,2) -> 44.81
C49: B | D49: Incidência do FGTS sobre o Aviso Prévio Indenizado (Súmula 305 TST) | E49: ='Encargos Sociais'!E36 -> 0.0006666666667 | F49: 3.58 | H49: * Nota 1 - Adotou-se os parâmetros do estudo do STF (http://www.stf.jus.br/arquivo/cms/sobrestfestudosci/anexo/encargos_sociais_03102007.pdf), onde 5% do pessoal é demitido pelo empregador no decurso do contrato (para estes, considerou-se o aviso prévio indenizado). Desprezou-se as demissões por justa causa e os pedidos de demissão.
C50: C | D50: Multa do FGTS e Contribuição Social sobre o Aviso Prévio Indenizado (Art. 18, §1º, da Lei 8.036/1990 e art. 1º da LC nº 110/2001) | E50: ='Encargos Sociais'!E37 -> 0.001274074074 | F50: 6.85 | H50: * Nota 2 - No cálculo do percentual, considerou-se 36 dias, correspondendo à metade da duração média dos contratos (2 anos)
C51: D | D51: Aviso Prévio Trabalhado (Art. 488, parágrafo único, CLT) | E51: ='Encargos Sociais'!E38 -> 0.01203703704 | F51: 64.73 | H51: * Nota 3 - Incide sobre a Remuneração + 13º salário (1/12) + Férias (1/12) + Adicional de Férias (1/36) x 50% multa (40% para o empregado e 10% de contribuição social) x 8% FGTS
C52: E | D52: Incidência de GPS, FGTS e outras contribuições sobre o Aviso Prévio Trabalhado | E52: ='Encargos Sociais'!E39 -> 0.004188888889 | F52: 22.53 | H52: * Nota 4 - Os 95% restantes do cálculo, a um prazo médio de contrato de 4 anos. Assim, calcula-se 7 dias para o 1º ano de contrato e mais 3 dias para os 3 anos seguintes.
C53: F | D53: Multa do FGTS e Contribuição Social sobre o Aviso Prévio Trabalhado | E53: ='Encargos Sociais'!E40 -> 0.03050515556 | F53: 164.04
D55: TOTAL DE PREVISÃO PARA RESCISÃO | F55: =SUM(F48:F53) -> 306.54
B57: MÓDULO 4 - CUSTO DE REPOSIÇÃO DO PROFISSIONAL AUSENTE | E57: Percentuais | F57: Valor
B58: Submódulo 4.1 - Ausências Legais
C59: A | D59: Férias (Arts. 129 e 130, inc. I, da CLT) | E59: ='Encargos Sociais'!E24 -> 0.09090909091 | F59: =ROUND(E59*$F$16,2) -> 488.86 | H59: * Nota 1 - As alíneas “A” a “F” referem-se somente ao custo que será pago ao repositor pelos dias trabalhados quando da necessidade de substituir a mão de obra alocada na prestação do serviço.
C60: B | D60: Ausências Legais (Arts. 131 e 473 da CLT) | E60: ='Encargos Sociais'!E25 -> 0.007936507937 | F60: 42.68 | H60: * Nota 2 - Adotou-se a estimativa do SINAPI de 2 dias por ano.
C61: C | D61: Licença-Paternidade (Art. 7º, XIX, e art. 10, §1º, do ADCT, CF/1988 e Art. 1º, II, da Lei 11.770/2008) | E61: ='Encargos Sociais'!E26 -> 0.0008277777778 | F61: 4.45 | H61: * Nota 3 - Utilizada a proporção de 50% para homens, 5 dias de afastamento, e a probabilidade de um trabalhador requerer a Licença Paternidade em 5,22%, conforme SINAPI (citando dados da PNAD 2015)
C62: D | D62: Ausência por Acidente de Trabalho (Art. 131, III, da CLT) | E62: ='Encargos Sociais'!E27 -> 0.0008541666667 | F62: 4.59 | H62: * Nota 4 - Utilzada a estatística de 1,96% dos contribuintes beneficiados com a emissão do auxílio, conforme Anuário Estatístico da Previdência Social. Afastamento de 15 dias a cargo da empresa.
C63: E | D63: Afastamento Maternidade (Art. 71 da Lei nº 8.213/1991) | E63: ='Encargos Sociais'!E28 -> 0.003292592593 | F63: 17.71 | H63: * Nota 5 - Utilizada a proporção de 50% para mulheres, 180 dias de afastamento, e a probabilidade de uma trabalhadora requerer a Licença Maternidade em 4,91%, conforme SINAPI (citando dados do IBGE 2016)
C64: F | D64: Auxílio Enfermidade - Doença (Art. 59 da Lei nº 8.213/1991) | E64: ='Encargos Sociais'!E29 -> 0.007122222222 | F64: 38.3 | H64: * Nota 6 - Utilizada a estatística de 3,37% dos contribuintes beneficiados com o auxílio, conforme Anuário Estatístico da Previdência Social de 2015 (acrescidos de 2 dias ao ano, para os quais o trabalhador nem requer o benefício da Previdência - conforme SINAPI)
B66: Submódulo 4.2 - Intrajornada
C67: A | D67: Intervalo para repouso ou alimentação | E67: ='Encargos Sociais'!E32 -> 0 | F67: =ROUND(E67*$F$16,2) -> 0
D69: QUADRO-RESUMO DO MÓDULO 4 | F69: Valor
D70: 4.1 - Ausências Legais | E70: =SUM(E59:E64) -> 0.1109423581 | F70: =ROUND(E70*$F$16,2) -> 596.58
D71: 4.2 - Intrajornada | E71: =E67 -> 0 | F71: =ROUND(E71*$F$16,2) -> 0
D73: TOTAL DE PREVISÃO PARA RESCISÃO E INTERVALO INTRAJORNADA | F73: =SUM(F70:F71) -> 596.58
B75: MÓDULO 5 - INSUMOS DIVERSOS | F75: Valor
C76: A | D76: Uniformes - aquisição | F76: =ROUND(HLOOKUP($B$5,Uniformes!K11:DZ29,3)/12,2) -> 0
C77: B | D77: Materiais de consumo relacionados ao posto - aquisição | F77: =ROUND(HLOOKUP(B5,'Mat Cons'!I11:DX13,3)/12,2) -> 0
C78: C | D78: Materiais permanentes relacionados ao posto - remuneração da sua depreciação / manutenção | F78: =HLOOKUP(B5,'Mat Perm'!Q11:EF13,3) -> 0
C79: D | D79: Equipamentos relacionados ao posto - remuneração da sua depreciação / manutenção | F79: =HLOOKUP(B5,'Equip Rel'!Q11:EF13,3) -> 0
C80: E | D80: Equipamentos de Proteção Individual - EPI - aquisição | F80: =ROUND(HLOOKUP(B5,EPI!I11:DX202,3)/12,2) -> 0
D82: TOTAL DE INSUMOS DIVERSOS | F82: =SUM(F76:F81) -> 0 | H82: * Nota - Valores mensais por empregado
B84: MÓDULO 6 - CUSTOS INDIRETOS, TRIBUTOS E LUCRO - BDI | E84: Percentuais | F84: Valor
C85: A | D85: Custos Indiretos | E85: =BDI!E6 -> 0.0628
C86: A.1 | D86: Administração Central | E86: =BDI!E7 -> 0.026
C87: A.2 | D87: Seguros, Garantias e Riscos | E87: =BDI!E8 -> 0.0368
C88: B | D88: Lucro | E88: =BDI!E10 -> 0.04
C89: C | D89: Tributos | E89: =SUM(E90:E91) -> 0.124
C90: C.1 | D90: Tributos Federais (COFINS, PIS e CPRB) | E90: =BDI!E18 -> 0.074
C91: C.2 | D91: Tributos Distritais (ISS) | E91: =BDI!E23 -> 0.05 | H91: * Nota - Utilizou-se o indicado pelo Sindicato da Arquitetura e da Engenharia (Sinaenco, 2008, p. 22), que adota um percentual redutor de 20% no cálculo dos custos tributários relativos às contribuições PIS e COFINS
C92: D | D92: Despesas Financeiras | E92: =BDI!E13 -> 0.004861120438
D94: TOTAL DE BDI | E94: =BDI!E26 -> 0.2679 | F94: =E94*E102 -> 2571.681939
D96: QUADRO-RESUMO DO CUSTO MENSAL POR EMPREGADO - SEM O 13º | E96: Valor
D97: Módulo 1 - Composição da Remuneração | E97: =F16 -> 5377.41
D98: Módulo 2 - Encargos e Benefícios Anuais, Mensais e Diários | E98: =F45 -> 3318.88
D99: Módulo 3 - Provisão para Rescisão | E99: =F55 -> 306.54
D100: Módulo 4 - Custo de Reposição do Profissional Ausente | E100: =F73 -> 596.58
D101: Módulo 5 - Insumos Diversos | E101: =F82 -> 0
D102: SUBTOTAL (A+B+C+D+E) | E102: =SUM(E97:E101) -> 9599.41
D103: Módulo 6 - Custos Indiretos, Tributos e Lucro | E103: =F94 -> 2571.681939
D105: TOTAL DO POSTO | E105: =SUM(E102:E103) -> 12171.09194
B107: MÓDULO 7 - DESTAQUE DO MÓDULO 2 - 13º SALÁRIO | E107: Percentuais | F107: Valor
C108: A | D108: 13º Salário | E108: ='Encargos Sociais'!E31 -> 0.08333333333 | F108: =ROUND(E108*F$16,2) -> 448.12
C109: B | D109: Encargos Sociais sobre o 13º Salário - Taxa calculada no SUBMÓDULO 2.2 | E109: =SUM($E$24:$E$32) -> 0.348 | F109: =ROUND(E109*$F$108,2) -> 155.95 | H109: * Nota 1 - Provisiona-se, mensalmente, o proporcional a 1/12 dos valores referentes a gratificação natalina e adicional de férias.
C110: C | D110: Reincidência de férias sobre o 13º salário | E110: =E59 -> 0.09090909091 | F110: =ROUND(E110*($F$108+$F$109),2) -> 54.92
C111: D | D111: BDI sobre o 13º Salário - Taxa calculada no MÓDULO 6 | E111: =E94 -> 0.2679 | F111: =ROUND(E111*($F$108+$F$109),2) -> 161.83
D113: TOTAL DO DESTAQUE DO 13º SALÁRIO | F113: =SUM(F108:F111) -> 820.82
D115: QUADRO-RESUMO DO CUSTO MENSAL POR EMPREGADO | E115: Valor
D116: Custo total - sem o 13º Salário | E116: =E105 -> 12171.09194
D117: Destaque do 13º Salário (valor mensal) | E117: =F113 -> 820.82
D119: TOTAL DO POSTO | E119: =E116+E117 -> 12991.91194

Sheet 3
B2: PLANILHA DE ESTIMATIVA DE CUSTOS
B3: Padrão IN 05/2017 e IN 07/2018 - MPDG
B5: 3 | D5: =HLOOKUP($B$5,'Dados Gerais'!$D$5:$BJ$20,6) -> Analista de contratos especializado em gerenciamento de fornecedores e contratos de informática | E5: QUANTIDADE | F5: =HLOOKUP($B$5,'Dados Gerais'!$D$5:$BJ$20,10) -> 2
B6: CCT | D6: =HLOOKUP($B$5,'Dados Gerais'!$D$5:$BJ$20,15) -> SINDPD/DF X SINDESEI/DF 2021/2022 Nº DF000608/2021 | E6: DATA-BASE | F6: =HLOOKUP($B$5,'Dados Gerais'!$D$5:$BJ$20,16) -> 44317
B8: MÓDULO 1 - COMPOSIÇÃO DA REMUNERAÇÃO | F8: Valor
C9: A | D9: Salário-Base | F9: =HLOOKUP($B$5,'Dados Gerais'!$D$5:$BJ$20,8) -> 6483.53
C10: B | D10: Adicional de Periculosidade | F10: =HLOOKUP($B$5,'Dados Gerais'!$D$5:$BJ$37,25) -> 0
C11: C | D11: Adicional de Insalubridade | F11: =HLOOKUP($B$5,'Dados Gerais'!$D$5:$BJ$37,31) -> 0
C12: D | D12: Adicional Noturno | F12: =HLOOKUP($B$5,'Dados Gerais'!$D$5:$BJ$50,46) -> 0 | H12: * Nota 1 - O Módulo 1 refere-se ao valor mensal devido ao empregado pela prestação do serviço no período de 12 meses.
C13: E | D13: Adicional de Hora Extra | F13: =HLOOKUP($B$5,'Dados Gerais'!$D$5:$BJ$67,63) -> 0 | H13: * Nota 2 - O adicional de hora extra no feriado trabalhado foi suprimido pela Lei 13.467/17
C14: F | D14: Outros (especificar) | F14: =HLOOKUP($B$5,'Dados Gerais'!$D$5:$BJ$59,33) -> 0 | H14: * Nota 3 - ART. 7º, § 2º, DA LEI Nº 605/49.Sendo mensalista o obreiro, o adicional noturno pago de forma fixa já é considerado integrado para os efeitos do pagamento do repouso semanal remunerado, nos termos do art. 7º, § 2º, da Lei nº 605/49.
D16: TOTAL DA REMUNERAÇÃO | F16: =SUM(F9:F14) -> 6483.53
B18: MÓDULO 2 - ENCARGOS E BENEFÍCIOS ANUAIS, MENSAIS E DIÁRIOS | E18: Percentuais | F18: Valor
B19: Submódulo 2.1 - 13º Salário, Férias e Adicional de Férias
C20: A | D20: 13º Salário - Calculado no Módulo 7 - Destacado | E20: 0 | F20: =ROUND(E20*F$16,2) -> 0
C21: B | D21: Adicional de Férias | E21: ='Encargos Sociais'!E30 -> 0.0303030303 | F21: =ROUND(E21*F$16,2) -> 196.47 | H21: * Nota 1 - Provisiona-se, mensalmente, o proporcional a 1/12 dos valores referentes a gratificação natalina, férias e adicional de férias.
H22: * Nota 2 - O adicional de férias contido no Submódulo 2.1 corresponde a 1/3 da remuneração que, por sua vez, é dividida por 12 contome Nota 1.
B23: Submódulo 2.2 - Encargos Previdenciários (GPS), Fundo de Garantia por Tempo de Serviço (FGTS) e Outras Contribuições
C24: A | D24: INSS (art. 22, inciso I, Lei nº 8.212/91) | E24: ='Encargos Sociais'!E13 -> 0.2 | F24: =ROUND(E24*($F$16+$F$41+$F$73),2) -> 1479.86
C25: B | D25: Salário Educação (art. 3º, inciso I, Decreto nº 87.043/82) | E25: ='Encargos Sociais'!E14 -> 0.025 | F25: =ROUND(E25*($F$16+$F$41+$F$73),2) -> 184.98
C26: C | D26: SAT/RAT (art. 22, II, Lei 8.212/91 e Anexo V, Decreto 6.042/07) - Enquadramento 8211-3/00 | E26: ='Encargos Sociais'!E15 -> 0.01 | F26: 73.99
C27: D | D27: SESC ou SESI (art. 30, Lei nº 8.036/90 e art. 1º, Lei 8.154/90) | E27: ='Encargos Sociais'!E16 -> 0.015 | F27: 110.99
C28: E | D28: SENAI ou SENAC (Decreto nº 2.318/86) | E28: ='Encargos Sociais'!E17 -> 0.01 | F28: 73.99
C29: F | D29: SEBRAE (§ 3º, art. 8º, Lei 8.029/90, alterada pela Lei nº 8.154/90) | E29: ='Encargos Sociais'!E18 -> 0.006 | F29: 44.4
C30: G | D30: INCRA (art. 1º, I, Decreto Lei 1.146/70 e Lei 7.787, de 30/06/89) | E30: ='Encargos Sociais'!E19 -> 0.002 | F30: 14.8 | H30: * Nota 1 - Os percentuais dos encargos previdenciários, do FGTS e demais contribuições são estabelecidos por legislação vigente.
C31: H | D31: FGTS (Lei Complementar nº 110/01 e art. 30, Lei nº 8.036/90) | E31: ='Encargos Sociais'!E20 -> 0.08 | F31: 591.94 | H31: * Nota 2 - O SAT, a depender do grau de risco do serviço, irá variar entre 1%, para risco leve, de 2%, para risco médio, e de 3% para risco grave.
C32: I | D32: SECONCI (Convenções Coletivas de Trabalho da construção) | E32: ='Encargos Sociais'!E21 -> 0 | F32: 0 | H32: * Nota 3 - Os percentuais do Submódulo 2.2 incidem sobre o Módulo 1 e o Submódulo 2.1.
B34: Submódulo 2.3 - Benefícios Mensais e Diários
C35: A | D35: Auxílio Transporte | F35: =HLOOKUP($B$5,'Dados Gerais'!$D$5:$BJ$93,82) -> 0
C36: B | D36: Auxílio Alimentação | F36: =HLOOKUP($B$5,'Dados Gerais'!$D$5:$BJ$93,89) -> 770
C37: C | D37: Assistência Médica e Familiar | F37: =HLOOKUP($B$5,'Dados Gerais'!$D$5:$BJ$101,97) -> 237.92
C38: D | D38: Outros (Seguro de vida e auxílio funeral e auxílio odontológico) | F38: =HLOOKUP($B$5,'Dados Gerais'!$D$5:$BJ$118,114) -> 12.36 | H38: * Nota 1 - O valor informado deverá ser o custo real do benefício (descontado o valor eventualmente pago pelo empregado).
H39: * Nota 2 - Observar a previsão dos benefícios contidos em Acordos, Convenções e Dissídios Coletivos de Trabalho e o disposto no art. 6º da IN 5/2017
D40: QUADRO-RESUMO DO MÓDULO 2
D41: 2.1 - 13º Salário, Férias e Adicional de Férias - 13º Destacado - Calculado no Módulo 7 | E41: =SUM(E20:E21) -> 0.0303030303 | F41: =F20+F21 -> 196.47
D42: 2.2 - Encargos Previdenciários (GPS), Fundo de Garantia por Tempo de Serviço (FGTS) e Contribuições | E42: =SUM(E24:E32) -> 0.348 | F42: =SUM(F24:F32) -> 2574.95
D43: 2.3 - Benefícios Mensais e Diários | F43: =SUM(F35:F38) -> 1020.28
D45: TOTAL DOS ENCARGOS E BENEFÍCIOS | F45: =SUM(F41:F43) -> 3791.7
B47: MÓDULO 3 - PREVISÃO PARA RESCISÃO | E47: Percentuais | F47: Valor
C48: A | D48: Aviso Prévio Indenizado (Art. 7º, inciso XXI, da CF/1988 e arts. 477, 487, §1º, e 491 da CLT) | E48: ='Encargos Sociais'!E35 -> 0.008333333333 | F48: =ROUND(E48*$F$16,2) -> 54.03
C49: B | D49: Incidência do FGTS sobre o Aviso Prévio Indenizado (Súmula 305 TST) | E49: ='Encargos Sociais'!E36 -> 0.0006666666667 | F49: 4.32 | H49: * Nota 1 - Adotou-se os parâmetros do estudo do STF (http://www.stf.jus.br/arquivo/cms/sobrestfestudosci/anexo/encargos_sociais_03102007.pdf), onde 5% do pessoal é demitido pelo empregador no decurso do contrato (para estes, considerou-se o aviso prévio indenizado). Desprezou-se as demissões por justa causa e os pedidos de demissão.
C50: C | D50: Multa do FGTS e Contribuição Social sobre o Aviso Prévio Indenizado (Art. 18, §1º, da Lei 8.036/1990 e art. 1º da LC nº 110/2001) | E50: ='Encargos Sociais'!E37 -> 0.001274074074 | F50: 8.26 | H50: * Nota 2 - No cálculo do percentual, considerou-se 36 dias, correspondendo à metade da duração média dos contratos (2 anos)
C51: D | D51: Aviso Prévio Trabalhado (Art. 488, parágrafo único, CLT) | E51: ='Encargos Sociais'!E38 -> 0.01203703704 | F51: 78.04 | H51: * Nota 3 - Incide sobre a Remuneração + 13º salário (1/12) + Férias (1/12) + Adicional de Férias (1/36) x 50% multa (40% para o empregado e 10% de contribuição social) x 8% FGTS
C52: E | D52: Incidência de GPS, FGTS e outras contribuições sobre o Aviso Prévio Trabalhado | E52: ='Encargos Sociais'!E39 -> 0.004188888889 | F52: 27.16 | H52: * Nota 4 - Os 95% restantes do cálculo, a um prazo médio de contrato de 4 anos. Assim, calcula-se 7 dias para o 1º ano de contrato e mais 3 dias para os 3 anos seguintes.
C53: F | D53: Multa do FGTS e Contribuição Social sobre o Aviso Prévio Trabalhado | E53: ='Encargos Sociais'!E40 -> 0.03050515556 | F53: 197.78
D55: TOTAL DE PREVISÃO PARA RESCISÃO | F55: =SUM(F48:F53) -> 369.59
B57: MÓDULO 4 - CUSTO DE REPOSIÇÃO DO PROFISSIONAL AUSENTE | E57: Percentuais | F57: Valor
B58: Submódulo 4.1 - Ausências Legais
C59: A | D59: Férias (Arts. 129 e 130, inc. I, da CLT) | E59: ='Encargos Sociais'!E24 -> 0.09090909091 | F59: =ROUND(E59*$F$16,2) -> 589.41 | H59: * Nota 1 - As alíneas “A” a “F” referem-se somente ao custo que será pago ao repositor pelos dias trabalhados quando da necessidade de substituir a mão de obra alocada na prestação do serviço.
C60: B | D60: Ausências Legais (Arts. 131 e 473 da CLT) | E60: ='Encargos Sociais'!E25 -> 0.007936507937 | F60: 51.46 | H60: * Nota 2 - Adotou-se a estimativa do SINAPI de 2 dias por ano.
C61: C | D61: Licença-Paternidade (Art. 7º, XIX, e art. 10, §1º, do ADCT, CF/1988 e Art. 1º, II, da Lei 11.770/2008) | E61: ='Encargos Sociais'!E26 -> 0.0008277777778 | F61: 5.37 | H61: * Nota 3 - Utilizada a proporção de 50% para homens, 5 dias de afastamento, e a probabilidade de um trabalhador requerer a Licença Paternidade em 5,22%, conforme SINAPI (citando dados da PNAD 2015)
C62: D | D62: Ausência por Acidente de Trabalho (Art. 131, III, da CLT) | E62: ='Encargos Sociais'!E27 -> 0.0008541666667 | F62: 5.54 | H62: * Nota 4 - Utilzada a estatística de 1,96% dos contribuintes beneficiados com a emissão do auxílio, conforme Anuário Estatístico da Previdência Social. Afastamento de 15 dias a cargo da empresa.
C63: E | D63: Afastamento Maternidade (Art. 71 da Lei nº 8.213/1991) | E63: ='Encargos Sociais'!E28 -> 0.003292592593 | F63: 21.35 | H63: * Nota 5 - Utilizada a proporção de 50% para mulheres, 180 dias de afastamento, e a probabilidade de uma trabalhadora requerer a Licença Maternidade em 4,91%, conforme SINAPI (citando dados do IBGE 2016)
C64: F | D64: Auxílio Enfermidade - Doença (Art. 59 da Lei nº 8.213/1991) | E64: ='Encargos Sociais'!E29 -> 0.007122222222 | F64: 46.18 | H64: * Nota 6 - Utilizada a estatística de 3,37% dos contribuintes beneficiados com o auxílio, conforme Anuário Estatístico da Previdência Social de 2015 (acrescidos de 2 dias ao ano, para os quais o trabalhador nem requer o benefício da Previdência - conforme SINAPI)
B66: Submódulo 4.2 - Intrajornada
C67: A | D67: Intervalo para repouso ou alimentação | E67: ='Encargos Sociais'!E32 -> 0 | F67: =ROUND(E67*$F$16,2) -> 0
D69: QUADRO-RESUMO DO MÓDULO 4 | F69: Valor
D70: 4.1 - Ausências Legais | E70: =SUM(E59:E64) -> 0.1109423581 | F70: =ROUND(E70*$F$16,2) -> 719.3
D71: 4.2 - Intrajornada | E71: =E67 -> 0 | F71: =ROUND(E71*$F$16,2) -> 0
D73: TOTAL DE PREVISÃO PARA RESCISÃO E INTERVALO INTRAJORNADA | F73: =SUM(F70:F71) -> 719.3
B75: MÓDULO 5 - INSUMOS DIVERSOS | F75: Valor
C76: A | D76: Uniformes - aquisição | F76: =ROUND(HLOOKUP($B$5,Uniformes!K11:DZ29,3)/12,2) -> 0
C77: B | D77: Materiais de consumo relacionados ao posto - aquisição | F77: =ROUND(HLOOKUP(B5,'Mat Cons'!I11:DX204,3)/12,2) -> 0
C78: C | D78: Materiais permanentes relacionados ao posto - remuneração da sua depreciação / manutenção | F78: =HLOOKUP(B5,'Mat Perm'!Q11:EF13,3) -> 0
C79: D | D79: Equipamentos relacionados ao posto - remuneração da sua depreciação / manutenção | F79: =HLOOKUP(B5,'Equip Rel'!Q11:EF13,3) -> 0
C80: E | D80: Equipamentos de Proteção Individual - EPI - aquisição | F80: =ROUND(HLOOKUP(B5,EPI!I11:DX13,3)/12,2) -> 0
D82: TOTAL DE INSUMOS DIVERSOS | F82: =SUM(F76:F81) -> 0 | H82: * Nota - Valores mensais por empregado
B84: MÓDULO 6 - CUSTOS INDIRETOS, TRIBUTOS E LUCRO - BDI | E84: Percentuais | F84: Valor
C85: A | D85: Custos Indiretos | E85: =BDI!E6 -> 0.0628
C86: A.1 | D86: Administração Central | E86: =BDI!E7 -> 0.026
C87: A.2 | D87: Seguros, Garantias e Riscos | E87: =BDI!E8 -> 0.0368
C88: B | D88: Lucro | E88: =BDI!E10 -> 0.04
C89: C | D89: Tributos | E89: =SUM(E90:E91) -> 0.124
C90: C.1 | D90: Tributos Federais (COFINS, PIS e CPRB) | E90: =BDI!E18 -> 0.074
C91: C.2 | D91: Tributos Distritais (ISS) | E91: =BDI!E23 -> 0.05 | H91: * Nota - Utilizou-se o indicado pelo Sindicato da Arquitetura e da Engenharia (Sinaenco, 2008, p. 22), que adota um percentual redutor de 20% no cálculo dos custos tributários relativos às contribuições PIS e COFINS
C92: D | D92: Despesas Financeiras | E92: =BDI!E13 -> 0.004861120438
D94: TOTAL DE BDI | E94: =BDI!E26 -> 0.2679 | F94: =E94*E102 -> 3044.447748
D96: QUADRO-RESUMO DO CUSTO MENSAL POR EMPREGADO - SEM O 13º | E96: Valor
D97: Módulo 1 - Composição da Remuneração | E97: =F16 -> 6483.53
D98: Módulo 2 - Encargos e Benefícios Anuais, Mensais e Diários | E98: =F45 -> 3791.7
D99: Módulo 3 - Provisão para Rescisão | E99: =F55 -> 369.59
D100: Módulo 4 - Custo de Reposição do Profissional Ausente | E100: =F73 -> 719.3
D101: Módulo 5 - Insumos Diversos | E101: =F82 -> 0
D102: SUBTOTAL (A+B+C+D+E) | E102: =SUM(E97:E101) -> 11364.12
D103: Módulo 6 - Custos Indiretos, Tributos e Lucro | E103: =F94 -> 3044.447748
D105: TOTAL DO POSTO | E105: =SUM(E102:E103) -> 14408.56775
B107: MÓDULO 7 - DESTAQUE DO MÓDULO 2 - 13º SALÁRIO | E107: Percentuais | F107: Valor
C108: A | D108: 13º Salário | E108: ='Encargos Sociais'!E31 -> 0.08333333333 | F108: =ROUND(E108*F$16,2) -> 540.29
C109: B | D109: Encargos Sociais sobre o 13º Salário - Taxa calculada no SUBMÓDULO 2.2 | E109: =SUM($E$24:$E$32) -> 0.348 | F109: =ROUND(E109*$F$108,2) -> 188.02 | H109: * Nota 1 - Provisiona-se, mensalmente, o proporcional a 1/12 dos valores referentes a gratificação natalina e adicional de férias.
C110: C | D110: Reincidência de férias sobre o 13º salário | E110: =E59 -> 0.09090909091 | F110: =ROUND(E110*($F$108+$F$109),2) -> 66.21
C111: D | D111: BDI sobre o 13º Salário - Taxa calculada no MÓDULO 6 | E111: =E94 -> 0.2679 | F111: =ROUND(E111*($F$108+$F$109),2) -> 195.11
D113: TOTAL DO DESTAQUE DO 13º SALÁRIO | F113: =SUM(F108:F111) -> 989.63
D115: QUADRO-RESUMO DO CUSTO MENSAL POR EMPREGADO | E115: Valor
D116: Custo total - sem o 13º Salário | E116: =E105 -> 14408.56775
D117: Destaque do 13º Salário (valor mensal) | E117: =F113 -> 989.63
D119: TOTAL DO POSTO | E119: =E116+E117 -> 15398.19775

Sheet 4
B2: PLANILHA DE ESTIMATIVA DE CUSTOS
B3: Padrão IN 05/2017 e IN 07/2018 - MPDG
B5: 4 | D5: =HLOOKUP($B$5,'Dados Gerais'!$D$5:$BJ$20,6) -> Analista de suporte técnico especializado em gerenciamento de software de microinformática | E5: QUANTIDADE | F5: =HLOOKUP($B$5,'Dados Gerais'!$D$5:$BJ$20,10) -> 2
B6: CCT | D6: =HLOOKUP($B$5,'Dados Gerais'!$D$5:$BJ$20,15) -> SINDPD/DF X SINDESEI/DF 2021/2022 Nº DF000608/2021 | E6: DATA-BASE | F6: =HLOOKUP($B$5,'Dados Gerais'!$D$5:$BJ$20,16) -> 44317
B8: MÓDULO 1 - COMPOSIÇÃO DA REMUNERAÇÃO | F8: Valor
C9: A | D9: Salário-Base | F9: =HLOOKUP($B$5,'Dados Gerais'!$D$5:$BJ$20,8) -> 4846.14
C10: B | D10: Adicional de Periculosidade | F10: =HLOOKUP($B$5,'Dados Gerais'!$D$5:$BJ$37,25) -> 0
C11: C | D11: Adicional de Insalubridade | F11: =HLOOKUP($B$5,'Dados Gerais'!$D$5:$BJ$37,31) -> 0
C12: D | D12: Adicional Noturno | F12: =HLOOKUP($B$5,'Dados Gerais'!$D$5:$BJ$50,46) -> 0 | H12: * Nota 1 - O Módulo 1 refere-se ao valor mensal devido ao empregado pela prestação do serviço no período de 12 meses.
C13: E | D13: Adicional de Hora Extra | F13: =HLOOKUP($B$5,'Dados Gerais'!$D$5:$BJ$67,63) -> 0 | H13: * Nota 2 - O adicional de hora extra no feriado trabalhado foi suprimido pela Lei 13.467/17
C14: F | D14: Outros (especificar) | F14: =HLOOKUP($B$5,'Dados Gerais'!$D$5:$BJ$59,33) -> 0 | H14: * Nota 3 - ART. 7º, § 2º, DA LEI Nº 605/49.Sendo mensalista o obreiro, o adicional noturno pago de forma fixa já é considerado integrado para os efeitos do pagamento do repouso semanal remunerado, nos termos do art. 7º, § 2º, da Lei nº 605/49.
D16: TOTAL DA REMUNERAÇÃO | F16: =SUM(F9:F14) -> 4846.14
B18: MÓDULO 2 - ENCARGOS E BENEFÍCIOS ANUAIS, MENSAIS E DIÁRIOS | E18: Percentuais | F18: Valor
B19: Submódulo 2.1 - 13º Salário, Férias e Adicional de Férias
C20: A | D20: 13º Salário - Calculado no Módulo 7 - Destacado | E20: 0 | F20: =ROUND(E20*F$16,2) -> 0
C21: B | D21: Adicional de Férias | E21: ='Encargos Sociais'!E30 -> 0.0303030303 | F21: =ROUND(E21*F$16,2) -> 146.85 | H21: * Nota 1 - Provisiona-se, mensalmente, o proporcional a 1/12 dos valores referentes a gratificação natalina, férias e adicional de férias.
H22: * Nota 2 - O adicional de férias contido no Submódulo 2.1 corresponde a 1/3 da remuneração que, por sua vez, é dividida por 12 contome Nota 1.
B23: Submódulo 2.2 - Encargos Previdenciários (GPS), Fundo de Garantia por Tempo de Serviço (FGTS) e Outras Contribuições
C24: A | D24: INSS (art. 22, inciso I, Lei nº 8.212/91) | E24: ='Encargos Sociais'!E13 -> 0.2 | F24: =ROUND(E24*($F$16+$F$41+$F$73),2) -> 1106.13
C25: B | D25: Salário Educação (art. 3º, inciso I, Decreto nº 87.043/82) | E25: ='Encargos Sociais'!E14 -> 0.025 | F25: =ROUND(E25*($F$16+$F$41+$F$73),2) -> 138.27
C26: C | D26: SAT/RAT (art. 22, II, Lei 8.212/91 e Anexo V, Decreto 6.042/07) - Enquadramento 8211-3/00 | E26: ='Encargos Sociais'!E15 -> 0.01 | F26: 55.31
C27: D | D27: SESC ou SESI (art. 30, Lei nº 8.036/90 e art. 1º, Lei 8.154/90) | E27: ='Encargos Sociais'!E16 -> 0.015 | F27: 82.96
C28: E | D28: SENAI ou SENAC (Decreto nº 2.318/86) | E28: ='Encargos Sociais'!E17 -> 0.01 | F28: 55.31
C29: F | D29: SEBRAE (§ 3º, art. 8º, Lei 8.029/90, alterada pela Lei nº 8.154/90) | E29: ='Encargos Sociais'!E18 -> 0.006 | F29: 33.18
C30: G | D30: INCRA (art. 1º, I, Decreto Lei 1.146/70 e Lei 7.787, de 30/06/89) | E30: ='Encargos Sociais'!E19 -> 0.002 | F30: 11.06 | H30: * Nota 1 - Os percentuais dos encargos previdenciários, do FGTS e demais contribuições são estabelecidos por legislação vigente.
C31: H | D31: FGTS (Lei Complementar nº 110/01 e art. 30, Lei nº 8.036/90) | E31: ='Encargos Sociais'!E20 -> 0.08 | F31: 442.45 | H31: * Nota 2 - O SAT, a depender do grau de risco do serviço, irá variar entre 1%, para risco leve, de 2%, para risco médio, e de 3% para risco grave.
C32: I | D32: SECONCI (Convenções Coletivas de Trabalho da construção) | E32: ='Encargos Sociais'!E21 -> 0 | F32: 0 | H32: * Nota 3 - Os percentuais do Submódulo 2.2 incidem sobre o Módulo 1 e o Submódulo 2.1.
B34: Submódulo 2.3 - Benefícios Mensais e Diários
C35: A | D35: Auxílio Transporte | F35: =HLOOKUP($B$5,'Dados Gerais'!$D$5:$BJ$93,82) -> 10.23
C36: B | D36: Auxílio Alimentação | F36: =HLOOKUP($B$5,'Dados Gerais'!$D$5:$BJ$93,89) -> 770
C37: C | D37: Assistência Médica e Familiar | F37: =HLOOKUP($B$5,'Dados Gerais'!$D$5:$BJ$101,97) -> 237.92
C38: D | D38: Outros (Seguro de vida e auxílio funeral e auxílio odontológico) | F38: =HLOOKUP($B$5,'Dados Gerais'!$D$5:$BJ$118,114) -> 12.36 | H38: * Nota 1 - O valor informado deverá ser o custo real do benefício (descontado o valor eventualmente pago pelo empregado).
H39: * Nota 2 - Observar a previsão dos benefícios contidos em Acordos, Convenções e Dissídios Coletivos de Trabalho e o disposto no art. 6º da IN 5/2017
D40: QUADRO-RESUMO DO MÓDULO 2
D41: 2.1 - 13º Salário, Férias e Adicional de Férias - 13º Destacado - Calculado no Módulo 7 | E41: =SUM(E20:E21) -> 0.0303030303 | F41: =F20+F21 -> 146.85
D42: 2.2 - Encargos Previdenciários (GPS), Fundo de Garantia por Tempo de Serviço (FGTS) e Contribuições | E42: =SUM(E24:E32) -> 0.348 | F42: =SUM(F24:F32) -> 1924.67
D43: 2.3 - Benefícios Mensais e Diários | F43: =SUM(F35:F38) -> 1030.51
D45: TOTAL DOS ENCARGOS E BENEFÍCIOS | F45: =SUM(F41:F43) -> 3102.03
B47: MÓDULO 3 - PREVISÃO PARA RESCISÃO | E47: Percentuais | F47: Valor
C48: A | D48: Aviso Prévio Indenizado (Art. 7º, inciso XXI, da CF/1988 e arts. 477, 487, §1º, e 491 da CLT) | E48: ='Encargos Sociais'!E35 -> 0.008333333333 | F48: =ROUND(E48*$F$16,2) -> 40.38
C49: B | D49: Incidência do FGTS sobre o Aviso Prévio Indenizado (Súmula 305 TST) | E49: ='Encargos Sociais'!E36 -> 0.0006666666667 | F49: 3.23 | H49: * Nota 1 - Adotou-se os parâmetros do estudo do STF (http://www.stf.jus.br/arquivo/cms/sobrestfestudosci/anexo/encargos_sociais_03102007.pdf), onde 5% do pessoal é demitido pelo empregador no decurso do contrato (para estes, considerou-se o aviso prévio indenizado). Desprezou-se as demissões por justa causa e os pedidos de demissão.
C50: C | D50: Multa do FGTS e Contribuição Social sobre o Aviso Prévio Indenizado (Art. 18, §1º, da Lei 8.036/1990 e art. 1º da LC nº 110/2001) | E50: ='Encargos Sociais'!E37 -> 0.001274074074 | F50: 6.17 | H50: * Nota 2 - No cálculo do percentual, considerou-se 36 dias, correspondendo à metade da duração média dos contratos (2 anos)
C51: D | D51: Aviso Prévio Trabalhado (Art. 488, parágrafo único, CLT) | E51: ='Encargos Sociais'!E38 -> 0.01203703704 | F51: 58.33 | H51: * Nota 3 - Incide sobre a Remuneração + 13º salário (1/12) + Férias (1/12) + Adicional de Férias (1/36) x 50% multa (40% para o empregado e 10% de contribuição social) x 8% FGTS
C52: E | D52: Incidência de GPS, FGTS e outras contribuições sobre o Aviso Prévio Trabalhado | E52: ='Encargos Sociais'!E39 -> 0.004188888889 | F52: 20.3 | H52: * Nota 4 - Os 95% restantes do cálculo, a um prazo médio de contrato de 4 anos. Assim, calcula-se 7 dias para o 1º ano de contrato e mais 3 dias para os 3 anos seguintes.
C53: F | D53: Multa do FGTS e Contribuição Social sobre o Aviso Prévio Trabalhado | E53: ='Encargos Sociais'!E40 -> 0.03050515556 | F53: 147.83
D55: TOTAL DE PREVISÃO PARA RESCISÃO | F55: =SUM(F48:F53) -> 276.24
B57: MÓDULO 4 - CUSTO DE REPOSIÇÃO DO PROFISSIONAL AUSENTE | E57: Percentuais | F57: Valor
B58: Submódulo 4.1 - Ausências Legais
C59: A | D59: Férias (Arts. 129 e 130, inc. I, da CLT) | E59: ='Encargos Sociais'!E24 -> 0.09090909091 | F59: =ROUND(E59*$F$16,2) -> 440.56 | H59: * Nota 1 - As alíneas “A” a “F” referem-se somente ao custo que será pago ao repositor pelos dias trabalhados quando da necessidade de substituir a mão de obra alocada na prestação do serviço.
C60: B | D60: Ausências Legais (Arts. 131 e 473 da CLT) | E60: ='Encargos Sociais'!E25 -> 0.007936507937 | F60: 38.46 | H60: * Nota 2 - Adotou-se a estimativa do SINAPI de 2 dias por ano.
C61: C | D61: Licença-Paternidade (Art. 7º, XIX, e art. 10, §1º, do ADCT, CF/1988 e Art. 1º, II, da Lei 11.770/2008) | E61: ='Encargos Sociais'!E26 -> 0.0008277777778 | F61: 4.01 | H61: * Nota 3 - Utilizada a proporção de 50% para homens, 5 dias de afastamento, e a probabilidade de um trabalhador requerer a Licença Paternidade em 5,22%, conforme SINAPI (citando dados da PNAD 2015)
C62: D | D62: Ausência por Acidente de Trabalho (Art. 131, III, da CLT) | E62: ='Encargos Sociais'!E27 -> 0.0008541666667 | F62: 4.14 | H62: * Nota 4 - Utilzada a estatística de 1,96% dos contribuintes beneficiados com a emissão do auxílio, conforme Anuário Estatístico da Previdência Social. Afastamento de 15 dias a cargo da empresa.
C63: E | D63: Afastamento Maternidade (Art. 71 da Lei nº 8.213/1991) | E63: ='Encargos Sociais'!E28 -> 0.003292592593 | F63: 15.96 | H63: * Nota 5 - Utilizada a proporção de 50% para mulheres, 180 dias de afastamento, e a probabilidade de uma trabalhadora requerer a Licença Maternidade em 4,91%, conforme SINAPI (citando dados do IBGE 2016)
C64: F | D64: Auxílio Enfermidade - Doença (Art. 59 da Lei nº 8.213/1991) | E64: ='Encargos Sociais'!E29 -> 0.007122222222 | F64: 34.52 | H64: * Nota 6 - Utilizada a estatística de 3,37% dos contribuintes beneficiados com o auxílio, conforme Anuário Estatístico da Previdência Social de 2015 (acrescidos de 2 dias ao ano, para os quais o trabalhador nem requer o benefício da Previdência - conforme SINAPI)
B66: Submódulo 4.2 - Intrajornada
C67: A | D67: Intervalo para repouso ou alimentação | E67: ='Encargos Sociais'!E32 -> 0 | F67: =ROUND(E67*$F$16,2) -> 0
D69: QUADRO-RESUMO DO MÓDULO 4 | F69: Valor
D70: 4.1 - Ausências Legais | E70: =SUM(E59:E64) -> 0.1109423581 | F70: =ROUND(E70*$F$16,2) -> 537.64
D71: 4.2 - Intrajornada | E71: =E67 -> 0 | F71: =ROUND(E71*$F$16,2) -> 0
D73: TOTAL DE PREVISÃO PARA RESCISÃO E INTERVALO INTRAJORNADA | F73: =SUM(F70:F71) -> 537.64
B75: MÓDULO 5 - INSUMOS DIVERSOS | F75: Valor
C76: A | D76: Uniformes - aquisição | F76: =ROUND(HLOOKUP($B$5,Uniformes!K11:DZ29,3)/12,2) -> 0
C77: B | D77: Materiais de consumo relacionados ao posto - aquisição | F77: =ROUND(HLOOKUP(B5,'Mat Cons'!I11:DX13,3)/12,2) -> 0
C78: C | D78: Materiais permanentes relacionados ao posto - remuneração da sua depreciação / manutenção | F78: =HLOOKUP(B5,'Mat Perm'!Q11:EF13,3) -> 0
C79: D | D79: Equipamentos relacionados ao posto - remuneração da sua depreciação / manutenção | F79: =HLOOKUP(B5,'Equip Rel'!Q11:EF13,3) -> 0
C80: E | D80: Equipamentos de Proteção Individual - EPI - aquisição | F80: =ROUND(HLOOKUP(B5,EPI!I11:DX202,3)/12,2) -> 0
D82: TOTAL DE INSUMOS DIVERSOS | F82: =SUM(F76:F81) -> 0 | H82: * Nota - Valores mensais por empregado
B84: MÓDULO 6 - CUSTOS INDIRETOS, TRIBUTOS E LUCRO - BDI | E84: Percentuais | F84: Valor
C85: A | D85: Custos Indiretos | E85: =BDI!E6 -> 0.0628
C86: A.1 | D86: Administração Central | E86: =BDI!E7 -> 0.026
C87: A.2 | D87: Seguros, Garantias e Riscos | E87: =BDI!E8 -> 0.0368
C88: B | D88: Lucro | E88: =BDI!E10 -> 0.04
C89: C | D89: Tributos | E89: =SUM(E90:E91) -> 0.124
C90: C.1 | D90: Tributos Federais (COFINS, PIS e CPRB) | E90: =BDI!E18 -> 0.074
C91: C.2 | D91: Tributos Distritais (ISS) | E91: =BDI!E23 -> 0.05 | H91: * Nota - Utilizou-se o indicado pelo Sindicato da Arquitetura e da Engenharia (Sinaenco, 2008, p. 22), que adota um percentual redutor de 20% no cálculo dos custos tributários relativos às contribuições PIS e COFINS
C92: D | D92: Despesas Financeiras | E92: =BDI!E13 -> 0.004861120438
D94: TOTAL DE BDI | E94: =BDI!E26 -> 0.2679 | F94: =E94*E102 -> 2347.353195
D96: QUADRO-RESUMO DO CUSTO MENSAL POR EMPREGADO - SEM O 13º | E96: Valor
D97: Módulo 1 - Composição da Remuneração | E97: =F16 -> 4846.14
D98: Módulo 2 - Encargos e Benefícios Anuais, Mensais e Diários | E98: =F45 -> 3102.03
D99: Módulo 3 - Provisão para Rescisão | E99: =F55 -> 276.24
D100: Módulo 4 - Custo de Reposição do Profissional Ausente | E100: =F73 -> 537.64
D101: Módulo 5 - Insumos Diversos | E101: =F82 -> 0
D102: SUBTOTAL (A+B+C+D+E) | E102: =SUM(E97:E101) -> 8762.05
D103: Módulo 6 - Custos Indiretos, Tributos e Lucro | E103: =F94 -> 2347.353195
D105: TOTAL DO POSTO | E105: =SUM(E102:E103) -> 11109.40319
B107: MÓDULO 7 - DESTAQUE DO MÓDULO 2 - 13º SALÁRIO | E107: Percentuais | F107: Valor
C108: A | D108: 13º Salário | E108: ='Encargos Sociais'!E31 -> 0.08333333333 | F108: =ROUND(E108*F$16,2) -> 403.85
C109: B | D109: Encargos Sociais sobre o 13º Salário - Taxa calculada no SUBMÓDULO 2.2 | E109: =SUM($E$24:$E$32) -> 0.348 | F109: =ROUND(E109*$F$108,2) -> 140.54 | H109: * Nota 1 - Provisiona-se, mensalmente, o proporcional a 1/12 dos valores referentes a gratificação natalina e adicional de férias.
C110: C | D110: Reincidência de férias sobre o 13º salário | E110: =E59 -> 0.09090909091 | F110: =ROUND(E110*($F$108+$F$109),2) -> 49.49
C111: D | D111: BDI sobre o 13º Salário - Taxa calculada no MÓDULO 6 | E111: =E94 -> 0.2679 | F111: =ROUND(E111*($F$108+$F$109),2) -> 145.84
D113: TOTAL DO DESTAQUE DO 13º SALÁRIO | F113: =SUM(F108:F111) -> 739.72
D115: QUADRO-RESUMO DO CUSTO MENSAL POR EMPREGADO | E115: Valor
D116: Custo total - sem o 13º Salário | E116: =E105 -> 11109.40319
D117: Destaque do 13º Salário (valor mensal) | E117: =F113 -> 739.72
D119: TOTAL DO POSTO | E119: =E116+E117 -> 11849.12319

Sheet 5
B2: PLANILHA DE ESTIMATIVA DE CUSTOS
B3: Padrão IN 05/2017 e IN 07/2018 - MPDG
B5: 5 | D5: =HLOOKUP($B$5,'Dados Gerais'!$D$5:$BJ$20,6) -> Analista de suporte técnico especializado em levantamento de requisitos, especificação e orçamento de contratações de microinformática | E5: QUANTIDADE | F5: =HLOOKUP($B$5,'Dados Gerais'!$D$5:$BJ$20,10) -> 2
B6: CCT | D6: =HLOOKUP($B$5,'Dados Gerais'!$D$5:$BJ$20,15) -> SINDPD/DF X SINDESEI/DF 2021/2022 Nº DF000608/2021 | E6: DATA-BASE | F6: =HLOOKUP($B$5,'Dados Gerais'!$D$5:$BJ$20,16) -> 44317
B8: MÓDULO 1 - COMPOSIÇÃO DA REMUNERAÇÃO | F8: Valor
C9: A | D9: Salário-Base | F9: =HLOOKUP($B$5,'Dados Gerais'!$D$5:$BJ$20,8) -> 5809.79
C10: B | D10: Adicional de Periculosidade | F10: =HLOOKUP($B$5,'Dados Gerais'!$D$5:$BJ$37,25) -> 0
C11: C | D11: Adicional de Insalubridade | F11: =HLOOKUP($B$5,'Dados Gerais'!$D$5:$BJ$37,31) -> 0
C12: D | D12: Adicional Noturno | F12: =HLOOKUP($B$5,'Dados Gerais'!$D$5:$BJ$50,46) -> 0 | H12: * Nota 1 - O Módulo 1 refere-se ao valor mensal devido ao empregado pela prestação do serviço no período de 12 meses.
C13: E | D13: Adicional de Hora Extra | F13: =HLOOKUP($B$5,'Dados Gerais'!$D$5:$BJ$67,63) -> 0 | H13: * Nota 2 - O adicional de hora extra no feriado trabalhado foi suprimido pela Lei 13.467/17
C14: F | D14: Outros (especificar) | F14: =HLOOKUP($B$5,'Dados Gerais'!$D$5:$BJ$59,33) -> 0 | H14: * Nota 3 - ART. 7º, § 2º, DA LEI Nº 605/49.Sendo mensalista o obreiro, o adicional noturno pago de forma fixa já é considerado integrado para os efeitos do pagamento do repouso semanal remunerado, nos termos do art. 7º, § 2º, da Lei nº 605/49.
D16: TOTAL DA REMUNERAÇÃO | F16: =SUM(F9:F14) -> 5809.79
B18: MÓDULO 2 - ENCARGOS E BENEFÍCIOS ANUAIS, MENSAIS E DIÁRIOS | E18: Percentuais | F18: Valor
B19: Submódulo 2.1 - 13º Salário, Férias e Adicional de Férias
C20: A | D20: 13º Salário - Calculado no Módulo 7 - Destacado | E20: 0 | F20: =ROUND(E20*F$16,2) -> 0
C21: B | D21: Adicional de Férias | E21: ='Encargos Sociais'!E30 -> 0.0303030303 | F21: =ROUND(E21*F$16,2) -> 176.05 | H21: * Nota 1 - Provisiona-se, mensalmente, o proporcional a 1/12 dos valores referentes a gratificação natalina, férias e adicional de férias.
H22: * Nota 2 - O adicional de férias contido no Submódulo 2.1 corresponde a 1/3 da remuneração que, por sua vez, é dividida por 12 contome Nota 1.
B23: Submódulo 2.2 - Encargos Previdenciários (GPS), Fundo de Garantia por Tempo de Serviço (FGTS) e Outras Contribuições
C24: A | D24: INSS (art. 22, inciso I, Lei nº 8.212/91) | E24: ='Encargos Sociais'!E13 -> 0.2 | F24: =ROUND(E24*($F$16+$F$41+$F$73),2) -> 1326.08
C25: B | D25: Salário Educação (art. 3º, inciso I, Decreto nº 87.043/82) | E25: ='Encargos Sociais'!E14 -> 0.025 | F25: =ROUND(E25*($F$16+$F$41+$F$73),2) -> 165.76
C26: C | D26: SAT/RAT (art. 22, II, Lei 8.212/91 e Anexo V, Decreto 6.042/07) - Enquadramento 8211-3/00 | E26: ='Encargos Sociais'!E15 -> 0.01 | F26: 66.3
C27: D | D27: SESC ou SESI (art. 30, Lei nº 8.036/90 e art. 1º, Lei 8.154/90) | E27: ='Encargos Sociais'!E16 -> 0.015 | F27: 99.46
C28: E | D28: SENAI ou SENAC (Decreto nº 2.318/86) | E28: ='Encargos Sociais'!E17 -> 0.01 | F28: 66.3
C29: F | D29: SEBRAE (§ 3º, art. 8º, Lei 8.029/90, alterada pela Lei nº 8.154/90) | E29: ='Encargos Sociais'!E18 -> 0.006 | F29: 39.78
C30: G | D30: INCRA (art. 1º, I, Decreto Lei 1.146/70 e Lei 7.787, de 30/06/89) | E30: ='Encargos Sociais'!E19 -> 0.002 | F30: 13.26 | H30: * Nota 1 - Os percentuais dos encargos previdenciários, do FGTS e demais contribuições são estabelecidos por legislação vigente.
C31: H | D31: FGTS (Lei Complementar nº 110/01 e art. 30, Lei nº 8.036/90) | E31: ='Encargos Sociais'!E20 -> 0.08 | F31: 530.43 | H31: * Nota 2 - O SAT, a depender do grau de risco do serviço, irá variar entre 1%, para risco leve, de 2%, para risco médio, e de 3% para risco grave.
C32: I | D32: SECONCI (Convenções Coletivas de Trabalho da construção) | E32: ='Encargos Sociais'!E21 -> 0 | F32: 0 | H32: * Nota 3 - Os percentuais do Submódulo 2.2 incidem sobre o Módulo 1 e o Submódulo 2.1.
B34: Submódulo 2.3 - Benefícios Mensais e Diários
C35: A | D35: Auxílio Transporte | F35: =HLOOKUP($B$5,'Dados Gerais'!$D$5:$BJ$93,82) -> 0
C36: B | D36: Auxílio Alimentação | F36: =HLOOKUP($B$5,'Dados Gerais'!$D$5:$BJ$93,89) -> 770
C37: C | D37: Assistência Médica e Familiar | F37: =HLOOKUP($B$5,'Dados Gerais'!$D$5:$BJ$101,97) -> 237.92
C38: D | D38: Outros (Seguro de vida e auxílio funeral e auxílio odontológico) | F38: =HLOOKUP($B$5,'Dados Gerais'!$D$5:$BJ$118,114) -> 12.36 | H38: * Nota 1 - O valor informado deverá ser o custo real do benefício (descontado o valor eventualmente pago pelo empregado).
H39: * Nota 2 - Observar a previsão dos benefícios contidos em Acordos, Convenções e Dissídios Coletivos de Trabalho e o disposto no art. 6º da IN 5/2017
D40: QUADRO-RESUMO DO MÓDULO 2
D41: 2.1 - 13º Salário, Férias e Adicional de Férias - 13º Destacado - Calculado no Módulo 7 | E41: =SUM(E20:E21) -> 0.0303030303 | F41: =F20+F21 -> 176.05
D42: 2.2 - Encargos Previdenciários (GPS), Fundo de Garantia por Tempo de Serviço (FGTS) e Contribuições | E42: =SUM(E24:E32) -> 0.348 | F42: =SUM(F24:F32) -> 2307.37
D43: 2.3 - Benefícios Mensais e Diários | F43: =SUM(F35:F38) -> 1020.28
D45: TOTAL DOS ENCARGOS E BENEFÍCIOS | F45: =SUM(F41:F43) -> 3503.7
B47: MÓDULO 3 - PREVISÃO PARA RESCISÃO | E47: Percentuais | F47: Valor
C48: A | D48: Aviso Prévio Indenizado (Art. 7º, inciso XXI, da CF/1988 e arts. 477, 487, §1º, e 491 da CLT) | E48: ='Encargos Sociais'!E35 -> 0.008333333333 | F48: =ROUND(E48*$F$16,2) -> 48.41
C49: B | D49: Incidência do FGTS sobre o Aviso Prévio Indenizado (Súmula 305 TST) | E49: ='Encargos Sociais'!E36 -> 0.0006666666667 | F49: 3.87 | H49: * Nota 1 - Adotou-se os parâmetros do estudo do STF (http://www.stf.jus.br/arquivo/cms/sobrestfestudosci/anexo/encargos_sociais_03102007.pdf), onde 5% do pessoal é demitido pelo empregador no decurso do contrato (para estes, considerou-se o aviso prévio indenizado). Desprezou-se as demissões por justa causa e os pedidos de demissão.
C50: C | D50: Multa do FGTS e Contribuição Social sobre o Aviso Prévio Indenizado (Art. 18, §1º, da Lei 8.036/1990 e art. 1º da LC nº 110/2001) | E50: ='Encargos Sociais'!E37 -> 0.001274074074 | F50: 7.4 | H50: * Nota 2 - No cálculo do percentual, considerou-se 36 dias, correspondendo à metade da duração média dos contratos (2 anos)
C51: D | D51: Aviso Prévio Trabalhado (Art. 488, parágrafo único, CLT) | E51: ='Encargos Sociais'!E38 -> 0.01203703704 | F51: 69.93 | H51: * Nota 3 - Incide sobre a Remuneração + 13º salário (1/12) + Férias (1/12) + Adicional de Férias (1/36) x 50% multa (40% para o empregado e 10% de contribuição social) x 8% FGTS
C52: E | D52: Incidência de GPS, FGTS e outras contribuições sobre o Aviso Prévio Trabalhado | E52: ='Encargos Sociais'!E39 -> 0.004188888889 | F52: 24.34 | H52: * Nota 4 - Os 95% restantes do cálculo, a um prazo médio de contrato de 4 anos. Assim, calcula-se 7 dias para o 1º ano de contrato e mais 3 dias para os 3 anos seguintes.
C53: F | D53: Multa do FGTS e Contribuição Social sobre o Aviso Prévio Trabalhado | E53: ='Encargos Sociais'!E40 -> 0.03050515556 | F53: 177.23
D55: TOTAL DE PREVISÃO PARA RESCISÃO | F55: =SUM(F48:F53) -> 331.18
B57: MÓDULO 4 - CUSTO DE REPOSIÇÃO DO PROFISSIONAL AUSENTE | E57: Percentuais | F57: Valor
B58: Submódulo 4.1 - Ausências Legais
C59: A | D59: Férias (Arts. 129 e 130, inc. I, da CLT) | E59: ='Encargos Sociais'!E24 -> 0.09090909091 | F59: =ROUND(E59*$F$16,2) -> 528.16 | H59: * Nota 1 - As alíneas “A” a “F” referem-se somente ao custo que será pago ao repositor pelos dias trabalhados quando da necessidade de substituir a mão de obra alocada na prestação do serviço.
C60: B | D60: Ausências Legais (Arts. 131 e 473 da CLT) | E60: ='Encargos Sociais'!E25 -> 0.007936507937 | F60: 46.11 | H60: * Nota 2 - Adotou-se a estimativa do SINAPI de 2 dias por ano.
C61: C | D61: Licença-Paternidade (Art. 7º, XIX, e art. 10, §1º, do ADCT, CF/1988 e Art. 1º, II, da Lei 11.770/2008) | E61: ='Encargos Sociais'!E26 -> 0.0008277777778 | F61: 4.81 | H61: * Nota 3 - Utilizada a proporção de 50% para homens, 5 dias de afastamento, e a probabilidade de um trabalhador requerer a Licença Paternidade em 5,22%, conforme SINAPI (citando dados da PNAD 2015)
C62: D | D62: Ausência por Acidente de Trabalho (Art. 131, III, da CLT) | E62: ='Encargos Sociais'!E27 -> 0.0008541666667 | F62: 4.96 | H62: * Nota 4 - Utilzada a estatística de 1,96% dos contribuintes beneficiados com a emissão do auxílio, conforme Anuário Estatístico da Previdência Social. Afastamento de 15 dias a cargo da empresa.
C63: E | D63: Afastamento Maternidade (Art. 71 da Lei nº 8.213/1991) | E63: ='Encargos Sociais'!E28 -> 0.003292592593 | F63: 19.13 | H63: * Nota 5 - Utilizada a proporção de 50% para mulheres, 180 dias de afastamento, e a probabilidade de uma trabalhadora requerer a Licença Maternidade em 4,91%, conforme SINAPI (citando dados do IBGE 2016)
C64: F | D64: Auxílio Enfermidade - Doença (Art. 59 da Lei nº 8.213/1991) | E64: ='Encargos Sociais'!E29 -> 0.007122222222 | F64: 41.38 | H64: * Nota 6 - Utilizada a estatística de 3,37% dos contribuintes beneficiados com o auxílio, conforme Anuário Estatístico da Previdência Social de 2015 (acrescidos de 2 dias ao ano, para os quais o trabalhador nem requer o benefício da Previdência - conforme SINAPI)
B66: Submódulo 4.2 - Intrajornada
C67: A | D67: Intervalo para repouso ou alimentação | E67: ='Encargos Sociais'!E32 -> 0 | F67: =ROUND(E67*$F$16,2) -> 0
D69: QUADRO-RESUMO DO MÓDULO 4 | F69: Valor
D70: 4.1 - Ausências Legais | E70: =SUM(E59:E64) -> 0.1109423581 | F70: =ROUND(E70*$F$16,2) -> 644.55
D71: 4.2 - Intrajornada | E71: =E67 -> 0 | F71: =ROUND(E71*$F$16,2) -> 0
D73: TOTAL DE PREVISÃO PARA RESCISÃO E INTERVALO INTRAJORNADA | F73: =SUM(F70:F71) -> 644.55
B75: MÓDULO 5 - INSUMOS DIVERSOS | F75: Valor
C76: A | D76: Uniformes - aquisição | F76: =ROUND(HLOOKUP($B$5,Uniformes!K11:DZ29,3)/12,2) -> 0
C77: B | D77: Materiais de consumo relacionados ao posto - aquisição | F77: =ROUND(HLOOKUP(B5,'Mat Cons'!I11:DX13,3)/12,2) -> 0
C78: C | D78: Materiais permanentes relacionados ao posto - remuneração da sua depreciação / manutenção | F78: =HLOOKUP(B5,'Mat Perm'!Q11:EF13,3) -> 0
C79: D | D79: Equipamentos relacionados ao posto - remuneração da sua depreciação / manutenção | F79: =HLOOKUP(B5,'Equip Rel'!Q11:EF13,3) -> 0
C80: E | D80: Equipamentos de Proteção Individual - EPI - aquisição | F80: =ROUND(HLOOKUP(B5,EPI!I11:DX202,3)/12,2) -> 0
D82: TOTAL DE INSUMOS DIVERSOS | F82: =SUM(F76:F81) -> 0 | H82: * Nota - Valores mensais por empregado
B84: MÓDULO 6 - CUSTOS INDIRETOS, TRIBUTOS E LUCRO - BDI | E84: Percentuais | F84: Valor
C85: A | D85: Custos Indiretos | E85: =BDI!E6 -> 0.0628
C86: A.1 | D86: Administração Central | E86: =BDI!E7 -> 0.026
C87: A.2 | D87: Seguros, Garantias e Riscos | E87: =BDI!E8 -> 0.0368
C88: B | D88: Lucro | E88: =BDI!E10 -> 0.04
C89: C | D89: Tributos | E89: =SUM(E90:E91) -> 0.124
C90: C.1 | D90: Tributos Federais (COFINS, PIS e CPRB) | E90: =BDI!E18 -> 0.074
C91: C.2 | D91: Tributos Distritais (ISS) | E91: =BDI!E23 -> 0.05 | H91: * Nota - Utilizou-se o indicado pelo Sindicato da Arquitetura e da Engenharia (Sinaenco, 2008, p. 22), que adota um percentual redutor de 20% no cálculo dos custos tributários relativos às contribuições PIS e COFINS
C92: D | D92: Despesas Financeiras | E92: =BDI!E13 -> 0.004861120438
D94: TOTAL DE BDI | E94: =BDI!E26 -> 0.2679 | F94: =E94*E102 -> 2756.482038
D96: QUADRO-RESUMO DO CUSTO MENSAL POR EMPREGADO - SEM O 13º | E96: Valor
D97: Módulo 1 - Composição da Remuneração | E97: =F16 -> 5809.79
D98: Módulo 2 - Encargos e Benefícios Anuais, Mensais e Diários | E98: =F45 -> 3503.7
D99: Módulo 3 - Provisão para Rescisão | E99: =F55 -> 331.18
D100: Módulo 4 - Custo de Reposição do Profissional Ausente | E100: =F73 -> 644.55
D101: Módulo 5 - Insumos Diversos | E101: =F82 -> 0
D102: SUBTOTAL (A+B+C+D+E) | E102: =SUM(E97:E101) -> 10289.22
D103: Módulo 6 - Custos Indiretos, Tributos e Lucro | E103: =F94 -> 2756.482038
D105: TOTAL DO POSTO | E105: =SUM(E102:E103) -> 13045.70204
B107: MÓDULO 7 - DESTAQUE DO MÓDULO 2 - 13º SALÁRIO | E107: Percentuais | F107: Valor
C108: A | D108: 13º Salário | E108: ='Encargos Sociais'!E31 -> 0.08333333333 | F108: =ROUND(E108*F$16,2) -> 484.15
C109: B | D109: Encargos Sociais sobre o 13º Salário - Taxa calculada no SUBMÓDULO 2.2 | E109: =SUM($E$24:$E$32) -> 0.348 | F109: =ROUND(E109*$F$108,2) -> 168.48 | H109: * Nota 1 - Provisiona-se, mensalmente, o proporcional a 1/12 dos valores referentes a gratificação natalina e adicional de férias.
C110: C | D110: Reincidência de férias sobre o 13º salário | E110: =E59 -> 0.09090909091 | F110: =ROUND(E110*($F$108+$F$109),2) -> 59.33
C111: D | D111: BDI sobre o 13º Salário - Taxa calculada no MÓDULO 6 | E111: =E94 -> 0.2679 | F111: =ROUND(E111*($F$108+$F$109),2) -> 174.84
D113: TOTAL DO DESTAQUE DO 13º SALÁRIO | F113: =SUM(F108:F111) -> 886.8
D115: QUADRO-RESUMO DO CUSTO MENSAL POR EMPREGADO | E115: Valor
D116: Custo total - sem o 13º Salário | E116: =E105 -> 13045.70204
D117: Destaque do 13º Salário (valor mensal) | E117: =F113 -> 886.8
D119: TOTAL DO POSTO | E119: =E116+E117 -> 13932.50204

Sheet 6
B2: PLANILHA DE ESTIMATIVA DE CUSTOS
B3: Padrão IN 05/2017 e IN 07/2018 - MPDG
B5: 6 | D5: =HLOOKUP($B$5,'Dados Gerais'!$D$5:$BJ$20,6) -> Analista de qualidade especializado em monitoramento e controle de qualidade de service desk | E5: QUANTIDADE | F5: =HLOOKUP($B$5,'Dados Gerais'!$D$5:$BJ$20,10) -> 2
B6: CCT | D6: =HLOOKUP($B$5,'Dados Gerais'!$D$5:$BJ$20,15) -> SINDPD/DF X SINDESEI/DF 2021/2022 Nº DF000608/2021 | E6: DATA-BASE | F6: =HLOOKUP($B$5,'Dados Gerais'!$D$5:$BJ$20,16) -> 44317
B8: MÓDULO 1 - COMPOSIÇÃO DA REMUNERAÇÃO | F8: Valor
C9: A | D9: Salário-Base | F9: =HLOOKUP($B$5,'Dados Gerais'!$D$5:$BJ$20,8) -> 4582.85
C10: B | D10: Adicional de Periculosidade | F10: =HLOOKUP($B$5,'Dados Gerais'!$D$5:$BJ$37,25) -> 0
C11: C | D11: Adicional de Insalubridade | F11: =HLOOKUP($B$5,'Dados Gerais'!$D$5:$BJ$37,31) -> 0
C12: D | D12: Adicional Noturno | F12: =HLOOKUP($B$5,'Dados Gerais'!$D$5:$BJ$50,46) -> 0 | H12: * Nota 1 - O Módulo 1 refere-se ao valor mensal devido ao empregado pela prestação do serviço no período de 12 meses.
C13: E | D13: Adicional de Hora Extra | F13: =HLOOKUP($B$5,'Dados Gerais'!$D$5:$BJ$67,63) -> 0 | H13: * Nota 2 - O adicional de hora extra no feriado trabalhado foi suprimido pela Lei 13.467/17
C14: F | D14: Outros (especificar) | F14: =HLOOKUP($B$5,'Dados Gerais'!$D$5:$BJ$59,33) -> 0 | H14: * Nota 3 - ART. 7º, § 2º, DA LEI Nº 605/49.Sendo mensalista o obreiro, o adicional noturno pago de forma fixa já é considerado integrado para os efeitos do pagamento do repouso semanal remunerado, nos termos do art. 7º, § 2º, da Lei nº 605/49.
D16: TOTAL DA REMUNERAÇÃO | F16: =SUM(F9:F14) -> 4582.85
B18: MÓDULO 2 - ENCARGOS E BENEFÍCIOS ANUAIS, MENSAIS E DIÁRIOS | E18: Percentuais | F18: Valor
B19: Submódulo 2.1 - 13º Salário, Férias e Adicional de Férias
C20: A | D20: 13º Salário - Calculado no Módulo 7 - Destacado | E20: 0 | F20: =ROUND(E20*F$16,2) -> 0
C21: B | D21: Adicional de Férias | E21: ='Encargos Sociais'!E30 -> 0.0303030303 | F21: =ROUND(E21*F$16,2) -> 138.87 | H21: * Nota 1 - Provisiona-se, mensalmente, o proporcional a 1/12 dos valores referentes a gratificação natalina, férias e adicional de férias.
H22: * Nota 2 - O adicional de férias contido no Submódulo 2.1 corresponde a 1/3 da remuneração que, por sua vez, é dividida por 12 contome Nota 1.
B23: Submódulo 2.2 - Encargos Previdenciários (GPS), Fundo de Garantia por Tempo de Serviço (FGTS) e Outras Contribuições
C24: A | D24: INSS (art. 22, inciso I, Lei nº 8.212/91) | E24: ='Encargos Sociais'!E13 -> 0.2 | F24: =ROUND(E24*($F$16+$F$41+$F$73),2) -> 1046.03
C25: B | D25: Salário Educação (art. 3º, inciso I, Decreto nº 87.043/82) | E25: ='Encargos Sociais'!E14 -> 0.025 | F25: =ROUND(E25*($F$16+$F$41+$F$73),2) -> 130.75
C26: C | D26: SAT/RAT (art. 22, II, Lei 8.212/91 e Anexo V, Decreto 6.042/07) - Enquadramento 8211-3/00 | E26: ='Encargos Sociais'!E15 -> 0.01 | F26: 52.3
C27: D | D27: SESC ou SESI (art. 30, Lei nº 8.036/90 e art. 1º, Lei 8.154/90) | E27: ='Encargos Sociais'!E16 -> 0.015 | F27: 78.45
C28: E | D28: SENAI ou SENAC (Decreto nº 2.318/86) | E28: ='Encargos Sociais'!E17 -> 0.01 | F28: 52.3
C29: F | D29: SEBRAE (§ 3º, art. 8º, Lei 8.029/90, alterada pela Lei nº 8.154/90) | E29: ='Encargos Sociais'!E18 -> 0.006 | F29: 31.38
C30: G | D30: INCRA (art. 1º, I, Decreto Lei 1.146/70 e Lei 7.787, de 30/06/89) | E30: ='Encargos Sociais'!E19 -> 0.002 | F30: 10.46 | H30: * Nota 1 - Os percentuais dos encargos previdenciários, do FGTS e demais contribuições são estabelecidos por legislação vigente.
C31: H | D31: FGTS (Lei Complementar nº 110/01 e art. 30, Lei nº 8.036/90) | E31: ='Encargos Sociais'!E20 -> 0.08 | F31: 418.41 | H31: * Nota 2 - O SAT, a depender do grau de risco do serviço, irá variar entre 1%, para risco leve, de 2%, para risco médio, e de 3% para risco grave.
C32: I | D32: SECONCI (Convenções Coletivas de Trabalho da construção) | E32: ='Encargos Sociais'!E21 -> 0 | F32: 0 | H32: * Nota 3 - Os percentuais do Submódulo 2.2 incidem sobre o Módulo 1 e o Submódulo 2.1.
B34: Submódulo 2.3 - Benefícios Mensais e Diários
C35: A | D35: Auxílio Transporte | F35: =HLOOKUP($B$5,'Dados Gerais'!$D$5:$BJ$93,82) -> 26.03
C36: B | D36: Auxílio Alimentação | F36: =HLOOKUP($B$5,'Dados Gerais'!$D$5:$BJ$93,89) -> 770
C37: C | D37: Assistência Médica e Familiar | F37: =HLOOKUP($B$5,'Dados Gerais'!$D$5:$BJ$101,97) -> 237.92
C38: D | D38: Outros (Seguro de vida e auxílio funeral e auxílio odontológico) | F38: =HLOOKUP($B$5,'Dados Gerais'!$D$5:$BJ$118,114) -> 12.36 | H38: * Nota 1 - O valor informado deverá ser o custo real do benefício (descontado o valor eventualmente pago pelo empregado).
H39: * Nota 2 - Observar a previsão dos benefícios contidos em Acordos, Convenções e Dissídios Coletivos de Trabalho e o disposto no art. 6º da IN 5/2017
D40: QUADRO-RESUMO DO MÓDULO 2
D41: 2.1 - 13º Salário, Férias e Adicional de Férias - 13º Destacado - Calculado no Módulo 7 | E41: =SUM(E20:E21) -> 0.0303030303 | F41: =F20+F21 -> 138.87
D42: 2.2 - Encargos Previdenciários (GPS), Fundo de Garantia por Tempo de Serviço (FGTS) e Contribuições | E42: =SUM(E24:E32) -> 0.348 | F42: =SUM(F24:F32) -> 1820.08
D43: 2.3 - Benefícios Mensais e Diários | F43: =SUM(F35:F38) -> 1046.31
D45: TOTAL DOS ENCARGOS E BENEFÍCIOS | F45: =SUM(F41:F43) -> 3005.26
B47: MÓDULO 3 - PREVISÃO PARA RESCISÃO | E47: Percentuais | F47: Valor
C48: A | D48: Aviso Prévio Indenizado (Art. 7º, inciso XXI, da CF/1988 e arts. 477, 487, §1º, e 491 da CLT) | E48: ='Encargos Sociais'!E35 -> 0.008333333333 | F48: =ROUND(E48*$F$16,2) -> 38.19
C49: B | D49: Incidência do FGTS sobre o Aviso Prévio Indenizado (Súmula 305 TST) | E49: ='Encargos Sociais'!E36 -> 0.0006666666667 | F49: 3.06 | H49: * Nota 1 - Adotou-se os parâmetros do estudo do STF (http://www.stf.jus.br/arquivo/cms/sobrestfestudosci/anexo/encargos_sociais_03102007.pdf), onde 5% do pessoal é demitido pelo empregador no decurso do contrato (para estes, considerou-se o aviso prévio indenizado). Desprezou-se as demissões por justa causa e os pedidos de demissão.
C50: C | D50: Multa do FGTS e Contribuição Social sobre o Aviso Prévio Indenizado (Art. 18, §1º, da Lei 8.036/1990 e art. 1º da LC nº 110/2001) | E50: ='Encargos Sociais'!E37 -> 0.001274074074 | F50: 5.84 | H50: * Nota 2 - No cálculo do percentual, considerou-se 36 dias, correspondendo à metade da duração média dos contratos (2 anos)
C51: D | D51: Aviso Prévio Trabalhado (Art. 488, parágrafo único, CLT) | E51: ='Encargos Sociais'!E38 -> 0.01203703704 | F51: 55.16 | H51: * Nota 3 - Incide sobre a Remuneração + 13º salário (1/12) + Férias (1/12) + Adicional de Férias (1/36) x 50% multa (40% para o empregado e 10% de contribuição social) x 8% FGTS
C52: E | D52: Incidência de GPS, FGTS e outras contribuições sobre o Aviso Prévio Trabalhado | E52: ='Encargos Sociais'!E39 -> 0.004188888889 | F52: 19.2 | H52: * Nota 4 - Os 95% restantes do cálculo, a um prazo médio de contrato de 4 anos. Assim, calcula-se 7 dias para o 1º ano de contrato e mais 3 dias para os 3 anos seguintes.
C53: F | D53: Multa do FGTS e Contribuição Social sobre o Aviso Prévio Trabalhado | E53: ='Encargos Sociais'!E40 -> 0.03050515556 | F53: 139.8
D55: TOTAL DE PREVISÃO PARA RESCISÃO | F55: =SUM(F48:F53) -> 261.25
B57: MÓDULO 4 - CUSTO DE REPOSIÇÃO DO PROFISSIONAL AUSENTE | E57: Percentuais | F57: Valor
B58: Submódulo 4.1 - Ausências Legais
C59: A | D59: Férias (Arts. 129 e 130, inc. I, da CLT) | E59: ='Encargos Sociais'!E24 -> 0.09090909091 | F59: =ROUND(E59*$F$16,2) -> 416.62 | H59: * Nota 1 - As alíneas “A” a “F” referem-se somente ao custo que será pago ao repositor pelos dias trabalhados quando da necessidade de substituir a mão de obra alocada na prestação do serviço.
C60: B | D60: Ausências Legais (Arts. 131 e 473 da CLT) | E60: ='Encargos Sociais'!E25 -> 0.007936507937 | F60: 36.37 | H60: * Nota 2 - Adotou-se a estimativa do SINAPI de 2 dias por ano.
C61: C | D61: Licença-Paternidade (Art. 7º, XIX, e art. 10, §1º, do ADCT, CF/1988 e Art. 1º, II, da Lei 11.770/2008) | E61: ='Encargos Sociais'!E26 -> 0.0008277777778 | F61: 3.79 | H61: * Nota 3 - Utilizada a proporção de 50% para homens, 5 dias de afastamento, e a probabilidade de um trabalhador requerer a Licença Paternidade em 5,22%, conforme SINAPI (citando dados da PNAD 2015)
C62: D | D62: Ausência por Acidente de Trabalho (Art. 131, III, da CLT) | E62: ='Encargos Sociais'!E27 -> 0.0008541666667 | F62: 3.91 | H62: * Nota 4 - Utilzada a estatística de 1,96% dos contribuintes beneficiados com a emissão do auxílio, conforme Anuário Estatístico da Previdência Social. Afastamento de 15 dias a cargo da empresa.
C63: E | D63: Afastamento Maternidade (Art. 71 da Lei nº 8.213/1991) | E63: ='Encargos Sociais'!E28 -> 0.003292592593 | F63: 15.09 | H63: * Nota 5 - Utilizada a proporção de 50% para mulheres, 180 dias de afastamento, e a probabilidade de uma trabalhadora requerer a Licença Maternidade em 4,91%, conforme SINAPI (citando dados do IBGE 2016)
C64: F | D64: Auxílio Enfermidade - Doença (Art. 59 da Lei nº 8.213/1991) | E64: ='Encargos Sociais'!E29 -> 0.007122222222 | F64: 32.64 | H64: * Nota 6 - Utilizada a estatística de 3,37% dos contribuintes beneficiados com o auxílio, conforme Anuário Estatístico da Previdência Social de 2015 (acrescidos de 2 dias ao ano, para os quais o trabalhador nem requer o benefício da Previdência - conforme SINAPI)
B66: Submódulo 4.2 - Intrajornada
C67: A | D67: Intervalo para repouso ou alimentação | E67: ='Encargos Sociais'!E32 -> 0 | F67: =ROUND(E67*$F$16,2) -> 0
D69: QUADRO-RESUMO DO MÓDULO 4 | F69: Valor
D70: 4.1 - Ausências Legais | E70: =SUM(E59:E64) -> 0.1109423581 | F70: =ROUND(E70*$F$16,2) -> 508.43
D71: 4.2 - Intrajornada | E71: =E67 -> 0 | F71: =ROUND(E71*$F$16,2) -> 0
D73: TOTAL DE PREVISÃO PARA RESCISÃO E INTERVALO INTRAJORNADA | F73: =SUM(F70:F71) -> 508.43
B75: MÓDULO 5 - INSUMOS DIVERSOS | F75: Valor
C76: A | D76: Uniformes - aquisição | F76: =ROUND(HLOOKUP($B$5,Uniformes!K11:DZ29,3)/12,2) -> 0
C77: B | D77: Materiais de consumo relacionados ao posto - aquisição | F77: =ROUND(HLOOKUP(B5,'Mat Cons'!I11:DX13,3)/12,2) -> 0
C78: C | D78: Materiais permanentes relacionados ao posto - remuneração da sua depreciação / manutenção | F78: =HLOOKUP(B5,'Mat Perm'!Q11:EF13,3) -> 0
C79: D | D79: Equipamentos relacionados ao posto - remuneração da sua depreciação / manutenção | F79: =HLOOKUP(B5,'Equip Rel'!Q11:EF13,3) -> 0
C80: E | D80: Equipamentos de Proteção Individual - EPI - aquisição | F80: =ROUND(HLOOKUP(B5,EPI!I11:DX202,3)/12,2) -> 0
D82: TOTAL DE INSUMOS DIVERSOS | F82: =SUM(F76:F81) -> 0 | H82: * Nota - Valores mensais por empregado
B84: MÓDULO 6 - CUSTOS INDIRETOS, TRIBUTOS E LUCRO - BDI | E84: Percentuais | F84: Valor
C85: A | D85: Custos Indiretos | E85: =BDI!E6 -> 0.0628
C86: A.1 | D86: Administração Central | E86: =BDI!E7 -> 0.026
C87: A.2 | D87: Seguros, Garantias e Riscos | E87: =BDI!E8 -> 0.0368
C88: B | D88: Lucro | E88: =BDI!E10 -> 0.04
C89: C | D89: Tributos | E89: =SUM(E90:E91) -> 0.124
C90: C.1 | D90: Tributos Federais (COFINS, PIS e CPRB) | E90: =BDI!E18 -> 0.074
C91: C.2 | D91: Tributos Distritais (ISS) | E91: =BDI!E23 -> 0.05 | H91: * Nota - Utilizou-se o indicado pelo Sindicato da Arquitetura e da Engenharia (Sinaenco, 2008, p. 22), que adota um percentual redutor de 20% no cálculo dos custos tributários relativos às contribuições PIS e COFINS
C92: D | D92: Despesas Financeiras | E92: =BDI!E13 -> 0.004861120438
D94: TOTAL DE BDI | E94: =BDI!E26 -> 0.2679 | F94: =E94*E102 -> 2239.051941
D96: QUADRO-RESUMO DO CUSTO MENSAL POR EMPREGADO - SEM O 13º | E96: Valor
D97: Módulo 1 - Composição da Remuneração | E97: =F16 -> 4582.85
D98: Módulo 2 - Encargos e Benefícios Anuais, Mensais e Diários | E98: =F45 -> 3005.26
D99: Módulo 3 - Provisão para Rescisão | E99: =F55 -> 261.25
D100: Módulo 4 - Custo de Reposição do Profissional Ausente | E100: =F73 -> 508.43
D101: Módulo 5 - Insumos Diversos | E101: =F82 -> 0
D102: SUBTOTAL (A+B+C+D+E) | E102: =SUM(E97:E101) -> 8357.79
D103: Módulo 6 - Custos Indiretos, Tributos e Lucro | E103: =F94 -> 2239.051941
D105: TOTAL DO POSTO | E105: =SUM(E102:E103) -> 10596.84194
B107: MÓDULO 7 - DESTAQUE DO MÓDULO 2 - 13º SALÁRIO | E107: Percentuais | F107: Valor
C108: A | D108: 13º Salário | E108: ='Encargos Sociais'!E31 -> 0.08333333333 | F108: =ROUND(E108*F$16,2) -> 381.9
C109: B | D109: Encargos Sociais sobre o 13º Salário - Taxa calculada no SUBMÓDULO 2.2 | E109: =SUM($E$24:$E$32) -> 0.348 | F109: =ROUND(E109*$F$108,2) -> 132.9 | H109: * Nota 1 - Provisiona-se, mensalmente, o proporcional a 1/12 dos valores referentes a gratificação natalina e adicional de férias.
C110: C | D110: Reincidência de férias sobre o 13º salário | E110: =E59 -> 0.09090909091 | F110: =ROUND(E110*($F$108+$F$109),2) -> 46.8
C111: D | D111: BDI sobre o 13º Salário - Taxa calculada no MÓDULO 6 | E111: =E94 -> 0.2679 | F111: =ROUND(E111*($F$108+$F$109),2) -> 137.91
D113: TOTAL DO DESTAQUE DO 13º SALÁRIO | F113: =SUM(F108:F111) -> 699.51
D115: QUADRO-RESUMO DO CUSTO MENSAL POR EMPREGADO | E115: Valor
D116: Custo total - sem o 13º Salário | E116: =E105 -> 10596.84194
D117: Destaque do 13º Salário (valor mensal) | E117: =F113 -> 699.51
D119: TOTAL DO POSTO | E119: =E116+E117 -> 11296.35194

Sheet 7
B2: PLANILHA DE ESTIMATIVA DE CUSTOS
B3: Padrão IN 05/2017 e IN 07/2018 - MPDG
B5: 7 | D5: =HLOOKUP($B$5,'Dados Gerais'!$D$5:$BJ$20,6) -> Líder de service desk | E5: QUANTIDADE | F5: =HLOOKUP($B$5,'Dados Gerais'!$D$5:$BJ$20,10) -> 2
B6: CCT | D6: =HLOOKUP($B$5,'Dados Gerais'!$D$5:$BJ$20,15) -> SINDPD/DF X SINDESEI/DF 2021/2022 Nº DF000608/2021 | E6: DATA-BASE | F6: =HLOOKUP($B$5,'Dados Gerais'!$D$5:$BJ$20,16) -> 44317
B8: MÓDULO 1 - COMPOSIÇÃO DA REMUNERAÇÃO | F8: Valor
C9: A | D9: Salário-Base | F9: =HLOOKUP($B$5,'Dados Gerais'!$D$5:$BJ$20,8) -> 6970.64
C10: B | D10: Adicional de Periculosidade | F10: =HLOOKUP($B$5,'Dados Gerais'!$D$5:$BJ$37,25) -> 0
C11: C | D11: Adicional de Insalubridade | F11: =HLOOKUP($B$5,'Dados Gerais'!$D$5:$BJ$37,31) -> 0
C12: D | D12: Adicional Noturno | F12: =HLOOKUP($B$5,'Dados Gerais'!$D$5:$BJ$50,46) -> 0 | H12: * Nota 1 - O Módulo 1 refere-se ao valor mensal devido ao empregado pela prestação do serviço no período de 12 meses.
C13: E | D13: Adicional de Hora Extra | F13: =HLOOKUP($B$5,'Dados Gerais'!$D$5:$BJ$67,63) -> 0 | H13: * Nota 2 - O adicional de hora extra no feriado trabalhado foi suprimido pela Lei 13.467/17
C14: F | D14: Outros (especificar) | F14: =HLOOKUP($B$5,'Dados Gerais'!$D$5:$BJ$59,33) -> 0 | H14: * Nota 3 - ART. 7º, § 2º, DA LEI Nº 605/49.Sendo mensalista o obreiro, o adicional noturno pago de forma fixa já é considerado integrado para os efeitos do pagamento do repouso semanal remunerado, nos termos do art. 7º, § 2º, da Lei nº 605/49.
D16: TOTAL DA REMUNERAÇÃO | F16: =SUM(F9:F14) -> 6970.64
B18: MÓDULO 2 - ENCARGOS E BENEFÍCIOS ANUAIS, MENSAIS E DIÁRIOS | E18: Percentuais | F18: Valor
B19: Submódulo 2.1 - 13º Salário, Férias e Adicional de Férias
C20: A | D20: 13º Salário - Calculado no Módulo 7 - Destacado | E20: 0 | F20: =ROUND(E20*F$16,2) -> 0
C21: B | D21: Adicional de Férias | E21: ='Encargos Sociais'!E30 -> 0.0303030303 | F21: =ROUND(E21*F$16,2) -> 211.23 | H21: * Nota 1 - Provisiona-se, mensalmente, o proporcional a 1/12 dos valores referentes a gratificação natalina, férias e adicional de férias.
H22: * Nota 2 - O adicional de férias contido no Submódulo 2.1 corresponde a 1/3 da remuneração que, por sua vez, é dividida por 12 contome Nota 1.
B23: Submódulo 2.2 - Encargos Previdenciários (GPS), Fundo de Garantia por Tempo de Serviço (FGTS) e Outras Contribuições
C24: A | D24: INSS (art. 22, inciso I, Lei nº 8.212/91) | E24: ='Encargos Sociais'!E13 -> 0.2 | F24: =ROUND(E24*($F$16+$F$41+$F$73),2) -> 1591.04
C25: B | D25: Salário Educação (art. 3º, inciso I, Decreto nº 87.043/82) | E25: ='Encargos Sociais'!E14 -> 0.025 | F25: =ROUND(E25*($F$16+$F$41+$F$73),2) -> 198.88
C26: C | D26: SAT/RAT (art. 22, II, Lei 8.212/91 e Anexo V, Decreto 6.042/07) - Enquadramento 8211-3/00 | E26: ='Encargos Sociais'!E15 -> 0.01 | F26: 79.55
C27: D | D27: SESC ou SESI (art. 30, Lei nº 8.036/90 e art. 1º, Lei 8.154/90) | E27: ='Encargos Sociais'!E16 -> 0.015 | F27: 119.33
C28: E | D28: SENAI ou SENAC (Decreto nº 2.318/86) | E28: ='Encargos Sociais'!E17 -> 0.01 | F28: 79.55
C29: F | D29: SEBRAE (§ 3º, art. 8º, Lei 8.029/90, alterada pela Lei nº 8.154/90) | E29: ='Encargos Sociais'!E18 -> 0.006 | F29: 47.73
C30: G | D30: INCRA (art. 1º, I, Decreto Lei 1.146/70 e Lei 7.787, de 30/06/89) | E30: ='Encargos Sociais'!E19 -> 0.002 | F30: 15.91 | H30: * Nota 1 - Os percentuais dos encargos previdenciários, do FGTS e demais contribuições são estabelecidos por legislação vigente.
C31: H | D31: FGTS (Lei Complementar nº 110/01 e art. 30, Lei nº 8.036/90) | E31: ='Encargos Sociais'!E20 -> 0.08 | F31: 636.42 | H31: * Nota 2 - O SAT, a depender do grau de risco do serviço, irá variar entre 1%, para risco leve, de 2%, para risco médio, e de 3% para risco grave.
C32: I | D32: SECONCI (Convenções Coletivas de Trabalho da construção) | E32: ='Encargos Sociais'!E21 -> 0 | F32: 0 | H32: * Nota 3 - Os percentuais do Submódulo 2.2 incidem sobre o Módulo 1 e o Submódulo 2.1.
B34: Submódulo 2.3 - Benefícios Mensais e Diários
C35: A | D35: Auxílio Transporte | F35: =HLOOKUP($B$5,'Dados Gerais'!$D$5:$BJ$93,82) -> 0
C36: B | D36: Auxílio Alimentação | F36: =HLOOKUP($B$5,'Dados Gerais'!$D$5:$BJ$93,89) -> 770
C37: C | D37: Assistência Médica e Familiar | F37: =HLOOKUP($B$5,'Dados Gerais'!$D$5:$BJ$101,97) -> 237.92
C38: D | D38: Outros (Seguro de vida e auxílio funeral e auxílio odontológico) | F38: =HLOOKUP($B$5,'Dados Gerais'!$D$5:$BJ$118,114) -> 12.36 | H38: * Nota 1 - O valor informado deverá ser o custo real do benefício (descontado o valor eventualmente pago pelo empregado).
H39: * Nota 2 - Observar a previsão dos benefícios contidos em Acordos, Convenções e Dissídios Coletivos de Trabalho e o disposto no art. 6º da IN 5/2017
D40: QUADRO-RESUMO DO MÓDULO 2
D41: 2.1 - 13º Salário, Férias e Adicional de Férias - 13º Destacado - Calculado no Módulo 7 | E41: =SUM(E20:E21) -> 0.0303030303 | F41: =F20+F21 -> 211.23
D42: 2.2 - Encargos Previdenciários (GPS), Fundo de Garantia por Tempo de Serviço (FGTS) e Contribuições | E42: =SUM(E24:E32) -> 0.348 | F42: =SUM(F24:F32) -> 2768.41
D43: 2.3 - Benefícios Mensais e Diários | F43: =SUM(F35:F38) -> 1020.28
D45: TOTAL DOS ENCARGOS E BENEFÍCIOS | F45: =SUM(F41:F43) -> 3999.92
B47: MÓDULO 3 - PREVISÃO PARA RESCISÃO | E47: Percentuais | F47: Valor
C48: A | D48: Aviso Prévio Indenizado (Art. 7º, inciso XXI, da CF/1988 e arts. 477, 487, §1º, e 491 da CLT) | E48: ='Encargos Sociais'!E35 -> 0.008333333333 | F48: =ROUND(E48*$F$16,2) -> 58.09
C49: B | D49: Incidência do FGTS sobre o Aviso Prévio Indenizado (Súmula 305 TST) | E49: ='Encargos Sociais'!E36 -> 0.0006666666667 | F49: 4.65 | H49: * Nota 1 - Adotou-se os parâmetros do estudo do STF (http://www.stf.jus.br/arquivo/cms/sobrestfestudosci/anexo/encargos_sociais_03102007.pdf), onde 5% do pessoal é demitido pelo empregador no decurso do contrato (para estes, considerou-se o aviso prévio indenizado). Desprezou-se as demissões por justa causa e os pedidos de demissão.
C50: C | D50: Multa do FGTS e Contribuição Social sobre o Aviso Prévio Indenizado (Art. 18, §1º, da Lei 8.036/1990 e art. 1º da LC nº 110/2001) | E50: ='Encargos Sociais'!E37 -> 0.001274074074 | F50: 8.88 | H50: * Nota 2 - No cálculo do percentual, considerou-se 36 dias, correspondendo à metade da duração média dos contratos (2 anos)
C51: D | D51: Aviso Prévio Trabalhado (Art. 488, parágrafo único, CLT) | E51: ='Encargos Sociais'!E38 -> 0.01203703704 | F51: 83.91 | H51: * Nota 3 - Incide sobre a Remuneração + 13º salário (1/12) + Férias (1/12) + Adicional de Férias (1/36) x 50% multa (40% para o empregado e 10% de contribuição social) x 8% FGTS
C52: E | D52: Incidência de GPS, FGTS e outras contribuições sobre o Aviso Prévio Trabalhado | E52: ='Encargos Sociais'!E39 -> 0.004188888889 | F52: 29.2 | H52: * Nota 4 - Os 95% restantes do cálculo, a um prazo médio de contrato de 4 anos. Assim, calcula-se 7 dias para o 1º ano de contrato e mais 3 dias para os 3 anos seguintes.
C53: F | D53: Multa do FGTS e Contribuição Social sobre o Aviso Prévio Trabalhado | E53: ='Encargos Sociais'!E40 -> 0.03050515556 | F53: 212.64
D55: TOTAL DE PREVISÃO PARA RESCISÃO | F55: =SUM(F48:F53) -> 397.37
B57: MÓDULO 4 - CUSTO DE REPOSIÇÃO DO PROFISSIONAL AUSENTE | E57: Percentuais | F57: Valor
B58: Submódulo 4.1 - Ausências Legais
C59: A | D59: Férias (Arts. 129 e 130, inc. I, da CLT) | E59: ='Encargos Sociais'!E24 -> 0.09090909091 | F59: =ROUND(E59*$F$16,2) -> 633.69 | H59: * Nota 1 - As alíneas “A” a “F” referem-se somente ao custo que será pago ao repositor pelos dias trabalhados quando da necessidade de substituir a mão de obra alocada na prestação do serviço.
C60: B | D60: Ausências Legais (Arts. 131 e 473 da CLT) | E60: ='Encargos Sociais'!E25 -> 0.007936507937 | F60: 55.32 | H60: * Nota 2 - Adotou-se a estimativa do SINAPI de 2 dias por ano.
C61: C | D61: Licença-Paternidade (Art. 7º, XIX, e art. 10, §1º, do ADCT, CF/1988 e Art. 1º, II, da Lei 11.770/2008) | E61: ='Encargos Sociais'!E26 -> 0.0008277777778 | F61: 5.77 | H61: * Nota 3 - Utilizada a proporção de 50% para homens, 5 dias de afastamento, e a probabilidade de um trabalhador requerer a Licença Paternidade em 5,22%, conforme SINAPI (citando dados da PNAD 2015)
C62: D | D62: Ausência por Acidente de Trabalho (Art. 131, III, da CLT) | E62: ='Encargos Sociais'!E27 -> 0.0008541666667 | F62: 5.95 | H62: * Nota 4 - Utilzada a estatística de 1,96% dos contribuintes beneficiados com a emissão do auxílio, conforme Anuário Estatístico da Previdência Social. Afastamento de 15 dias a cargo da empresa.
C63: E | D63: Afastamento Maternidade (Art. 71 da Lei nº 8.213/1991) | E63: ='Encargos Sociais'!E28 -> 0.003292592593 | F63: 22.95 | H63: * Nota 5 - Utilizada a proporção de 50% para mulheres, 180 dias de afastamento, e a probabilidade de uma trabalhadora requerer a Licença Maternidade em 4,91%, conforme SINAPI (citando dados do IBGE 2016)
C64: F | D64: Auxílio Enfermidade - Doença (Art. 59 da Lei nº 8.213/1991) | E64: ='Encargos Sociais'!E29 -> 0.007122222222 | F64: 49.65 | H64: * Nota 6 - Utilizada a estatística de 3,37% dos contribuintes beneficiados com o auxílio, conforme Anuário Estatístico da Previdência Social de 2015 (acrescidos de 2 dias ao ano, para os quais o trabalhador nem requer o benefício da Previdência - conforme SINAPI)
B66: Submódulo 4.2 - Intrajornada
C67: A | D67: Intervalo para repouso ou alimentação | E67: ='Encargos Sociais'!E32 -> 0 | F67: =ROUND(E67*$F$16,2) -> 0
D69: QUADRO-RESUMO DO MÓDULO 4 | F69: Valor
D70: 4.1 - Ausências Legais | E70: =SUM(E59:E64) -> 0.1109423581 | F70: =ROUND(E70*$F$16,2) -> 773.34
D71: 4.2 - Intrajornada | E71: =E67 -> 0 | F71: =ROUND(E71*$F$16,2) -> 0
D73: TOTAL DE PREVISÃO PARA RESCISÃO E INTERVALO INTRAJORNADA | F73: =SUM(F70:F71) -> 773.34
B75: MÓDULO 5 - INSUMOS DIVERSOS | F75: Valor
C76: A | D76: Uniformes - aquisição | F76: =ROUND(HLOOKUP($B$5,Uniformes!K11:DZ29,3)/12,2) -> 0
C77: B | D77: Materiais de consumo relacionados ao posto - aquisição | F77: =ROUND(HLOOKUP(B5,'Mat Cons'!I11:DX13,3)/12,2) -> 0
C78: C | D78: Materiais permanentes relacionados ao posto - remuneração da sua depreciação / manutenção | F78: =HLOOKUP(B5,'Mat Perm'!Q11:EF13,3) -> 0
C79: D | D79: Equipamentos relacionados ao posto - remuneração da sua depreciação / manutenção | F79: =HLOOKUP(B5,'Equip Rel'!Q11:EF13,3) -> 0
C80: E | D80: Equipamentos de Proteção Individual - EPI - aquisição | F80: =ROUND(HLOOKUP(B5,EPI!I11:DX202,3)/12,2) -> 0
D82: TOTAL DE INSUMOS DIVERSOS | F82: =SUM(F76:F81) -> 0 | H82: * Nota - Valores mensais por empregado
B84: MÓDULO 6 - CUSTOS INDIRETOS, TRIBUTOS E LUCRO - BDI | E84: Percentuais | F84: Valor
C85: A | D85: Custos Indiretos | E85: =BDI!E6 -> 0.0628
C86: A.1 | D86: Administração Central | E86: =BDI!E7 -> 0.026
C87: A.2 | D87: Seguros, Garantias e Riscos | E87: =BDI!E8 -> 0.0368
C88: B | D88: Lucro | E88: =BDI!E10 -> 0.04
C89: C | D89: Tributos | E89: =SUM(E90:E91) -> 0.124
C90: C.1 | D90: Tributos Federais (COFINS, PIS e CPRB) | E90: =BDI!E18 -> 0.074
C91: C.2 | D91: Tributos Distritais (ISS) | E91: =BDI!E23 -> 0.05 | H91: * Nota - Utilizou-se o indicado pelo Sindicato da Arquitetura e da Engenharia (Sinaenco, 2008, p. 22), que adota um percentual redutor de 20% no cálculo dos custos tributários relativos às contribuições PIS e COFINS
C92: D | D92: Despesas Financeiras | E92: =BDI!E13 -> 0.004861120438
D94: TOTAL DE BDI | E94: =BDI!E26 -> 0.2679 | F94: =E94*E102 -> 3252.646233
D96: QUADRO-RESUMO DO CUSTO MENSAL POR EMPREGADO - SEM O 13º | E96: Valor
D97: Módulo 1 - Composição da Remuneração | E97: =F16 -> 6970.64
D98: Módulo 2 - Encargos e Benefícios Anuais, Mensais e Diários | E98: =F45 -> 3999.92
D99: Módulo 3 - Provisão para Rescisão | E99: =F55 -> 397.37
D100: Módulo 4 - Custo de Reposição do Profissional Ausente | E100: =F73 -> 773.34
D101: Módulo 5 - Insumos Diversos | E101: =F82 -> 0
D102: SUBTOTAL (A+B+C+D+E) | E102: =SUM(E97:E101) -> 12141.27
D103: Módulo 6 - Custos Indiretos, Tributos e Lucro | E103: =F94 -> 3252.646233
D105: TOTAL DO POSTO | E105: =SUM(E102:E103) -> 15393.91623
B107: MÓDULO 7 - DESTAQUE DO MÓDULO 2 - 13º SALÁRIO | E107: Percentuais | F107: Valor
C108: A | D108: 13º Salário | E108: ='Encargos Sociais'!E31 -> 0.08333333333 | F108: =ROUND(E108*F$16,2) -> 580.89
C109: B | D109: Encargos Sociais sobre o 13º Salário - Taxa calculada no SUBMÓDULO 2.2 | E109: =SUM($E$24:$E$32) -> 0.348 | F109: =ROUND(E109*$F$108,2) -> 202.15 | H109: * Nota 1 - Provisiona-se, mensalmente, o proporcional a 1/12 dos valores referentes a gratificação natalina e adicional de férias.
C110: C | D110: Reincidência de férias sobre o 13º salário | E110: =E59 -> 0.09090909091 | F110: =ROUND(E110*($F$108+$F$109),2) -> 71.19
C111: D | D111: BDI sobre o 13º Salário - Taxa calculada no MÓDULO 6 | E111: =E94 -> 0.2679 | F111: =ROUND(E111*($F$108+$F$109),2) -> 209.78
D113: TOTAL DO DESTAQUE DO 13º SALÁRIO | F113: =SUM(F108:F111) -> 1064.01
D115: QUADRO-RESUMO DO CUSTO MENSAL POR EMPREGADO | E115: Valor
D116: Custo total - sem o 13º Salário | E116: =E105 -> 15393.91623
D117: Destaque do 13º Salário (valor mensal) | E117: =F113 -> 1064.01
D119: TOTAL DO POSTO | E119: =E116+E117 -> 16457.92623

Sheet Dados Gerais
B3: INFORMAÇÕES DE ENTRADA
D5: 1 | E5: 2 | F5: 3 | G5: 4 | H5: 5 | I5: 6 | J5: 7 | K5: 9 | L5: 10 | M5: 11 | N5: 12 | O5: 13 | P5: 14 | Q5: 15 | R5: 16 | S5: 17 | T5: 18 | U5: 19 | V5: 20 | W5: 21 | X5: 22 | Y5: 23 | Z5: 24 | AA5: 25 | AB5: 26 | AC5: 27 | AD5: 28 | AE5: 29 | AF5: 30 | AG5: 31 | AH5: 32 | AI5: 33 | AJ5: 34 | AK5: 35 | AL5: 36 | AM5: 37 | AN5: 38 | AO5: 39 | AP5: 40 | AQ5: 41 | AR5: 42 | AS5: 43 | AT5: 44 | AU5: 45 | AV5: 46 | AW5: 47 | AX5: 48 | AY5: 49 | AZ5: 50 | BA5: 51 | BB5: 52 | BC5: 53 | BD5: 54 | BE5: 55 | BF5: 56 | BG5: 57 | BH5: 58 | BI5: 59 | BJ5: 60
D6: CARGO 1 | E6: CARGO 2 | F6: CARGO 3 | G6: CARGO 4 | H6: CARGO 5 | I6: CARGO 6 | J6: CARGO 7 | K6: CARGO 9 | L6: CARGO 10 | M6: CARGO 11 | N6: CARGO 12 | O6: CARGO 13 | P6: CARGO 14 | Q6: CARGO 15 | R6: CARGO 16 | S6: CARGO 17 | T6: CARGO 18 | U6: CARGO 19 | V6: CARGO 20 | W6: CARGO 21 | X6: CARGO 22 | Y6: CARGO 23 | Z6: CARGO 24 | AA6: CARGO 25 | AB6: CARGO 26 | AC6: CARGO 27 | AD6: CARGO 28 | AE6: CARGO 29 | AF6: CARGO 30 | AG6: CARGO 31 | AH6: CARGO 32 | AI6: CARGO 33 | AJ6: CARGO 34 | AK6: CARGO 35 | AL6: CARGO 36 | AM6: CARGO 37 | AN6: CARGO 38 | AO6: CARGO 39 | AP6: CARGO 40 | AQ6: CARGO 41 | AR6: CARGO 42 | AS6: CARGO 43 | AT6: CARGO 44 | AU6: CARGO 45 | AV6: CARGO 46 | AW6: CARGO 47 | AX6: CARGO 48 | AY6: CARGO 49 | AZ6: CARGO 50 | BA6: CARGO 51 | BB6: CARGO 52 | BC6: CARGO 53 | BD6: CARGO 54 | BE6: CARGO 55 | BF6: CARGO 56 | BG6: CARGO 57 | BH6: CARGO 58 | BI6: CARGO 59 | BJ6: CARGO 60
B7: INFORMAÇÕES BÁSICAS
B9: DESCRIÇÃO DOS POSTOS DE SERVIÇO
D10: Analista de suporte técnico | E10: Encarregado de suporte técnico | F10: Analista de contratos especializado em gerenciamento de fornecedores e contratos de informática | G10: Analista de suporte técnico especializado em gerenciamento de software de microinformática | H10: Analista de suporte técnico especializado em levantamento de requisitos, especificação e orçamento de contratações de microinformática | I10: Analista de qualidade especializado em monitoramento e controle de qualidade de service desk | J10: Líder de service desk
B11: REMUNERAÇÕES
D12: 3698.66 | E12: 5377.41 | F12: 6483.53 | G12: 4846.14 | H12: 5809.79 | I12: 4582.85 | J12: 6970.64
B13: QUANTIDADE DE POSTOS
D14: 87 | E14: 14 | F14: 2 | G14: 2 | H14: 2 | I14: 2 | J14: 2
B15: JORNADA
C16: HORAS | D16: =44*5 -> 220 | E16: =44*5 -> 220 | F16: =44*5 -> 220 | G16: 220 | H16: 220 | I16: 220 | J16: 220
C17: DIAS/MÊS | D17: 22 | E17: 22 | F17: 22 | G17: 22 | H17: 22 | I17: 22 | J17: 22
B18: CCT UTILIZADA
C19: SINDICATOS E REFERÊNCIA | D19: SINDPD/DF X SINDESEI/DF 2021/2022 Nº DF000608/2021 | E19: SINDPD/DF X SINDESEI/DF 2021/2022 Nº DF000608/2021 | F19: SINDPD/DF X SINDESEI/DF 2021/2022 Nº DF000608/2021 | G19: SINDPD/DF X SINDESEI/DF 2021/2022 Nº DF000608/2021 | H19: SINDPD/DF X SINDESEI/DF 2021/2022 Nº DF000608/2021 | I19: SINDPD/DF X SINDESEI/DF 2021/2022 Nº DF000608/2021 | J19: SINDPD/DF X SINDESEI/DF 2021/2022 Nº DF000608/2021
C20: DATA-BASE | D20: 2021-05-01 | E20: 2021-05-01 | F20: 2021-05-01 | G20: 2021-05-01 | H20: 2021-05-01 | I20: 2021-05-01 | J20: 2021-05-01
B22: ADICIONAIS LEGAIS E GRATIFICAÇÕES
B24: PERICULOSIDADE (PERCENTUAL)
D25: 0 | E25: 0 | F25: 0 | G25: 0 | H25: 0 | I25: 0 | J25: 0
B26: BASE DE CÁLCULO DO ADICIONAL DE PERICULOSIDADE (SALÁRIO BÁSICO)
D27: =D12 -> 3698.66 | E27: 2386.75 | F27: =F12 -> 6483.53 | G27: 4846.14 | H27: =H12 -> 5809.79 | I27: 4582.85 | J27: 6970.64
B28: VALOR MENSAL DO ADICIONAL DE PERICULOSIDADE
D29: =ROUND(D25*D12,2) -> 0 | E29: 0 | F29: =ROUND(F25*F12,2) -> 0 | G29: 0 | H29: =ROUND(H25*H12,2) -> 0 | I29: 0 | J29: 0
B30: INSALUBRIDADE (PERCENTUAL)
D31: 0 | E31: 0 | F31: 0 | G31: 0 | H31: 0 | I31: 0 | J31: 0
B32: BASE DE CÁLCULO DO ADICIONAL DE INSALUBRIDADE (SALÁRIO MÍNIMO LEGAL)
D33: 1045 | E33: 1045 | F33: 1045 | G33: 1045 | H33: 1045 | I33: 1045 | J33: 1045
B34: VALOR MENSAL DO ADICIONAL DE INSALUBRIDADE
D35: =ROUND(D31*D12,2) -> 0 | E35: 0 | F35: =ROUND(F31*F12,2) -> 0 | G35: 0 | H35: 0 | I35: 0 | J35: 0
B36: GRATIFICAÇÃO - VALOR MENSAL (R$)
D37: 0 | E37: 0 | F37: 0 | G37: 0 | H37: 0 | I37: 0 | J37: 0
B39: ADICIONAL NOTURNO
B41: INCIDÊNCIA (PERCENTUAL)
D42: 0.2 | E42: 0.2 | F42: 0.2 | G42: 0.2 | H42: 0.2 | I42: 0.2 | J42: 0.2
B43: HORAS REAIS POR DIA
D44: 0 | E44: 0 | F44: 0 | G44: 0 | H44: 0 | I44: 0 | J44: 0
B45: HORAS FICTAS POR DIA
D46: =D44*8/8 -> 0 | E46: =E44*8/8 -> 0 | F46: =F44*8/8 -> 0 | G46: 0 | H46: 0 | I46: 0 | J46: 0
B47: BASE DE CÁLCULO DO ADICIONAL NOTURNO (INCLUINDO ADICIONAIS E GRATIFICAÇÕES)
D48: =D12+D29+D35+D37 -> 3698.66 | E48: 5377.41 | F48: =F12+F29+F35+F37 -> 6483.53 | G48: 4846.14 | H48: 5809.79 | I48: 4582.85 | J48: =J12+J29+J35+J37 -> 6970.64
B49: VALOR MENSAL DO ADICIONAL NOTURNO (HORA NORMAL + HORA REDUZIDA) - POR POSTO
D50: =ROUND(D46*D17*D42*D48/D16,2) -> 0 | E50: 0 | F50: =ROUND(F46*F17*F42*F48/F16,2) -> 0 | G50: 0 | H50: 0 | I50: 0 | J50: =ROUND(J46*J17*J42*J48/J16,2) -> 0
B52: ADICIONAL DE HORA EXTRA
B54: INCIDÊNCIA (PERCENTUAL 1)
D55: 0.5 | E55: 0.5 | F55: 0.5 | G55: 0.5 | H55: 0.5 | I55: 0.5 | J55: 0.5
B56: HORAS EXTRAS POR MÊS (PERCENTUAL 1)
D57: 0 | E57: 0 | F57: 0 | G57: 0 | H57: 0 | I57: 0 | J57: 0
B58: VALOR MENSAL DO ADICIONAL DE HORAS EXTRAS (PERCENTUAL 1) - POR POSTO
D59: =ROUND(D57*D55*D12/D16,2) -> 0 | E59: 0 | F59: =ROUND(F57*F55*F12/F16,2) -> 0 | G59: 0 | H59: =ROUND(H57*H55*H12/H16,2) -> 0 | I59: 0 | J59: 0
B60: INCIDÊNCIA (PERCENTUAL 2)
D61: 1 | E61: 1 | F61: 1 | G61: 1 | H61: 1 | I61: 1 | J61: 1
B62: HORAS EXTRAS POR MÊS (PERCENTUAL 2)
D63: 0 | E63: 0 | F63: 0 | G63: 0 | H63: 0 | I63: 0 | J63: 0
B64: VALOR MENSAL DO ADICIONAL DE HORAS EXTRAS (PERCENTUAL 2) - POR POSTO
D65: =ROUND(D63*D61*D12/D16,2) -> 0 | E65: 0 | F65: =ROUND(F63*F61*F12/F16,2) -> 0 | G65: 0 | H65: =ROUND(H63*H61*H12/H16,2) -> 0 | I65: 0 | J65: 0
B66: TOTAL MENSAL DOS ADICIONAIS DE HORAS EXTRAS - POR POSTO
D67: =D65+D59 -> 0 | E67: 0 | F67: =F65+F59 -> 0 | G67: 0 | H67: =H65+H59 -> 0 | I67: 0 | J67: 0
B69: BENEFÍCIOS COMUNS - AUXÍLIO TRANSPORTE
B71: DISTRIBUIÇÃO ESTIMADA DE PROCEDÊNCIA
C72: Cidade-satélite | D72: 0.68 | E72: 0.68 | F72: 0.68 | G72: 0.68 | H72: 0.68 | I72: 0.68 | J72: 0.68
C73: Região do entorno | D73: 0.32 | E73: 0.32 | F73: 0.32 | G73: 0.32 | H73: 0.32 | I73: 0.32 | J73: 0.32
C74: Esplanada - apenas para os que vêm do entorno | D74: =D73 -> 0.32 | E74: =E73 -> 0.32 | F74: =F73 -> 0.32 | G74: 0.32 | H74: 0.32 | I74: 0.32 | J74: 0.32
B75: VALORES DOS VALES
C76: Cidade-satélite | D76: 5.5 | E76: =D76 -> 5.5 | F76: =E76 -> 5.5 | G76: =E76 -> 5.5 | H76: 5.5 | I76: =H76 -> 5.5 | J76: =I76 -> 5.5
C77: Região do entorno | D77: 6.94 | E77: 6.94 | F77: =E77 -> 6.94 | G77: 6.94 | H77: 6.94 | I77: 6.94 | J77: 6.94
C78: Esplanada | D78: 2.75 | E78: 2.75 | F78: =E78 -> 2.75 | G78: 2.75 | H78: 2.75 | I78: 2.75 | J78: 2.75
B79: VALOR MENSAL BRUTO DE PAGAMENTO - POR POSTO
D80: =ROUND((D72*D76+D73*D77+D74*D78)*2*D17,2) -> 301 | E80: =ROUND((E72*E76+E73*E77+E74*E78)*2*E17,2) -> 301 | F80: =ROUND((F72*F76+F73*F77+F74*F78)*2*F17,2) -> 301 | G80: 301 | H80: 301 | I80: 301 | J80: 301
B81: PERCENTUAL DE DESCONTO
D82: 0.06 | E82: 0.06 | F82: 0.06 | G82: 0.06 | H82: 0.06 | I82: 0.06 | J82: 0.06
B83: VALOR MENSAL DO DESCONTO - POR POSTO
D84: =ROUND(D82*D12,2) -> 221.92 | E84: 322.64 | F84: =ROUND(F82*F12,2) -> 389.01 | G84: 290.77 | H84: 348.59 | I84: 274.97 | J84: 418.24
B85: VALOR MENSAL LÍQUIDO DO VALE TRANSPORTE - POR POSTO
D86: =IF(D80>D84,D80-D84,0) -> 79.08 | E86: 0 | F86: =IF(F80>F84,F80-F84,0) -> 0 | G86: 10.23 | H86: 0 | I86: 26.03 | J86: =IF(J80>J84,J80-J84,0) -> 0
D87: =D86*D14 -> 6879.96 | E87: 2962.54 | F87: =F86*F14 -> 0 | G87: =G86*G14 -> 20.46 | H87: =H86*H14 -> 0
B88: BENEFÍCIOS COMUNS - AUXÍLIO ALIMENTAÇÃO
C90: VALOR CCT | D90: 28.69 | E90: =D90 -> 28.69 | F90: =E90 -> 28.69 | G90: =F90 -> 28.69 | H90: 28.69 | I90: 28.69 | J90: 28.69
C91: VALOR CD | D91: 35 | E91: 35 | F91: 35 | G91: 35 | H91: 35 | I91: 35 | J91: 35
B92: VALOR MENSAL DO AUXÍLIO ALIMENTAÇÃO - POR POSTO
D93: =ROUND(LARGE(D90:D91,1)*D17,2) -> 770 | E93: =ROUND(LARGE(E90:E91,1)*E17,2) -> 770 | F93: =ROUND(LARGE(F90:F91,1)*F17,2) -> 770 | G93: 770 | H93: 770 | I93: 770 | J93: 770
D94: =D93*D14 -> 66990 | E94: 10339.56 | F94: =F93*F14 -> 1540 | G94: =G93*G14 -> 1540 | H94: =H93*H14 -> 1540
B95: BENEFÍCIOS ESPECIAIS - ASSISTÊNCIA MÉDICA E FAMILIAR
C97: OBRIGAÇÃO DE PAGTO | D97: SIM | E97: SIM | F97: SIM | G97: SIM | H97: SIM | I97: SIM | J97: SIM
C98: VALOR CCT
C99: VALOR MERCADO | D99: =(418.82+532.86)/2*0.6 -> 285.504 | E99: =(418.82+532.86)/2*0.5 -> 237.92 | F99: =(418.82+532.86)/2*0.5 -> 237.92 | G99: 237.92 | H99: 237.92 | I99: 237.92 | J99: 237.92
B100: VALOR MENSAL DO AUXÍLIO ESPECIAL - ASSISTÊNCIA MÉDICA E FAMILIAR - POR POSTO
D101: =IF(D97="SIM",ROUND(SMALL(D98:D99,1),2),0) -> 285.5 | E101: =IF(E97="SIM",ROUND(SMALL(E98:E99,1),2),0) -> 237.92 | F101: 237.92 | G101: 237.92 | H101: 237.92 | I101: 237.92 | J101: 237.92
B103: BENEFÍCIOS ESPECIAIS - SEGURO DE VIDA E AUXÍLIO-FUNERAL, AUX ODONT, AUX CRECHE
B105: SEGURO DE VIDA E AUXÍLIO FUNERAL
C106: OBRIGAÇÃO DE PAGTO | D106: SIM | E106: SIM | F106: SIM | G106: SIM | H106: SIM | I106: SIM | J106: SIM
C107: VALOR CCT
C108: VALOR MERCADO | D108: 12.36 | E108: 12.36 | F108: 12.36 | G108: 12.36 | H108: 12.36 | I108: 12.36 | J108: 12.36
B109: VALOR MENSAL DO AUXÍLIO ESPECIAL - SEGURO DE VIDA E AUXÍLIO FUNERAL - POR POSTO
D110: =IF(D106="SIM",ROUND(SMALL(D107:D108,1),2),0) -> 12.36 | E110: 12.36 | F110: =IF(F106="SIM",ROUND(SMALL(F107:F108,1),2),0) -> 12.36 | G110: 12.36 | H110: 12.36 | I110: 12.36 | J110: =IF(J106="SIM",ROUND(SMALL(J107:J108,1),2),0) -> 12.36
B111: AUXÍLIO ODONTOLÓGICO
C112: OBRIGAÇÃO DE PAGTO | D112: NÃO | E112: NÃO | F112: NÃO | G112: NÃO | H112: NÃO | I112: NÃO | J112: NÃO
C113: VALOR CCT | D113: 0 | E113: 0 | F113: 0 | G113: 0 | H113: 0 | I113: 0 | J113: 0
C114: VALOR MERCADO | D114: 0 | E114: 0 | F114: 0 | G114: 0 | H114: 0 | I114: 0 | J114: 0
B115: VALOR MENSAL DO AUXÍLIO ESPECIAL - SEGURO DE VIDA E AUX FUNERAL - POR POSTO
D116: =IF(D112="SIM",ROUND(SMALL(D113:D114,1),2)*D17,0) -> 0 | E116: 0 | F116: =IF(F112="SIM",ROUND(SMALL(F113:F114,1),2)*F17,0) -> 0 | G116: 0 | H116: =IF(H112="SIM",ROUND(SMALL(H113:H114,1),2)*H17,0) -> 0 | I116: 0 | J116: 0
B117: TOTAL MENSAL DOS AUXÍLIOS ESPECIAIS - POR POSTO
D118: =D116+D110 -> 12.36 | E118: 12.36 | F118: =F116+F110 -> 12.36 | G118: 12.36 | H118: 12.36 | I118: 12.36 | J118: =J116+J110 -> 12.36

Sheet Encargos Sociais
B3: ENCARGOS SOCIAIS SOBRE A MÃO DE OBRA
E4: Percentuais
B6: Referência:
C7: SINAPI OUT/2018
B9: Categorias:
C10: TODAS
B12: GRUPO A: Encargos Sociais Básicos - Previdenciários (GPS), Fundo de Garantia por Tempo de Serviço (FGTS) e Outras Contribuições | E12: =ROUND(SUM(E13:E21),4) -> 0.348
C13: A | D13: INSS (art. 22, inciso I, Lei nº 8.212/91) | E13: 0.2
C14: B | D14: Salário Educação (art. 3º, inciso I, Decreto nº 87.043/82) | E14: 0.025
C15: C | D15: SAT/RAT (art. 22, II, Lei 8.212/91 e Anexo V, Decreto 6.042/07) - Enquadramento 6209-1/00 | E15: 0.01
C16: D | D16: SESC ou SESI (art. 30, Lei nº 8.036/90 e art. 1º, Lei 8.154/90) | E16: 0.015
C17: E | D17: SENAI ou SENAC (Decreto nº 2.318/86) | E17: 0.01
C18: F | D18: SEBRAE (§ 3º, art. 8º, Lei 8.029/90, alterada pela Lei nº 8.154/90) | E18: 0.006 | G18: * Nota 1 - Os percentuais dos encargos previdenciários, do FGTS e demais contribuições são estabelecidos por legislação vigente.
C19: G | D19: INCRA (art. 1º, I, Decreto Lei 1.146/70 e Lei 7.787, de 30/06/89) | E19: 0.002 | G19: * Nota 2 - O SAT, a depender do grau de risco do serviço, irá variar entre 1%, para risco leve, de 2%, para risco médio, e de 3% para risco grave.
C20: H | D20: FGTS (Lei Complementar nº 110/01 e art. 30, Lei nº 8.036/90) | E20: 0.08 | G20: * Nota 3 - Os percentuais do Submódulo 2.2 incidem sobre o Módulo 1, o Submódulo 2.1, o Módulo 3, o Módulo 4 e o Módulo 6.
C21: I | D21: SECONCI (Convenções Coletivas de Trabalho da construção) | E21: 0
B23: GRUPO B: Encargos Sociais Relacionados ao Custo de Reposição do Profissional Ausente - Ausências Legais | E23: =ROUND(SUM(E24:E32),4) -> 0.2246
C24: A | D24: Férias (Arts. 129 e 130, inc. I, da CLT) | E24: =1/11 -> 0.09090909091 | G24: * Nota 1 - As alíneas “A” a “F” referem-se somente ao custo que será pago ao repositor pelos dias trabalhados quando da necessidade de substituir a mão de obra alocada na prestação do serviço.
C25: B | D25: Ausências Legais (Arts. 131 e 473 da CLT) | E25: =2/252 -> 0.007936507937 | G25: * Nota 2 - Adotou-se a estimativa do SINAPI de 2 dias por ano. Em 252 dias úteis por ano.
C26: C | D26: Licença-Paternidade (Art. 7º, XIX, e art. 10, §1º, do ADCT, CF/1988 e Art. 1º, II, da Lei 11.770/2008) | E26: =(5/(30*12))*0.0596 -> 0.0008277777778 | G26: * Nota 3 - Utilizada a proporção de 50% para homens, 5 dias de afastamento, e a probabilidade de um trabalhador requerer a Licença Paternidade em 5,96%, conforme SINAPI (Anuário Estatístico da Previdência Social - 2017)
C27: D | D27: Ausência por Acidente de Trabalho (Art. 131, III, da CLT) | E27: =0.0205*15/360 -> 0.0008541666667 | G27: * Nota 4 - Utilzada a estatística de 2,05% dos contribuintes beneficiados com a emissão do auxílio, conforme Anuário Estatístico da Previdência Social. Afastamento de 15 dias a cargo da empresa.
C28: E | D28: Afastamento Maternidade (Art. 71 da Lei nº 8.213/1991) | E28: =0.0508*(120/360)*(30+30*4/3)/360 -> 0.003292592593 | G28: * Nota 5 - Utilizada a estimativa de 120 dias de afastamento, e a probabilidade de uma trabalhadora requerer a Licença Maternidade em 5,08%, conforme SINAPI (citando dados do IBGE 2017) - A própria previdência paga o benefício pelos 120 dias, contudo o empregador arca com o 13º e com as férias
C29: F | D29: Auxílio Enfermidade - Doença (Art. 59 da Lei nº 8.213/1991) | E29: =((0.0376*15)+2)/360 -> 0.007122222222 | G29: * Nota 6 - Utilizada a estatística de 3,76% dos contribuintes beneficiados com o auxílio, conforme Anuário Estatístico da Previdência Social de 2016 (acrescidos de 2 dias ao ano, para os quais o trabalhador nem requer o benefício da Previdência - conforme SINAPI)
C30: G | D30: Adicional de Férias (componente do Submódulo 2.1) | E30: =1/3*1/11 -> 0.0303030303 | G30: * Nota 7 - O adicional de férias contido no Submódulo 2.1 corresponde a 1/3 da remuneração que, por sua vez, é dividida por 12 contome Nota 1.
C31: H | D31: 13º Salário (destacado na planilha de custos) | E31: =1/12 -> 0.08333333333 | G31: * Nota 8 - Provisiona-se, mensalmente, o proporcional a 1/12 dos valores referentes a gratificação natalina e adicional de férias.
C32: I | D32: Intervalo para repouso ou alimentação (componente do Submódulo 4.2) | E32: 0
B34: GRUPO C: Encargos Sociais Relacionados à Previsão para Rescisão Trabalhista | E34: =ROUND(SUM(E35:E40),4) -> 0.057
C35: A | D35: Aviso Prévio Indenizado (Art. 7º, inciso XXI, da CF/1988 e arts. 477, 487, §1º, e 491 da CLT) | E35: =0.1*30/360 -> 0.008333333333 | G35: * Nota 1 - Considerou-se demissões de 10% por ano para substituições, a um prazo estimado de contrato de 3 anos. Aviso prévio - 1º ano 30 dias. Considerou-se os 10% demitidos sem justa causa e recebendo aviso indenizado.
C36: B | D36: Incidência do FGTS sobre o Aviso Prévio Indenizado (Súmula 305 TST) | E36: =E20*E35 -> 0.0006666666667 | G36: * Nota 2 - No cálculo do percentual, considerou-se 36 dias, correspondendo à metade da duração média dos contratos (2 anos)
C37: C | D37: Multa do FGTS sobre o Aviso Prévio Indenizado (Art. 18, §1º, da Lei 8.036/1990) | E37: =(1+1/12+1/12+1/36)*0.4*E20*0.1/3 -> 0.001274074074 | G37: * Nota 3 - Incide sobre a Remuneração + 13º salário (1/12) + Férias (1/12) + Adicional de Férias (1/36) x 40% multa para o empregador x 8% FGTS x 10% do pessoal, uma vez a cada 3 anos
C38: D | D38: Aviso Prévio Trabalhado (Art. 488, parágrafo único, CLT) | E38: =((7+2*3)*100%/360)/3 -> 0.01203703704 | G38: * Nota 3 - Considerou-se demissões de 100% ao final do contrato, com um prazo médio estimado de 3 anos. Assim, calcula-se 7 dias para o 1º ano de contrato e mais 3 dias para os 2 anos seguintes. Total 13 dias.
C39: E | D39: Incidência de GPS, FGTS e outras contribuições sobre o Aviso Prévio Trabalhado | E39: =E38*E12 -> 0.004188888889
C40: F | D40: Multa do FGTS sobre o Aviso Prévio Trabalhado | E40: =(1+1/12+1/12+1/36)*0.4*E20*(1-0.2019) -> 0.03050515556 | G40: * Nota 4 - Incide sobre a Remuneração + 13º salário (1/12) + Férias (1/12) + Adicional de Férias (1/36) x 40% multa para o empregador x 8% FGTS
B42: GRUPO D: Reincidências | E42: =ROUND(SUM(E43:E43),4) -> 0.0782
C43: A | D43: Reincidência do Grupo A sobre o Grupo B | E43: =E12*E23 -> 0.0781608
D45: SOMATÓRIO - ENCARGOS SOCIAIS SOBRE A MÃO DE OBRA | E45: =E42+E34+E23+E12 -> 0.7078

Sheet BDI
B3: COMPOSIÇÃO DA TAXA DE CUSTOS INDIRETOS, TRIBUTOS E LUCRO - BDI
B4: APLICAÇÃO: MÃO DE OBRA, 13º, MATERIAIS, EPC E EQUIPAMENTO DE REGISTRO DE FREQUÊNCIA | E4: Percentuais
B6: Custos Indiretos da Contratada | E6: =SUM(E7:E8) -> 0.0628
C7: A | D7: Administração Central (despesas de gestão da empresa, escritório e treinamento de seu pessoal, e eventuais como máscaras obrigatórias) | E7: 0.026 | G7: * Nota 1 - O Somatório da Administração Central com o Lucro deve ser inferior a 12%
C8: B | D8: Seguros, Garantias e Riscos (o risco foi majorado considerando o modelo híbrido, com risco de redutores na fatura mensal) | E8: =3.48%+0.2% -> 0.0368 | G8: * Nota 2 - O risco previsto para o porte do contrato majorado em mais 0,20% devido ao não pagamento dos insumos componentes do custo do posto quando da ausência do mesmo.
B10: Lucro | E10: =SUM(E11:E11) -> 0.04
C11: A | D11: Lucro Real sobre os Custos Administrados | E11: 0.04
B13: Despesas Financeiras | E13: =E14 -> 0.004861120438
C14: A | D14: Cálculo Baseado no Prazo para a Restituição dos Desembolsos Realizados pelo Contratado e na Taxa de Retorno Arbitrada | E14: =(1+E16)^(E15/252)-1 -> 0.004861120438 | G14: * Nota 1 - DF = [(1+TR)^(DU/252)]/100
C15: A.1 | D15: Dias Úteis Considerados | E15: 11 | G15: * Nota 2 - Diferença de dias entre o desembolso, pelo contratado, e o pagamento, pela Câmara
C16: A.2 | D16: Taxa de Retorno | E16: 0.1175 | G16: * Nota 3 - A taxa sugerida é a meta da SELIC
B18: Impostos - Tributos Federais | E18: =SUM(E19:E21) -> 0.074
C19: A | D19: Contribuição para o Financiamento da Seguridade Social - COFINS | E19: =0.8*7.6% -> 0.0608 | G19: * Nota 1 - Redução de 20% considerando as deduções permitidas em Lei, conforme SENGE, citado pelo TCU - Acórdão 2622/2013
C20: B | D20: Programa de Integração Social - PIS | E20: =0.8*1.65% -> 0.0132 | G20: * Nota 2 - Redução de 20% considerando as deduções permitidas em Lei, conforme SENGE, citado pelo TCU - Acórdão 2622/2013
C21: C | D21: Contribuição Previdenciária sobre a Receita Bruta - CPRB | E21: 0 | G21: * Nota 3 - Lei 12.546/2011 - Verificar atualizações e setores beneficiados
B23: Impostos - Tributos Distritais | E23: =SUM(E24:E24) -> 0.05
C24: A | D24: Imposto sobre Serviço de Qualquer Natureza - ISS | E24: 0.05
D26: SOMATÓRIO - ENCARGOS SOCIAIS SOBRE A MÃO DE OBRA | E26: =ROUND((((1+E6)*(1+E10)*(1+E13)/(1-E18-E23))-1),4) -> 0.2679 | G26: * Nota 1 - [(1+AC+SGR)*(1+L)*(1+DF)/(1-CONFINS-PIS-CPRB-ISS)]-1

Sheet Uniformes (hidden)
C1: CÂMARA DOS DEPUTADOS
C2: DEPARTAMENTO TÉCNICO
C3: Coordenação de Planejamento e Gestão
C5: Data: | D5: ='Dados Gerais'!#REF! -> 
C6: Processo: | D6: ='Dados Gerais'!#REF! -> 
C7: Objeto: | D7: ='Dados Gerais'!#REF! -> 
B11: UNIFORMES - AQUISIÇÃO | K11: 1 | M11: =K11+1 -> 2 | O11: =M11+1 -> 3 | Q11: =O11+1 -> 4 | S11: =Q11+1 -> 5 | U11: =S11+1 -> 6 | W11: =U11+1 -> 7 | Y11: =W11+1 -> 8 | AA11: =Y11+1 -> 9 | AC11: =AA11+1 -> 10 | AE11: =AC11+1 -> 11 | AG11: =AE11+1 -> 12 | AI11: =AG11+1 -> 13 | AK11: =AI11+1 -> 14 | AM11: =AK11+1 -> 15 | AO11: =AM11+1 -> 16 | AQ11: =AO11+1 -> 17 | AS11: =AQ11+1 -> 18 | AU11: =AS11+1 -> 19 | AW11: =AU11+1 -> 20 | AY11: =AW11+1 -> 21 | BA11: =AY11+1 -> 22 | BC11: =BA11+1 -> 23 | BE11: =BC11+1 -> 24 | BG11: =BE11+1 -> 25 | BI11: =BG11+1 -> 26 | BK11: =BI11+1 -> 27 | BM11: =BK11+1 -> 28 | BO11: =BM11+1 -> 29 | BQ11: =BO11+1 -> 30 | BS11: =BQ11+1 -> 31 | BU11: =BS11+1 -> 32 | BW11: =BU11+1 -> 33 | BY11: =BW11+1 -> 34 | CA11: =BY11+1 -> 35 | CC11: =CA11+1 -> 36 | CE11: =CC11+1 -> 37 | CG11: =CE11+1 -> 38 | CI11: =CG11+1 -> 39 | CK11: =CI11+1 -> 40 | CM11: =CK11+1 -> 41 | CO11: =CM11+1 -> 42 | CQ11: =CO11+1 -> 43 | CS11: =CQ11+1 -> 44 | CU11: =CS11+1 -> 45 | CW11: =CU11+1 -> 46 | CY11: =CW11+1 -> 47 | DA11: =CY11+1 -> 48 | DC11: =DA11+1 -> 49 | DE11: =DC11+1 -> 50 | DG11: =DE11+1 -> 51 | DI11: =DG11+1 -> 52 | DK11: =DI11+1 -> 53 | DM11: =DK11+1 -> 54 | DO11: =DM11+1 -> 55 | DQ11: =DO11+1 -> 56 | DS11: =DQ11+1 -> 57 | DU11: =DS11+1 -> 58 | DW11: =DU11+1 -> 59 | DY11: =DW11+1 -> 60
K13: =ROUND(SUM(L12:L37),2) -> 0 | M13: =ROUND(SUM(N12:N37),2) -> 0 | O13: =ROUND(SUM(P12:P37),2) -> 0 | Q13: =ROUND(SUM(R12:R37),2) -> 0 | S13: =ROUND(SUM(T12:T37),2) -> 0 | U13: =ROUND(SUM(V12:V37),2) -> 0 | W13: =ROUND(SUM(X12:X37),2) -> 0 | Y13: =ROUND(SUM(Z12:Z37),2) -> 0 | AA13: =ROUND(SUM(AB12:AB37),2) -> 0 | AC13: =ROUND(SUM(AD12:AD37),2) -> 0 | AE13: =ROUND(SUM(AF12:AF37),2) -> 0 | AG13: =ROUND(SUM(AH12:AH37),2) -> 0 | AI13: =ROUND(SUM(AJ12:AJ37),2) -> 0 | AK13: =ROUND(SUM(AL12:AL37),2) -> 0 | AM13: =ROUND(SUM(AN12:AN37),2) -> 0 | AO13: =ROUND(SUM(AP12:AP37),2) -> 0 | AQ13: =ROUND(SUM(AR12:AR37),2) -> 0 | AS13: =ROUND(SUM(AT12:AT37),2) -> 0 | AU13: =ROUND(SUM(AV12:AV37),2) -> 0 | AW13: =ROUND(SUM(AX12:AX37),2) -> 0 | AY13: =ROUND(SUM(AZ12:AZ37),2) -> 0 | BA13: =ROUND(SUM(BB12:BB37),2) -> 0 | BC13: =ROUND(SUM(BD12:BD37),2) -> 0 | BE13: =ROUND(SUM(BF12:BF37),2) -> 0 | BG13: =ROUND(SUM(BH12:BH37),2) -> 0 | BI13: =ROUND(SUM(BJ12:BJ37),2) -> 0 | BK13: =ROUND(SUM(BL12:BL37),2) -> 0 | BM13: =ROUND(SUM(BN12:BN37),2) -> 0 | BO13: =ROUND(SUM(BP12:BP37),2) -> 0 | BQ13: =ROUND(SUM(BR12:BR37),2) -> 0 | BS13: =ROUND(SUM(BT12:BT37),2) -> 0 | BU13: =ROUND(SUM(BV12:BV37),2) -> 0 | BW13: =ROUND(SUM(BX12:BX37),2) -> 0 | BY13: =ROUND(SUM(BZ12:BZ37),2) -> 0 | CA13: =ROUND(SUM(CB12:CB37),2) -> 0 | CC13: =ROUND(SUM(CD12:CD37),2) -> 0 | CE13: =ROUND(SUM(CF12:CF37),2) -> 0 | CG13: =ROUND(SUM(CH12:CH37),2) -> 0 | CI13: =ROUND(SUM(CJ12:CJ37),2) -> 0 | CK13: =ROUND(SUM(CL12:CL37),2) -> 0 | CM13: =ROUND(SUM(CN12:CN37),2) -> 0 | CO13: =ROUND(SUM(CP12:CP37),2) -> 0 | CQ13: =ROUND(SUM(CR12:CR37),2) -> 0 | CS13: =ROUND(SUM(CT12:CT37),2) -> 0 | CU13: =ROUND(SUM(CV12:CV37),2) -> 0 | CW13: =ROUND(SUM(CX12:CX37),2) -> 0 | CY13: =ROUND(SUM(CZ12:CZ37),2) -> 0 | DA13: =ROUND(SUM(DB12:DB37),2) -> 0 | DC13: =ROUND(SUM(DD12:DD37),2) -> 0 | DE13: =ROUND(SUM(DF12:DF37),2) -> 0 | DG13: =ROUND(SUM(DH12:DH37),2) -> 0 | DI13: =ROUND(SUM(DJ12:DJ37),2) -> 0 | DK13: =ROUND(SUM(DL12:DL37),2) -> 0 | DM13: =ROUND(SUM(DN12:DN37),2) -> 0 | DO13: =ROUND(SUM(DP12:DP37),2) -> 0 | DQ13: =ROUND(SUM(DR12:DR37),2) -> 0 | DS13: =ROUND(SUM(DT12:DT37),2) -> 0 | DU13: =ROUND(SUM(DV12:DV37),2) -> 0 | DW13: =ROUND(SUM(DX12:DX37),2) -> 0 | DY13: =ROUND(SUM(DZ12:DZ37),2) -> 0
C14: CATEGORIAS | H14: QUANTIDADE
D16: =HLOOKUP($C16,'Dados Gerais'!$D$5:$BJ$10,6) ->  | H16: =HLOOKUP($C16,'Dados Gerais'!$D$5:$BJ$14,10) ->  | K16: =IF($C16=K$11,1,0) -> 0 | M16: =IF($C16=M$11,1,0) -> 0 | O16: =IF($C16=O$11,1,0) -> 0 | Q16: =IF($C16=Q$11,1,0) -> 0 | S16: =IF($C16=S$11,1,0) -> 0 | U16: =IF($C16=U$11,1,0) -> 0 | W16: =IF($C16=W$11,1,0) -> 0 | Y16: =IF($C16=Y$11,1,0) -> 0 | AA16: =IF($C16=AA$11,1,0) -> 0 | AC16: =IF($C16=AC$11,1,0) -> 0 | AE16: =IF($C16=AE$11,1,0) -> 0 | AG16: =IF($C16=AG$11,1,0) -> 0 | AI16: =IF($C16=AI$11,1,0) -> 0 | AK16: =IF($C16=AK$11,1,0) -> 0 | AM16: =IF($C16=AM$11,1,0) -> 0 | AO16: =IF($C16=AO$11,1,0) -> 0 | AQ16: =IF($C16=AQ$11,1,0) -> 0 | AS16: =IF($C16=AS$11,1,0) -> 0 | AU16: =IF($C16=AU$11,1,0) -> 0 | AW16: =IF($C16=AW$11,1,0) -> 0 | AY16: =IF($C16=AY$11,1,0) -> 0 | BA16: =IF($C16=BA$11,1,0) -> 0 | BC16: =IF($C16=BC$11,1,0) -> 0 | BE16: =IF($C16=BE$11,1,0) -> 0 | BG16: =IF($C16=BG$11,1,0) -> 0 | BI16: =IF($C16=BI$11,1,0) -> 0 | BK16: =IF($C16=BK$11,1,0) -> 0 | BM16: =IF($C16=BM$11,1,0) -> 0 | BO16: =IF($C16=BO$11,1,0) -> 0 | BQ16: =IF($C16=BQ$11,1,0) -> 0 | BS16: =IF($C16=BS$11,1,0) -> 0 | BU16: =IF($C16=BU$11,1,0) -> 0 | BW16: =IF($C16=BW$11,1,0) -> 0 | BY16: =IF($C16=BY$11,1,0) -> 0 | CA16: =IF($C16=CA$11,1,0) -> 0 | CC16: =IF($C16=CC$11,1,0) -> 0 | CE16: =IF($C16=CE$11,1,0) -> 0 | CG16: =IF($C16=CG$11,1,0) -> 0 | CI16: =IF($C16=CI$11,1,0) -> 0 | CK16: =IF($C16=CK$11,1,0) -> 0 | CM16: =IF($C16=CM$11,1,0) -> 0 | CO16: =IF($C16=CO$11,1,0) -> 0 | CQ16: =IF($C16=CQ$11,1,0) -> 0 | CS16: =IF($C16=CS$11,1,0) -> 0 | CU16: =IF($C16=CU$11,1,0) -> 0 | CW16: =IF($C16=CW$11,1,0) -> 0 | CY16: =IF($C16=CY$11,1,0) -> 0 | DA16: =IF($C16=DA$11,1,0) -> 0 | DC16: =IF($C16=DC$11,1,0) -> 0 | DE16: =IF($C16=DE$11,1,0) -> 0 | DG16: =IF($C16=DG$11,1,0) -> 0 | DI16: =IF($C16=DI$11,1,0) -> 0 | DK16: =IF($C16=DK$11,1,0) -> 0 | DM16: =IF($C16=DM$11,1,0) -> 0 | DO16: =IF($C16=DO$11,1,0) -> 0 | DQ16: =IF($C16=DQ$11,1,0) -> 0 | DS16: =IF($C16=DS$11,1,0) -> 0 | DU16: =IF($C16=DU$11,1,0) -> 0 | DW16: =IF($C16=DW$11,1,0) -> 0 | DY16: =IF($C16=DY$11,1,0) -> 0
D17: =HLOOKUP($C17,'Dados Gerais'!$D$5:$BJ$10,6) ->  | H17: =HLOOKUP($C17,'Dados Gerais'!$D$5:$BJ$14,10) ->  | K17: =IF($C17=K$11,1,0) -> 0 | M17: 0 | O17: 0 | Q17: 0 | S17: 0 | U17: 0 | W17: 0 | Y17: 0 | AA17: 0 | AC17: 0 | AE17: 0 | AG17: 0 | AI17: 0 | AK17: 0 | AM17: 0 | AO17: 0 | AQ17: 0 | AS17: 0 | AU17: 0 | AW17: 0 | AY17: 0 | BA17: 0 | BC17: 0 | BE17: 0 | BG17: 0 | BI17: 0 | BK17: 0 | BM17: 0 | BO17: 0 | BQ17: 0 | BS17: 0 | BU17: 0 | BW17: 0 | BY17: 0 | CA17: 0 | CC17: 0 | CE17: 0 | CG17: 0 | CI17: 0 | CK17: 0 | CM17: 0 | CO17: 0 | CQ17: 0 | CS17: 0 | CU17: 0 | CW17: 0 | CY17: 0 | DA17: 0 | DC17: 0 | DE17: 0 | DG17: 0 | DI17: 0 | DK17: 0 | DM17: 0 | DO17: 0 | DQ17: 0 | DS17: 0 | DU17: 0 | DW17: 0 | DY17: 0
C20: ITEM | D20: DESCRIÇÃO | E20: QUANT ANUAL POR POSTO | F20: Nº DE POSTOS | G20: QUANT ANUAL TOTAL | H20: VALOR
AV21: =IF(SUM(AU$15:AU$18)>0,$E21*$H21,0) -> 0 | AX21: =IF(SUM(AW$15:AW$18)>0,$E21*$H21,0) -> 0 | AZ21: =IF(SUM(AY$15:AY$18)>0,$E21*$H21,0) -> 0 | BB21: =IF(SUM(BA$15:BA$18)>0,$E21*$H21,0) -> 0 | BD21: =IF(SUM(BC$15:BC$18)>0,$E21*$H21,0) -> 0 | BF21: =IF(SUM(BE$15:BE$18)>0,$E21*$H21,0) -> 0 | BH21: =IF(SUM(BG$15:BG$18)>0,$E21*$H21,0) -> 0 | BJ21: =IF(SUM(BI$15:BI$18)>0,$E21*$H21,0) -> 0 | BL21: =IF(SUM(BK$15:BK$18)>0,$E21*$H21,0) -> 0 | BN21: =IF(SUM(BM$15:BM$18)>0,$E21*$H21,0) -> 0 | BP21: =IF(SUM(BO$15:BO$18)>0,$E21*$H21,0) -> 0 | BR21: =IF(SUM(BQ$15:BQ$18)>0,$E21*$H21,0) -> 0 | BT21: =IF(SUM(BS$15:BS$18)>0,$E21*$H21,0) -> 0 | BV21: =IF(SUM(BU$15:BU$18)>0,$E21*$H21,0) -> 0 | BX21: =IF(SUM(BW$15:BW$18)>0,$E21*$H21,0) -> 0 | BZ21: =IF(SUM(BY$15:BY$18)>0,$E21*$H21,0) -> 0 | CB21: =IF(SUM(CA$15:CA$18)>0,$E21*$H21,0) -> 0 | CD21: =IF(SUM(CC$15:CC$18)>0,$E21*$H21,0) -> 0 | CF21: =IF(SUM(CE$15:CE$18)>0,$E21*$H21,0) -> 0 | CH21: =IF(SUM(CG$15:CG$18)>0,$E21*$H21,0) -> 0 | CJ21: =IF(SUM(CI$15:CI$18)>0,$E21*$H21,0) -> 0 | CL21: =IF(SUM(CK$15:CK$18)>0,$E21*$H21,0) -> 0 | CN21: =IF(SUM(CM$15:CM$18)>0,$E21*$H21,0) -> 0 | CP21: =IF(SUM(CO$15:CO$18)>0,$E21*$H21,0) -> 0 | CR21: =IF(SUM(CQ$15:CQ$18)>0,$E21*$H21,0) -> 0 | CT21: =IF(SUM(CS$15:CS$18)>0,$E21*$H21,0) -> 0 | CV21: =IF(SUM(CU$15:CU$18)>0,$E21*$H21,0) -> 0 | CX21: =IF(SUM(CW$15:CW$18)>0,$E21*$H21,0) -> 0 | CZ21: =IF(SUM(CY$15:CY$18)>0,$E21*$H21,0) -> 0 | DB21: =IF(SUM(DA$15:DA$18)>0,$E21*$H21,0) -> 0 | DD21: =IF(SUM(DC$15:DC$18)>0,$E21*$H21,0) -> 0 | DF21: =IF(SUM(DE$15:DE$18)>0,$E21*$H21,0) -> 0 | DH21: =IF(SUM(DG$15:DG$18)>0,$E21*$H21,0) -> 0 | DJ21: =IF(SUM(DI$15:DI$18)>0,$E21*$H21,0) -> 0 | DL21: =IF(SUM(DK$15:DK$18)>0,$E21*$H21,0) -> 0 | DN21: =IF(SUM(DM$15:DM$18)>0,$E21*$H21,0) -> 0 | DP21: =IF(SUM(DO$15:DO$18)>0,$E21*$H21,0) -> 0 | DR21: =IF(SUM(DQ$15:DQ$18)>0,$E21*$H21,0) -> 0 | DT21: =IF(SUM(DS$15:DS$18)>0,$E21*$H21,0) -> 0 | DV21: =IF(SUM(DU$15:DU$18)>0,$E21*$H21,0) -> 0 | DX21: =IF(SUM(DW$15:DW$18)>0,$E21*$H21,0) -> 0 | DZ21: =IF(SUM(DY$15:DY$18)>0,$E21*$H21,0) -> 0
D22: Terno completo na cor azul noite, em microfibra | E22: 4 | F22: =SUM(H16:H17) ->  | G22: =F22*E22 ->  | H22: 179.2 | L22: =IF(SUM(K$15:K$18)>0,$E22*$H22,0) -> 0 | N22: =IF(SUM(M$15:M$18)>0,$E22*$H22,0) -> 0 | P22: =IF(SUM(O$15:O$18)>0,$E22*$H22,0) -> 0 | R22: =IF(SUM(Q$15:Q$18)>0,$E22*$H22,0) -> 0 | T22: =IF(SUM(S$15:S$18)>0,$E22*$H22,0) -> 0 | V22: =IF(SUM(U$15:U$18)>0,$E22*$H22,0) -> 0 | X22: =IF(SUM(W$15:W$18)>0,$E22*$H22,0) -> 0 | Z22: =IF(SUM(Y$15:Y$18)>0,$E22*$H22,0) -> 0 | AB22: =IF(SUM(AA$15:AA$18)>0,$E22*$H22,0) -> 0 | AD22: =IF(SUM(AC$15:AC$18)>0,$E22*$H22,0) -> 0 | AF22: =IF(SUM(AE$15:AE$18)>0,$E22*$H22,0) -> 0 | AH22: =IF(SUM(AG$15:AG$18)>0,$E22*$H22,0) -> 0 | AJ22: =IF(SUM(AI$15:AI$18)>0,$E22*$H22,0) -> 0 | AL22: =IF(SUM(AK$15:AK$18)>0,$E22*$H22,0) -> 0 | AN22: =IF(SUM(AM$15:AM$18)>0,$E22*$H22,0) -> 0 | AP22: =IF(SUM(AO$15:AO$18)>0,$E22*$H22,0) -> 0 | AR22: =IF(SUM(AQ$15:AQ$18)>0,$E22*$H22,0) -> 0 | AT22: =IF(SUM(AS$15:AS$18)>0,$E22*$H22,0) -> 0 | AV22: 0 | AX22: 0 | AZ22: 0 | BB22: 0 | BD22: 0 | BF22: 0 | BH22: 0 | BJ22: 0 | BL22: 0 | BN22: 0 | BP22: 0 | BR22: 0 | BT22: 0 | BV22: 0 | BX22: 0 | BZ22: 0 | CB22: 0 | CD22: 0 | CF22: 0 | CH22: 0 | CJ22: 0 | CL22: 0 | CN22: 0 | CP22: 0 | CR22: 0 | CT22: 0 | CV22: 0 | CX22: 0 | CZ22: 0 | DB22: 0 | DD22: 0 | DF22: 0 | DH22: 0 | DJ22: 0 | DL22: 0 | DN22: 0 | DP22: 0 | DR22: 0 | DT22: 0 | DV22: 0 | DX22: 0 | DZ22: 0
D23: Camisa na cor branca, 100% algodão | E23: 4 | F23: =F22 ->  | G23: =F23*E23 ->  | H23: 43.25 | L23: 0 | N23: 0 | P23: 0 | R23: 0 | T23: 0 | V23: 0 | X23: 0 | Z23: 0 | AB23: 0 | AD23: 0 | AF23: 0 | AH23: 0 | AJ23: 0 | AL23: 0 | AN23: 0 | AP23: 0 | AR23: 0 | AT23: 0 | AV23: 0 | AX23: 0 | AZ23: 0 | BB23: 0 | BD23: 0 | BF23: 0 | BH23: 0 | BJ23: 0 | BL23: 0 | BN23: 0 | BP23: 0 | BR23: 0 | BT23: 0 | BV23: 0 | BX23: 0 | BZ23: 0 | CB23: 0 | CD23: 0 | CF23: 0 | CH23: 0 | CJ23: 0 | CL23: 0 | CN23: 0 | CP23: 0 | CR23: 0 | CT23: 0 | CV23: 0 | CX23: 0 | CZ23: 0 | DB23: 0 | DD23: 0 | DF23: 0 | DH23: 0 | DJ23: 0 | DL23: 0 | DN23: 0 | DP23: 0 | DR23: 0 | DT23: 0 | DV23: 0 | DX23: 0 | DZ23: 0
D24: Gravata preta | E24: 4 | F24: =F23 ->  | H24: 17.2 | L24: 0 | N24: 0 | P24: 0 | R24: 0 | T24: 0 | V24: 0 | X24: 0 | Z24: 0 | AB24: 0 | AD24: 0 | AF24: 0 | AH24: 0 | AJ24: 0 | AL24: 0 | AN24: 0 | AP24: 0 | AR24: 0 | AT24: 0 | AV24: 0 | AX24: 0 | AZ24: 0 | BB24: 0 | BD24: 0 | BF24: 0 | BH24: 0 | BJ24: 0 | BL24: 0 | BN24: 0 | BP24: 0 | BR24: 0 | BT24: 0 | BV24: 0 | BX24: 0 | BZ24: 0 | CB24: 0 | CD24: 0 | CF24: 0 | CH24: 0 | CJ24: 0 | CL24: 0 | CN24: 0 | CP24: 0 | CR24: 0 | CT24: 0 | CV24: 0 | CX24: 0 | CZ24: 0 | DB24: 0 | DD24: 0 | DF24: 0 | DH24: 0 | DJ24: 0 | DL24: 0 | DN24: 0 | DP24: 0 | DR24: 0 | DT24: 0 | DV24: 0 | DX24: 0 | DZ24: 0
D25: Cinto de couro preto | E25: 4 | H25: 30.6 | L25: 0 | N25: 0 | P25: 0 | R25: 0 | T25: 0 | V25: 0 | X25: 0 | Z25: 0 | AB25: 0 | AD25: 0 | AF25: 0 | AH25: 0 | AJ25: 0 | AL25: 0 | AN25: 0 | AP25: 0 | AR25: 0 | AT25: 0 | AV25: 0 | AX25: 0 | AZ25: 0 | BB25: 0 | BD25: 0 | BF25: 0 | BH25: 0 | BJ25: 0 | BL25: 0 | BN25: 0 | BP25: 0 | BR25: 0 | BT25: 0 | BV25: 0 | BX25: 0 | BZ25: 0 | CB25: 0 | CD25: 0 | CF25: 0 | CH25: 0 | CJ25: 0 | CL25: 0 | CN25: 0 | CP25: 0 | CR25: 0 | CT25: 0 | CV25: 0 | CX25: 0 | CZ25: 0 | DB25: 0 | DD25: 0 | DF25: 0 | DH25: 0 | DJ25: 0 | DL25: 0 | DN25: 0 | DP25: 0 | DR25: 0 | DT25: 0 | DV25: 0 | DX25: 0 | DZ25: 0
D26: Sapato social | E26: 4 | G26: =F26*E26 ->  | H26: 72.95 | L26: 0 | N26: 0 | P26: 0 | R26: 0 | T26: 0 | V26: 0 | X26: 0 | Z26: 0 | AB26: 0 | AD26: 0 | AF26: 0 | AH26: 0 | AJ26: 0 | AL26: 0 | AN26: 0 | AP26: 0 | AR26: 0 | AT26: 0 | AV26: =IF(SUM(AU$15:AU$18)>0,$E26*$H26,0) -> 0 | AX26: =IF(SUM(AW$15:AW$18)>0,$E26*$H26,0) -> 0 | AZ26: =IF(SUM(AY$15:AY$18)>0,$E26*$H26,0) -> 0 | BB26: =IF(SUM(BA$15:BA$18)>0,$E26*$H26,0) -> 0 | BD26: =IF(SUM(BC$15:BC$18)>0,$E26*$H26,0) -> 0 | BF26: =IF(SUM(BE$15:BE$18)>0,$E26*$H26,0) -> 0 | BH26: =IF(SUM(BG$15:BG$18)>0,$E26*$H26,0) -> 0 | BJ26: =IF(SUM(BI$15:BI$18)>0,$E26*$H26,0) -> 0 | BL26: =IF(SUM(BK$15:BK$18)>0,$E26*$H26,0) -> 0 | BN26: =IF(SUM(BM$15:BM$18)>0,$E26*$H26,0) -> 0 | BP26: =IF(SUM(BO$15:BO$18)>0,$E26*$H26,0) -> 0 | BR26: =IF(SUM(BQ$15:BQ$18)>0,$E26*$H26,0) -> 0 | BT26: =IF(SUM(BS$15:BS$18)>0,$E26*$H26,0) -> 0 | BV26: =IF(SUM(BU$15:BU$18)>0,$E26*$H26,0) -> 0 | BX26: =IF(SUM(BW$15:BW$18)>0,$E26*$H26,0) -> 0 | BZ26: =IF(SUM(BY$15:BY$18)>0,$E26*$H26,0) -> 0 | CB26: =IF(SUM(CA$15:CA$18)>0,$E26*$H26,0) -> 0 | CD26: =IF(SUM(CC$15:CC$18)>0,$E26*$H26,0) -> 0 | CF26: =IF(SUM(CE$15:CE$18)>0,$E26*$H26,0) -> 0 | CH26: =IF(SUM(CG$15:CG$18)>0,$E26*$H26,0) -> 0 | CJ26: =IF(SUM(CI$15:CI$18)>0,$E26*$H26,0) -> 0 | CL26: =IF(SUM(CK$15:CK$18)>0,$E26*$H26,0) -> 0 | CN26: =IF(SUM(CM$15:CM$18)>0,$E26*$H26,0) -> 0 | CP26: =IF(SUM(CO$15:CO$18)>0,$E26*$H26,0) -> 0 | CR26: =IF(SUM(CQ$15:CQ$18)>0,$E26*$H26,0) -> 0 | CT26: =IF(SUM(CS$15:CS$18)>0,$E26*$H26,0) -> 0 | CV26: =IF(SUM(CU$15:CU$18)>0,$E26*$H26,0) -> 0 | CX26: =IF(SUM(CW$15:CW$18)>0,$E26*$H26,0) -> 0 | CZ26: =IF(SUM(CY$15:CY$18)>0,$E26*$H26,0) -> 0 | DB26: =IF(SUM(DA$15:DA$18)>0,$E26*$H26,0) -> 0 | DD26: =IF(SUM(DC$15:DC$18)>0,$E26*$H26,0) -> 0 | DF26: =IF(SUM(DE$15:DE$18)>0,$E26*$H26,0) -> 0 | DH26: =IF(SUM(DG$15:DG$18)>0,$E26*$H26,0) -> 0 | DJ26: =IF(SUM(DI$15:DI$18)>0,$E26*$H26,0) -> 0 | DL26: =IF(SUM(DK$15:DK$18)>0,$E26*$H26,0) -> 0 | DN26: =IF(SUM(DM$15:DM$18)>0,$E26*$H26,0) -> 0 | DP26: =IF(SUM(DO$15:DO$18)>0,$E26*$H26,0) -> 0 | DR26: =IF(SUM(DQ$15:DQ$18)>0,$E26*$H26,0) -> 0 | DT26: =IF(SUM(DS$15:DS$18)>0,$E26*$H26,0) -> 0 | DV26: =IF(SUM(DU$15:DU$18)>0,$E26*$H26,0) -> 0 | DX26: =IF(SUM(DW$15:DW$18)>0,$E26*$H26,0) -> 0 | DZ26: =IF(SUM(DY$15:DY$18)>0,$E26*$H26,0) -> 0
D27: Meia preta | E27: 4 | F27: =F25 ->  | H27: 7.38 | L27: 0 | N27: 0 | P27: 0 | R27: 0 | T27: 0 | V27: 0 | X27: 0 | Z27: 0 | AB27: 0 | AD27: 0 | AF27: 0 | AH27: 0 | AJ27: 0 | AL27: 0 | AN27: 0 | AP27: 0 | AR27: 0 | AT27: 0 | AV27: 0 | AX27: 0 | AZ27: 0 | BB27: 0 | BD27: 0 | BF27: 0 | BH27: 0 | BJ27: 0 | BL27: 0 | BN27: 0 | BP27: 0 | BR27: 0 | BT27: 0 | BV27: 0 | BX27: 0 | BZ27: 0 | CB27: 0 | CD27: 0 | CF27: 0 | CH27: 0 | CJ27: 0 | CL27: 0 | CN27: 0 | CP27: 0 | CR27: 0 | CT27: 0 | CV27: 0 | CX27: 0 | CZ27: 0 | DB27: 0 | DD27: 0 | DF27: 0 | DH27: 0 | DJ27: 0 | DL27: 0 | DN27: 0 | DP27: 0 | DR27: 0 | DT27: 0 | DV27: 0 | DX27: 0 | DZ27: 0
AV28: 0 | AX28: 0 | AZ28: 0 | BB28: 0 | BD28: 0 | BF28: 0 | BH28: 0 | BJ28: 0 | BL28: 0 | BN28: 0 | BP28: 0 | BR28: 0 | BT28: 0 | BV28: 0 | BX28: 0 | BZ28: 0 | CB28: 0 | CD28: 0 | CF28: 0 | CH28: 0 | CJ28: 0 | CL28: 0 | CN28: 0 | CP28: 0 | CR28: 0 | CT28: 0 | CV28: 0 | CX28: 0 | CZ28: 0 | DB28: 0 | DD28: 0 | DF28: 0 | DH28: 0 | DJ28: 0 | DL28: 0 | DN28: 0 | DP28: 0 | DR28: 0 | DT28: 0 | DV28: 0 | DX28: 0 | DZ28: 0

Sheet EPI (hidden)
C1: CÂMARA DOS DEPUTADOS
C2: DEPARTAMENTO TÉCNICO
C3: Coordenação de Planejamento e Gestão
C5: Data: | D5: ='Dados Gerais'!#REF! -> 
C6: Processo: | D6: ='Dados Gerais'!#REF! -> 
C7: Objeto: | D7: ='Dados Gerais'!#REF! -> 
B11: EQUIPAMENTOS DE PROTEÇÃO INDIVIDUAL - AQUISIÇÃO | I11: 1 | K11: =I11+1 -> 2 | M11: =K11+1 -> 3 | O11: =M11+1 -> 4 | Q11: =O11+1 -> 5 | S11: =Q11+1 -> 6 | U11: =S11+1 -> 7 | W11: =U11+1 -> 8 | Y11: =W11+1 -> 9 | AA11: =Y11+1 -> 10 | AC11: =AA11+1 -> 11 | AE11: =AC11+1 -> 12 | AG11: =AE11+1 -> 13 | AI11: =AG11+1 -> 14 | AK11: =AI11+1 -> 15 | AM11: =AK11+1 -> 16 | AO11: =AM11+1 -> 17 | AQ11: =AO11+1 -> 18 | AS11: =AQ11+1 -> 19 | AU11: =AS11+1 -> 20 | AW11: =AU11+1 -> 21 | AY11: =AW11+1 -> 22 | BA11: =AY11+1 -> 23 | BC11: =BA11+1 -> 24 | BE11: =BC11+1 -> 25 | BG11: =BE11+1 -> 26 | BI11: =BG11+1 -> 27 | BK11: =BI11+1 -> 28 | BM11: =BK11+1 -> 29 | BO11: =BM11+1 -> 30 | BQ11: =BO11+1 -> 31 | BS11: =BQ11+1 -> 32 | BU11: =BS11+1 -> 33 | BW11: =BU11+1 -> 34 | BY11: =BW11+1 -> 35 | CA11: =BY11+1 -> 36 | CC11: =CA11+1 -> 37 | CE11: =CC11+1 -> 38 | CG11: =CE11+1 -> 39 | CI11: =CG11+1 -> 40 | CK11: =CI11+1 -> 41 | CM11: =CK11+1 -> 42 | CO11: =CM11+1 -> 43 | CQ11: =CO11+1 -> 44 | CS11: =CQ11+1 -> 45 | CU11: =CS11+1 -> 46 | CW11: =CU11+1 -> 47 | CY11: =CW11+1 -> 48 | DA11: =CY11+1 -> 49 | DC11: =DA11+1 -> 50 | DE11: =DC11+1 -> 51 | DG11: =DE11+1 -> 52 | DI11: =DG11+1 -> 53 | DK11: =DI11+1 -> 54 | DM11: =DK11+1 -> 55 | DO11: =DM11+1 -> 56 | DQ11: =DO11+1 -> 57 | DS11: =DQ11+1 -> 58 | DU11: =DS11+1 -> 59 | DW11: =DU11+1 -> 60
AK13: =ROUND(SUM(AL12:AL239),2) -> 13 | AM13: =ROUND(SUM(AN12:AN239),2) -> 13 | AO13: =ROUND(SUM(AP12:AP239),2) -> 13 | AQ13: =ROUND(SUM(AR12:AR239),2) -> 13 | AS13: =ROUND(SUM(AT12:AT239),2) -> 13 | AU13: =ROUND(SUM(AV12:AV239),2) -> 13 | AW13: =ROUND(SUM(AX12:AX239),2) -> 13 | AY13: =ROUND(SUM(AZ12:AZ239),2) -> 13 | BA13: =ROUND(SUM(BB12:BB239),2) -> 13 | BC13: =ROUND(SUM(BD12:BD239),2) -> 13 | BE13: =ROUND(SUM(BF12:BF239),2) -> 13 | BG13: =ROUND(SUM(BH12:BH239),2) -> 13 | BI13: =ROUND(SUM(BJ12:BJ239),2) -> 13 | BK13: =ROUND(SUM(BL12:BL239),2) -> 13 | BM13: =ROUND(SUM(BN12:BN239),2) -> 13 | BO13: =ROUND(SUM(BP12:BP239),2) -> 13 | BQ13: =ROUND(SUM(BR12:BR239),2) -> 13 | BS13: =ROUND(SUM(BT12:BT239),2) -> 13 | BU13: =ROUND(SUM(BV12:BV239),2) -> 13 | BW13: =ROUND(SUM(BX12:BX239),2) -> 13 | BY13: =ROUND(SUM(BZ12:BZ239),2) -> 13 | CA13: =ROUND(SUM(CB12:CB239),2) -> 13 | CC13: =ROUND(SUM(CD12:CD239),2) -> 13 | CE13: =ROUND(SUM(CF12:CF239),2) -> 13 | CG13: =ROUND(SUM(CH12:CH239),2) -> 13 | CI13: =ROUND(SUM(CJ12:CJ239),2) -> 13 | CK13: =ROUND(SUM(CL12:CL239),2) -> 13 | CM13: =ROUND(SUM(CN12:CN239),2) -> 13 | CO13: =ROUND(SUM(CP12:CP239),2) -> 13 | CQ13: =ROUND(SUM(CR12:CR239),2) -> 13 | CS13: =ROUND(SUM(CT12:CT239),2) -> 13 | CU13: =ROUND(SUM(CV12:CV239),2) -> 13 | CW13: =ROUND(SUM(CX12:CX239),2) -> 13 | CY13: =ROUND(SUM(CZ12:CZ239),2) -> 13 | DA13: =ROUND(SUM(DB12:DB239),2) -> 13 | DC13: =ROUND(SUM(DD12:DD239),2) -> 13 | DE13: =ROUND(SUM(DF12:DF239),2) -> 13 | DG13: =ROUND(SUM(DH12:DH239),2) -> 13 | DI13: =ROUND(SUM(DJ12:DJ239),2) -> 13 | DK13: =ROUND(SUM(DL12:DL239),2) -> 13 | DM13: =ROUND(SUM(DN12:DN239),2) -> 13 | DO13: =ROUND(SUM(DP12:DP239),2) -> 13 | DQ13: =ROUND(SUM(DR12:DR239),2) -> 13 | DS13: =ROUND(SUM(DT12:DT239),2) -> 13 | DU13: =ROUND(SUM(DV12:DV239),2) -> 13 | DW13: =ROUND(SUM(DX12:DX239),2) -> 13
C14: CATEGORIAS | F14: QUANTIDADE
I15: =IF($C15=I$11,1,0) -> 0 | K15: =IF($C15=K$11,1,0) -> 0 | M15: =IF($C15=M$11,1,0) -> 0 | O15: =IF($C15=O$11,1,0) -> 0 | Q15: =IF($C15=Q$11,1,0) -> 0 | S15: =IF($C15=S$11,1,0) -> 0 | U15: =IF($C15=U$11,1,0) -> 0 | W15: =IF($C15=W$11,1,0) -> 0 | Y15: =IF($C15=Y$11,1,0) -> 0 | AA15: =IF($C15=AA$11,1,0) -> 0 | AC15: =IF($C15=AC$11,1,0) -> 0 | AE15: =IF($C15=AE$11,1,0) -> 0 | AG15: =IF($C15=AG$11,1,0) -> 0 | AI15: =IF($C15=AI$11,1,0) -> 0 | AK15: =IF($C15=AK$11,1,0) -> 0 | AM15: =IF($C15=AM$11,1,0) -> 0 | AO15: =IF($C15=AO$11,1,0) -> 0 | AQ15: =IF($C15=AQ$11,1,0) -> 0 | AS15: =IF($C15=AS$11,1,0) -> 0
I16: =IF($C16=I$11,1,0) -> 0 | K16: 0 | M16: 0 | O16: 0 | Q16: 0 | S16: 0 | U16: 0 | W16: 0 | Y16: 0 | AA16: 0 | AC16: 0 | AE16: =IF($C16=AE$11,1,0) -> 0 | AG16: 0 | AI16: 0 | AK16: 0 | AM16: 0 | AO16: 0 | AQ16: 0 | AS16: 0 | AU16: =IF($C16=AU$11,1,0) -> 0 | AW16: =IF($C16=AW$11,1,0) -> 0 | AY16: =IF($C16=AY$11,1,0) -> 0 | BA16: =IF($C16=BA$11,1,0) -> 0 | BC16: =IF($C16=BC$11,1,0) -> 0 | BE16: =IF($C16=BE$11,1,0) -> 0 | BG16: =IF($C16=BG$11,1,0) -> 0 | BI16: =IF($C16=BI$11,1,0) -> 0 | BK16: =IF($C16=BK$11,1,0) -> 0 | BM16: =IF($C16=BM$11,1,0) -> 0 | BO16: =IF($C16=BO$11,1,0) -> 0 | BQ16: =IF($C16=BQ$11,1,0) -> 0 | BS16: =IF($C16=BS$11,1,0) -> 0 | BU16: =IF($C16=BU$11,1,0) -> 0 | BW16: =IF($C16=BW$11,1,0) -> 0 | BY16: =IF($C16=BY$11,1,0) -> 0 | CA16: =IF($C16=CA$11,1,0) -> 0 | CC16: =IF($C16=CC$11,1,0) -> 0 | CE16: =IF($C16=CE$11,1,0) -> 0 | CG16: =IF($C16=CG$11,1,0) -> 0 | CI16: =IF($C16=CI$11,1,0) -> 0 | CK16: =IF($C16=CK$11,1,0) -> 0 | CM16: =IF($C16=CM$11,1,0) -> 0 | CO16: =IF($C16=CO$11,1,0) -> 0 | CQ16: =IF($C16=CQ$11,1,0) -> 0 | CS16: =IF($C16=CS$11,1,0) -> 0 | CU16: =IF($C16=CU$11,1,0) -> 0 | CW16: =IF($C16=CW$11,1,0) -> 0 | CY16: =IF($C16=CY$11,1,0) -> 0 | DA16: =IF($C16=DA$11,1,0) -> 0 | DC16: =IF($C16=DC$11,1,0) -> 0 | DE16: =IF($C16=DE$11,1,0) -> 0 | DG16: =IF($C16=DG$11,1,0) -> 0 | DI16: =IF($C16=DI$11,1,0) -> 0 | DK16: =IF($C16=DK$11,1,0) -> 0 | DM16: =IF($C16=DM$11,1,0) -> 0 | DO16: =IF($C16=DO$11,1,0) -> 0 | DQ16: =IF($C16=DQ$11,1,0) -> 0 | DS16: =IF($C16=DS$11,1,0) -> 0 | DU16: =IF($C16=DU$11,1,0) -> 0 | DW16: =IF($C16=DW$11,1,0) -> 0
I17: =IF($C17=I$11,1,0) -> 0 | K17: 0 | M17: 0 | O17: 0 | Q17: 0 | S17: 0 | U17: 0 | W17: 0 | Y17: 0 | AA17: 0 | AC17: 0 | AE17: =IF($C17=AE$11,1,0) -> 0 | AG17: 0 | AI17: 0 | AK17: 0 | AM17: 0 | AO17: 0 | AQ17: 0 | AS17: 0
C19: ITEM | D19: DESCRIÇÃO | E19: QUANT ANUAL POR POSTO | F19: VALOR
J20: =IF(SUM(I$25:I$27)>0,$E20*$F20,0) -> 0 | L20: =IF(SUM(K$25:K$27)>0,$E20*$F20,0) -> 0 | N20: =IF(SUM(M$25:M$27)>0,$E20*$F20,0) -> 0 | P20: =IF(SUM(O$25:O$27)>0,$E20*$F20,0) -> 0 | R20: =IF(SUM(Q$25:Q$27)>0,$E20*$F20,0) -> 0 | T20: =IF(SUM(S$25:S$27)>0,$E20*$F20,0) -> 0 | V20: =IF(SUM(U$25:U$27)>0,$E20*$F20,0) -> 0 | X20: =IF(SUM(W$25:W$27)>0,$E20*$F20,0) -> 0 | Z20: =IF(SUM(Y$25:Y$27)>0,$E20*$F20,0) -> 0 | AB20: =IF(SUM(AA$25:AA$27)>0,$E20*$F20,0) -> 0 | AD20: =IF(SUM(AC$25:AC$27)>0,$E20*$F20,0) -> 0 | AF20: =IF(SUM(AE$25:AE$27)>0,$E20*$F20,0) -> 0 | AH20: =IF(SUM(AG$25:AG$27)>0,$E20*$F20,0) -> 0 | AJ20: =IF(SUM(AI$25:AI$27)>0,$E20*$F20,0) -> 0 | AL20: =IF(SUM(AK$25:AK$27)>0,$E20*$F20,0) -> 0 | AN20: =IF(SUM(AM$25:AM$27)>0,$E20*$F20,0) -> 0 | AP20: =IF(SUM(AO$25:AO$27)>0,$E20*$F20,0) -> 0 | AR20: =IF(SUM(AQ$25:AQ$27)>0,$E20*$F20,0) -> 0 | AT20: =IF(SUM(AS$25:AS$27)>0,$E20*$F20,0) -> 0 | AV20: =IF(SUM(AU$25:AU$27)>0,$E20*$F20,0) -> 0 | AX20: =IF(SUM(AW$25:AW$27)>0,$E20*$F20,0) -> 0 | AZ20: =IF(SUM(AY$25:AY$27)>0,$E20*$F20,0) -> 0 | BB20: =IF(SUM(BA$25:BA$27)>0,$E20*$F20,0) -> 0 | BD20: =IF(SUM(BC$25:BC$27)>0,$E20*$F20,0) -> 0 | BF20: =IF(SUM(BE$25:BE$27)>0,$E20*$F20,0) -> 0 | BH20: =IF(SUM(BG$25:BG$27)>0,$E20*$F20,0) -> 0 | BJ20: =IF(SUM(BI$25:BI$27)>0,$E20*$F20,0) -> 0 | BL20: =IF(SUM(BK$25:BK$27)>0,$E20*$F20,0) -> 0 | BN20: =IF(SUM(BM$25:BM$27)>0,$E20*$F20,0) -> 0 | BP20: =IF(SUM(BO$25:BO$27)>0,$E20*$F20,0) -> 0 | BR20: =IF(SUM(BQ$25:BQ$27)>0,$E20*$F20,0) -> 0 | BT20: =IF(SUM(BS$25:BS$27)>0,$E20*$F20,0) -> 0 | BV20: =IF(SUM(BU$25:BU$27)>0,$E20*$F20,0) -> 0 | BX20: =IF(SUM(BW$25:BW$27)>0,$E20*$F20,0) -> 0 | BZ20: =IF(SUM(BY$25:BY$27)>0,$E20*$F20,0) -> 0 | CB20: =IF(SUM(CA$25:CA$27)>0,$E20*$F20,0) -> 0 | CD20: =IF(SUM(CC$25:CC$27)>0,$E20*$F20,0) -> 0 | CF20: =IF(SUM(CE$25:CE$27)>0,$E20*$F20,0) -> 0 | CH20: =IF(SUM(CG$25:CG$27)>0,$E20*$F20,0) -> 0 | CJ20: =IF(SUM(CI$25:CI$27)>0,$E20*$F20,0) -> 0 | CL20: =IF(SUM(CK$25:CK$27)>0,$E20*$F20,0) -> 0 | CN20: =IF(SUM(CM$25:CM$27)>0,$E20*$F20,0) -> 0 | CP20: =IF(SUM(CO$25:CO$27)>0,$E20*$F20,0) -> 0 | CR20: =IF(SUM(CQ$25:CQ$27)>0,$E20*$F20,0) -> 0 | CT20: =IF(SUM(CS$25:CS$27)>0,$E20*$F20,0) -> 0 | CV20: =IF(SUM(CU$25:CU$27)>0,$E20*$F20,0) -> 0 | CX20: =IF(SUM(CW$25:CW$27)>0,$E20*$F20,0) -> 0 | CZ20: =IF(SUM(CY$25:CY$27)>0,$E20*$F20,0) -> 0 | DB20: =IF(SUM(DA$25:DA$27)>0,$E20*$F20,0) -> 0 | DD20: =IF(SUM(DC$25:DC$27)>0,$E20*$F20,0) -> 0 | DF20: =IF(SUM(DE$25:DE$27)>0,$E20*$F20,0) -> 0 | DH20: =IF(SUM(DG$25:DG$27)>0,$E20*$F20,0) -> 0 | DJ20: =IF(SUM(DI$25:DI$27)>0,$E20*$F20,0) -> 0 | DL20: =IF(SUM(DK$25:DK$27)>0,$E20*$F20,0) -> 0 | DN20: =IF(SUM(DM$25:DM$27)>0,$E20*$F20,0) -> 0 | DP20: =IF(SUM(DO$25:DO$27)>0,$E20*$F20,0) -> 0 | DR20: =IF(SUM(DQ$25:DQ$27)>0,$E20*$F20,0) -> 0 | DT20: =IF(SUM(DS$25:DS$27)>0,$E20*$F20,0) -> 0 | DV20: =IF(SUM(DU$25:DU$27)>0,$E20*$F20,0) -> 0 | DX20: =IF(SUM(DW$25:DW$27)>0,$E20*$F20,0) -> 0
J21: =IF(SUM(I$15:I$17)>0,$E21*$F21,0) -> 0 | L21: =IF(SUM(K$15:K$17)>0,$E21*$F21,0) -> 0 | N21: =IF(SUM(M$15:M$17)>0,$E21*$F21,0) -> 0 | P21: =IF(SUM(O$15:O$17)>0,$E21*$F21,0) -> 0 | R21: =IF(SUM(Q$15:Q$17)>0,$E21*$F21,0) -> 0 | T21: =IF(SUM(S$15:S$17)>0,$E21*$F21,0) -> 0 | V21: =IF(SUM(U$15:U$17)>0,$E21*$F21,0) -> 0 | X21: =IF(SUM(W$15:W$17)>0,$E21*$F21,0) -> 0 | Z21: =IF(SUM(Y$15:Y$17)>0,$E21*$F21,0) -> 0 | AB21: =IF(SUM(AA$15:AA$17)>0,$E21*$F21,0) -> 0 | AD21: =IF(SUM(AC$15:AC$17)>0,$E21*$F21,0) -> 0 | AF21: =IF(SUM(AE$15:AE$17)>0,$E21*$F21,0) -> 0 | AH21: =IF(SUM(AG$15:AG$17)>0,$E21*$F21,0) -> 0 | AJ21: =IF(SUM(AI$15:AI$17)>0,$E21*$F21,0) -> 0 | AL21: =IF(SUM(AK$15:AK$17)>0,$E21*$F21,0) -> 0 | AN21: =IF(SUM(AM$15:AM$17)>0,$E21*$F21,0) -> 0 | AP21: =IF(SUM(AO$15:AO$17)>0,$E21*$F21,0) -> 0 | AR21: =IF(SUM(AQ$15:AQ$17)>0,$E21*$F21,0) -> 0 | AT21: =IF(SUM(AS$15:AS$17)>0,$E21*$F21,0) -> 0 | AV21: =IF(SUM(AU$15:AU$17)>0,$E21*$F21,0) -> 0 | AX21: =IF(SUM(AW$15:AW$17)>0,$E21*$F21,0) -> 0 | AZ21: =IF(SUM(AY$15:AY$17)>0,$E21*$F21,0) -> 0 | BB21: =IF(SUM(BA$15:BA$17)>0,$E21*$F21,0) -> 0 | BD21: =IF(SUM(BC$15:BC$17)>0,$E21*$F21,0) -> 0 | BF21: =IF(SUM(BE$15:BE$17)>0,$E21*$F21,0) -> 0 | BH21: =IF(SUM(BG$15:BG$17)>0,$E21*$F21,0) -> 0 | BJ21: =IF(SUM(BI$15:BI$17)>0,$E21*$F21,0) -> 0 | BL21: =IF(SUM(BK$15:BK$17)>0,$E21*$F21,0) -> 0 | BN21: =IF(SUM(BM$15:BM$17)>0,$E21*$F21,0) -> 0 | BP21: =IF(SUM(BO$15:BO$17)>0,$E21*$F21,0) -> 0 | BR21: =IF(SUM(BQ$15:BQ$17)>0,$E21*$F21,0) -> 0 | BT21: =IF(SUM(BS$15:BS$17)>0,$E21*$F21,0) -> 0 | BV21: =IF(SUM(BU$15:BU$17)>0,$E21*$F21,0) -> 0 | BX21: =IF(SUM(BW$15:BW$17)>0,$E21*$F21,0) -> 0 | BZ21: =IF(SUM(BY$15:BY$17)>0,$E21*$F21,0) -> 0 | CB21: =IF(SUM(CA$15:CA$17)>0,$E21*$F21,0) -> 0 | CD21: =IF(SUM(CC$15:CC$17)>0,$E21*$F21,0) -> 0 | CF21: =IF(SUM(CE$15:CE$17)>0,$E21*$F21,0) -> 0 | CH21: =IF(SUM(CG$15:CG$17)>0,$E21*$F21,0) -> 0 | CJ21: =IF(SUM(CI$15:CI$17)>0,$E21*$F21,0) -> 0 | CL21: =IF(SUM(CK$15:CK$17)>0,$E21*$F21,0) -> 0 | CN21: =IF(SUM(CM$15:CM$17)>0,$E21*$F21,0) -> 0 | CP21: =IF(SUM(CO$15:CO$17)>0,$E21*$F21,0) -> 0 | CR21: =IF(SUM(CQ$15:CQ$17)>0,$E21*$F21,0) -> 0 | CT21: =IF(SUM(CS$15:CS$17)>0,$E21*$F21,0) -> 0 | CV21: =IF(SUM(CU$15:CU$17)>0,$E21*$F21,0) -> 0 | CX21: =IF(SUM(CW$15:CW$17)>0,$E21*$F21,0) -> 0 | CZ21: =IF(SUM(CY$15:CY$17)>0,$E21*$F21,0) -> 0 | DB21: =IF(SUM(DA$15:DA$17)>0,$E21*$F21,0) -> 0 | DD21: =IF(SUM(DC$15:DC$17)>0,$E21*$F21,0) -> 0 | DF21: =IF(SUM(DE$15:DE$17)>0,$E21*$F21,0) -> 0 | DH21: =IF(SUM(DG$15:DG$17)>0,$E21*$F21,0) -> 0 | DJ21: =IF(SUM(DI$15:DI$17)>0,$E21*$F21,0) -> 0 | DL21: =IF(SUM(DK$15:DK$17)>0,$E21*$F21,0) -> 0 | DN21: =IF(SUM(DM$15:DM$17)>0,$E21*$F21,0) -> 0 | DP21: =IF(SUM(DO$15:DO$17)>0,$E21*$F21,0) -> 0 | DR21: =IF(SUM(DQ$15:DQ$17)>0,$E21*$F21,0) -> 0 | DT21: =IF(SUM(DS$15:DS$17)>0,$E21*$F21,0) -> 0 | DV21: =IF(SUM(DU$15:DU$17)>0,$E21*$F21,0) -> 0 | DX21: =IF(SUM(DW$15:DW$17)>0,$E21*$F21,0) -> 0
J22: =IF(SUM(I$15:I$17)>0,$E22*$F22,0) -> 0 | L22: =IF(SUM(K$15:K$17)>0,$E22*$F22,0) -> 0 | N22: =IF(SUM(M$15:M$17)>0,$E22*$F22,0) -> 0 | P22: =IF(SUM(O$15:O$17)>0,$E22*$F22,0) -> 0 | R22: =IF(SUM(Q$15:Q$17)>0,$E22*$F22,0) -> 0 | T22: =IF(SUM(S$15:S$17)>0,$E22*$F22,0) -> 0 | V22: =IF(SUM(U$15:U$17)>0,$E22*$F22,0) -> 0 | X22: =IF(SUM(W$15:W$17)>0,$E22*$F22,0) -> 0 | Z22: =IF(SUM(Y$15:Y$17)>0,$E22*$F22,0) -> 0 | AB22: =IF(SUM(AA$15:AA$17)>0,$E22*$F22,0) -> 0 | AD22: =IF(SUM(AC$15:AC$17)>0,$E22*$F22,0) -> 0 | AF22: =IF(SUM(AE$15:AE$17)>0,$E22*$F22,0) -> 0 | AH22: =IF(SUM(AG$15:AG$17)>0,$E22*$F22,0) -> 0 | AJ22: =IF(SUM(AI$15:AI$17)>0,$E22*$F22,0) -> 0 | AL22: =IF(SUM(AK$15:AK$17)>0,$E22*$F22,0) -> 0 | AN22: =IF(SUM(AM$15:AM$17)>0,$E22*$F22,0) -> 0 | AP22: =IF(SUM(AO$15:AO$17)>0,$E22*$F22,0) -> 0 | AR22: =IF(SUM(AQ$15:AQ$17)>0,$E22*$F22,0) -> 0 | AT22: 0 | AV22: =IF(SUM(AU$15:AU$17)>0,$E22*$F22,0) -> 0 | AX22: =IF(SUM(AW$15:AW$17)>0,$E22*$F22,0) -> 0 | AZ22: =IF(SUM(AY$15:AY$17)>0,$E22*$F22,0) -> 0 | BB22: =IF(SUM(BA$15:BA$17)>0,$E22*$F22,0) -> 0 | BD22: =IF(SUM(BC$15:BC$17)>0,$E22*$F22,0) -> 0 | BF22: =IF(SUM(BE$15:BE$17)>0,$E22*$F22,0) -> 0 | BH22: =IF(SUM(BG$15:BG$17)>0,$E22*$F22,0) -> 0 | BJ22: =IF(SUM(BI$15:BI$17)>0,$E22*$F22,0) -> 0 | BL22: =IF(SUM(BK$15:BK$17)>0,$E22*$F22,0) -> 0 | BN22: =IF(SUM(BM$15:BM$17)>0,$E22*$F22,0) -> 0 | BP22: =IF(SUM(BO$15:BO$17)>0,$E22*$F22,0) -> 0 | BR22: =IF(SUM(BQ$15:BQ$17)>0,$E22*$F22,0) -> 0 | BT22: =IF(SUM(BS$15:BS$17)>0,$E22*$F22,0) -> 0 | BV22: =IF(SUM(BU$15:BU$17)>0,$E22*$F22,0) -> 0 | BX22: =IF(SUM(BW$15:BW$17)>0,$E22*$F22,0) -> 0 | BZ22: =IF(SUM(BY$15:BY$17)>0,$E22*$F22,0) -> 0 | CB22: =IF(SUM(CA$15:CA$17)>0,$E22*$F22,0) -> 0 | CD22: =IF(SUM(CC$15:CC$17)>0,$E22*$F22,0) -> 0 | CF22: =IF(SUM(CE$15:CE$17)>0,$E22*$F22,0) -> 0 | CH22: =IF(SUM(CG$15:CG$17)>0,$E22*$F22,0) -> 0 | CJ22: =IF(SUM(CI$15:CI$17)>0,$E22*$F22,0) -> 0 | CL22: =IF(SUM(CK$15:CK$17)>0,$E22*$F22,0) -> 0 | CN22: =IF(SUM(CM$15:CM$17)>0,$E22*$F22,0) -> 0 | CP22: =IF(SUM(CO$15:CO$17)>0,$E22*$F22,0) -> 0 | CR22: =IF(SUM(CQ$15:CQ$17)>0,$E22*$F22,0) -> 0 | CT22: =IF(SUM(CS$15:CS$17)>0,$E22*$F22,0) -> 0 | CV22: =IF(SUM(CU$15:CU$17)>0,$E22*$F22,0) -> 0 | CX22: =IF(SUM(CW$15:CW$17)>0,$E22*$F22,0) -> 0 | CZ22: =IF(SUM(CY$15:CY$17)>0,$E22*$F22,0) -> 0 | DB22: =IF(SUM(DA$15:DA$17)>0,$E22*$F22,0) -> 0 | DD22: =IF(SUM(DC$15:DC$17)>0,$E22*$F22,0) -> 0 | DF22: =IF(SUM(DE$15:DE$17)>0,$E22*$F22,0) -> 0 | DH22: =IF(SUM(DG$15:DG$17)>0,$E22*$F22,0) -> 0 | DJ22: =IF(SUM(DI$15:DI$17)>0,$E22*$F22,0) -> 0 | DL22: =IF(SUM(DK$15:DK$17)>0,$E22*$F22,0) -> 0 | DN22: =IF(SUM(DM$15:DM$17)>0,$E22*$F22,0) -> 0 | DP22: =IF(SUM(DO$15:DO$17)>0,$E22*$F22,0) -> 0 | DR22: =IF(SUM(DQ$15:DQ$17)>0,$E22*$F22,0) -> 0 | DT22: =IF(SUM(DS$15:DS$17)>0,$E22*$F22,0) -> 0 | DV22: =IF(SUM(DU$15:DU$17)>0,$E22*$F22,0) -> 0 | DX22: =IF(SUM(DW$15:DW$17)>0,$E22*$F22,0) -> 0
I23: =ROUND(SUM(J23:J242),2) -> 13 | K23: =ROUND(SUM(L23:L242),2) -> 13 | M23: =ROUND(SUM(N23:N242),2) -> 13 | O23: =ROUND(SUM(P23:P242),2) -> 13 | Q23: =ROUND(SUM(R23:R242),2) -> 13 | S23: =ROUND(SUM(T23:T242),2) -> 13 | U23: =ROUND(SUM(V23:V242),2) -> 13 | W23: =ROUND(SUM(X23:X242),2) -> 13 | Y23: =ROUND(SUM(Z23:Z242),2) -> 13 | AA23: =ROUND(SUM(AB23:AB242),2) -> 13 | AC23: =ROUND(SUM(AD23:AD242),2) -> 13 | AE23: =ROUND(SUM(AF23:AF242),2) -> 13 | AG23: =ROUND(SUM(AH23:AH242),2) -> 13 | AI23: =ROUND(SUM(AJ23:AJ242),2) -> 13 | AK23: =ROUND(SUM(AL23:AL242),2) -> 13 | AM23: =ROUND(SUM(AN23:AN242),2) -> 13 | AO23: =ROUND(SUM(AP23:AP242),2) -> 13 | AQ23: =ROUND(SUM(AR23:AR242),2) -> 13 | AS23: =ROUND(SUM(AT23:AT242),2) -> 13 | AU23: =ROUND(SUM(AV23:AV242),2) -> 13 | AW23: =ROUND(SUM(AX23:AX242),2) -> 13 | AY23: =ROUND(SUM(AZ23:AZ242),2) -> 13 | BA23: =ROUND(SUM(BB23:BB242),2) -> 13 | BC23: =ROUND(SUM(BD23:BD242),2) -> 13 | BE23: =ROUND(SUM(BF23:BF242),2) -> 13 | BG23: =ROUND(SUM(BH23:BH242),2) -> 13 | BI23: =ROUND(SUM(BJ23:BJ242),2) -> 13 | BK23: =ROUND(SUM(BL23:BL242),2) -> 13 | BM23: =ROUND(SUM(BN23:BN242),2) -> 13 | BO23: =ROUND(SUM(BP23:BP242),2) -> 13 | BQ23: =ROUND(SUM(BR23:BR242),2) -> 13 | BS23: =ROUND(SUM(BT23:BT242),2) -> 13 | BU23: =ROUND(SUM(BV23:BV242),2) -> 13 | BW23: =ROUND(SUM(BX23:BX242),2) -> 13 | BY23: =ROUND(SUM(BZ23:BZ242),2) -> 13 | CA23: =ROUND(SUM(CB23:CB242),2) -> 13 | CC23: =ROUND(SUM(CD23:CD242),2) -> 13 | CE23: =ROUND(SUM(CF23:CF242),2) -> 13 | CG23: =ROUND(SUM(CH23:CH242),2) -> 13 | CI23: =ROUND(SUM(CJ23:CJ242),2) -> 13 | CK23: =ROUND(SUM(CL23:CL242),2) -> 13 | CM23: =ROUND(SUM(CN23:CN242),2) -> 13 | CO23: =ROUND(SUM(CP23:CP242),2) -> 13 | CQ23: =ROUND(SUM(CR23:CR242),2) -> 13 | CS23: =ROUND(SUM(CT23:CT242),2) -> 13 | CU23: =ROUND(SUM(CV23:CV242),2) -> 13 | CW23: =ROUND(SUM(CX23:CX242),2) -> 13 | CY23: =ROUND(SUM(CZ23:CZ242),2) -> 13 | DA23: =ROUND(SUM(DB23:DB242),2) -> 13 | DC23: =ROUND(SUM(DD23:DD242),2) -> 13 | DE23: =ROUND(SUM(DF23:DF242),2) -> 13 | DG23: =ROUND(SUM(DH23:DH242),2) -> 13 | DI23: =ROUND(SUM(DJ23:DJ242),2) -> 13 | DK23: =ROUND(SUM(DL23:DL242),2) -> 13 | DM23: =ROUND(SUM(DN23:DN242),2) -> 13 | DO23: =ROUND(SUM(DP23:DP242),2) -> 13 | DQ23: =ROUND(SUM(DR23:DR242),2) -> 13 | DS23: =ROUND(SUM(DT23:DT242),2) -> 13 | DU23: =ROUND(SUM(DV23:DV242),2) -> 13 | DW23: =ROUND(SUM(DX23:DX242),2) -> 13
I25: =IF($C25=I$11,1,0) -> 0 | K25: =IF($C25=K$11,1,0) -> 0 | M25: =IF($C25=M$11,1,0) -> 0 | O25: =IF($C25=O$11,1,0) -> 0 | Q25: =IF($C25=Q$11,1,0) -> 0 | S25: =IF($C25=S$11,1,0) -> 0 | U25: =IF($C25=U$11,1,0) -> 0 | W25: =IF($C25=W$11,1,0) -> 0 | Y25: =IF($C25=Y$11,1,0) -> 0 | AA25: =IF($C25=AA$11,1,0) -> 0 | AC25: =IF($C25=AC$11,1,0) -> 0 | AE25: =IF($C25=AE$11,1,0) -> 0 | AG25: =IF($C25=AG$11,1,0) -> 0 | AI25: =IF($C25=AI$11,1,0) -> 0 | AK25: =IF($C25=AK$11,1,0) -> 0 | AM25: =IF($C25=AM$11,1,0) -> 0 | AO25: =IF($C25=AO$11,1,0) -> 0 | AQ25: =IF($C25=AQ$11,1,0) -> 0 | AS25: =IF($C25=AS$11,1,0) -> 0
I26: =IF($C26=I$11,1,0) -> 0 | K26: 0 | M26: 0 | O26: 0 | Q26: 0 | S26: 0 | U26: 0 | W26: 0 | Y26: 0 | AA26: 0 | AC26: 0 | AE26: =IF($C26=AE$11,1,0) -> 0 | AG26: 0 | AI26: 0 | AK26: 0 | AM26: 0 | AO26: 0 | AQ26: 0 | AS26: 0 | AU26: =IF($C26=AU$11,1,0) -> 0 | AW26: =IF($C26=AW$11,1,0) -> 0 | AY26: =IF($C26=AY$11,1,0) -> 0 | BA26: =IF($C26=BA$11,1,0) -> 0 | BC26: =IF($C26=BC$11,1,0) -> 0 | BE26: =IF($C26=BE$11,1,0) -> 0 | BG26: =IF($C26=BG$11,1,0) -> 0 | BI26: =IF($C26=BI$11,1,0) -> 0 | BK26: =IF($C26=BK$11,1,0) -> 0 | BM26: =IF($C26=BM$11,1,0) -> 0 | BO26: =IF($C26=BO$11,1,0) -> 0 | BQ26: =IF($C26=BQ$11,1,0) -> 0 | BS26: =IF($C26=BS$11,1,0) -> 0 | BU26: =IF($C26=BU$11,1,0) -> 0 | BW26: =IF($C26=BW$11,1,0) -> 0 | BY26: =IF($C26=BY$11,1,0) -> 0 | CA26: =IF($C26=CA$11,1,0) -> 0 | CC26: =IF($C26=CC$11,1,0) -> 0 | CE26: =IF($C26=CE$11,1,0) -> 0 | CG26: =IF($C26=CG$11,1,0) -> 0 | CI26: =IF($C26=CI$11,1,0) -> 0 | CK26: =IF($C26=CK$11,1,0) -> 0 | CM26: =IF($C26=CM$11,1,0) -> 0 | CO26: =IF($C26=CO$11,1,0) -> 0 | CQ26: =IF($C26=CQ$11,1,0) -> 0 | CS26: =IF($C26=CS$11,1,0) -> 0 | CU26: =IF($C26=CU$11,1,0) -> 0 | CW26: =IF($C26=CW$11,1,0) -> 0 | CY26: =IF($C26=CY$11,1,0) -> 0 | DA26: =IF($C26=DA$11,1,0) -> 0 | DC26: =IF($C26=DC$11,1,0) -> 0 | DE26: =IF($C26=DE$11,1,0) -> 0 | DG26: =IF($C26=DG$11,1,0) -> 0 | DI26: =IF($C26=DI$11,1,0) -> 0 | DK26: =IF($C26=DK$11,1,0) -> 0 | DM26: =IF($C26=DM$11,1,0) -> 0 | DO26: =IF($C26=DO$11,1,0) -> 0 | DQ26: =IF($C26=DQ$11,1,0) -> 0 | DS26: =IF($C26=DS$11,1,0) -> 0 | DU26: =IF($C26=DU$11,1,0) -> 0 | DW26: =IF($C26=DW$11,1,0) -> 0
I27: =IF($C27=I$11,1,0) -> 0 | K27: 0 | M27: 0 | O27: 0 | Q27: 0 | S27: 0 | U27: 0 | W27: 0 | Y27: 0 | AA27: 0 | AC27: 0 | AE27: =IF($C27=AE$11,1,0) -> 0 | AG27: 0 | AI27: 0 | AK27: 0 | AM27: 0 | AO27: 0 | AQ27: 0 | AS27: 0
J30: =IF(SUM(I$25:I$27)>0,$E30*$F30,0) -> 0 | L30: =IF(SUM(K$25:K$27)>0,$E30*$F30,0) -> 0 | N30: =IF(SUM(M$25:M$27)>0,$E30*$F30,0) -> 0 | P30: =IF(SUM(O$25:O$27)>0,$E30*$F30,0) -> 0 | R30: =IF(SUM(Q$25:Q$27)>0,$E30*$F30,0) -> 0 | T30: =IF(SUM(S$25:S$27)>0,$E30*$F30,0) -> 0 | V30: =IF(SUM(U$25:U$27)>0,$E30*$F30,0) -> 0 | X30: =IF(SUM(W$25:W$27)>0,$E30*$F30,0) -> 0 | Z30: =IF(SUM(Y$25:Y$27)>0,$E30*$F30,0) -> 0 | AB30: =IF(SUM(AA$25:AA$27)>0,$E30*$F30,0) -> 0 | AD30: =IF(SUM(AC$25:AC$27)>0,$E30*$F30,0) -> 0 | AF30: =IF(SUM(AE$25:AE$27)>0,$E30*$F30,0) -> 0 | AH30: =IF(SUM(AG$25:AG$27)>0,$E30*$F30,0) -> 0 | AJ30: =IF(SUM(AI$25:AI$27)>0,$E30*$F30,0) -> 0 | AL30: =IF(SUM(AK$25:AK$27)>0,$E30*$F30,0) -> 0 | AN30: =IF(SUM(AM$25:AM$27)>0,$E30*$F30,0) -> 0 | AP30: =IF(SUM(AO$25:AO$27)>0,$E30*$F30,0) -> 0 | AR30: =IF(SUM(AQ$25:AQ$27)>0,$E30*$F30,0) -> 0 | AT30: =IF(SUM(AS$25:AS$27)>0,$E30*$F30,0) -> 0 | AV30: =IF(SUM(AU$25:AU$27)>0,$E30*$F30,0) -> 0 | AX30: =IF(SUM(AW$25:AW$27)>0,$E30*$F30,0) -> 0 | AZ30: =IF(SUM(AY$25:AY$27)>0,$E30*$F30,0) -> 0 | BB30: =IF(SUM(BA$25:BA$27)>0,$E30*$F30,0) -> 0 | BD30: =IF(SUM(BC$25:BC$27)>0,$E30*$F30,0) -> 0 | BF30: =IF(SUM(BE$25:BE$27)>0,$E30*$F30,0) -> 0 | BH30: =IF(SUM(BG$25:BG$27)>0,$E30*$F30,0) -> 0 | BJ30: =IF(SUM(BI$25:BI$27)>0,$E30*$F30,0) -> 0 | BL30: =IF(SUM(BK$25:BK$27)>0,$E30*$F30,0) -> 0 | BN30: =IF(SUM(BM$25:BM$27)>0,$E30*$F30,0) -> 0 | BP30: =IF(SUM(BO$25:BO$27)>0,$E30*$F30,0) -> 0 | BR30: =IF(SUM(BQ$25:BQ$27)>0,$E30*$F30,0) -> 0 | BT30: =IF(SUM(BS$25:BS$27)>0,$E30*$F30,0) -> 0 | BV30: =IF(SUM(BU$25:BU$27)>0,$E30*$F30,0) -> 0 | BX30: =IF(SUM(BW$25:BW$27)>0,$E30*$F30,0) -> 0 | BZ30: =IF(SUM(BY$25:BY$27)>0,$E30*$F30,0) -> 0 | CB30: =IF(SUM(CA$25:CA$27)>0,$E30*$F30,0) -> 0 | CD30: =IF(SUM(CC$25:CC$27)>0,$E30*$F30,0) -> 0 | CF30: =IF(SUM(CE$25:CE$27)>0,$E30*$F30,0) -> 0 | CH30: =IF(SUM(CG$25:CG$27)>0,$E30*$F30,0) -> 0 | CJ30: =IF(SUM(CI$25:CI$27)>0,$E30*$F30,0) -> 0 | CL30: =IF(SUM(CK$25:CK$27)>0,$E30*$F30,0) -> 0 | CN30: =IF(SUM(CM$25:CM$27)>0,$E30*$F30,0) -> 0 | CP30: =IF(SUM(CO$25:CO$27)>0,$E30*$F30,0) -> 0 | CR30: =IF(SUM(CQ$25:CQ$27)>0,$E30*$F30,0) -> 0 | CT30: =IF(SUM(CS$25:CS$27)>0,$E30*$F30,0) -> 0 | CV30: =IF(SUM(CU$25:CU$27)>0,$E30*$F30,0) -> 0 | CX30: =IF(SUM(CW$25:CW$27)>0,$E30*$F30,0) -> 0 | CZ30: =IF(SUM(CY$25:CY$27)>0,$E30*$F30,0) -> 0 | DB30: =IF(SUM(DA$25:DA$27)>0,$E30*$F30,0) -> 0 | DD30: =IF(SUM(DC$25:DC$27)>0,$E30*$F30,0) -> 0 | DF30: =IF(SUM(DE$25:DE$27)>0,$E30*$F30,0) -> 0 | DH30: =IF(SUM(DG$25:DG$27)>0,$E30*$F30,0) -> 0 | DJ30: =IF(SUM(DI$25:DI$27)>0,$E30*$F30,0) -> 0 | DL30: =IF(SUM(DK$25:DK$27)>0,$E30*$F30,0) -> 0 | DN30: =IF(SUM(DM$25:DM$27)>0,$E30*$F30,0) -> 0 | DP30: =IF(SUM(DO$25:DO$27)>0,$E30*$F30,0) -> 0 | DR30: =IF(SUM(DQ$25:DQ$27)>0,$E30*$F30,0) -> 0 | DT30: =IF(SUM(DS$25:DS$27)>0,$E30*$F30,0) -> 0 | DV30: =IF(SUM(DU$25:DU$27)>0,$E30*$F30,0) -> 0 | DX30: =IF(SUM(DW$25:DW$27)>0,$E30*$F30,0) -> 0
J31: =IF(SUM(I$25:I$27)>0,$E31*$F31,0) -> 0 | L31: =IF(SUM(K$25:K$27)>0,$E31*$F31,0) -> 0 | N31: =IF(SUM(M$25:M$27)>0,$E31*$F31,0) -> 0 | P31: =IF(SUM(O$25:O$27)>0,$E31*$F31,0) -> 0 | R31: =IF(SUM(Q$25:Q$27)>0,$E31*$F31,0) -> 0 | T31: =IF(SUM(S$25:S$27)>0,$E31*$F31,0) -> 0 | V31: =IF(SUM(U$25:U$27)>0,$E31*$F31,0) -> 0 | X31: =IF(SUM(W$25:W$27)>0,$E31*$F31,0) -> 0 | Z31: =IF(SUM(Y$25:Y$27)>0,$E31*$F31,0) -> 0 | AB31: =IF(SUM(AA$25:AA$27)>0,$E31*$F31,0) -> 0 | AD31: 0 | AF31: =IF(SUM(AE$25:AE$27)>0,$E31*$F31,0) -> 0 | AH31: =IF(SUM(AG$25:AG$27)>0,$E31*$F31,0) -> 0 | AJ31: =IF(SUM(AI$25:AI$27)>0,$E31*$F31,0) -> 0 | AL31: =IF(SUM(AK$25:AK$27)>0,$E31*$F31,0) -> 0 | AN31: =IF(SUM(AM$25:AM$27)>0,$E31*$F31,0) -> 0 | AP31: =IF(SUM(AO$25:AO$27)>0,$E31*$F31,0) -> 0 | AR31: =IF(SUM(AQ$25:AQ$27)>0,$E31*$F31,0) -> 0 | AT31: =IF(SUM(AS$25:AS$27)>0,$E31*$F31,0) -> 0 | AV31: =IF(SUM(AU$25:AU$27)>0,$E31*$F31,0) -> 0 | AX31: =IF(SUM(AW$25:AW$27)>0,$E31*$F31,0) -> 0 | AZ31: =IF(SUM(AY$25:AY$27)>0,$E31*$F31,0) -> 0 | BB31: =IF(SUM(BA$25:BA$27)>0,$E31*$F31,0) -> 0 | BD31: =IF(SUM(BC$25:BC$27)>0,$E31*$F31,0) -> 0 | BF31: =IF(SUM(BE$25:BE$27)>0,$E31*$F31,0) -> 0 | BH31: =IF(SUM(BG$25:BG$27)>0,$E31*$F31,0) -> 0 | BJ31: =IF(SUM(BI$25:BI$27)>0,$E31*$F31,0) -> 0 | BL31: =IF(SUM(BK$25:BK$27)>0,$E31*$F31,0) -> 0 | BN31: =IF(SUM(BM$25:BM$27)>0,$E31*$F31,0) -> 0 | BP31: =IF(SUM(BO$25:BO$27)>0,$E31*$F31,0) -> 0 | BR31: =IF(SUM(BQ$25:BQ$27)>0,$E31*$F31,0) -> 0 | BT31: =IF(SUM(BS$25:BS$27)>0,$E31*$F31,0) -> 0 | BV31: =IF(SUM(BU$25:BU$27)>0,$E31*$F31,0) -> 0 | BX31: =IF(SUM(BW$25:BW$27)>0,$E31*$F31,0) -> 0 | BZ31: =IF(SUM(BY$25:BY$27)>0,$E31*$F31,0) -> 0 | CB31: =IF(SUM(CA$25:CA$27)>0,$E31*$F31,0) -> 0 | CD31: =IF(SUM(CC$25:CC$27)>0,$E31*$F31,0) -> 0 | CF31: =IF(SUM(CE$25:CE$27)>0,$E31*$F31,0) -> 0 | CH31: =IF(SUM(CG$25:CG$27)>0,$E31*$F31,0) -> 0 | CJ31: =IF(SUM(CI$25:CI$27)>0,$E31*$F31,0) -> 0 | CL31: =IF(SUM(CK$25:CK$27)>0,$E31*$F31,0) -> 0 | CN31: =IF(SUM(CM$25:CM$27)>0,$E31*$F31,0) -> 0 | CP31: =IF(SUM(CO$25:CO$27)>0,$E31*$F31,0) -> 0 | CR31: =IF(SUM(CQ$25:CQ$27)>0,$E31*$F31,0) -> 0 | CT31: =IF(SUM(CS$25:CS$27)>0,$E31*$F31,0) -> 0 | CV31: =IF(SUM(CU$25:CU$27)>0,$E31*$F31,0) -> 0 | CX31: =IF(SUM(CW$25:CW$27)>0,$E31*$F31,0) -> 0 | CZ31: =IF(SUM(CY$25:CY$27)>0,$E31*$F31,0) -> 0 | DB31: =IF(SUM(DA$25:DA$27)>0,$E31*$F31,0) -> 0 | DD31: =IF(SUM(DC$25:DC$27)>0,$E31*$F31,0) -> 0 | DF31: =IF(SUM(DE$25:DE$27)>0,$E31*$F31,0) -> 0 | DH31: =IF(SUM(DG$25:DG$27)>0,$E31*$F31,0) -> 0 | DJ31: =IF(SUM(DI$25:DI$27)>0,$E31*$F31,0) -> 0 | DL31: =IF(SUM(DK$25:DK$27)>0,$E31*$F31,0) -> 0 | DN31: =IF(SUM(DM$25:DM$27)>0,$E31*$F31,0) -> 0 | DP31: =IF(SUM(DO$25:DO$27)>0,$E31*$F31,0) -> 0 | DR31: =IF(SUM(DQ$25:DQ$27)>0,$E31*$F31,0) -> 0 | DT31: =IF(SUM(DS$25:DS$27)>0,$E31*$F31,0) -> 0 | DV31: =IF(SUM(DU$25:DU$27)>0,$E31*$F31,0) -> 0 | DX31: =IF(SUM(DW$25:DW$27)>0,$E31*$F31,0) -> 0
I32: =ROUND(SUM(J32:J252),2) -> 13 | K32: =ROUND(SUM(L32:L252),2) -> 13 | M32: =ROUND(SUM(N32:N252),2) -> 13 | O32: =ROUND(SUM(P32:P252),2) -> 13 | Q32: =ROUND(SUM(R32:R252),2) -> 13 | S32: =ROUND(SUM(T32:T252),2) -> 13 | U32: =ROUND(SUM(V32:V252),2) -> 13 | W32: =ROUND(SUM(X32:X252),2) -> 13 | Y32: =ROUND(SUM(Z32:Z252),2) -> 13 | AA32: =ROUND(SUM(AB32:AB252),2) -> 13 | AC32: =ROUND(SUM(AD32:AD252),2) -> 13 | AE32: =ROUND(SUM(AF32:AF252),2) -> 13 | AG32: =ROUND(SUM(AH32:AH252),2) -> 13 | AI32: =ROUND(SUM(AJ32:AJ252),2) -> 13 | AK32: =ROUND(SUM(AL32:AL252),2) -> 13 | AM32: =ROUND(SUM(AN32:AN252),2) -> 13 | AO32: =ROUND(SUM(AP32:AP252),2) -> 13 | AQ32: =ROUND(SUM(AR32:AR252),2) -> 13 | AS32: =ROUND(SUM(AT32:AT252),2) -> 13 | AU32: =ROUND(SUM(AV32:AV252),2) -> 13 | AW32: =ROUND(SUM(AX32:AX252),2) -> 13 | AY32: =ROUND(SUM(AZ32:AZ252),2) -> 13 | BA32: =ROUND(SUM(BB32:BB252),2) -> 13 | BC32: =ROUND(SUM(BD32:BD252),2) -> 13 | BE32: =ROUND(SUM(BF32:BF252),2) -> 13 | BG32: =ROUND(SUM(BH32:BH252),2) -> 13 | BI32: =ROUND(SUM(BJ32:BJ252),2) -> 13 | BK32: =ROUND(SUM(BL32:BL252),2) -> 13 | BM32: =ROUND(SUM(BN32:BN252),2) -> 13 | BO32: =ROUND(SUM(BP32:BP252),2) -> 13 | BQ32: =ROUND(SUM(BR32:BR252),2) -> 13 | BS32: =ROUND(SUM(BT32:BT252),2) -> 13 | BU32: =ROUND(SUM(BV32:BV252),2) -> 13 | BW32: =ROUND(SUM(BX32:BX252),2) -> 13 | BY32: =ROUND(SUM(BZ32:BZ252),2) -> 13 | CA32: =ROUND(SUM(CB32:CB252),2) -> 13 | CC32: =ROUND(SUM(CD32:CD252),2) -> 13 | CE32: =ROUND(SUM(CF32:CF252),2) -> 13 | CG32: =ROUND(SUM(CH32:CH252),2) -> 13 | CI32: =ROUND(SUM(CJ32:CJ252),2) -> 13 | CK32: =ROUND(SUM(CL32:CL252),2) -> 13 | CM32: =ROUND(SUM(CN32:CN252),2) -> 13 | CO32: =ROUND(SUM(CP32:CP252),2) -> 13 | CQ32: =ROUND(SUM(CR32:CR252),2) -> 13 | CS32: =ROUND(SUM(CT32:CT252),2) -> 13 | CU32: =ROUND(SUM(CV32:CV252),2) -> 13 | CW32: =ROUND(SUM(CX32:CX252),2) -> 13 | CY32: =ROUND(SUM(CZ32:CZ252),2) -> 13 | DA32: =ROUND(SUM(DB32:DB252),2) -> 13 | DC32: =ROUND(SUM(DD32:DD252),2) -> 13 | DE32: =ROUND(SUM(DF32:DF252),2) -> 13 | DG32: =ROUND(SUM(DH32:DH252),2) -> 13 | DI32: =ROUND(SUM(DJ32:DJ252),2) -> 13 | DK32: =ROUND(SUM(DL32:DL252),2) -> 13 | DM32: =ROUND(SUM(DN32:DN252),2) -> 13 | DO32: =ROUND(SUM(DP32:DP252),2) -> 13 | DQ32: =ROUND(SUM(DR32:DR252),2) -> 13 | DS32: =ROUND(SUM(DT32:DT252),2) -> 13 | DU32: =ROUND(SUM(DV32:DV252),2) -> 13 | DW32: =ROUND(SUM(DX32:DX252),2) -> 13
I34: =IF($C34=I$11,1,0) -> 0 | K34: =IF($C34=K$11,1,0) -> 0 | M34: =IF($C34=M$11,1,0) -> 0 | O34: =IF($C34=O$11,1,0) -> 0 | Q34: =IF($C34=Q$11,1,0) -> 0 | S34: =IF($C34=S$11,1,0) -> 0 | U34: =IF($C34=U$11,1,0) -> 0 | W34: =IF($C34=W$11,1,0) -> 0 | Y34: =IF($C34=Y$11,1,0) -> 0 | AA34: =IF($C34=AA$11,1,0) -> 0 | AC34: =IF($C34=AC$11,1,0) -> 0 | AE34: =IF($C34=AE$11,1,0) -> 0 | AG34: =IF($C34=AG$11,1,0) -> 0 | AI34: =IF($C34=AI$11,1,0) -> 0 | AK34: =IF($C34=AK$11,1,0) -> 0 | AM34: =IF($C34=AM$11,1,0) -> 0 | AO34: =IF($C34=AO$11,1,0) -> 0 | AQ34: =IF($C34=AQ$11,1,0) -> 0 | AS34: =IF($C34=AS$11,1,0) -> 0
I35: =IF($C35=I$11,1,0) -> 0 | K35: 0 | M35: 0 | O35: 0 | Q35: 0 | S35: 0 | U35: 0 | W35: 0 | Y35: 0 | AA35: 0 | AC35: 0 | AE35: =IF($C35=AE$11,1,0) -> 0 | AG35: 0 | AI35: 0 | AK35: 0 | AM35: 0 | AO35: 0 | AQ35: 0 | AS35: 0 | AU35: =IF($C35=AU$11,1,0) -> 0 | AW35: =IF($C35=AW$11,1,0) -> 0 | AY35: =IF($C35=AY$11,1,0) -> 0 | BA35: =IF($C35=BA$11,1,0) -> 0 | BC35: =IF($C35=BC$11,1,0) -> 0 | BE35: =IF($C35=BE$11,1,0) -> 0 | BG35: =IF($C35=BG$11,1,0) -> 0 | BI35: =IF($C35=BI$11,1,0) -> 0 | BK35: =IF($C35=BK$11,1,0) -> 0 | BM35: =IF($C35=BM$11,1,0) -> 0 | BO35: =IF($C35=BO$11,1,0) -> 0 | BQ35: =IF($C35=BQ$11,1,0) -> 0 | BS35: =IF($C35=BS$11,1,0) -> 0 | BU35: =IF($C35=BU$11,1,0) -> 0 | BW35: =IF($C35=BW$11,1,0) -> 0 | BY35: =IF($C35=BY$11,1,0) -> 0 | CA35: =IF($C35=CA$11,1,0) -> 0 | CC35: =IF($C35=CC$11,1,0) -> 0 | CE35: =IF($C35=CE$11,1,0) -> 0 | CG35: =IF($C35=CG$11,1,0) -> 0 | CI35: =IF($C35=CI$11,1,0) -> 0 | CK35: =IF($C35=CK$11,1,0) -> 0 | CM35: =IF($C35=CM$11,1,0) -> 0 | CO35: =IF($C35=CO$11,1,0) -> 0 | CQ35: =IF($C35=CQ$11,1,0) -> 0 | CS35: =IF($C35=CS$11,1,0) -> 0 | CU35: =IF($C35=CU$11,1,0) -> 0 | CW35: =IF($C35=CW$11,1,0) -> 0 | CY35: =IF($C35=CY$11,1,0) -> 0 | DA35: =IF($C35=DA$11,1,0) -> 0 | DC35: =IF($C35=DC$11,1,0) -> 0 | DE35: =IF($C35=DE$11,1,0) -> 0 | DG35: =IF($C35=DG$11,1,0) -> 0 | DI35: =IF($C35=DI$11,1,0) -> 0 | DK35: =IF($C35=DK$11,1,0) -> 0 | DM35: =IF($C35=DM$11,1,0) -> 0 | DO35: =IF($C35=DO$11,1,0) -> 0 | DQ35: =IF($C35=DQ$11,1,0) -> 0 | DS35: =IF($C35=DS$11,1,0) -> 0 | DU35: =IF($C35=DU$11,1,0) -> 0 | DW35: =IF($C35=DW$11,1,0) -> 0
I36: =IF($C36=I$11,1,0) -> 0 | K36: 0 | M36: 0 | O36: 0 | Q36: 0 | S36: 0 | U36: 0 | W36: 0 | Y36: 0 | AA36: 0 | AC36: 0 | AE36: =IF($C36=AE$11,1,0) -> 0 | AG36: 0 | AI36: 0 | AK36: 0 | AM36: 0 | AO36: 0 | AQ36: 0 | AS36: 0
J39: =IF(SUM(I$25:I$27)>0,$E39*$F39,0) -> 0 | L39: =IF(SUM(K$25:K$27)>0,$E39*$F39,0) -> 0 | N39: =IF(SUM(M$25:M$27)>0,$E39*$F39,0) -> 0 | P39: =IF(SUM(O$25:O$27)>0,$E39*$F39,0) -> 0 | R39: =IF(SUM(Q$25:Q$27)>0,$E39*$F39,0) -> 0 | T39: =IF(SUM(S$25:S$27)>0,$E39*$F39,0) -> 0 | V39: =IF(SUM(U$25:U$27)>0,$E39*$F39,0) -> 0 | X39: =IF(SUM(W$25:W$27)>0,$E39*$F39,0) -> 0 | Z39: =IF(SUM(Y$25:Y$27)>0,$E39*$F39,0) -> 0 | AB39: =IF(SUM(AA$25:AA$27)>0,$E39*$F39,0) -> 0 | AD39: =IF(SUM(AC$25:AC$27)>0,$E39*$F39,0) -> 0 | AF39: =IF(SUM(AE$25:AE$27)>0,$E39*$F39,0) -> 0 | AH39: =IF(SUM(AG$25:AG$27)>0,$E39*$F39,0) -> 0 | AJ39: =IF(SUM(AI$25:AI$27)>0,$E39*$F39,0) -> 0 | AL39: =IF(SUM(AK$25:AK$27)>0,$E39*$F39,0) -> 0 | AN39: =IF(SUM(AM$25:AM$27)>0,$E39*$F39,0) -> 0 | AP39: =IF(SUM(AO$25:AO$27)>0,$E39*$F39,0) -> 0 | AR39: =IF(SUM(AQ$25:AQ$27)>0,$E39*$F39,0) -> 0 | AT39: =IF(SUM(AS$25:AS$27)>0,$E39*$F39,0) -> 0 | AV39: =IF(SUM(AU$25:AU$27)>0,$E39*$F39,0) -> 0 | AX39: =IF(SUM(AW$25:AW$27)>0,$E39*$F39,0) -> 0 | AZ39: =IF(SUM(AY$25:AY$27)>0,$E39*$F39,0) -> 0 | BB39: =IF(SUM(BA$25:BA$27)>0,$E39*$F39,0) -> 0 | BD39: =IF(SUM(BC$25:BC$27)>0,$E39*$F39,0) -> 0 | BF39: =IF(SUM(BE$25:BE$27)>0,$E39*$F39,0) -> 0 | BH39: =IF(SUM(BG$25:BG$27)>0,$E39*$F39,0) -> 0 | BJ39: =IF(SUM(BI$25:BI$27)>0,$E39*$F39,0) -> 0 | BL39: =IF(SUM(BK$25:BK$27)>0,$E39*$F39,0) -> 0 | BN39: =IF(SUM(BM$25:BM$27)>0,$E39*$F39,0) -> 0 | BP39: =IF(SUM(BO$25:BO$27)>0,$E39*$F39,0) -> 0 | BR39: =IF(SUM(BQ$25:BQ$27)>0,$E39*$F39,0) -> 0 | BT39: =IF(SUM(BS$25:BS$27)>0,$E39*$F39,0) -> 0 | BV39: =IF(SUM(BU$25:BU$27)>0,$E39*$F39,0) -> 0 | BX39: =IF(SUM(BW$25:BW$27)>0,$E39*$F39,0) -> 0 | BZ39: =IF(SUM(BY$25:BY$27)>0,$E39*$F39,0) -> 0 | CB39: =IF(SUM(CA$25:CA$27)>0,$E39*$F39,0) -> 0 | CD39: =IF(SUM(CC$25:CC$27)>0,$E39*$F39,0) -> 0 | CF39: =IF(SUM(CE$25:CE$27)>0,$E39*$F39,0) -> 0 | CH39: =IF(SUM(CG$25:CG$27)>0,$E39*$F39,0) -> 0 | CJ39: =IF(SUM(CI$25:CI$27)>0,$E39*$F39,0) -> 0 | CL39: =IF(SUM(CK$25:CK$27)>0,$E39*$F39,0) -> 0 | CN39: =IF(SUM(CM$25:CM$27)>0,$E39*$F39,0) -> 0 | CP39: =IF(SUM(CO$25:CO$27)>0,$E39*$F39,0) -> 0 | CR39: =IF(SUM(CQ$25:CQ$27)>0,$E39*$F39,0) -> 0 | CT39: =IF(SUM(CS$25:CS$27)>0,$E39*$F39,0) -> 0 | CV39: =IF(SUM(CU$25:CU$27)>0,$E39*$F39,0) -> 0 | CX39: =IF(SUM(CW$25:CW$27)>0,$E39*$F39,0) -> 0 | CZ39: =IF(SUM(CY$25:CY$27)>0,$E39*$F39,0) -> 0 | DB39: =IF(SUM(DA$25:DA$27)>0,$E39*$F39,0) -> 0 | DD39: =IF(SUM(DC$25:DC$27)>0,$E39*$F39,0) -> 0 | DF39: =IF(SUM(DE$25:DE$27)>0,$E39*$F39,0) -> 0 | DH39: =IF(SUM(DG$25:DG$27)>0,$E39*$F39,0) -> 0 | DJ39: =IF(SUM(DI$25:DI$27)>0,$E39*$F39,0) -> 0 | DL39: =IF(SUM(DK$25:DK$27)>0,$E39*$F39,0) -> 0 | DN39: =IF(SUM(DM$25:DM$27)>0,$E39*$F39,0) -> 0 | DP39: =IF(SUM(DO$25:DO$27)>0,$E39*$F39,0) -> 0 | DR39: =IF(SUM(DQ$25:DQ$27)>0,$E39*$F39,0) -> 0 | DT39: =IF(SUM(DS$25:DS$27)>0,$E39*$F39,0) -> 0 | DV39: =IF(SUM(DU$25:DU$27)>0,$E39*$F39,0) -> 0 | DX39: =IF(SUM(DW$25:DW$27)>0,$E39*$F39,0) -> 0
J40: =IF(SUM(I$34:I$36)>0,$E40*$F40,0) -> 0 | L40: =IF(SUM(K$34:K$36)>0,$E40*$F40,0) -> 0 | N40: =IF(SUM(M$34:M$36)>0,$E40*$F40,0) -> 0 | P40: =IF(SUM(O$34:O$36)>0,$E40*$F40,0) -> 0 | R40: =IF(SUM(Q$34:Q$36)>0,$E40*$F40,0) -> 0 | T40: =IF(SUM(S$34:S$36)>0,$E40*$F40,0) -> 0 | V40: =IF(SUM(U$34:U$36)>0,$E40*$F40,0) -> 0 | X40: =IF(SUM(W$34:W$36)>0,$E40*$F40,0) -> 0 | Z40: =IF(SUM(Y$34:Y$36)>0,$E40*$F40,0) -> 0 | AB40: =IF(SUM(AA$34:AA$36)>0,$E40*$F40,0) -> 0 | AD40: =IF(SUM(AC$34:AC$36)>0,$E40*$F40,0) -> 0 | AF40: =IF(SUM(AE$34:AE$36)>0,$E40*$F40,0) -> 0 | AH40: =IF(SUM(AG$34:AG$36)>0,$E40*$F40,0) -> 0 | AJ40: =IF(SUM(AI$34:AI$36)>0,$E40*$F40,0) -> 0 | AL40: =IF(SUM(AK$34:AK$36)>0,$E40*$F40,0) -> 0 | AN40: =IF(SUM(AM$34:AM$36)>0,$E40*$F40,0) -> 0 | AP40: =IF(SUM(AO$34:AO$36)>0,$E40*$F40,0) -> 0 | AR40: =IF(SUM(AQ$34:AQ$36)>0,$E40*$F40,0) -> 0 | AT40: =IF(SUM(AS$34:AS$36)>0,$E40*$F40,0) -> 0 | AV40: =IF(SUM(AU$34:AU$36)>0,$E40*$F40,0) -> 0 | AX40: =IF(SUM(AW$34:AW$36)>0,$E40*$F40,0) -> 0 | AZ40: =IF(SUM(AY$34:AY$36)>0,$E40*$F40,0) -> 0 | BB40: =IF(SUM(BA$34:BA$36)>0,$E40*$F40,0) -> 0 | BD40: =IF(SUM(BC$34:BC$36)>0,$E40*$F40,0) -> 0 | BF40: =IF(SUM(BE$34:BE$36)>0,$E40*$F40,0) -> 0 | BH40: =IF(SUM(BG$34:BG$36)>0,$E40*$F40,0) -> 0 | BJ40: =IF(SUM(BI$34:BI$36)>0,$E40*$F40,0) -> 0 | BL40: =IF(SUM(BK$34:BK$36)>0,$E40*$F40,0) -> 0 | BN40: =IF(SUM(BM$34:BM$36)>0,$E40*$F40,0) -> 0 | BP40: =IF(SUM(BO$34:BO$36)>0,$E40*$F40,0) -> 0 | BR40: =IF(SUM(BQ$34:BQ$36)>0,$E40*$F40,0) -> 0 | BT40: =IF(SUM(BS$34:BS$36)>0,$E40*$F40,0) -> 0 | BV40: =IF(SUM(BU$34:BU$36)>0,$E40*$F40,0) -> 0 | BX40: =IF(SUM(BW$34:BW$36)>0,$E40*$F40,0) -> 0 | BZ40: =IF(SUM(BY$34:BY$36)>0,$E40*$F40,0) -> 0 | CB40: =IF(SUM(CA$34:CA$36)>0,$E40*$F40,0) -> 0 | CD40: =IF(SUM(CC$34:CC$36)>0,$E40*$F40,0) -> 0 | CF40: =IF(SUM(CE$34:CE$36)>0,$E40*$F40,0) -> 0 | CH40: =IF(SUM(CG$34:CG$36)>0,$E40*$F40,0) -> 0 | CJ40: =IF(SUM(CI$34:CI$36)>0,$E40*$F40,0) -> 0 | CL40: =IF(SUM(CK$34:CK$36)>0,$E40*$F40,0) -> 0 | CN40: =IF(SUM(CM$34:CM$36)>0,$E40*$F40,0) -> 0 | CP40: =IF(SUM(CO$34:CO$36)>0,$E40*$F40,0) -> 0 | CR40: =IF(SUM(CQ$34:CQ$36)>0,$E40*$F40,0) -> 0 | CT40: =IF(SUM(CS$34:CS$36)>0,$E40*$F40,0) -> 0 | CV40: =IF(SUM(CU$34:CU$36)>0,$E40*$F40,0) -> 0 | CX40: =IF(SUM(CW$34:CW$36)>0,$E40*$F40,0) -> 0 | CZ40: =IF(SUM(CY$34:CY$36)>0,$E40*$F40,0) -> 0 | DB40: =IF(SUM(DA$34:DA$36)>0,$E40*$F40,0) -> 0 | DD40: =IF(SUM(DC$34:DC$36)>0,$E40*$F40,0) -> 0 | DF40: =IF(SUM(DE$34:DE$36)>0,$E40*$F40,0) -> 0 | DH40: =IF(SUM(DG$34:DG$36)>0,$E40*$F40,0) -> 0 | DJ40: =IF(SUM(DI$34:DI$36)>0,$E40*$F40,0) -> 0 | DL40: =IF(SUM(DK$34:DK$36)>0,$E40*$F40,0) -> 0 | DN40: =IF(SUM(DM$34:DM$36)>0,$E40*$F40,0) -> 0 | DP40: =IF(SUM(DO$34:DO$36)>0,$E40*$F40,0) -> 0 | DR40: =IF(SUM(DQ$34:DQ$36)>0,$E40*$F40,0) -> 0 | DT40: =IF(SUM(DS$34:DS$36)>0,$E40*$F40,0) -> 0 | DV40: =IF(SUM(DU$34:DU$36)>0,$E40*$F40,0) -> 0 | DX40: =IF(SUM(DW$34:DW$36)>0,$E40*$F40,0) -> 0
I43: =IF($C43=I$11,1,0) -> 0 | K43: =IF($C43=K$11,1,0) -> 0 | M43: =IF($C43=M$11,1,0) -> 0 | O43: =IF($C43=O$11,1,0) -> 0 | Q43: =IF($C43=Q$11,1,0) -> 0 | S43: =IF($C43=S$11,1,0) -> 0 | U43: =IF($C43=U$11,1,0) -> 0 | W43: =IF($C43=W$11,1,0) -> 0 | Y43: =IF($C43=Y$11,1,0) -> 0 | AA43: =IF($C43=AA$11,1,0) -> 0 | AC43: =IF($C43=AC$11,1,0) -> 0 | AE43: =IF($C43=AE$11,1,0) -> 0 | AG43: =IF($C43=AG$11,1,0) -> 0 | AI43: =IF($C43=AI$11,1,0) -> 0 | AK43: =IF($C43=AK$11,1,0) -> 0 | AM43: =IF($C43=AM$11,1,0) -> 0 | AO43: =IF($C43=AO$11,1,0) -> 0 | AQ43: =IF($C43=AQ$11,1,0) -> 0 | AS43: =IF($C43=AS$11,1,0) -> 0
I44: =IF($C44=I$11,1,0) -> 0 | K44: 0 | M44: 0 | O44: 0 | Q44: 0 | S44: 0 | U44: 0 | W44: 0 | Y44: 0 | AA44: 0 | AC44: 0 | AE44: =IF($C44=AE$11,1,0) -> 0 | AG44: 0 | AI44: 0 | AK44: 0 | AM44: 0 | AO44: 0 | AQ44: 0 | AS44: 0 | AU44: =IF($C44=AU$11,1,0) -> 0 | AW44: =IF($C44=AW$11,1,0) -> 0 | AY44: =IF($C44=AY$11,1,0) -> 0 | BA44: =IF($C44=BA$11,1,0) -> 0 | BC44: =IF($C44=BC$11,1,0) -> 0 | BE44: =IF($C44=BE$11,1,0) -> 0 | BG44: =IF($C44=BG$11,1,0) -> 0 | BI44: =IF($C44=BI$11,1,0) -> 0 | BK44: =IF($C44=BK$11,1,0) -> 0 | BM44: =IF($C44=BM$11,1,0) -> 0 | BO44: =IF($C44=BO$11,1,0) -> 0 | BQ44: =IF($C44=BQ$11,1,0) -> 0 | BS44: =IF($C44=BS$11,1,0) -> 0 | BU44: =IF($C44=BU$11,1,0) -> 0 | BW44: =IF($C44=BW$11,1,0) -> 0 | BY44: =IF($C44=BY$11,1,0) -> 0 | CA44: =IF($C44=CA$11,1,0) -> 0 | CC44: =IF($C44=CC$11,1,0) -> 0 | CE44: =IF($C44=CE$11,1,0) -> 0 | CG44: =IF($C44=CG$11,1,0) -> 0 | CI44: =IF($C44=CI$11,1,0) -> 0 | CK44: =IF($C44=CK$11,1,0) -> 0 | CM44: =IF($C44=CM$11,1,0) -> 0 | CO44: =IF($C44=CO$11,1,0) -> 0 | CQ44: =IF($C44=CQ$11,1,0) -> 0 | CS44: =IF($C44=CS$11,1,0) -> 0 | CU44: =IF($C44=CU$11,1,0) -> 0 | CW44: =IF($C44=CW$11,1,0) -> 0 | CY44: =IF($C44=CY$11,1,0) -> 0 | DA44: =IF($C44=DA$11,1,0) -> 0 | DC44: =IF($C44=DC$11,1,0) -> 0 | DE44: =IF($C44=DE$11,1,0) -> 0 | DG44: =IF($C44=DG$11,1,0) -> 0 | DI44: =IF($C44=DI$11,1,0) -> 0 | DK44: =IF($C44=DK$11,1,0) -> 0 | DM44: =IF($C44=DM$11,1,0) -> 0 | DO44: =IF($C44=DO$11,1,0) -> 0 | DQ44: =IF($C44=DQ$11,1,0) -> 0 | DS44: =IF($C44=DS$11,1,0) -> 0 | DU44: =IF($C44=DU$11,1,0) -> 0 | DW44: =IF($C44=DW$11,1,0) -> 0
I45: =IF($C45=I$11,1,0) -> 0 | K45: 0 | M45: 0 | O45: 0 | Q45: 0 | S45: 0 | U45: 0 | W45: 0 | Y45: 0 | AA45: 0 | AC45: 0 | AE45: =IF($C45=AE$11,1,0) -> 0 | AG45: 0 | AI45: 0 | AK45: 0 | AM45: 0 | AO45: 0 | AQ45: 0 | AS45: 0
J48: =IF(SUM(I$25:I$27)>0,$E48*$F48,0) -> 0 | L48: =IF(SUM(K$25:K$27)>0,$E48*$F48,0) -> 0 | N48: =IF(SUM(M$25:M$27)>0,$E48*$F48,0) -> 0 | P48: =IF(SUM(O$25:O$27)>0,$E48*$F48,0) -> 0 | R48: =IF(SUM(Q$25:Q$27)>0,$E48*$F48,0) -> 0 | T48: =IF(SUM(S$25:S$27)>0,$E48*$F48,0) -> 0 | V48: =IF(SUM(U$25:U$27)>0,$E48*$F48,0) -> 0 | X48: =IF(SUM(W$25:W$27)>0,$E48*$F48,0) -> 0 | Z48: =IF(SUM(Y$25:Y$27)>0,$E48*$F48,0) -> 0 | AB48: =IF(SUM(AA$25:AA$27)>0,$E48*$F48,0) -> 0 | AD48: =IF(SUM(AC$25:AC$27)>0,$E48*$F48,0) -> 0 | AF48: =IF(SUM(AE$25:AE$27)>0,$E48*$F48,0) -> 0 | AH48: =IF(SUM(AG$25:AG$27)>0,$E48*$F48,0) -> 0 | AJ48: =IF(SUM(AI$25:AI$27)>0,$E48*$F48,0) -> 0 | AL48: =IF(SUM(AK$25:AK$27)>0,$E48*$F48,0) -> 0 | AN48: =IF(SUM(AM$25:AM$27)>0,$E48*$F48,0) -> 0 | AP48: =IF(SUM(AO$25:AO$27)>0,$E48*$F48,0) -> 0 | AR48: =IF(SUM(AQ$25:AQ$27)>0,$E48*$F48,0) -> 0 | AT48: =IF(SUM(AS$25:AS$27)>0,$E48*$F48,0) -> 0 | AV48: =IF(SUM(AU$25:AU$27)>0,$E48*$F48,0) -> 0 | AX48: =IF(SUM(AW$25:AW$27)>0,$E48*$F48,0) -> 0 | AZ48: =IF(SUM(AY$25:AY$27)>0,$E48*$F48,0) -> 0 | BB48: =IF(SUM(BA$25:BA$27)>0,$E48*$F48,0) -> 0 | BD48: =IF(SUM(BC$25:BC$27)>0,$E48*$F48,0) -> 0 | BF48: =IF(SUM(BE$25:BE$27)>0,$E48*$F48,0) -> 0 | BH48: =IF(SUM(BG$25:BG$27)>0,$E48*$F48,0) -> 0 | BJ48: =IF(SUM(BI$25:BI$27)>0,$E48*$F48,0) -> 0 | BL48: =IF(SUM(BK$25:BK$27)>0,$E48*$F48,0) -> 0 | BN48: =IF(SUM(BM$25:BM$27)>0,$E48*$F48,0) -> 0 | BP48: =IF(SUM(BO$25:BO$27)>0,$E48*$F48,0) -> 0 | BR48: =IF(SUM(BQ$25:BQ$27)>0,$E48*$F48,0) -> 0 | BT48: =IF(SUM(BS$25:BS$27)>0,$E48*$F48,0) -> 0 | BV48: =IF(SUM(BU$25:BU$27)>0,$E48*$F48,0) -> 0 | BX48: =IF(SUM(BW$25:BW$27)>0,$E48*$F48,0) -> 0 | BZ48: =IF(SUM(BY$25:BY$27)>0,$E48*$F48,0) -> 0 | CB48: =IF(SUM(CA$25:CA$27)>0,$E48*$F48,0) -> 0 | CD48: =IF(SUM(CC$25:CC$27)>0,$E48*$F48,0) -> 0 | CF48: =IF(SUM(CE$25:CE$27)>0,$E48*$F48,0) -> 0 | CH48: =IF(SUM(CG$25:CG$27)>0,$E48*$F48,0) -> 0 | CJ48: =IF(SUM(CI$25:CI$27)>0,$E48*$F48,0) -> 0 | CL48: =IF(SUM(CK$25:CK$27)>0,$E48*$F48,0) -> 0 | CN48: =IF(SUM(CM$25:CM$27)>0,$E48*$F48,0) -> 0 | CP48: =IF(SUM(CO$25:CO$27)>0,$E48*$F48,0) -> 0 | CR48: =IF(SUM(CQ$25:CQ$27)>0,$E48*$F48,0) -> 0 | CT48: =IF(SUM(CS$25:CS$27)>0,$E48*$F48,0) -> 0 | CV48: =IF(SUM(CU$25:CU$27)>0,$E48*$F48,0) -> 0 | CX48: =IF(SUM(CW$25:CW$27)>0,$E48*$F48,0) -> 0 | CZ48: =IF(SUM(CY$25:CY$27)>0,$E48*$F48,0) -> 0 | DB48: =IF(SUM(DA$25:DA$27)>0,$E48*$F48,0) -> 0 | DD48: =IF(SUM(DC$25:DC$27)>0,$E48*$F48,0) -> 0 | DF48: =IF(SUM(DE$25:DE$27)>0,$E48*$F48,0) -> 0 | DH48: =IF(SUM(DG$25:DG$27)>0,$E48*$F48,0) -> 0 | DJ48: =IF(SUM(DI$25:DI$27)>0,$E48*$F48,0) -> 0 | DL48: =IF(SUM(DK$25:DK$27)>0,$E48*$F48,0) -> 0 | DN48: =IF(SUM(DM$25:DM$27)>0,$E48*$F48,0) -> 0 | DP48: =IF(SUM(DO$25:DO$27)>0,$E48*$F48,0) -> 0 | DR48: =IF(SUM(DQ$25:DQ$27)>0,$E48*$F48,0) -> 0 | DT48: =IF(SUM(DS$25:DS$27)>0,$E48*$F48,0) -> 0 | DV48: =IF(SUM(DU$25:DU$27)>0,$E48*$F48,0) -> 0 | DX48: =IF(SUM(DW$25:DW$27)>0,$E48*$F48,0) -> 0
J49: =IF(SUM(I$43:I$45)>0,$E49*$F49,0) -> 0 | L49: =IF(SUM(K$43:K$45)>0,$E49*$F49,0) -> 0 | N49: =IF(SUM(M$43:M$45)>0,$E49*$F49,0) -> 0 | P49: =IF(SUM(O$43:O$45)>0,$E49*$F49,0) -> 0 | R49: =IF(SUM(Q$43:Q$45)>0,$E49*$F49,0) -> 0 | T49: =IF(SUM(S$43:S$45)>0,$E49*$F49,0) -> 0 | V49: =IF(SUM(U$43:U$45)>0,$E49*$F49,0) -> 0 | X49: =IF(SUM(W$43:W$45)>0,$E49*$F49,0) -> 0 | Z49: =IF(SUM(Y$43:Y$45)>0,$E49*$F49,0) -> 0 | AB49: =IF(SUM(AA$43:AA$45)>0,$E49*$F49,0) -> 0 | AD49: =IF(SUM(AC$43:AC$45)>0,$E49*$F49,0) -> 0 | AF49: =IF(SUM(AE$43:AE$45)>0,$E49*$F49,0) -> 0 | AH49: =IF(SUM(AG$43:AG$45)>0,$E49*$F49,0) -> 0 | AJ49: =IF(SUM(AI$43:AI$45)>0,$E49*$F49,0) -> 0 | AL49: =IF(SUM(AK$43:AK$45)>0,$E49*$F49,0) -> 0 | AN49: =IF(SUM(AM$43:AM$45)>0,$E49*$F49,0) -> 0 | AP49: =IF(SUM(AO$43:AO$45)>0,$E49*$F49,0) -> 0 | AR49: =IF(SUM(AQ$43:AQ$45)>0,$E49*$F49,0) -> 0 | AT49: =IF(SUM(AS$43:AS$45)>0,$E49*$F49,0) -> 0 | AV49: =IF(SUM(AU$43:AU$45)>0,$E49*$F49,0) -> 0 | AX49: =IF(SUM(AW$43:AW$45)>0,$E49*$F49,0) -> 0 | AZ49: =IF(SUM(AY$43:AY$45)>0,$E49*$F49,0) -> 0 | BB49: =IF(SUM(BA$43:BA$45)>0,$E49*$F49,0) -> 0 | BD49: =IF(SUM(BC$43:BC$45)>0,$E49*$F49,0) -> 0 | BF49: =IF(SUM(BE$43:BE$45)>0,$E49*$F49,0) -> 0 | BH49: =IF(SUM(BG$43:BG$45)>0,$E49*$F49,0) -> 0 | BJ49: =IF(SUM(BI$43:BI$45)>0,$E49*$F49,0) -> 0 | BL49: =IF(SUM(BK$43:BK$45)>0,$E49*$F49,0) -> 0 | BN49: =IF(SUM(BM$43:BM$45)>0,$E49*$F49,0) -> 0 | BP49: =IF(SUM(BO$43:BO$45)>0,$E49*$F49,0) -> 0 | BR49: =IF(SUM(BQ$43:BQ$45)>0,$E49*$F49,0) -> 0 | BT49: =IF(SUM(BS$43:BS$45)>0,$E49*$F49,0) -> 0 | BV49: =IF(SUM(BU$43:BU$45)>0,$E49*$F49,0) -> 0 | BX49: =IF(SUM(BW$43:BW$45)>0,$E49*$F49,0) -> 0 | BZ49: =IF(SUM(BY$43:BY$45)>0,$E49*$F49,0) -> 0 | CB49: =IF(SUM(CA$43:CA$45)>0,$E49*$F49,0) -> 0 | CD49: =IF(SUM(CC$43:CC$45)>0,$E49*$F49,0) -> 0 | CF49: =IF(SUM(CE$43:CE$45)>0,$E49*$F49,0) -> 0 | CH49: =IF(SUM(CG$43:CG$45)>0,$E49*$F49,0) -> 0 | CJ49: =IF(SUM(CI$43:CI$45)>0,$E49*$F49,0) -> 0 | CL49: =IF(SUM(CK$43:CK$45)>0,$E49*$F49,0) -> 0 | CN49: =IF(SUM(CM$43:CM$45)>0,$E49*$F49,0) -> 0 | CP49: =IF(SUM(CO$43:CO$45)>0,$E49*$F49,0) -> 0 | CR49: =IF(SUM(CQ$43:CQ$45)>0,$E49*$F49,0) -> 0 | CT49: =IF(SUM(CS$43:CS$45)>0,$E49*$F49,0) -> 0 | CV49: =IF(SUM(CU$43:CU$45)>0,$E49*$F49,0) -> 0 | CX49: =IF(SUM(CW$43:CW$45)>0,$E49*$F49,0) -> 0 | CZ49: =IF(SUM(CY$43:CY$45)>0,$E49*$F49,0) -> 0 | DB49: =IF(SUM(DA$43:DA$45)>0,$E49*$F49,0) -> 0 | DD49: =IF(SUM(DC$43:DC$45)>0,$E49*$F49,0) -> 0 | DF49: =IF(SUM(DE$43:DE$45)>0,$E49*$F49,0) -> 0 | DH49: =IF(SUM(DG$43:DG$45)>0,$E49*$F49,0) -> 0 | DJ49: =IF(SUM(DI$43:DI$45)>0,$E49*$F49,0) -> 0 | DL49: =IF(SUM(DK$43:DK$45)>0,$E49*$F49,0) -> 0 | DN49: =IF(SUM(DM$43:DM$45)>0,$E49*$F49,0) -> 0 | DP49: =IF(SUM(DO$43:DO$45)>0,$E49*$F49,0) -> 0 | DR49: =IF(SUM(DQ$43:DQ$45)>0,$E49*$F49,0) -> 0 | DT49: =IF(SUM(DS$43:DS$45)>0,$E49*$F49,0) -> 0 | DV49: =IF(SUM(DU$43:DU$45)>0,$E49*$F49,0) -> 0 | DX49: =IF(SUM(DW$43:DW$45)>0,$E49*$F49,0) -> 0
I52: =IF($C52=I$11,1,0) -> 0 | K52: =IF($C52=K$11,1,0) -> 0 | M52: =IF($C52=M$11,1,0) -> 0 | O52: =IF($C52=O$11,1,0) -> 0 | Q52: =IF($C52=Q$11,1,0) -> 0 | S52: =IF($C52=S$11,1,0) -> 0 | U52: =IF($C52=U$11,1,0) -> 0 | W52: =IF($C52=W$11,1,0) -> 0 | Y52: =IF($C52=Y$11,1,0) -> 0 | AA52: =IF($C52=AA$11,1,0) -> 0 | AC52: =IF($C52=AC$11,1,0) -> 0 | AE52: =IF($C52=AE$11,1,0) -> 0 | AG52: =IF($C52=AG$11,1,0) -> 0 | AI52: =IF($C52=AI$11,1,0) -> 0 | AK52: =IF($C52=AK$11,1,0) -> 0 | AM52: =IF($C52=AM$11,1,0) -> 0 | AO52: =IF($C52=AO$11,1,0) -> 0 | AQ52: =IF($C52=AQ$11,1,0) -> 0 | AS52: =IF($C52=AS$11,1,0) -> 0
I53: =IF($C53=I$11,1,0) -> 0 | K53: 0 | M53: 0 | O53: 0 | Q53: 0 | S53: 0 | U53: 0 | W53: 0 | Y53: 0 | AA53: 0 | AC53: 0 | AE53: =IF($C53=AE$11,1,0) -> 0 | AG53: 0 | AI53: 0 | AK53: 0 | AM53: 0 | AO53: 0 | AQ53: 0 | AS53: 0 | AU53: =IF($C53=AU$11,1,0) -> 0 | AW53: =IF($C53=AW$11,1,0) -> 0 | AY53: =IF($C53=AY$11,1,0) -> 0 | BA53: =IF($C53=BA$11,1,0) -> 0 | BC53: =IF($C53=BC$11,1,0) -> 0 | BE53: =IF($C53=BE$11,1,0) -> 0 | BG53: =IF($C53=BG$11,1,0) -> 0 | BI53: =IF($C53=BI$11,1,0) -> 0 | BK53: =IF($C53=BK$11,1,0) -> 0 | BM53: =IF($C53=BM$11,1,0) -> 0 | BO53: =IF($C53=BO$11,1,0) -> 0 | BQ53: =IF($C53=BQ$11,1,0) -> 0 | BS53: =IF($C53=BS$11,1,0) -> 0 | BU53: =IF($C53=BU$11,1,0) -> 0 | BW53: =IF($C53=BW$11,1,0) -> 0 | BY53: =IF($C53=BY$11,1,0) -> 0 | CA53: =IF($C53=CA$11,1,0) -> 0 | CC53: =IF($C53=CC$11,1,0) -> 0 | CE53: =IF($C53=CE$11,1,0) -> 0 | CG53: =IF($C53=CG$11,1,0) -> 0 | CI53: =IF($C53=CI$11,1,0) -> 0 | CK53: =IF($C53=CK$11,1,0) -> 0 | CM53: =IF($C53=CM$11,1,0) -> 0 | CO53: =IF($C53=CO$11,1,0) -> 0 | CQ53: =IF($C53=CQ$11,1,0) -> 0 | CS53: =IF($C53=CS$11,1,0) -> 0 | CU53: =IF($C53=CU$11,1,0) -> 0 | CW53: =IF($C53=CW$11,1,0) -> 0 | CY53: =IF($C53=CY$11,1,0) -> 0 | DA53: =IF($C53=DA$11,1,0) -> 0 | DC53: =IF($C53=DC$11,1,0) -> 0 | DE53: =IF($C53=DE$11,1,0) -> 0 | DG53: =IF($C53=DG$11,1,0) -> 0 | DI53: =IF($C53=DI$11,1,0) -> 0 | DK53: =IF($C53=DK$11,1,0) -> 0 | DM53: =IF($C53=DM$11,1,0) -> 0 | DO53: =IF($C53=DO$11,1,0) -> 0 | DQ53: =IF($C53=DQ$11,1,0) -> 0 | DS53: =IF($C53=DS$11,1,0) -> 0 | DU53: =IF($C53=DU$11,1,0) -> 0 | DW53: =IF($C53=DW$11,1,0) -> 0
I54: =IF($C54=I$11,1,0) -> 0 | K54: 0 | M54: 0 | O54: 0 | Q54: 0 | S54: 0 | U54: 0 | W54: 0 | Y54: 0 | AA54: 0 | AC54: 0 | AE54: =IF($C54=AE$11,1,0) -> 0 | AG54: 0 | AI54: 0 | AK54: 0 | AM54: 0 | AO54: 0 | AQ54: 0 | AS54: 0
J57: =IF(SUM(I$25:I$27)>0,$E57*$F57,0) -> 0 | L57: =IF(SUM(K$25:K$27)>0,$E57*$F57,0) -> 0 | N57: =IF(SUM(M$25:M$27)>0,$E57*$F57,0) -> 0 | P57: =IF(SUM(O$25:O$27)>0,$E57*$F57,0) -> 0 | R57: =IF(SUM(Q$25:Q$27)>0,$E57*$F57,0) -> 0 | T57: =IF(SUM(S$25:S$27)>0,$E57*$F57,0) -> 0 | V57: =IF(SUM(U$25:U$27)>0,$E57*$F57,0) -> 0 | X57: =IF(SUM(W$25:W$27)>0,$E57*$F57,0) -> 0 | Z57: =IF(SUM(Y$25:Y$27)>0,$E57*$F57,0) -> 0 | AB57: =IF(SUM(AA$25:AA$27)>0,$E57*$F57,0) -> 0 | AD57: =IF(SUM(AC$25:AC$27)>0,$E57*$F57,0) -> 0 | AF57: =IF(SUM(AE$25:AE$27)>0,$E57*$F57,0) -> 0 | AH57: =IF(SUM(AG$25:AG$27)>0,$E57*$F57,0) -> 0 | AJ57: =IF(SUM(AI$25:AI$27)>0,$E57*$F57,0) -> 0 | AL57: =IF(SUM(AK$25:AK$27)>0,$E57*$F57,0) -> 0 | AN57: =IF(SUM(AM$25:AM$27)>0,$E57*$F57,0) -> 0 | AP57: =IF(SUM(AO$25:AO$27)>0,$E57*$F57,0) -> 0 | AR57: =IF(SUM(AQ$25:AQ$27)>0,$E57*$F57,0) -> 0 | AT57: =IF(SUM(AS$25:AS$27)>0,$E57*$F57,0) -> 0 | AV57: =IF(SUM(AU$25:AU$27)>0,$E57*$F57,0) -> 0 | AX57: =IF(SUM(AW$25:AW$27)>0,$E57*$F57,0) -> 0 | AZ57: =IF(SUM(AY$25:AY$27)>0,$E57*$F57,0) -> 0 | BB57: =IF(SUM(BA$25:BA$27)>0,$E57*$F57,0) -> 0 | BD57: =IF(SUM(BC$25:BC$27)>0,$E57*$F57,0) -> 0 | BF57: =IF(SUM(BE$25:BE$27)>0,$E57*$F57,0) -> 0 | BH57: =IF(SUM(BG$25:BG$27)>0,$E57*$F57,0) -> 0 | BJ57: =IF(SUM(BI$25:BI$27)>0,$E57*$F57,0) -> 0 | BL57: =IF(SUM(BK$25:BK$27)>0,$E57*$F57,0) -> 0 | BN57: =IF(SUM(BM$25:BM$27)>0,$E57*$F57,0) -> 0 | BP57: =IF(SUM(BO$25:BO$27)>0,$E57*$F57,0) -> 0 | BR57: =IF(SUM(BQ$25:BQ$27)>0,$E57*$F57,0) -> 0 | BT57: =IF(SUM(BS$25:BS$27)>0,$E57*$F57,0) -> 0 | BV57: =IF(SUM(BU$25:BU$27)>0,$E57*$F57,0) -> 0 | BX57: =IF(SUM(BW$25:BW$27)>0,$E57*$F57,0) -> 0 | BZ57: =IF(SUM(BY$25:BY$27)>0,$E57*$F57,0) -> 0 | CB57: =IF(SUM(CA$25:CA$27)>0,$E57*$F57,0) -> 0 | CD57: =IF(SUM(CC$25:CC$27)>0,$E57*$F57,0) -> 0 | CF57: =IF(SUM(CE$25:CE$27)>0,$E57*$F57,0) -> 0 | CH57: =IF(SUM(CG$25:CG$27)>0,$E57*$F57,0) -> 0 | CJ57: =IF(SUM(CI$25:CI$27)>0,$E57*$F57,0) -> 0 | CL57: =IF(SUM(CK$25:CK$27)>0,$E57*$F57,0) -> 0 | CN57: =IF(SUM(CM$25:CM$27)>0,$E57*$F57,0) -> 0 | CP57: =IF(SUM(CO$25:CO$27)>0,$E57*$F57,0) -> 0 | CR57: =IF(SUM(CQ$25:CQ$27)>0,$E57*$F57,0) -> 0 | CT57: =IF(SUM(CS$25:CS$27)>0,$E57*$F57,0) -> 0 | CV57: =IF(SUM(CU$25:CU$27)>0,$E57*$F57,0) -> 0 | CX57: =IF(SUM(CW$25:CW$27)>0,$E57*$F57,0) -> 0 | CZ57: =IF(SUM(CY$25:CY$27)>0,$E57*$F57,0) -> 0 | DB57: =IF(SUM(DA$25:DA$27)>0,$E57*$F57,0) -> 0 | DD57: =IF(SUM(DC$25:DC$27)>0,$E57*$F57,0) -> 0 | DF57: =IF(SUM(DE$25:DE$27)>0,$E57*$F57,0) -> 0 | DH57: =IF(SUM(DG$25:DG$27)>0,$E57*$F57,0) -> 0 | DJ57: =IF(SUM(DI$25:DI$27)>0,$E57*$F57,0) -> 0 | DL57: =IF(SUM(DK$25:DK$27)>0,$E57*$F57,0) -> 0 | DN57: =IF(SUM(DM$25:DM$27)>0,$E57*$F57,0) -> 0 | DP57: =IF(SUM(DO$25:DO$27)>0,$E57*$F57,0) -> 0 | DR57: =IF(SUM(DQ$25:DQ$27)>0,$E57*$F57,0) -> 0 | DT57: =IF(SUM(DS$25:DS$27)>0,$E57*$F57,0) -> 0 | DV57: =IF(SUM(DU$25:DU$27)>0,$E57*$F57,0) -> 0 | DX57: =IF(SUM(DW$25:DW$27)>0,$E57*$F57,0) -> 0
J58: =IF(SUM(I$52:I$54)>0,$E58*$F58,0) -> 0 | L58: =IF(SUM(K$52:K$54)>0,$E58*$F58,0) -> 0 | N58: =IF(SUM(M$52:M$54)>0,$E58*$F58,0) -> 0 | P58: =IF(SUM(O$52:O$54)>0,$E58*$F58,0) -> 0 | R58: =IF(SUM(Q$52:Q$54)>0,$E58*$F58,0) -> 0 | T58: =IF(SUM(S$52:S$54)>0,$E58*$F58,0) -> 0 | V58: =IF(SUM(U$52:U$54)>0,$E58*$F58,0) -> 0 | X58: =IF(SUM(W$52:W$54)>0,$E58*$F58,0) -> 0 | Z58: =IF(SUM(Y$52:Y$54)>0,$E58*$F58,0) -> 0 | AB58: =IF(SUM(AA$52:AA$54)>0,$E58*$F58,0) -> 0 | AD58: =IF(SUM(AC$52:AC$54)>0,$E58*$F58,0) -> 0 | AF58: =IF(SUM(AE$52:AE$54)>0,$E58*$F58,0) -> 0 | AH58: =IF(SUM(AG$52:AG$54)>0,$E58*$F58,0) -> 0 | AJ58: =IF(SUM(AI$52:AI$54)>0,$E58*$F58,0) -> 0 | AL58: =IF(SUM(AK$52:AK$54)>0,$E58*$F58,0) -> 0 | AN58: =IF(SUM(AM$52:AM$54)>0,$E58*$F58,0) -> 0 | AP58: =IF(SUM(AO$52:AO$54)>0,$E58*$F58,0) -> 0 | AR58: =IF(SUM(AQ$52:AQ$54)>0,$E58*$F58,0) -> 0 | AT58: =IF(SUM(AS$52:AS$54)>0,$E58*$F58,0) -> 0 | AV58: =IF(SUM(AU$52:AU$54)>0,$E58*$F58,0) -> 0 | AX58: =IF(SUM(AW$52:AW$54)>0,$E58*$F58,0) -> 0 | AZ58: =IF(SUM(AY$52:AY$54)>0,$E58*$F58,0) -> 0 | BB58: =IF(SUM(BA$52:BA$54)>0,$E58*$F58,0) -> 0 | BD58: =IF(SUM(BC$52:BC$54)>0,$E58*$F58,0) -> 0 | BF58: =IF(SUM(BE$52:BE$54)>0,$E58*$F58,0) -> 0 | BH58: =IF(SUM(BG$52:BG$54)>0,$E58*$F58,0) -> 0 | BJ58: =IF(SUM(BI$52:BI$54)>0,$E58*$F58,0) -> 0 | BL58: =IF(SUM(BK$52:BK$54)>0,$E58*$F58,0) -> 0 | BN58: =IF(SUM(BM$52:BM$54)>0,$E58*$F58,0) -> 0 | BP58: =IF(SUM(BO$52:BO$54)>0,$E58*$F58,0) -> 0 | BR58: =IF(SUM(BQ$52:BQ$54)>0,$E58*$F58,0) -> 0 | BT58: =IF(SUM(BS$52:BS$54)>0,$E58*$F58,0) -> 0 | BV58: =IF(SUM(BU$52:BU$54)>0,$E58*$F58,0) -> 0 | BX58: =IF(SUM(BW$52:BW$54)>0,$E58*$F58,0) -> 0 | BZ58: =IF(SUM(BY$52:BY$54)>0,$E58*$F58,0) -> 0 | CB58: =IF(SUM(CA$52:CA$54)>0,$E58*$F58,0) -> 0 | CD58: =IF(SUM(CC$52:CC$54)>0,$E58*$F58,0) -> 0 | CF58: =IF(SUM(CE$52:CE$54)>0,$E58*$F58,0) -> 0 | CH58: =IF(SUM(CG$52:CG$54)>0,$E58*$F58,0) -> 0 | CJ58: =IF(SUM(CI$52:CI$54)>0,$E58*$F58,0) -> 0 | CL58: =IF(SUM(CK$52:CK$54)>0,$E58*$F58,0) -> 0 | CN58: =IF(SUM(CM$52:CM$54)>0,$E58*$F58,0) -> 0 | CP58: =IF(SUM(CO$52:CO$54)>0,$E58*$F58,0) -> 0 | CR58: =IF(SUM(CQ$52:CQ$54)>0,$E58*$F58,0) -> 0 | CT58: =IF(SUM(CS$52:CS$54)>0,$E58*$F58,0) -> 0 | CV58: =IF(SUM(CU$52:CU$54)>0,$E58*$F58,0) -> 0 | CX58: =IF(SUM(CW$52:CW$54)>0,$E58*$F58,0) -> 0 | CZ58: =IF(SUM(CY$52:CY$54)>0,$E58*$F58,0) -> 0 | DB58: =IF(SUM(DA$52:DA$54)>0,$E58*$F58,0) -> 0 | DD58: =IF(SUM(DC$52:DC$54)>0,$E58*$F58,0) -> 0 | DF58: =IF(SUM(DE$52:DE$54)>0,$E58*$F58,0) -> 0 | DH58: =IF(SUM(DG$52:DG$54)>0,$E58*$F58,0) -> 0 | DJ58: =IF(SUM(DI$52:DI$54)>0,$E58*$F58,0) -> 0 | DL58: =IF(SUM(DK$52:DK$54)>0,$E58*$F58,0) -> 0 | DN58: =IF(SUM(DM$52:DM$54)>0,$E58*$F58,0) -> 0 | DP58: =IF(SUM(DO$52:DO$54)>0,$E58*$F58,0) -> 0 | DR58: =IF(SUM(DQ$52:DQ$54)>0,$E58*$F58,0) -> 0 | DT58: =IF(SUM(DS$52:DS$54)>0,$E58*$F58,0) -> 0 | DV58: =IF(SUM(DU$52:DU$54)>0,$E58*$F58,0) -> 0 | DX58: =IF(SUM(DW$52:DW$54)>0,$E58*$F58,0) -> 0
I61: =IF($C61=I$11,1,0) -> 0 | K61: =IF($C61=K$11,1,0) -> 0 | M61: =IF($C61=M$11,1,0) -> 0 | O61: =IF($C61=O$11,1,0) -> 0 | Q61: =IF($C61=Q$11,1,0) -> 0 | S61: =IF($C61=S$11,1,0) -> 0 | U61: =IF($C61=U$11,1,0) -> 0 | W61: =IF($C61=W$11,1,0) -> 0 | Y61: =IF($C61=Y$11,1,0) -> 0 | AA61: =IF($C61=AA$11,1,0) -> 0 | AC61: =IF($C61=AC$11,1,0) -> 0 | AE61: =IF($C61=AE$11,1,0) -> 0 | AG61: =IF($C61=AG$11,1,0) -> 0 | AI61: =IF($C61=AI$11,1,0) -> 0 | AK61: =IF($C61=AK$11,1,0) -> 0 | AM61: =IF($C61=AM$11,1,0) -> 0 | AO61: =IF($C61=AO$11,1,0) -> 0 | AQ61: =IF($C61=AQ$11,1,0) -> 0 | AS61: =IF($C61=AS$11,1,0) -> 0
I62: =IF($C62=I$11,1,0) -> 0 | J62: =IF($C62=J$11,1,0) -> 1 | K62: 0 | L62: 1 | M62: 0 | N62: 1 | O62: 0 | P62: 1 | Q62: 0 | R62: 1 | S62: 0 | T62: 1 | U62: 0 | V62: 1 | W62: 0 | X62: 1 | Y62: 0 | Z62: 1 | AA62: 0 | AB62: 1 | AC62: 0 | AD62: 1 | AE62: =IF($C62=AE$11,1,0) -> 0 | AF62: 1 | AG62: 0 | AH62: 1 | AI62: 0 | AJ62: 1 | AK62: 0 | AL62: 1 | AM62: 0 | AN62: 1 | AO62: 0 | AP62: 1 | AQ62: 0 | AR62: 1 | AS62: 0 | AT62: 1 | AU62: =IF($C62=AU$11,1,0) -> 0 | AV62: 1 | AW62: =IF($C62=AW$11,1,0) -> 0 | AX62: 1 | AY62: =IF($C62=AY$11,1,0) -> 0 | AZ62: 1 | BA62: =IF($C62=BA$11,1,0) -> 0 | BB62: 1 | BC62: =IF($C62=BC$11,1,0) -> 0 | BD62: 1 | BE62: =IF($C62=BE$11,1,0) -> 0 | BF62: 1 | BG62: =IF($C62=BG$11,1,0) -> 0 | BH62: 1 | BI62: =IF($C62=BI$11,1,0) -> 0 | BJ62: 1 | BK62: =IF($C62=BK$11,1,0) -> 0 | BL62: 1 | BM62: =IF($C62=BM$11,1,0) -> 0 | BN62: 1 | BO62: =IF($C62=BO$11,1,0) -> 0 | BP62: 1 | BQ62: =IF($C62=BQ$11,1,0) -> 0 | BR62: 1 | BS62: =IF($C62=BS$11,1,0) -> 0 | BT62: 1 | BU62: =IF($C62=BU$11,1,0) -> 0 | BV62: 1 | BW62: =IF($C62=BW$11,1,0) -> 0 | BX62: 1 | BY62: =IF($C62=BY$11,1,0) -> 0 | BZ62: 1 | CA62: =IF($C62=CA$11,1,0) -> 0 | CB62: 1 | CC62: =IF($C62=CC$11,1,0) -> 0 | CD62: 1 | CE62: =IF($C62=CE$11,1,0) -> 0 | CF62: 1 | CG62: =IF($C62=CG$11,1,0) -> 0 | CH62: 1 | CI62: =IF($C62=CI$11,1,0) -> 0 | CJ62: 1 | CK62: =IF($C62=CK$11,1,0) -> 0 | CL62: 1 | CM62: =IF($C62=CM$11,1,0) -> 0 | CN62: 1 | CO62: =IF($C62=CO$11,1,0) -> 0 | CP62: 1 | CQ62: =IF($C62=CQ$11,1,0) -> 0 | CR62: 1 | CS62: =IF($C62=CS$11,1,0) -> 0 | CT62: 1 | CU62: =IF($C62=CU$11,1,0) -> 0 | CV62: 1 | CW62: =IF($C62=CW$11,1,0) -> 0 | CX62: 1 | CY62: =IF($C62=CY$11,1,0) -> 0 | CZ62: 1 | DA62: =IF($C62=DA$11,1,0) -> 0 | DB62: 1 | DC62: =IF($C62=DC$11,1,0) -> 0 | DD62: 1 | DE62: =IF($C62=DE$11,1,0) -> 0 | DF62: 1 | DG62: =IF($C62=DG$11,1,0) -> 0 | DH62: 1 | DI62: =IF($C62=DI$11,1,0) -> 0 | DJ62: 1 | DK62: =IF($C62=DK$11,1,0) -> 0 | DL62: 1 | DM62: =IF($C62=DM$11,1,0) -> 0 | DN62: 1 | DO62: =IF($C62=DO$11,1,0) -> 0 | DP62: 1 | DQ62: =IF($C62=DQ$11,1,0) -> 0 | DR62: 1 | DS62: =IF($C62=DS$11,1,0) -> 0 | DT62: 1 | DU62: =IF($C62=DU$11,1,0) -> 0 | DV62: 1 | DW62: =IF($C62=DW$11,1,0) -> 0 | DX62: 1
I63: =IF($C63=I$11,1,0) -> 0 | K63: 0 | M63: 0 | O63: 0 | Q63: 0 | S63: 0 | U63: 0 | W63: 0 | Y63: 0 | AA63: 0 | AC63: 0 | AE63: =IF($C63=AE$11,1,0) -> 0 | AG63: 0 | AI63: 0 | AK63: 0 | AM63: 0 | AO63: 0 | AQ63: 0 | AS63: 0
J66: =IF(SUM(I$25:I$27)>0,$E66*$F66,0) -> 0 | L66: =IF(SUM(K$25:K$27)>0,$E66*$F66,0) -> 0 | N66: =IF(SUM(M$25:M$27)>0,$E66*$F66,0) -> 0 | P66: =IF(SUM(O$25:O$27)>0,$E66*$F66,0) -> 0 | R66: =IF(SUM(Q$25:Q$27)>0,$E66*$F66,0) -> 0 | T66: =IF(SUM(S$25:S$27)>0,$E66*$F66,0) -> 0 | V66: =IF(SUM(U$25:U$27)>0,$E66*$F66,0) -> 0 | X66: =IF(SUM(W$25:W$27)>0,$E66*$F66,0) -> 0 | Z66: =IF(SUM(Y$25:Y$27)>0,$E66*$F66,0) -> 0 | AB66: =IF(SUM(AA$25:AA$27)>0,$E66*$F66,0) -> 0 | AD66: =IF(SUM(AC$25:AC$27)>0,$E66*$F66,0) -> 0 | AF66: =IF(SUM(AE$25:AE$27)>0,$E66*$F66,0) -> 0 | AH66: =IF(SUM(AG$25:AG$27)>0,$E66*$F66,0) -> 0 | AJ66: =IF(SUM(AI$25:AI$27)>0,$E66*$F66,0) -> 0 | AL66: =IF(SUM(AK$25:AK$27)>0,$E66*$F66,0) -> 0 | AN66: =IF(SUM(AM$25:AM$27)>0,$E66*$F66,0) -> 0 | AP66: =IF(SUM(AO$25:AO$27)>0,$E66*$F66,0) -> 0 | AR66: =IF(SUM(AQ$25:AQ$27)>0,$E66*$F66,0) -> 0 | AT66: =IF(SUM(AS$25:AS$27)>0,$E66*$F66,0) -> 0 | AV66: =IF(SUM(AU$25:AU$27)>0,$E66*$F66,0) -> 0 | AX66: =IF(SUM(AW$25:AW$27)>0,$E66*$F66,0) -> 0 | AZ66: =IF(SUM(AY$25:AY$27)>0,$E66*$F66,0) -> 0 | BB66: =IF(SUM(BA$25:BA$27)>0,$E66*$F66,0) -> 0 | BD66: =IF(SUM(BC$25:BC$27)>0,$E66*$F66,0) -> 0 | BF66: =IF(SUM(BE$25:BE$27)>0,$E66*$F66,0) -> 0 | BH66: =IF(SUM(BG$25:BG$27)>0,$E66*$F66,0) -> 0 | BJ66: =IF(SUM(BI$25:BI$27)>0,$E66*$F66,0) -> 0 | BL66: =IF(SUM(BK$25:BK$27)>0,$E66*$F66,0) -> 0 | BN66: =IF(SUM(BM$25:BM$27)>0,$E66*$F66,0) -> 0 | BP66: =IF(SUM(BO$25:BO$27)>0,$E66*$F66,0) -> 0 | BR66: =IF(SUM(BQ$25:BQ$27)>0,$E66*$F66,0) -> 0 | BT66: =IF(SUM(BS$25:BS$27)>0,$E66*$F66,0) -> 0 | BV66: =IF(SUM(BU$25:BU$27)>0,$E66*$F66,0) -> 0 | BX66: =IF(SUM(BW$25:BW$27)>0,$E66*$F66,0) -> 0 | BZ66: =IF(SUM(BY$25:BY$27)>0,$E66*$F66,0) -> 0 | CB66: =IF(SUM(CA$25:CA$27)>0,$E66*$F66,0) -> 0 | CD66: =IF(SUM(CC$25:CC$27)>0,$E66*$F66,0) -> 0 | CF66: =IF(SUM(CE$25:CE$27)>0,$E66*$F66,0) -> 0 | CH66: =IF(SUM(CG$25:CG$27)>0,$E66*$F66,0) -> 0 | CJ66: =IF(SUM(CI$25:CI$27)>0,$E66*$F66,0) -> 0 | CL66: =IF(SUM(CK$25:CK$27)>0,$E66*$F66,0) -> 0 | CN66: =IF(SUM(CM$25:CM$27)>0,$E66*$F66,0) -> 0 | CP66: =IF(SUM(CO$25:CO$27)>0,$E66*$F66,0) -> 0 | CR66: =IF(SUM(CQ$25:CQ$27)>0,$E66*$F66,0) -> 0 | CT66: =IF(SUM(CS$25:CS$27)>0,$E66*$F66,0) -> 0 | CV66: =IF(SUM(CU$25:CU$27)>0,$E66*$F66,0) -> 0 | CX66: =IF(SUM(CW$25:CW$27)>0,$E66*$F66,0) -> 0 | CZ66: =IF(SUM(CY$25:CY$27)>0,$E66*$F66,0) -> 0 | DB66: =IF(SUM(DA$25:DA$27)>0,$E66*$F66,0) -> 0 | DD66: =IF(SUM(DC$25:DC$27)>0,$E66*$F66,0) -> 0 | DF66: =IF(SUM(DE$25:DE$27)>0,$E66*$F66,0) -> 0 | DH66: =IF(SUM(DG$25:DG$27)>0,$E66*$F66,0) -> 0 | DJ66: =IF(SUM(DI$25:DI$27)>0,$E66*$F66,0) -> 0 | DL66: =IF(SUM(DK$25:DK$27)>0,$E66*$F66,0) -> 0 | DN66: =IF(SUM(DM$25:DM$27)>0,$E66*$F66,0) -> 0 | DP66: =IF(SUM(DO$25:DO$27)>0,$E66*$F66,0) -> 0 | DR66: =IF(SUM(DQ$25:DQ$27)>0,$E66*$F66,0) -> 0 | DT66: =IF(SUM(DS$25:DS$27)>0,$E66*$F66,0) -> 0 | DV66: =IF(SUM(DU$25:DU$27)>0,$E66*$F66,0) -> 0 | DX66: =IF(SUM(DW$25:DW$27)>0,$E66*$F66,0) -> 0
J67: =IF(SUM(I$61:I$62)>0,$E67*$F67,0) -> 0 | L67: =IF(SUM(K$61:K$62)>0,$E67*$F67,0) -> 0 | N67: =IF(SUM(M$61:M$62)>0,$E67*$F67,0) -> 0 | P67: =IF(SUM(O$61:O$62)>0,$E67*$F67,0) -> 0 | R67: =IF(SUM(Q$61:Q$62)>0,$E67*$F67,0) -> 0 | T67: =IF(SUM(S$61:S$62)>0,$E67*$F67,0) -> 0 | V67: =IF(SUM(U$61:U$62)>0,$E67*$F67,0) -> 0 | X67: =IF(SUM(W$61:W$62)>0,$E67*$F67,0) -> 0 | Z67: =IF(SUM(Y$61:Y$62)>0,$E67*$F67,0) -> 0 | AB67: =IF(SUM(AA$61:AA$62)>0,$E67*$F67,0) -> 0 | AD67: =IF(SUM(AC$61:AC$62)>0,$E67*$F67,0) -> 0 | AF67: =IF(SUM(AE$61:AE$62)>0,$E67*$F67,0) -> 0 | AH67: =IF(SUM(AG$61:AG$62)>0,$E67*$F67,0) -> 0 | AJ67: =IF(SUM(AI$61:AI$62)>0,$E67*$F67,0) -> 0 | AL67: =IF(SUM(AK$61:AK$62)>0,$E67*$F67,0) -> 0 | AN67: =IF(SUM(AM$61:AM$62)>0,$E67*$F67,0) -> 0 | AP67: =IF(SUM(AO$61:AO$62)>0,$E67*$F67,0) -> 0 | AR67: =IF(SUM(AQ$61:AQ$62)>0,$E67*$F67,0) -> 0 | AT67: =IF(SUM(AS$61:AS$62)>0,$E67*$F67,0) -> 0 | AV67: =IF(SUM(AU$61:AU$62)>0,$E67*$F67,0) -> 0 | AX67: =IF(SUM(AW$61:AW$62)>0,$E67*$F67,0) -> 0 | AZ67: =IF(SUM(AY$61:AY$62)>0,$E67*$F67,0) -> 0 | BB67: =IF(SUM(BA$61:BA$62)>0,$E67*$F67,0) -> 0 | BD67: =IF(SUM(BC$61:BC$62)>0,$E67*$F67,0) -> 0 | BF67: =IF(SUM(BE$61:BE$62)>0,$E67*$F67,0) -> 0 | BH67: =IF(SUM(BG$61:BG$62)>0,$E67*$F67,0) -> 0 | BJ67: =IF(SUM(BI$61:BI$62)>0,$E67*$F67,0) -> 0 | BL67: =IF(SUM(BK$61:BK$62)>0,$E67*$F67,0) -> 0 | BN67: =IF(SUM(BM$61:BM$62)>0,$E67*$F67,0) -> 0 | BP67: =IF(SUM(BO$61:BO$62)>0,$E67*$F67,0) -> 0 | BR67: =IF(SUM(BQ$61:BQ$62)>0,$E67*$F67,0) -> 0 | BT67: =IF(SUM(BS$61:BS$62)>0,$E67*$F67,0) -> 0 | BV67: =IF(SUM(BU$61:BU$62)>0,$E67*$F67,0) -> 0 | BX67: =IF(SUM(BW$61:BW$62)>0,$E67*$F67,0) -> 0 | BZ67: =IF(SUM(BY$61:BY$62)>0,$E67*$F67,0) -> 0 | CB67: =IF(SUM(CA$61:CA$62)>0,$E67*$F67,0) -> 0 | CD67: =IF(SUM(CC$61:CC$62)>0,$E67*$F67,0) -> 0 | CF67: =IF(SUM(CE$61:CE$62)>0,$E67*$F67,0) -> 0 | CH67: =IF(SUM(CG$61:CG$62)>0,$E67*$F67,0) -> 0 | CJ67: =IF(SUM(CI$61:CI$62)>0,$E67*$F67,0) -> 0 | CL67: =IF(SUM(CK$61:CK$62)>0,$E67*$F67,0) -> 0 | CN67: =IF(SUM(CM$61:CM$62)>0,$E67*$F67,0) -> 0 | CP67: =IF(SUM(CO$61:CO$62)>0,$E67*$F67,0) -> 0 | CR67: =IF(SUM(CQ$61:CQ$62)>0,$E67*$F67,0) -> 0 | CT67: =IF(SUM(CS$61:CS$62)>0,$E67*$F67,0) -> 0 | CV67: =IF(SUM(CU$61:CU$62)>0,$E67*$F67,0) -> 0 | CX67: =IF(SUM(CW$61:CW$62)>0,$E67*$F67,0) -> 0 | CZ67: =IF(SUM(CY$61:CY$62)>0,$E67*$F67,0) -> 0 | DB67: =IF(SUM(DA$61:DA$62)>0,$E67*$F67,0) -> 0 | DD67: =IF(SUM(DC$61:DC$62)>0,$E67*$F67,0) -> 0 | DF67: =IF(SUM(DE$61:DE$62)>0,$E67*$F67,0) -> 0 | DH67: =IF(SUM(DG$61:DG$62)>0,$E67*$F67,0) -> 0 | DJ67: =IF(SUM(DI$61:DI$62)>0,$E67*$F67,0) -> 0 | DL67: =IF(SUM(DK$61:DK$62)>0,$E67*$F67,0) -> 0 | DN67: =IF(SUM(DM$61:DM$62)>0,$E67*$F67,0) -> 0 | DP67: =IF(SUM(DO$61:DO$62)>0,$E67*$F67,0) -> 0 | DR67: =IF(SUM(DQ$61:DQ$62)>0,$E67*$F67,0) -> 0 | DT67: =IF(SUM(DS$61:DS$62)>0,$E67*$F67,0) -> 0 | DV67: =IF(SUM(DU$61:DU$62)>0,$E67*$F67,0) -> 0 | DX67: =IF(SUM(DW$61:DW$62)>0,$E67*$F67,0) -> 0
I70: =IF($C70=I$11,1,0) -> 0 | K70: =IF($C70=K$11,1,0) -> 0 | M70: =IF($C70=M$11,1,0) -> 0 | O70: =IF($C70=O$11,1,0) -> 0 | Q70: =IF($C70=Q$11,1,0) -> 0 | S70: =IF($C70=S$11,1,0) -> 0 | U70: =IF($C70=U$11,1,0) -> 0 | W70: =IF($C70=W$11,1,0) -> 0 | Y70: =IF($C70=Y$11,1,0) -> 0 | AA70: =IF($C70=AA$11,1,0) -> 0 | AC70: =IF($C70=AC$11,1,0) -> 0 | AE70: =IF($C70=AE$11,1,0) -> 0 | AG70: =IF($C70=AG$11,1,0) -> 0 | AI70: =IF($C70=AI$11,1,0) -> 0 | AK70: =IF($C70=AK$11,1,0) -> 0 | AM70: =IF($C70=AM$11,1,0) -> 0 | AO70: =IF($C70=AO$11,1,0) -> 0 | AQ70: =IF($C70=AQ$11,1,0) -> 0 | AS70: =IF($C70=AS$11,1,0) -> 0
I71: =IF($C71=I$11,1,0) -> 0 | J71: =IF($C71=J$11,1,0) -> 1 | K71: 0 | L71: 1 | M71: 0 | N71: 1 | O71: 0 | P71: 1 | Q71: 0 | R71: 1 | S71: 0 | T71: 1 | U71: 0 | V71: 1 | W71: 0 | X71: 1 | Y71: 0 | Z71: 1 | AA71: 0 | AB71: 1 | AC71: 0 | AD71: 1 | AE71: =IF($C71=AE$11,1,0) -> 0 | AF71: 1 | AG71: 0 | AH71: 1 | AI71: 0 | AJ71: 1 | AK71: 0 | AL71: 1 | AM71: 0 | AN71: 1 | AO71: 0 | AP71: 1 | AQ71: 0 | AR71: 1 | AS71: 0 | AT71: 1 | AU71: =IF($C71=AU$11,1,0) -> 0 | AV71: 1 | AW71: =IF($C71=AW$11,1,0) -> 0 | AX71: 1 | AY71: =IF($C71=AY$11,1,0) -> 0 | AZ71: 1 | BA71: =IF($C71=BA$11,1,0) -> 0 | BB71: 1 | BC71: =IF($C71=BC$11,1,0) -> 0 | BD71: 1 | BE71: =IF($C71=BE$11,1,0) -> 0 | BF71: 1 | BG71: =IF($C71=BG$11,1,0) -> 0 | BH71: 1 | BI71: =IF($C71=BI$11,1,0) -> 0 | BJ71: 1 | BK71: =IF($C71=BK$11,1,0) -> 0 | BL71: 1 | BM71: =IF($C71=BM$11,1,0) -> 0 | BN71: 1 | BO71: =IF($C71=BO$11,1,0) -> 0 | BP71: 1 | BQ71: =IF($C71=BQ$11,1,0) -> 0 | BR71: 1 | BS71: =IF($C71=BS$11,1,0) -> 0 | BT71: 1 | BU71: =IF($C71=BU$11,1,0) -> 0 | BV71: 1 | BW71: =IF($C71=BW$11,1,0) -> 0 | BX71: 1 | BY71: =IF($C71=BY$11,1,0) -> 0 | BZ71: 1 | CA71: =IF($C71=CA$11,1,0) -> 0 | CB71: 1 | CC71: =IF($C71=CC$11,1,0) -> 0 | CD71: 1 | CE71: =IF($C71=CE$11,1,0) -> 0 | CF71: 1 | CG71: =IF($C71=CG$11,1,0) -> 0 | CH71: 1 | CI71: =IF($C71=CI$11,1,0) -> 0 | CJ71: 1 | CK71: =IF($C71=CK$11,1,0) -> 0 | CL71: 1 | CM71: =IF($C71=CM$11,1,0) -> 0 | CN71: 1 | CO71: =IF($C71=CO$11,1,0) -> 0 | CP71: 1 | CQ71: =IF($C71=CQ$11,1,0) -> 0 | CR71: 1 | CS71: =IF($C71=CS$11,1,0) -> 0 | CT71: 1 | CU71: =IF($C71=CU$11,1,0) -> 0 | CV71: 1 | CW71: =IF($C71=CW$11,1,0) -> 0 | CX71: 1 | CY71: =IF($C71=CY$11,1,0) -> 0 | CZ71: 1 | DA71: =IF($C71=DA$11,1,0) -> 0 | DB71: 1 | DC71: =IF($C71=DC$11,1,0) -> 0 | DD71: 1 | DE71: =IF($C71=DE$11,1,0) -> 0 | DF71: 1 | DG71: =IF($C71=DG$11,1,0) -> 0 | DH71: 1 | DI71: =IF($C71=DI$11,1,0) -> 0 | DJ71: 1 | DK71: =IF($C71=DK$11,1,0) -> 0 | DL71: 1 | DM71: =IF($C71=DM$11,1,0) -> 0 | DN71: 1 | DO71: =IF($C71=DO$11,1,0) -> 0 | DP71: 1 | DQ71: =IF($C71=DQ$11,1,0) -> 0 | DR71: 1 | DS71: =IF($C71=DS$11,1,0) -> 0 | DT71: 1 | DU71: =IF($C71=DU$11,1,0) -> 0 | DV71: 1 | DW71: =IF($C71=DW$11,1,0) -> 0 | DX71: 1
I72: =IF($C72=I$11,1,0) -> 0 | K72: 0 | M72: 0 | O72: 0 | Q72: 0 | S72: 0 | U72: 0 | W72: 0 | Y72: 0 | AA72: 0 | AC72: 0 | AE72: =IF($C72=AE$11,1,0) -> 0 | AG72: 0 | AI72: 0 | AK72: 0 | AM72: 0 | AO72: 0 | AQ72: 0 | AS72: 0
J75: =IF(SUM(I$25:I$27)>0,$E75*$F75,0) -> 0 | L75: =IF(SUM(K$25:K$27)>0,$E75*$F75,0) -> 0 | N75: =IF(SUM(M$25:M$27)>0,$E75*$F75,0) -> 0 | P75: =IF(SUM(O$25:O$27)>0,$E75*$F75,0) -> 0 | R75: =IF(SUM(Q$25:Q$27)>0,$E75*$F75,0) -> 0 | T75: =IF(SUM(S$25:S$27)>0,$E75*$F75,0) -> 0 | V75: =IF(SUM(U$25:U$27)>0,$E75*$F75,0) -> 0 | X75: =IF(SUM(W$25:W$27)>0,$E75*$F75,0) -> 0 | Z75: =IF(SUM(Y$25:Y$27)>0,$E75*$F75,0) -> 0 | AB75: =IF(SUM(AA$25:AA$27)>0,$E75*$F75,0) -> 0 | AD75: =IF(SUM(AC$25:AC$27)>0,$E75*$F75,0) -> 0 | AF75: =IF(SUM(AE$25:AE$27)>0,$E75*$F75,0) -> 0 | AH75: =IF(SUM(AG$25:AG$27)>0,$E75*$F75,0) -> 0 | AJ75: =IF(SUM(AI$25:AI$27)>0,$E75*$F75,0) -> 0 | AL75: =IF(SUM(AK$25:AK$27)>0,$E75*$F75,0) -> 0 | AN75: =IF(SUM(AM$25:AM$27)>0,$E75*$F75,0) -> 0 | AP75: =IF(SUM(AO$25:AO$27)>0,$E75*$F75,0) -> 0 | AR75: =IF(SUM(AQ$25:AQ$27)>0,$E75*$F75,0) -> 0 | AT75: =IF(SUM(AS$25:AS$27)>0,$E75*$F75,0) -> 0 | AV75: =IF(SUM(AU$25:AU$27)>0,$E75*$F75,0) -> 0 | AX75: =IF(SUM(AW$25:AW$27)>0,$E75*$F75,0) -> 0 | AZ75: =IF(SUM(AY$25:AY$27)>0,$E75*$F75,0) -> 0 | BB75: =IF(SUM(BA$25:BA$27)>0,$E75*$F75,0) -> 0 | BD75: =IF(SUM(BC$25:BC$27)>0,$E75*$F75,0) -> 0 | BF75: =IF(SUM(BE$25:BE$27)>0,$E75*$F75,0) -> 0 | BH75: =IF(SUM(BG$25:BG$27)>0,$E75*$F75,0) -> 0 | BJ75: =IF(SUM(BI$25:BI$27)>0,$E75*$F75,0) -> 0 | BL75: =IF(SUM(BK$25:BK$27)>0,$E75*$F75,0) -> 0 | BN75: =IF(SUM(BM$25:BM$27)>0,$E75*$F75,0) -> 0 | BP75: =IF(SUM(BO$25:BO$27)>0,$E75*$F75,0) -> 0 | BR75: =IF(SUM(BQ$25:BQ$27)>0,$E75*$F75,0) -> 0 | BT75: =IF(SUM(BS$25:BS$27)>0,$E75*$F75,0) -> 0 | BV75: =IF(SUM(BU$25:BU$27)>0,$E75*$F75,0) -> 0 | BX75: =IF(SUM(BW$25:BW$27)>0,$E75*$F75,0) -> 0 | BZ75: =IF(SUM(BY$25:BY$27)>0,$E75*$F75,0) -> 0 | CB75: =IF(SUM(CA$25:CA$27)>0,$E75*$F75,0) -> 0 | CD75: =IF(SUM(CC$25:CC$27)>0,$E75*$F75,0) -> 0 | CF75: =IF(SUM(CE$25:CE$27)>0,$E75*$F75,0) -> 0 | CH75: =IF(SUM(CG$25:CG$27)>0,$E75*$F75,0) -> 0 | CJ75: =IF(SUM(CI$25:CI$27)>0,$E75*$F75,0) -> 0 | CL75: =IF(SUM(CK$25:CK$27)>0,$E75*$F75,0) -> 0 | CN75: =IF(SUM(CM$25:CM$27)>0,$E75*$F75,0) -> 0 | CP75: =IF(SUM(CO$25:CO$27)>0,$E75*$F75,0) -> 0 | CR75: =IF(SUM(CQ$25:CQ$27)>0,$E75*$F75,0) -> 0 | CT75: =IF(SUM(CS$25:CS$27)>0,$E75*$F75,0) -> 0 | CV75: =IF(SUM(CU$25:CU$27)>0,$E75*$F75,0) -> 0 | CX75: =IF(SUM(CW$25:CW$27)>0,$E75*$F75,0) -> 0 | CZ75: =IF(SUM(CY$25:CY$27)>0,$E75*$F75,0) -> 0 | DB75: =IF(SUM(DA$25:DA$27)>0,$E75*$F75,0) -> 0 | DD75: =IF(SUM(DC$25:DC$27)>0,$E75*$F75,0) -> 0 | DF75: =IF(SUM(DE$25:DE$27)>0,$E75*$F75,0) -> 0 | DH75: =IF(SUM(DG$25:DG$27)>0,$E75*$F75,0) -> 0 | DJ75: =IF(SUM(DI$25:DI$27)>0,$E75*$F75,0) -> 0 | DL75: =IF(SUM(DK$25:DK$27)>0,$E75*$F75,0) -> 0 | DN75: =IF(SUM(DM$25:DM$27)>0,$E75*$F75,0) -> 0 | DP75: =IF(SUM(DO$25:DO$27)>0,$E75*$F75,0) -> 0 | DR75: =IF(SUM(DQ$25:DQ$27)>0,$E75*$F75,0) -> 0 | DT75: =IF(SUM(DS$25:DS$27)>0,$E75*$F75,0) -> 0 | DV75: =IF(SUM(DU$25:DU$27)>0,$E75*$F75,0) -> 0 | DX75: =IF(SUM(DW$25:DW$27)>0,$E75*$F75,0) -> 0
J76: =IF(SUM(I$71:I$73)>0,$E76*$F76,0) -> 0 | L76: =IF(SUM(K$71:K$73)>0,$E76*$F76,0) -> 0 | N76: =IF(SUM(M$71:M$73)>0,$E76*$F76,0) -> 0 | P76: =IF(SUM(O$71:O$73)>0,$E76*$F76,0) -> 0 | R76: =IF(SUM(Q$71:Q$73)>0,$E76*$F76,0) -> 0 | T76: =IF(SUM(S$71:S$73)>0,$E76*$F76,0) -> 0 | V76: =IF(SUM(U$71:U$73)>0,$E76*$F76,0) -> 0 | X76: =IF(SUM(W$71:W$73)>0,$E76*$F76,0) -> 0 | Z76: =IF(SUM(Y$71:Y$73)>0,$E76*$F76,0) -> 0 | AB76: =IF(SUM(AA$71:AA$73)>0,$E76*$F76,0) -> 0 | AD76: =IF(SUM(AC$71:AC$73)>0,$E76*$F76,0) -> 0 | AF76: =IF(SUM(AE$71:AE$73)>0,$E76*$F76,0) -> 0 | AH76: =IF(SUM(AG$71:AG$73)>0,$E76*$F76,0) -> 0 | AJ76: =IF(SUM(AI$71:AI$73)>0,$E76*$F76,0) -> 0 | AL76: =IF(SUM(AK$71:AK$73)>0,$E76*$F76,0) -> 0 | AN76: =IF(SUM(AM$71:AM$73)>0,$E76*$F76,0) -> 0 | AP76: =IF(SUM(AO$71:AO$73)>0,$E76*$F76,0) -> 0 | AR76: =IF(SUM(AQ$71:AQ$73)>0,$E76*$F76,0) -> 0 | AT76: =IF(SUM(AS$71:AS$73)>0,$E76*$F76,0) -> 0 | AV76: =IF(SUM(AU$71:AU$73)>0,$E76*$F76,0) -> 0 | AX76: =IF(SUM(AW$71:AW$73)>0,$E76*$F76,0) -> 0 | AZ76: =IF(SUM(AY$71:AY$73)>0,$E76*$F76,0) -> 0 | BB76: =IF(SUM(BA$71:BA$73)>0,$E76*$F76,0) -> 0 | BD76: =IF(SUM(BC$71:BC$73)>0,$E76*$F76,0) -> 0 | BF76: =IF(SUM(BE$71:BE$73)>0,$E76*$F76,0) -> 0 | BH76: =IF(SUM(BG$71:BG$73)>0,$E76*$F76,0) -> 0 | BJ76: =IF(SUM(BI$71:BI$73)>0,$E76*$F76,0) -> 0 | BL76: =IF(SUM(BK$71:BK$73)>0,$E76*$F76,0) -> 0 | BN76: =IF(SUM(BM$71:BM$73)>0,$E76*$F76,0) -> 0 | BP76: =IF(SUM(BO$71:BO$73)>0,$E76*$F76,0) -> 0 | BR76: =IF(SUM(BQ$71:BQ$73)>0,$E76*$F76,0) -> 0 | BT76: =IF(SUM(BS$71:BS$73)>0,$E76*$F76,0) -> 0 | BV76: =IF(SUM(BU$71:BU$73)>0,$E76*$F76,0) -> 0 | BX76: =IF(SUM(BW$71:BW$73)>0,$E76*$F76,0) -> 0 | BZ76: =IF(SUM(BY$71:BY$73)>0,$E76*$F76,0) -> 0 | CB76: =IF(SUM(CA$71:CA$73)>0,$E76*$F76,0) -> 0 | CD76: =IF(SUM(CC$71:CC$73)>0,$E76*$F76,0) -> 0 | CF76: =IF(SUM(CE$71:CE$73)>0,$E76*$F76,0) -> 0 | CH76: =IF(SUM(CG$71:CG$73)>0,$E76*$F76,0) -> 0 | CJ76: =IF(SUM(CI$71:CI$73)>0,$E76*$F76,0) -> 0 | CL76: =IF(SUM(CK$71:CK$73)>0,$E76*$F76,0) -> 0 | CN76: =IF(SUM(CM$71:CM$73)>0,$E76*$F76,0) -> 0 | CP76: =IF(SUM(CO$71:CO$73)>0,$E76*$F76,0) -> 0 | CR76: =IF(SUM(CQ$71:CQ$73)>0,$E76*$F76,0) -> 0 | CT76: =IF(SUM(CS$71:CS$73)>0,$E76*$F76,0) -> 0 | CV76: =IF(SUM(CU$71:CU$73)>0,$E76*$F76,0) -> 0 | CX76: =IF(SUM(CW$71:CW$73)>0,$E76*$F76,0) -> 0 | CZ76: =IF(SUM(CY$71:CY$73)>0,$E76*$F76,0) -> 0 | DB76: =IF(SUM(DA$71:DA$73)>0,$E76*$F76,0) -> 0 | DD76: =IF(SUM(DC$71:DC$73)>0,$E76*$F76,0) -> 0 | DF76: =IF(SUM(DE$71:DE$73)>0,$E76*$F76,0) -> 0 | DH76: =IF(SUM(DG$71:DG$73)>0,$E76*$F76,0) -> 0 | DJ76: =IF(SUM(DI$71:DI$73)>0,$E76*$F76,0) -> 0 | DL76: =IF(SUM(DK$71:DK$73)>0,$E76*$F76,0) -> 0 | DN76: =IF(SUM(DM$71:DM$73)>0,$E76*$F76,0) -> 0 | DP76: =IF(SUM(DO$71:DO$73)>0,$E76*$F76,0) -> 0 | DR76: =IF(SUM(DQ$71:DQ$73)>0,$E76*$F76,0) -> 0 | DT76: =IF(SUM(DS$71:DS$73)>0,$E76*$F76,0) -> 0 | DV76: =IF(SUM(DU$71:DU$73)>0,$E76*$F76,0) -> 0 | DX76: =IF(SUM(DW$71:DW$73)>0,$E76*$F76,0) -> 0
I79: =IF($C79=I$11,1,0) -> 0 | K79: =IF($C79=K$11,1,0) -> 0 | M79: =IF($C79=M$11,1,0) -> 0 | O79: =IF($C79=O$11,1,0) -> 0 | Q79: =IF($C79=Q$11,1,0) -> 0 | S79: =IF($C79=S$11,1,0) -> 0 | U79: =IF($C79=U$11,1,0) -> 0 | W79: =IF($C79=W$11,1,0) -> 0 | Y79: =IF($C79=Y$11,1,0) -> 0 | AA79: =IF($C79=AA$11,1,0) -> 0 | AC79: =IF($C79=AC$11,1,0) -> 0 | AE79: =IF($C79=AE$11,1,0) -> 0 | AG79: =IF($C79=AG$11,1,0) -> 0 | AI79: =IF($C79=AI$11,1,0) -> 0 | AK79: =IF($C79=AK$11,1,0) -> 0 | AM79: =IF($C79=AM$11,1,0) -> 0 | AO79: =IF($C79=AO$11,1,0) -> 0 | AQ79: =IF($C79=AQ$11,1,0) -> 0 | AS79: =IF($C79=AS$11,1,0) -> 0
I80: =IF($C80=I$11,1,0) -> 0 | J80: =IF($C80=J$11,1,0) -> 1 | K80: 0 | L80: 1 | M80: 0 | N80: 1 | O80: 0 | P80: 1 | Q80: 0 | R80: 1 | S80: 0 | T80: 1 | U80: 0 | V80: 1 | W80: 0 | X80: 1 | Y80: 0 | Z80: 1 | AA80: 0 | AB80: 1 | AC80: 0 | AD80: 1 | AE80: =IF($C80=AE$11,1,0) -> 0 | AF80: 1 | AG80: 0 | AH80: 1 | AI80: 0 | AJ80: 1 | AK80: 0 | AL80: 1 | AM80: 0 | AN80: 1 | AO80: 0 | AP80: 1 | AQ80: 0 | AR80: 1 | AS80: 0 | AT80: 1 | AU80: =IF($C80=AU$11,1,0) -> 0 | AV80: 1 | AW80: =IF($C80=AW$11,1,0) -> 0 | AX80: 1 | AY80: =IF($C80=AY$11,1,0) -> 0 | AZ80: 1 | BA80: =IF($C80=BA$11,1,0) -> 0 | BB80: 1 | BC80: =IF($C80=BC$11,1,0) -> 0 | BD80: 1 | BE80: =IF($C80=BE$11,1,0) -> 0 | BF80: 1 | BG80: =IF($C80=BG$11,1,0) -> 0 | BH80: 1 | BI80: =IF($C80=BI$11,1,0) -> 0 | BJ80: 1 | BK80: =IF($C80=BK$11,1,0) -> 0 | BL80: 1 | BM80: =IF($C80=BM$11,1,0) -> 0 | BN80: 1 | BO80: =IF($C80=BO$11,1,0) -> 0 | BP80: 1 | BQ80: =IF($C80=BQ$11,1,0) -> 0 | BR80: 1 | BS80: =IF($C80=BS$11,1,0) -> 0 | BT80: 1 | BU80: =IF($C80=BU$11,1,0) -> 0 | BV80: 1 | BW80: =IF($C80=BW$11,1,0) -> 0 | BX80: 1 | BY80: =IF($C80=BY$11,1,0) -> 0 | BZ80: 1 | CA80: =IF($C80=CA$11,1,0) -> 0 | CB80: 1 | CC80: =IF($C80=CC$11,1,0) -> 0 | CD80: 1 | CE80: =IF($C80=CE$11,1,0) -> 0 | CF80: 1 | CG80: =IF($C80=CG$11,1,0) -> 0 | CH80: 1 | CI80: =IF($C80=CI$11,1,0) -> 0 | CJ80: 1 | CK80: =IF($C80=CK$11,1,0) -> 0 | CL80: 1 | CM80: =IF($C80=CM$11,1,0) -> 0 | CN80: 1 | CO80: =IF($C80=CO$11,1,0) -> 0 | CP80: 1 | CQ80: =IF($C80=CQ$11,1,0) -> 0 | CR80: 1 | CS80: =IF($C80=CS$11,1,0) -> 0 | CT80: 1 | CU80: =IF($C80=CU$11,1,0) -> 0 | CV80: 1 | CW80: =IF($C80=CW$11,1,0) -> 0 | CX80: 1 | CY80: =IF($C80=CY$11,1,0) -> 0 | CZ80: 1 | DA80: =IF($C80=DA$11,1,0) -> 0 | DB80: 1 | DC80: =IF($C80=DC$11,1,0) -> 0 | DD80: 1 | DE80: =IF($C80=DE$11,1,0) -> 0 | DF80: 1 | DG80: =IF($C80=DG$11,1,0) -> 0 | DH80: 1 | DI80: =IF($C80=DI$11,1,0) -> 0 | DJ80: 1 | DK80: =IF($C80=DK$11,1,0) -> 0 | DL80: 1 | DM80: =IF($C80=DM$11,1,0) -> 0 | DN80: 1 | DO80: =IF($C80=DO$11,1,0) -> 0 | DP80: 1 | DQ80: =IF($C80=DQ$11,1,0) -> 0 | DR80: 1 | DS80: =IF($C80=DS$11,1,0) -> 0 | DT80: 1 | DU80: =IF($C80=DU$11,1,0) -> 0 | DV80: 1 | DW80: =IF($C80=DW$11,1,0) -> 0 | DX80: 1
I81: =IF($C81=I$11,1,0) -> 0 | K81: 0 | M81: 0 | O81: 0 | Q81: 0 | S81: 0 | U81: 0 | W81: 0 | Y81: 0 | AA81: 0 | AC81: 0 | AE81: =IF($C81=AE$11,1,0) -> 0 | AG81: 0 | AI81: 0 | AK81: 0 | AM81: 0 | AO81: 0 | AQ81: 0 | AS81: 0
J84: =IF(SUM(I$25:I$27)>0,$E84*$F84,0) -> 0 | L84: =IF(SUM(K$25:K$27)>0,$E84*$F84,0) -> 0 | N84: =IF(SUM(M$25:M$27)>0,$E84*$F84,0) -> 0 | P84: =IF(SUM(O$25:O$27)>0,$E84*$F84,0) -> 0 | R84: =IF(SUM(Q$25:Q$27)>0,$E84*$F84,0) -> 0 | T84: =IF(SUM(S$25:S$27)>0,$E84*$F84,0) -> 0 | V84: =IF(SUM(U$25:U$27)>0,$E84*$F84,0) -> 0 | X84: =IF(SUM(W$25:W$27)>0,$E84*$F84,0) -> 0 | Z84: =IF(SUM(Y$25:Y$27)>0,$E84*$F84,0) -> 0 | AB84: =IF(SUM(AA$25:AA$27)>0,$E84*$F84,0) -> 0 | AD84: =IF(SUM(AC$25:AC$27)>0,$E84*$F84,0) -> 0 | AF84: =IF(SUM(AE$25:AE$27)>0,$E84*$F84,0) -> 0 | AH84: =IF(SUM(AG$25:AG$27)>0,$E84*$F84,0) -> 0 | AJ84: =IF(SUM(AI$25:AI$27)>0,$E84*$F84,0) -> 0 | AL84: =IF(SUM(AK$25:AK$27)>0,$E84*$F84,0) -> 0 | AN84: =IF(SUM(AM$25:AM$27)>0,$E84*$F84,0) -> 0 | AP84: =IF(SUM(AO$25:AO$27)>0,$E84*$F84,0) -> 0 | AR84: =IF(SUM(AQ$25:AQ$27)>0,$E84*$F84,0) -> 0 | AT84: =IF(SUM(AS$25:AS$27)>0,$E84*$F84,0) -> 0 | AV84: =IF(SUM(AU$25:AU$27)>0,$E84*$F84,0) -> 0 | AX84: =IF(SUM(AW$25:AW$27)>0,$E84*$F84,0) -> 0 | AZ84: =IF(SUM(AY$25:AY$27)>0,$E84*$F84,0) -> 0 | BB84: =IF(SUM(BA$25:BA$27)>0,$E84*$F84,0) -> 0 | BD84: =IF(SUM(BC$25:BC$27)>0,$E84*$F84,0) -> 0 | BF84: =IF(SUM(BE$25:BE$27)>0,$E84*$F84,0) -> 0 | BH84: =IF(SUM(BG$25:BG$27)>0,$E84*$F84,0) -> 0 | BJ84: =IF(SUM(BI$25:BI$27)>0,$E84*$F84,0) -> 0 | BL84: =IF(SUM(BK$25:BK$27)>0,$E84*$F84,0) -> 0 | BN84: =IF(SUM(BM$25:BM$27)>0,$E84*$F84,0) -> 0 | BP84: =IF(SUM(BO$25:BO$27)>0,$E84*$F84,0) -> 0 | BR84: =IF(SUM(BQ$25:BQ$27)>0,$E84*$F84,0) -> 0 | BT84: =IF(SUM(BS$25:BS$27)>0,$E84*$F84,0) -> 0 | BV84: =IF(SUM(BU$25:BU$27)>0,$E84*$F84,0) -> 0 | BX84: =IF(SUM(BW$25:BW$27)>0,$E84*$F84,0) -> 0 | BZ84: =IF(SUM(BY$25:BY$27)>0,$E84*$F84,0) -> 0 | CB84: =IF(SUM(CA$25:CA$27)>0,$E84*$F84,0) -> 0 | CD84: =IF(SUM(CC$25:CC$27)>0,$E84*$F84,0) -> 0 | CF84: =IF(SUM(CE$25:CE$27)>0,$E84*$F84,0) -> 0 | CH84: =IF(SUM(CG$25:CG$27)>0,$E84*$F84,0) -> 0 | CJ84: =IF(SUM(CI$25:CI$27)>0,$E84*$F84,0) -> 0 | CL84: =IF(SUM(CK$25:CK$27)>0,$E84*$F84,0) -> 0 | CN84: =IF(SUM(CM$25:CM$27)>0,$E84*$F84,0) -> 0 | CP84: =IF(SUM(CO$25:CO$27)>0,$E84*$F84,0) -> 0 | CR84: =IF(SUM(CQ$25:CQ$27)>0,$E84*$F84,0) -> 0 | CT84: =IF(SUM(CS$25:CS$27)>0,$E84*$F84,0) -> 0 | CV84: =IF(SUM(CU$25:CU$27)>0,$E84*$F84,0) -> 0 | CX84: =IF(SUM(CW$25:CW$27)>0,$E84*$F84,0) -> 0 | CZ84: =IF(SUM(CY$25:CY$27)>0,$E84*$F84,0) -> 0 | DB84: =IF(SUM(DA$25:DA$27)>0,$E84*$F84,0) -> 0 | DD84: =IF(SUM(DC$25:DC$27)>0,$E84*$F84,0) -> 0 | DF84: =IF(SUM(DE$25:DE$27)>0,$E84*$F84,0) -> 0 | DH84: =IF(SUM(DG$25:DG$27)>0,$E84*$F84,0) -> 0 | DJ84: =IF(SUM(DI$25:DI$27)>0,$E84*$F84,0) -> 0 | DL84: =IF(SUM(DK$25:DK$27)>0,$E84*$F84,0) -> 0 | DN84: =IF(SUM(DM$25:DM$27)>0,$E84*$F84,0) -> 0 | DP84: =IF(SUM(DO$25:DO$27)>0,$E84*$F84,0) -> 0 | DR84: =IF(SUM(DQ$25:DQ$27)>0,$E84*$F84,0) -> 0 | DT84: =IF(SUM(DS$25:DS$27)>0,$E84*$F84,0) -> 0 | DV84: =IF(SUM(DU$25:DU$27)>0,$E84*$F84,0) -> 0 | DX84: =IF(SUM(DW$25:DW$27)>0,$E84*$F84,0) -> 0
J85: =IF(SUM(I$79:I$81)>0,$E85*$F85,0) -> 0 | L85: =IF(SUM(K$79:K$81)>0,$E85*$F85,0) -> 0 | N85: =IF(SUM(M$79:M$81)>0,$E85*$F85,0) -> 0 | P85: =IF(SUM(O$79:O$81)>0,$E85*$F85,0) -> 0 | R85: =IF(SUM(Q$79:Q$81)>0,$E85*$F85,0) -> 0 | T85: =IF(SUM(S$79:S$81)>0,$E85*$F85,0) -> 0 | V85: =IF(SUM(U$79:U$81)>0,$E85*$F85,0) -> 0 | X85: =IF(SUM(W$79:W$81)>0,$E85*$F85,0) -> 0 | Z85: =IF(SUM(Y$79:Y$81)>0,$E85*$F85,0) -> 0 | AB85: =IF(SUM(AA$79:AA$81)>0,$E85*$F85,0) -> 0 | AD85: =IF(SUM(AC$79:AC$81)>0,$E85*$F85,0) -> 0 | AF85: =IF(SUM(AE$79:AE$81)>0,$E85*$F85,0) -> 0 | AH85: =IF(SUM(AG$79:AG$81)>0,$E85*$F85,0) -> 0 | AJ85: =IF(SUM(AI$79:AI$81)>0,$E85*$F85,0) -> 0 | AL85: =IF(SUM(AK$79:AK$81)>0,$E85*$F85,0) -> 0 | AN85: =IF(SUM(AM$79:AM$81)>0,$E85*$F85,0) -> 0 | AP85: =IF(SUM(AO$79:AO$81)>0,$E85*$F85,0) -> 0 | AR85: =IF(SUM(AQ$79:AQ$81)>0,$E85*$F85,0) -> 0 | AT85: =IF(SUM(AS$79:AS$81)>0,$E85*$F85,0) -> 0 | AV85: =IF(SUM(AU$79:AU$81)>0,$E85*$F85,0) -> 0 | AX85: =IF(SUM(AW$79:AW$81)>0,$E85*$F85,0) -> 0 | AZ85: =IF(SUM(AY$79:AY$81)>0,$E85*$F85,0) -> 0 | BB85: =IF(SUM(BA$79:BA$81)>0,$E85*$F85,0) -> 0 | BD85: =IF(SUM(BC$79:BC$81)>0,$E85*$F85,0) -> 0 | BF85: =IF(SUM(BE$79:BE$81)>0,$E85*$F85,0) -> 0 | BH85: =IF(SUM(BG$79:BG$81)>0,$E85*$F85,0) -> 0 | BJ85: =IF(SUM(BI$79:BI$81)>0,$E85*$F85,0) -> 0 | BL85: =IF(SUM(BK$79:BK$81)>0,$E85*$F85,0) -> 0 | BN85: =IF(SUM(BM$79:BM$81)>0,$E85*$F85,0) -> 0 | BP85: =IF(SUM(BO$79:BO$81)>0,$E85*$F85,0) -> 0 | BR85: =IF(SUM(BQ$79:BQ$81)>0,$E85*$F85,0) -> 0 | BT85: =IF(SUM(BS$79:BS$81)>0,$E85*$F85,0) -> 0 | BV85: =IF(SUM(BU$79:BU$81)>0,$E85*$F85,0) -> 0 | BX85: =IF(SUM(BW$79:BW$81)>0,$E85*$F85,0) -> 0 | BZ85: =IF(SUM(BY$79:BY$81)>0,$E85*$F85,0) -> 0 | CB85: =IF(SUM(CA$79:CA$81)>0,$E85*$F85,0) -> 0 | CD85: =IF(SUM(CC$79:CC$81)>0,$E85*$F85,0) -> 0 | CF85: =IF(SUM(CE$79:CE$81)>0,$E85*$F85,0) -> 0 | CH85: =IF(SUM(CG$79:CG$81)>0,$E85*$F85,0) -> 0 | CJ85: =IF(SUM(CI$79:CI$81)>0,$E85*$F85,0) -> 0 | CL85: =IF(SUM(CK$79:CK$81)>0,$E85*$F85,0) -> 0 | CN85: =IF(SUM(CM$79:CM$81)>0,$E85*$F85,0) -> 0 | CP85: =IF(SUM(CO$79:CO$81)>0,$E85*$F85,0) -> 0 | CR85: =IF(SUM(CQ$79:CQ$81)>0,$E85*$F85,0) -> 0 | CT85: =IF(SUM(CS$79:CS$81)>0,$E85*$F85,0) -> 0 | CV85: =IF(SUM(CU$79:CU$81)>0,$E85*$F85,0) -> 0 | CX85: =IF(SUM(CW$79:CW$81)>0,$E85*$F85,0) -> 0 | CZ85: =IF(SUM(CY$79:CY$81)>0,$E85*$F85,0) -> 0 | DB85: =IF(SUM(DA$79:DA$81)>0,$E85*$F85,0) -> 0 | DD85: =IF(SUM(DC$79:DC$81)>0,$E85*$F85,0) -> 0 | DF85: =IF(SUM(DE$79:DE$81)>0,$E85*$F85,0) -> 0 | DH85: =IF(SUM(DG$79:DG$81)>0,$E85*$F85,0) -> 0 | DJ85: =IF(SUM(DI$79:DI$81)>0,$E85*$F85,0) -> 0 | DL85: =IF(SUM(DK$79:DK$81)>0,$E85*$F85,0) -> 0 | DN85: =IF(SUM(DM$79:DM$81)>0,$E85*$F85,0) -> 0 | DP85: =IF(SUM(DO$79:DO$81)>0,$E85*$F85,0) -> 0 | DR85: =IF(SUM(DQ$79:DQ$81)>0,$E85*$F85,0) -> 0 | DT85: =IF(SUM(DS$79:DS$81)>0,$E85*$F85,0) -> 0 | DV85: =IF(SUM(DU$79:DU$81)>0,$E85*$F85,0) -> 0 | DX85: =IF(SUM(DW$79:DW$81)>0,$E85*$F85,0) -> 0
I88: =IF($C88=I$11,1,0) -> 0 | K88: =IF($C88=K$11,1,0) -> 0 | M88: =IF($C88=M$11,1,0) -> 0 | O88: =IF($C88=O$11,1,0) -> 0 | Q88: =IF($C88=Q$11,1,0) -> 0 | S88: =IF($C88=S$11,1,0) -> 0 | U88: =IF($C88=U$11,1,0) -> 0 | W88: =IF($C88=W$11,1,0) -> 0 | Y88: =IF($C88=Y$11,1,0) -> 0 | AA88: =IF($C88=AA$11,1,0) -> 0 | AC88: =IF($C88=AC$11,1,0) -> 0 | AE88: =IF($C88=AE$11,1,0) -> 0 | AG88: =IF($C88=AG$11,1,0) -> 0 | AI88: =IF($C88=AI$11,1,0) -> 0 | AK88: =IF($C88=AK$11,1,0) -> 0 | AM88: =IF($C88=AM$11,1,0) -> 0 | AO88: =IF($C88=AO$11,1,0) -> 0 | AQ88: =IF($C88=AQ$11,1,0) -> 0 | AS88: =IF($C88=AS$11,1,0) -> 0
I89: =IF($C89=I$11,1,0) -> 0 | J89: =IF($C89=J$11,1,0) -> 1 | K89: 0 | L89: 1 | M89: 0 | N89: 1 | O89: 0 | P89: 1 | Q89: 0 | R89: 1 | S89: 0 | T89: 1 | U89: 0 | V89: 1 | W89: 0 | X89: 1 | Y89: 0 | Z89: 1 | AA89: 0 | AB89: 1 | AC89: 0 | AD89: 1 | AE89: =IF($C89=AE$11,1,0) -> 0 | AF89: 1 | AG89: 0 | AH89: 1 | AI89: 0 | AJ89: 1 | AK89: 0 | AL89: 1 | AM89: 0 | AN89: 1 | AO89: 0 | AP89: 1 | AQ89: 0 | AR89: 1 | AS89: 0 | AT89: 1 | AU89: =IF($C89=AU$11,1,0) -> 0 | AV89: 1 | AW89: =IF($C89=AW$11,1,0) -> 0 | AX89: 1 | AY89: =IF($C89=AY$11,1,0) -> 0 | AZ89: 1 | BA89: =IF($C89=BA$11,1,0) -> 0 | BB89: 1 | BC89: =IF($C89=BC$11,1,0) -> 0 | BD89: 1 | BE89: =IF($C89=BE$11,1,0) -> 0 | BF89: 1 | BG89: =IF($C89=BG$11,1,0) -> 0 | BH89: 1 | BI89: =IF($C89=BI$11,1,0) -> 0 | BJ89: 1 | BK89: =IF($C89=BK$11,1,0) -> 0 | BL89: 1 | BM89: =IF($C89=BM$11,1,0) -> 0 | BN89: 1 | BO89: =IF($C89=BO$11,1,0) -> 0 | BP89: 1 | BQ89: =IF($C89=BQ$11,1,0) -> 0 | BR89: 1 | BS89: =IF($C89=BS$11,1,0) -> 0 | BT89: 1 | BU89: =IF($C89=BU$11,1,0) -> 0 | BV89: 1 | BW89: =IF($C89=BW$11,1,0) -> 0 | BX89: 1 | BY89: =IF($C89=BY$11,1,0) -> 0 | BZ89: 1 | CA89: =IF($C89=CA$11,1,0) -> 0 | CB89: 1 | CC89: =IF($C89=CC$11,1,0) -> 0 | CD89: 1 | CE89: =IF($C89=CE$11,1,0) -> 0 | CF89: 1 | CG89: =IF($C89=CG$11,1,0) -> 0 | CH89: 1 | CI89: =IF($C89=CI$11,1,0) -> 0 | CJ89: 1 | CK89: =IF($C89=CK$11,1,0) -> 0 | CL89: 1 | CM89: =IF($C89=CM$11,1,0) -> 0 | CN89: 1 | CO89: =IF($C89=CO$11,1,0) -> 0 | CP89: 1 | CQ89: =IF($C89=CQ$11,1,0) -> 0 | CR89: 1 | CS89: =IF($C89=CS$11,1,0) -> 0 | CT89: 1 | CU89: =IF($C89=CU$11,1,0) -> 0 | CV89: 1 | CW89: =IF($C89=CW$11,1,0) -> 0 | CX89: 1 | CY89: =IF($C89=CY$11,1,0) -> 0 | CZ89: 1 | DA89: =IF($C89=DA$11,1,0) -> 0 | DB89: 1 | DC89: =IF($C89=DC$11,1,0) -> 0 | DD89: 1 | DE89: =IF($C89=DE$11,1,0) -> 0 | DF89: 1 | DG89: =IF($C89=DG$11,1,0) -> 0 | DH89: 1 | DI89: =IF($C89=DI$11,1,0) -> 0 | DJ89: 1 | DK89: =IF($C89=DK$11,1,0) -> 0 | DL89: 1 | DM89: =IF($C89=DM$11,1,0) -> 0 | DN89: 1 | DO89: =IF($C89=DO$11,1,0) -> 0 | DP89: 1 | DQ89: =IF($C89=DQ$11,1,0) -> 0 | DR89: 1 | DS89: =IF($C89=DS$11,1,0) -> 0 | DT89: 1 | DU89: =IF($C89=DU$11,1,0) -> 0 | DV89: 1 | DW89: =IF($C89=DW$11,1,0) -> 0 | DX89: 1
I90: =IF($C90=I$11,1,0) -> 0 | K90: 0 | M90: 0 | O90: 0 | Q90: 0 | S90: 0 | U90: 0 | W90: 0 | Y90: 0 | AA90: 0 | AC90: 0 | AE90: =IF($C90=AE$11,1,0) -> 0 | AG90: 0 | AI90: 0 | AK90: 0 | AM90: 0 | AO90: 0 | AQ90: 0 | AS90: 0
J93: =IF(SUM(I$25:I$27)>0,$E93*$F93,0) -> 0 | L93: =IF(SUM(K$25:K$27)>0,$E93*$F93,0) -> 0 | N93: =IF(SUM(M$25:M$27)>0,$E93*$F93,0) -> 0 | P93: =IF(SUM(O$25:O$27)>0,$E93*$F93,0) -> 0 | R93: =IF(SUM(Q$25:Q$27)>0,$E93*$F93,0) -> 0 | T93: =IF(SUM(S$25:S$27)>0,$E93*$F93,0) -> 0 | V93: =IF(SUM(U$25:U$27)>0,$E93*$F93,0) -> 0 | X93: =IF(SUM(W$25:W$27)>0,$E93*$F93,0) -> 0 | Z93: =IF(SUM(Y$25:Y$27)>0,$E93*$F93,0) -> 0 | AB93: =IF(SUM(AA$25:AA$27)>0,$E93*$F93,0) -> 0 | AD93: =IF(SUM(AC$25:AC$27)>0,$E93*$F93,0) -> 0 | AF93: =IF(SUM(AE$25:AE$27)>0,$E93*$F93,0) -> 0 | AH93: =IF(SUM(AG$25:AG$27)>0,$E93*$F93,0) -> 0 | AJ93: =IF(SUM(AI$25:AI$27)>0,$E93*$F93,0) -> 0 | AL93: =IF(SUM(AK$25:AK$27)>0,$E93*$F93,0) -> 0 | AN93: =IF(SUM(AM$25:AM$27)>0,$E93*$F93,0) -> 0 | AP93: =IF(SUM(AO$25:AO$27)>0,$E93*$F93,0) -> 0 | AR93: =IF(SUM(AQ$25:AQ$27)>0,$E93*$F93,0) -> 0 | AT93: =IF(SUM(AS$25:AS$27)>0,$E93*$F93,0) -> 0 | AV93: =IF(SUM(AU$25:AU$27)>0,$E93*$F93,0) -> 0 | AX93: =IF(SUM(AW$25:AW$27)>0,$E93*$F93,0) -> 0 | AZ93: =IF(SUM(AY$25:AY$27)>0,$E93*$F93,0) -> 0 | BB93: =IF(SUM(BA$25:BA$27)>0,$E93*$F93,0) -> 0 | BD93: =IF(SUM(BC$25:BC$27)>0,$E93*$F93,0) -> 0 | BF93: =IF(SUM(BE$25:BE$27)>0,$E93*$F93,0) -> 0 | BH93: =IF(SUM(BG$25:BG$27)>0,$E93*$F93,0) -> 0 | BJ93: =IF(SUM(BI$25:BI$27)>0,$E93*$F93,0) -> 0 | BL93: =IF(SUM(BK$25:BK$27)>0,$E93*$F93,0) -> 0 | BN93: =IF(SUM(BM$25:BM$27)>0,$E93*$F93,0) -> 0 | BP93: =IF(SUM(BO$25:BO$27)>0,$E93*$F93,0) -> 0 | BR93: =IF(SUM(BQ$25:BQ$27)>0,$E93*$F93,0) -> 0 | BT93: =IF(SUM(BS$25:BS$27)>0,$E93*$F93,0) -> 0 | BV93: =IF(SUM(BU$25:BU$27)>0,$E93*$F93,0) -> 0 | BX93: =IF(SUM(BW$25:BW$27)>0,$E93*$F93,0) -> 0 | BZ93: =IF(SUM(BY$25:BY$27)>0,$E93*$F93,0) -> 0 | CB93: =IF(SUM(CA$25:CA$27)>0,$E93*$F93,0) -> 0 | CD93: =IF(SUM(CC$25:CC$27)>0,$E93*$F93,0) -> 0 | CF93: =IF(SUM(CE$25:CE$27)>0,$E93*$F93,0) -> 0 | CH93: =IF(SUM(CG$25:CG$27)>0,$E93*$F93,0) -> 0 | CJ93: =IF(SUM(CI$25:CI$27)>0,$E93*$F93,0) -> 0 | CL93: =IF(SUM(CK$25:CK$27)>0,$E93*$F93,0) -> 0 | CN93: =IF(SUM(CM$25:CM$27)>0,$E93*$F93,0) -> 0 | CP93: =IF(SUM(CO$25:CO$27)>0,$E93*$F93,0) -> 0 | CR93: =IF(SUM(CQ$25:CQ$27)>0,$E93*$F93,0) -> 0 | CT93: =IF(SUM(CS$25:CS$27)>0,$E93*$F93,0) -> 0 | CV93: =IF(SUM(CU$25:CU$27)>0,$E93*$F93,0) -> 0 | CX93: =IF(SUM(CW$25:CW$27)>0,$E93*$F93,0) -> 0 | CZ93: =IF(SUM(CY$25:CY$27)>0,$E93*$F93,0) -> 0 | DB93: =IF(SUM(DA$25:DA$27)>0,$E93*$F93,0) -> 0 | DD93: =IF(SUM(DC$25:DC$27)>0,$E93*$F93,0) -> 0 | DF93: =IF(SUM(DE$25:DE$27)>0,$E93*$F93,0) -> 0 | DH93: =IF(SUM(DG$25:DG$27)>0,$E93*$F93,0) -> 0 | DJ93: =IF(SUM(DI$25:DI$27)>0,$E93*$F93,0) -> 0 | DL93: =IF(SUM(DK$25:DK$27)>0,$E93*$F93,0) -> 0 | DN93: =IF(SUM(DM$25:DM$27)>0,$E93*$F93,0) -> 0 | DP93: =IF(SUM(DO$25:DO$27)>0,$E93*$F93,0) -> 0 | DR93: =IF(SUM(DQ$25:DQ$27)>0,$E93*$F93,0) -> 0 | DT93: =IF(SUM(DS$25:DS$27)>0,$E93*$F93,0) -> 0 | DV93: =IF(SUM(DU$25:DU$27)>0,$E93*$F93,0) -> 0 | DX93: =IF(SUM(DW$25:DW$27)>0,$E93*$F93,0) -> 0
J94: =IF(SUM(I$88:I$90)>0,$E94*$F94,0) -> 0 | L94: =IF(SUM(K$88:K$90)>0,$E94*$F94,0) -> 0 | N94: =IF(SUM(M$88:M$90)>0,$E94*$F94,0) -> 0 | P94: =IF(SUM(O$88:O$90)>0,$E94*$F94,0) -> 0 | R94: =IF(SUM(Q$88:Q$90)>0,$E94*$F94,0) -> 0 | T94: =IF(SUM(S$88:S$90)>0,$E94*$F94,0) -> 0 | V94: =IF(SUM(U$88:U$90)>0,$E94*$F94,0) -> 0 | X94: =IF(SUM(W$88:W$90)>0,$E94*$F94,0) -> 0 | Z94: =IF(SUM(Y$88:Y$90)>0,$E94*$F94,0) -> 0 | AB94: =IF(SUM(AA$88:AA$90)>0,$E94*$F94,0) -> 0 | AD94: =IF(SUM(AC$88:AC$90)>0,$E94*$F94,0) -> 0 | AF94: =IF(SUM(AE$88:AE$90)>0,$E94*$F94,0) -> 0 | AH94: =IF(SUM(AG$88:AG$90)>0,$E94*$F94,0) -> 0 | AJ94: =IF(SUM(AI$88:AI$90)>0,$E94*$F94,0) -> 0 | AL94: =IF(SUM(AK$88:AK$90)>0,$E94*$F94,0) -> 0 | AN94: =IF(SUM(AM$88:AM$90)>0,$E94*$F94,0) -> 0 | AP94: =IF(SUM(AO$88:AO$90)>0,$E94*$F94,0) -> 0 | AR94: =IF(SUM(AQ$88:AQ$90)>0,$E94*$F94,0) -> 0 | AT94: =IF(SUM(AS$88:AS$90)>0,$E94*$F94,0) -> 0 | AV94: =IF(SUM(AU$88:AU$90)>0,$E94*$F94,0) -> 0 | AX94: =IF(SUM(AW$88:AW$90)>0,$E94*$F94,0) -> 0 | AZ94: =IF(SUM(AY$88:AY$90)>0,$E94*$F94,0) -> 0 | BB94: =IF(SUM(BA$88:BA$90)>0,$E94*$F94,0) -> 0 | BD94: =IF(SUM(BC$88:BC$90)>0,$E94*$F94,0) -> 0 | BF94: =IF(SUM(BE$88:BE$90)>0,$E94*$F94,0) -> 0 | BH94: =IF(SUM(BG$88:BG$90)>0,$E94*$F94,0) -> 0 | BJ94: =IF(SUM(BI$88:BI$90)>0,$E94*$F94,0) -> 0 | BL94: =IF(SUM(BK$88:BK$90)>0,$E94*$F94,0) -> 0 | BN94: =IF(SUM(BM$88:BM$90)>0,$E94*$F94,0) -> 0 | BP94: =IF(SUM(BO$88:BO$90)>0,$E94*$F94,0) -> 0 | BR94: =IF(SUM(BQ$88:BQ$90)>0,$E94*$F94,0) -> 0 | BT94: =IF(SUM(BS$88:BS$90)>0,$E94*$F94,0) -> 0 | BV94: =IF(SUM(BU$88:BU$90)>0,$E94*$F94,0) -> 0 | BX94: =IF(SUM(BW$88:BW$90)>0,$E94*$F94,0) -> 0 | BZ94: =IF(SUM(BY$88:BY$90)>0,$E94*$F94,0) -> 0 | CB94: =IF(SUM(CA$88:CA$90)>0,$E94*$F94,0) -> 0 | CD94: =IF(SUM(CC$88:CC$90)>0,$E94*$F94,0) -> 0 | CF94: =IF(SUM(CE$88:CE$90)>0,$E94*$F94,0) -> 0 | CH94: =IF(SUM(CG$88:CG$90)>0,$E94*$F94,0) -> 0 | CJ94: =IF(SUM(CI$88:CI$90)>0,$E94*$F94,0) -> 0 | CL94: =IF(SUM(CK$88:CK$90)>0,$E94*$F94,0) -> 0 | CN94: =IF(SUM(CM$88:CM$90)>0,$E94*$F94,0) -> 0 | CP94: =IF(SUM(CO$88:CO$90)>0,$E94*$F94,0) -> 0 | CR94: =IF(SUM(CQ$88:CQ$90)>0,$E94*$F94,0) -> 0 | CT94: =IF(SUM(CS$88:CS$90)>0,$E94*$F94,0) -> 0 | CV94: =IF(SUM(CU$88:CU$90)>0,$E94*$F94,0) -> 0 | CX94: =IF(SUM(CW$88:CW$90)>0,$E94*$F94,0) -> 0 | CZ94: =IF(SUM(CY$88:CY$90)>0,$E94*$F94,0) -> 0 | DB94: =IF(SUM(DA$88:DA$90)>0,$E94*$F94,0) -> 0 | DD94: =IF(SUM(DC$88:DC$90)>0,$E94*$F94,0) -> 0 | DF94: =IF(SUM(DE$88:DE$90)>0,$E94*$F94,0) -> 0 | DH94: =IF(SUM(DG$88:DG$90)>0,$E94*$F94,0) -> 0 | DJ94: =IF(SUM(DI$88:DI$90)>0,$E94*$F94,0) -> 0 | DL94: =IF(SUM(DK$88:DK$90)>0,$E94*$F94,0) -> 0 | DN94: =IF(SUM(DM$88:DM$90)>0,$E94*$F94,0) -> 0 | DP94: =IF(SUM(DO$88:DO$90)>0,$E94*$F94,0) -> 0 | DR94: =IF(SUM(DQ$88:DQ$90)>0,$E94*$F94,0) -> 0 | DT94: =IF(SUM(DS$88:DS$90)>0,$E94*$F94,0) -> 0 | DV94: =IF(SUM(DU$88:DU$90)>0,$E94*$F94,0) -> 0 | DX94: =IF(SUM(DW$88:DW$90)>0,$E94*$F94,0) -> 0
J95: =IF(SUM(I$88:I$90)>0,$E95*$F95,0) -> 0 | L95: =IF(SUM(K$88:K$90)>0,$E95*$F95,0) -> 0 | N95: =IF(SUM(M$88:M$90)>0,$E95*$F95,0) -> 0 | P95: =IF(SUM(O$88:O$90)>0,$E95*$F95,0) -> 0 | R95: =IF(SUM(Q$88:Q$90)>0,$E95*$F95,0) -> 0 | T95: =IF(SUM(S$88:S$90)>0,$E95*$F95,0) -> 0 | V95: =IF(SUM(U$88:U$90)>0,$E95*$F95,0) -> 0 | X95: =IF(SUM(W$88:W$90)>0,$E95*$F95,0) -> 0 | Z95: =IF(SUM(Y$88:Y$90)>0,$E95*$F95,0) -> 0 | AB95: =IF(SUM(AA$88:AA$90)>0,$E95*$F95,0) -> 0 | AD95: 0 | AF95: =IF(SUM(AE$88:AE$90)>0,$E95*$F95,0) -> 0 | AH95: =IF(SUM(AG$88:AG$90)>0,$E95*$F95,0) -> 0 | AJ95: =IF(SUM(AI$88:AI$90)>0,$E95*$F95,0) -> 0 | AL95: =IF(SUM(AK$88:AK$90)>0,$E95*$F95,0) -> 0 | AN95: =IF(SUM(AM$88:AM$90)>0,$E95*$F95,0) -> 0 | AP95: =IF(SUM(AO$88:AO$90)>0,$E95*$F95,0) -> 0 | AR95: =IF(SUM(AQ$88:AQ$90)>0,$E95*$F95,0) -> 0 | AT95: =IF(SUM(AS$88:AS$90)>0,$E95*$F95,0) -> 0 | AV95: =IF(SUM(AU$88:AU$90)>0,$E95*$F95,0) -> 0 | AX95: =IF(SUM(AW$88:AW$90)>0,$E95*$F95,0) -> 0 | AZ95: =IF(SUM(AY$88:AY$90)>0,$E95*$F95,0) -> 0 | BB95: =IF(SUM(BA$88:BA$90)>0,$E95*$F95,0) -> 0 | BD95: =IF(SUM(BC$88:BC$90)>0,$E95*$F95,0) -> 0 | BF95: =IF(SUM(BE$88:BE$90)>0,$E95*$F95,0) -> 0 | BH95: =IF(SUM(BG$88:BG$90)>0,$E95*$F95,0) -> 0 | BJ95: =IF(SUM(BI$88:BI$90)>0,$E95*$F95,0) -> 0 | BL95: =IF(SUM(BK$88:BK$90)>0,$E95*$F95,0) -> 0 | BN95: =IF(SUM(BM$88:BM$90)>0,$E95*$F95,0) -> 0 | BP95: =IF(SUM(BO$88:BO$90)>0,$E95*$F95,0) -> 0 | BR95: =IF(SUM(BQ$88:BQ$90)>0,$E95*$F95,0) -> 0 | BT95: =IF(SUM(BS$88:BS$90)>0,$E95*$F95,0) -> 0 | BV95: =IF(SUM(BU$88:BU$90)>0,$E95*$F95,0) -> 0 | BX95: =IF(SUM(BW$88:BW$90)>0,$E95*$F95,0) -> 0 | BZ95: =IF(SUM(BY$88:BY$90)>0,$E95*$F95,0) -> 0 | CB95: =IF(SUM(CA$88:CA$90)>0,$E95*$F95,0) -> 0 | CD95: =IF(SUM(CC$88:CC$90)>0,$E95*$F95,0) -> 0 | CF95: =IF(SUM(CE$88:CE$90)>0,$E95*$F95,0) -> 0 | CH95: =IF(SUM(CG$88:CG$90)>0,$E95*$F95,0) -> 0 | CJ95: =IF(SUM(CI$88:CI$90)>0,$E95*$F95,0) -> 0 | CL95: =IF(SUM(CK$88:CK$90)>0,$E95*$F95,0) -> 0 | CN95: =IF(SUM(CM$88:CM$90)>0,$E95*$F95,0) -> 0 | CP95: =IF(SUM(CO$88:CO$90)>0,$E95*$F95,0) -> 0 | CR95: =IF(SUM(CQ$88:CQ$90)>0,$E95*$F95,0) -> 0 | CT95: =IF(SUM(CS$88:CS$90)>0,$E95*$F95,0) -> 0 | CV95: =IF(SUM(CU$88:CU$90)>0,$E95*$F95,0) -> 0 | CX95: =IF(SUM(CW$88:CW$90)>0,$E95*$F95,0) -> 0 | CZ95: =IF(SUM(CY$88:CY$90)>0,$E95*$F95,0) -> 0 | DB95: =IF(SUM(DA$88:DA$90)>0,$E95*$F95,0) -> 0 | DD95: =IF(SUM(DC$88:DC$90)>0,$E95*$F95,0) -> 0 | DF95: =IF(SUM(DE$88:DE$90)>0,$E95*$F95,0) -> 0 | DH95: =IF(SUM(DG$88:DG$90)>0,$E95*$F95,0) -> 0 | DJ95: =IF(SUM(DI$88:DI$90)>0,$E95*$F95,0) -> 0 | DL95: =IF(SUM(DK$88:DK$90)>0,$E95*$F95,0) -> 0 | DN95: =IF(SUM(DM$88:DM$90)>0,$E95*$F95,0) -> 0 | DP95: =IF(SUM(DO$88:DO$90)>0,$E95*$F95,0) -> 0 | DR95: =IF(SUM(DQ$88:DQ$90)>0,$E95*$F95,0) -> 0 | DT95: =IF(SUM(DS$88:DS$90)>0,$E95*$F95,0) -> 0 | DV95: =IF(SUM(DU$88:DU$90)>0,$E95*$F95,0) -> 0 | DX95: 0
I98: =IF($C98=I$11,1,0) -> 0 | K98: =IF($C98=K$11,1,0) -> 0 | M98: =IF($C98=M$11,1,0) -> 0 | O98: =IF($C98=O$11,1,0) -> 0 | Q98: =IF($C98=Q$11,1,0) -> 0 | S98: =IF($C98=S$11,1,0) -> 0 | U98: =IF($C98=U$11,1,0) -> 0 | W98: =IF($C98=W$11,1,0) -> 0 | Y98: =IF($C98=Y$11,1,0) -> 0 | AA98: =IF($C98=AA$11,1,0) -> 0 | AC98: =IF($C98=AC$11,1,0) -> 0 | AE98: =IF($C98=AE$11,1,0) -> 0 | AG98: =IF($C98=AG$11,1,0) -> 0 | AI98: =IF($C98=AI$11,1,0) -> 0 | AK98: =IF($C98=AK$11,1,0) -> 0 | AM98: =IF($C98=AM$11,1,0) -> 0 | AO98: =IF($C98=AO$11,1,0) -> 0 | AQ98: =IF($C98=AQ$11,1,0) -> 0 | AS98: =IF($C98=AS$11,1,0) -> 0
I99: =IF($C99=I$11,1,0) -> 0 | J99: =IF($C99=J$11,1,0) -> 1 | K99: 0 | L99: 1 | M99: 0 | N99: 1 | O99: 0 | P99: 1 | Q99: 0 | R99: 1 | S99: 0 | T99: 1 | U99: 0 | V99: 1 | W99: 0 | X99: 1 | Y99: 0 | Z99: 1 | AA99: 0 | AB99: 1 | AC99: 0 | AD99: 1 | AE99: =IF($C99=AE$11,1,0) -> 0 | AF99: 1 | AG99: 0 | AH99: 1 | AI99: 0 | AJ99: 1 | AK99: 0 | AL99: 1 | AM99: 0 | AN99: 1 | AO99: 0 | AP99: 1 | AQ99: 0 | AR99: 1 | AS99: 0 | AT99: 1 | AU99: =IF($C99=AU$11,1,0) -> 0 | AV99: 1 | AW99: =IF($C99=AW$11,1,0) -> 0 | AX99: 1 | AY99: =IF($C99=AY$11,1,0) -> 0 | AZ99: 1 | BA99: =IF($C99=BA$11,1,0) -> 0 | BB99: 1 | BC99: =IF($C99=BC$11,1,0) -> 0 | BD99: 1 | BE99: =IF($C99=BE$11,1,0) -> 0 | BF99: 1 | BG99: =IF($C99=BG$11,1,0) -> 0 | BH99: 1 | BI99: =IF($C99=BI$11,1,0) -> 0 | BJ99: 1 | BK99: =IF($C99=BK$11,1,0) -> 0 | BL99: 1 | BM99: =IF($C99=BM$11,1,0) -> 0 | BN99: 1 | BO99: =IF($C99=BO$11,1,0) -> 0 | BP99: 1 | BQ99: =IF($C99=BQ$11,1,0) -> 0 | BR99: 1 | BS99: =IF($C99=BS$11,1,0) -> 0 | BT99: 1 | BU99: =IF($C99=BU$11,1,0) -> 0 | BV99: 1 | BW99: =IF($C99=BW$11,1,0) -> 0 | BX99: 1 | BY99: =IF($C99=BY$11,1,0) -> 0 | BZ99: 1 | CA99: =IF($C99=CA$11,1,0) -> 0 | CB99: 1 | CC99: =IF($C99=CC$11,1,0) -> 0 | CD99: 1 | CE99: =IF($C99=CE$11,1,0) -> 0 | CF99: 1 | CG99: =IF($C99=CG$11,1,0) -> 0 | CH99: 1 | CI99: =IF($C99=CI$11,1,0) -> 0 | CJ99: 1 | CK99: =IF($C99=CK$11,1,0) -> 0 | CL99: 1 | CM99: =IF($C99=CM$11,1,0) -> 0 | CN99: 1 | CO99: =IF($C99=CO$11,1,0) -> 0 | CP99: 1 | CQ99: =IF($C99=CQ$11,1,0) -> 0 | CR99: 1 | CS99: =IF($C99=CS$11,1,0) -> 0 | CT99: 1 | CU99: =IF($C99=CU$11,1,0) -> 0 | CV99: 1 | CW99: =IF($C99=CW$11,1,0) -> 0 | CX99: 1 | CY99: =IF($C99=CY$11,1,0) -> 0 | CZ99: 1 | DA99: =IF($C99=DA$11,1,0) -> 0 | DB99: 1 | DC99: =IF($C99=DC$11,1,0) -> 0 | DD99: 1 | DE99: =IF($C99=DE$11,1,0) -> 0 | DF99: 1 | DG99: =IF($C99=DG$11,1,0) -> 0 | DH99: 1 | DI99: =IF($C99=DI$11,1,0) -> 0 | DJ99: 1 | DK99: =IF($C99=DK$11,1,0) -> 0 | DL99: 1 | DM99: =IF($C99=DM$11,1,0) -> 0 | DN99: 1 | DO99: =IF($C99=DO$11,1,0) -> 0 | DP99: 1 | DQ99: =IF($C99=DQ$11,1,0) -> 0 | DR99: 1 | DS99: =IF($C99=DS$11,1,0) -> 0 | DT99: 1 | DU99: =IF($C99=DU$11,1,0) -> 0 | DV99: 1 | DW99: =IF($C99=DW$11,1,0) -> 0 | DX99: 1
I100: =IF($C100=I$11,1,0) -> 0 | K100: 0 | M100: 0 | O100: 0 | Q100: 0 | S100: 0 | U100: 0 | W100: 0 | Y100: 0 | AA100: 0 | AC100: 0 | AE100: =IF($C100=AE$11,1,0) -> 0 | AG100: 0 | AI100: 0 | AK100: 0 | AM100: 0 | AO100: 0 | AQ100: 0 | AS100: 0
J103: =IF(SUM(I$25:I$27)>0,$E103*$F103,0) -> 0 | L103: =IF(SUM(K$25:K$27)>0,$E103*$F103,0) -> 0 | N103: =IF(SUM(M$25:M$27)>0,$E103*$F103,0) -> 0 | P103: =IF(SUM(O$25:O$27)>0,$E103*$F103,0) -> 0 | R103: =IF(SUM(Q$25:Q$27)>0,$E103*$F103,0) -> 0 | T103: =IF(SUM(S$25:S$27)>0,$E103*$F103,0) -> 0 | V103: =IF(SUM(U$25:U$27)>0,$E103*$F103,0) -> 0 | X103: =IF(SUM(W$25:W$27)>0,$E103*$F103,0) -> 0 | Z103: =IF(SUM(Y$25:Y$27)>0,$E103*$F103,0) -> 0 | AB103: =IF(SUM(AA$25:AA$27)>0,$E103*$F103,0) -> 0 | AD103: =IF(SUM(AC$25:AC$27)>0,$E103*$F103,0) -> 0 | AF103: =IF(SUM(AE$25:AE$27)>0,$E103*$F103,0) -> 0 | AH103: =IF(SUM(AG$25:AG$27)>0,$E103*$F103,0) -> 0 | AJ103: =IF(SUM(AI$25:AI$27)>0,$E103*$F103,0) -> 0 | AL103: =IF(SUM(AK$25:AK$27)>0,$E103*$F103,0) -> 0 | AN103: =IF(SUM(AM$25:AM$27)>0,$E103*$F103,0) -> 0 | AP103: =IF(SUM(AO$25:AO$27)>0,$E103*$F103,0) -> 0 | AR103: =IF(SUM(AQ$25:AQ$27)>0,$E103*$F103,0) -> 0 | AT103: =IF(SUM(AS$25:AS$27)>0,$E103*$F103,0) -> 0 | AV103: =IF(SUM(AU$25:AU$27)>0,$E103*$F103,0) -> 0 | AX103: =IF(SUM(AW$25:AW$27)>0,$E103*$F103,0) -> 0 | AZ103: =IF(SUM(AY$25:AY$27)>0,$E103*$F103,0) -> 0 | BB103: =IF(SUM(BA$25:BA$27)>0,$E103*$F103,0) -> 0 | BD103: =IF(SUM(BC$25:BC$27)>0,$E103*$F103,0) -> 0 | BF103: =IF(SUM(BE$25:BE$27)>0,$E103*$F103,0) -> 0 | BH103: =IF(SUM(BG$25:BG$27)>0,$E103*$F103,0) -> 0 | BJ103: =IF(SUM(BI$25:BI$27)>0,$E103*$F103,0) -> 0 | BL103: =IF(SUM(BK$25:BK$27)>0,$E103*$F103,0) -> 0 | BN103: =IF(SUM(BM$25:BM$27)>0,$E103*$F103,0) -> 0 | BP103: =IF(SUM(BO$25:BO$27)>0,$E103*$F103,0) -> 0 | BR103: =IF(SUM(BQ$25:BQ$27)>0,$E103*$F103,0) -> 0 | BT103: =IF(SUM(BS$25:BS$27)>0,$E103*$F103,0) -> 0 | BV103: =IF(SUM(BU$25:BU$27)>0,$E103*$F103,0) -> 0 | BX103: =IF(SUM(BW$25:BW$27)>0,$E103*$F103,0) -> 0 | BZ103: =IF(SUM(BY$25:BY$27)>0,$E103*$F103,0) -> 0 | CB103: =IF(SUM(CA$25:CA$27)>0,$E103*$F103,0) -> 0 | CD103: =IF(SUM(CC$25:CC$27)>0,$E103*$F103,0) -> 0 | CF103: =IF(SUM(CE$25:CE$27)>0,$E103*$F103,0) -> 0 | CH103: =IF(SUM(CG$25:CG$27)>0,$E103*$F103,0) -> 0 | CJ103: =IF(SUM(CI$25:CI$27)>0,$E103*$F103,0) -> 0 | CL103: =IF(SUM(CK$25:CK$27)>0,$E103*$F103,0) -> 0 | CN103: =IF(SUM(CM$25:CM$27)>0,$E103*$F103,0) -> 0 | CP103: =IF(SUM(CO$25:CO$27)>0,$E103*$F103,0) -> 0 | CR103: =IF(SUM(CQ$25:CQ$27)>0,$E103*$F103,0) -> 0 | CT103: =IF(SUM(CS$25:CS$27)>0,$E103*$F103,0) -> 0 | CV103: =IF(SUM(CU$25:CU$27)>0,$E103*$F103,0) -> 0 | CX103: =IF(SUM(CW$25:CW$27)>0,$E103*$F103,0) -> 0 | CZ103: =IF(SUM(CY$25:CY$27)>0,$E103*$F103,0) -> 0 | DB103: =IF(SUM(DA$25:DA$27)>0,$E103*$F103,0) -> 0 | DD103: =IF(SUM(DC$25:DC$27)>0,$E103*$F103,0) -> 0 | DF103: =IF(SUM(DE$25:DE$27)>0,$E103*$F103,0) -> 0 | DH103: =IF(SUM(DG$25:DG$27)>0,$E103*$F103,0) -> 0 | DJ103: =IF(SUM(DI$25:DI$27)>0,$E103*$F103,0) -> 0 | DL103: =IF(SUM(DK$25:DK$27)>0,$E103*$F103,0) -> 0 | DN103: =IF(SUM(DM$25:DM$27)>0,$E103*$F103,0) -> 0 | DP103: =IF(SUM(DO$25:DO$27)>0,$E103*$F103,0) -> 0 | DR103: =IF(SUM(DQ$25:DQ$27)>0,$E103*$F103,0) -> 0 | DT103: =IF(SUM(DS$25:DS$27)>0,$E103*$F103,0) -> 0 | DV103: =IF(SUM(DU$25:DU$27)>0,$E103*$F103,0) -> 0 | DX103: =IF(SUM(DW$25:DW$27)>0,$E103*$F103,0) -> 0
J104: =IF(SUM(I$98:I$100)>0,$E104*$F104,0) -> 0 | L104: =IF(SUM(K$98:K$100)>0,$E104*$F104,0) -> 0 | N104: =IF(SUM(M$98:M$100)>0,$E104*$F104,0) -> 0 | P104: =IF(SUM(O$98:O$100)>0,$E104*$F104,0) -> 0 | R104: =IF(SUM(Q$98:Q$100)>0,$E104*$F104,0) -> 0 | T104: =IF(SUM(S$98:S$100)>0,$E104*$F104,0) -> 0 | V104: =IF(SUM(U$98:U$100)>0,$E104*$F104,0) -> 0 | X104: =IF(SUM(W$98:W$100)>0,$E104*$F104,0) -> 0 | Z104: =IF(SUM(Y$98:Y$100)>0,$E104*$F104,0) -> 0 | AB104: =IF(SUM(AA$98:AA$100)>0,$E104*$F104,0) -> 0 | AD104: =IF(SUM(AC$98:AC$100)>0,$E104*$F104,0) -> 0 | AF104: =IF(SUM(AE$98:AE$100)>0,$E104*$F104,0) -> 0 | AH104: =IF(SUM(AG$98:AG$100)>0,$E104*$F104,0) -> 0 | AJ104: =IF(SUM(AI$98:AI$100)>0,$E104*$F104,0) -> 0 | AL104: =IF(SUM(AK$98:AK$100)>0,$E104*$F104,0) -> 0 | AN104: =IF(SUM(AM$98:AM$100)>0,$E104*$F104,0) -> 0 | AP104: =IF(SUM(AO$98:AO$100)>0,$E104*$F104,0) -> 0 | AR104: =IF(SUM(AQ$98:AQ$100)>0,$E104*$F104,0) -> 0 | AT104: =IF(SUM(AS$98:AS$100)>0,$E104*$F104,0) -> 0 | AV104: =IF(SUM(AU$98:AU$100)>0,$E104*$F104,0) -> 0 | AX104: =IF(SUM(AW$98:AW$100)>0,$E104*$F104,0) -> 0 | AZ104: =IF(SUM(AY$98:AY$100)>0,$E104*$F104,0) -> 0 | BB104: =IF(SUM(BA$98:BA$100)>0,$E104*$F104,0) -> 0 | BD104: =IF(SUM(BC$98:BC$100)>0,$E104*$F104,0) -> 0 | BF104: =IF(SUM(BE$98:BE$100)>0,$E104*$F104,0) -> 0 | BH104: =IF(SUM(BG$98:BG$100)>0,$E104*$F104,0) -> 0 | BJ104: =IF(SUM(BI$98:BI$100)>0,$E104*$F104,0) -> 0 | BL104: =IF(SUM(BK$98:BK$100)>0,$E104*$F104,0) -> 0 | BN104: =IF(SUM(BM$98:BM$100)>0,$E104*$F104,0) -> 0 | BP104: =IF(SUM(BO$98:BO$100)>0,$E104*$F104,0) -> 0 | BR104: =IF(SUM(BQ$98:BQ$100)>0,$E104*$F104,0) -> 0 | BT104: =IF(SUM(BS$98:BS$100)>0,$E104*$F104,0) -> 0 | BV104: =IF(SUM(BU$98:BU$100)>0,$E104*$F104,0) -> 0 | BX104: =IF(SUM(BW$98:BW$100)>0,$E104*$F104,0) -> 0 | BZ104: =IF(SUM(BY$98:BY$100)>0,$E104*$F104,0) -> 0 | CB104: =IF(SUM(CA$98:CA$100)>0,$E104*$F104,0) -> 0 | CD104: =IF(SUM(CC$98:CC$100)>0,$E104*$F104,0) -> 0 | CF104: =IF(SUM(CE$98:CE$100)>0,$E104*$F104,0) -> 0 | CH104: =IF(SUM(CG$98:CG$100)>0,$E104*$F104,0) -> 0 | CJ104: =IF(SUM(CI$98:CI$100)>0,$E104*$F104,0) -> 0 | CL104: =IF(SUM(CK$98:CK$100)>0,$E104*$F104,0) -> 0 | CN104: =IF(SUM(CM$98:CM$100)>0,$E104*$F104,0) -> 0 | CP104: =IF(SUM(CO$98:CO$100)>0,$E104*$F104,0) -> 0 | CR104: =IF(SUM(CQ$98:CQ$100)>0,$E104*$F104,0) -> 0 | CT104: =IF(SUM(CS$98:CS$100)>0,$E104*$F104,0) -> 0 | CV104: =IF(SUM(CU$98:CU$100)>0,$E104*$F104,0) -> 0 | CX104: =IF(SUM(CW$98:CW$100)>0,$E104*$F104,0) -> 0 | CZ104: =IF(SUM(CY$98:CY$100)>0,$E104*$F104,0) -> 0 | DB104: =IF(SUM(DA$98:DA$100)>0,$E104*$F104,0) -> 0 | DD104: =IF(SUM(DC$98:DC$100)>0,$E104*$F104,0) -> 0 | DF104: =IF(SUM(DE$98:DE$100)>0,$E104*$F104,0) -> 0 | DH104: =IF(SUM(DG$98:DG$100)>0,$E104*$F104,0) -> 0 | DJ104: =IF(SUM(DI$98:DI$100)>0,$E104*$F104,0) -> 0 | DL104: =IF(SUM(DK$98:DK$100)>0,$E104*$F104,0) -> 0 | DN104: =IF(SUM(DM$98:DM$100)>0,$E104*$F104,0) -> 0 | DP104: =IF(SUM(DO$98:DO$100)>0,$E104*$F104,0) -> 0 | DR104: =IF(SUM(DQ$98:DQ$100)>0,$E104*$F104,0) -> 0 | DT104: =IF(SUM(DS$98:DS$100)>0,$E104*$F104,0) -> 0 | DV104: =IF(SUM(DU$98:DU$100)>0,$E104*$F104,0) -> 0 | DX104: =IF(SUM(DW$98:DW$100)>0,$E104*$F104,0) -> 0
J105: =IF(SUM(I$98:I$100)>0,$E105*$F105,0) -> 0 | L105: 0 | N105: 0 | P105: 0 | R105: 0 | T105: 0 | V105: 0 | X105: 0 | Z105: 0 | AB105: 0 | AD105: 0 | AF105: =IF(SUM(AE$98:AE$100)>0,$E105*$F105,0) -> 0 | AH105: =IF(SUM(AG$98:AG$100)>0,$E105*$F105,0) -> 0 | AJ105: =IF(SUM(AI$98:AI$100)>0,$E105*$F105,0) -> 0 | AL105: =IF(SUM(AK$98:AK$100)>0,$E105*$F105,0) -> 0 | AN105: =IF(SUM(AM$98:AM$100)>0,$E105*$F105,0) -> 0 | AP105: =IF(SUM(AO$98:AO$100)>0,$E105*$F105,0) -> 0 | AR105: =IF(SUM(AQ$98:AQ$100)>0,$E105*$F105,0) -> 0 | AT105: =IF(SUM(AS$98:AS$100)>0,$E105*$F105,0) -> 0 | AV105: =IF(SUM(AU$98:AU$100)>0,$E105*$F105,0) -> 0 | AX105: 0 | AZ105: 0 | BB105: 0 | BD105: 0 | BF105: 0 | BH105: 0 | BJ105: 0 | BL105: 0 | BN105: 0 | BP105: 0 | BR105: 0 | BT105: 0 | BV105: 0 | BX105: 0 | BZ105: 0 | CB105: 0 | CD105: 0 | CF105: 0 | CH105: 0 | CJ105: 0 | CL105: 0 | CN105: 0 | CP105: 0 | CR105: 0 | CT105: 0 | CV105: 0 | CX105: 0 | CZ105: 0 | DB105: 0 | DD105: 0 | DF105: 0 | DH105: 0 | DJ105: 0 | DL105: 0 | DN105: 0 | DP105: 0 | DR105: 0 | DT105: 0 | DV105: 0 | DX105: 0
J106: 0 | L106: 0 | N106: 0 | P106: 0 | R106: 0 | T106: 0 | V106: 0 | X106: 0 | Z106: 0 | AB106: 0 | AD106: 0 | AF106: 0 | AH106: =IF(SUM(AG$98:AG$100)>0,$E106*$F106,0) -> 0 | AJ106: =IF(SUM(AI$98:AI$100)>0,$E106*$F106,0) -> 0 | AL106: =IF(SUM(AK$98:AK$100)>0,$E106*$F106,0) -> 0 | AN106: =IF(SUM(AM$98:AM$100)>0,$E106*$F106,0) -> 0 | AP106: =IF(SUM(AO$98:AO$100)>0,$E106*$F106,0) -> 0 | AR106: =IF(SUM(AQ$98:AQ$100)>0,$E106*$F106,0) -> 0 | AT106: =IF(SUM(AS$98:AS$100)>0,$E106*$F106,0) -> 0 | AV106: =IF(SUM(AU$98:AU$100)>0,$E106*$F106,0) -> 0 | AX106: 0 | AZ106: 0 | BB106: 0 | BD106: 0 | BF106: 0 | BH106: 0 | BJ106: 0 | BL106: 0 | BN106: 0 | BP106: 0 | BR106: 0 | BT106: 0 | BV106: 0 | BX106: 0 | BZ106: 0 | CB106: 0 | CD106: 0 | CF106: 0 | CH106: 0 | CJ106: 0 | CL106: 0 | CN106: 0 | CP106: 0 | CR106: 0 | CT106: 0 | CV106: 0 | CX106: 0 | CZ106: 0 | DB106: 0 | DD106: 0 | DF106: 0 | DH106: 0 | DJ106: 0 | DL106: 0 | DN106: 0 | DP106: 0 | DR106: 0 | DT106: 0 | DV106: 0 | DX106: 0
J107: 0 | L107: 0 | N107: 0 | P107: 0 | R107: 0 | T107: 0 | V107: 0 | X107: 0 | Z107: 0 | AB107: 0 | AD107: 0 | AF107: 0 | AH107: =IF(SUM(AG$98:AG$100)>0,$E107*$F107,0) -> 0 | AJ107: =IF(SUM(AI$98:AI$100)>0,$E107*$F107,0) -> 0 | AL107: =IF(SUM(AK$98:AK$100)>0,$E107*$F107,0) -> 0 | AN107: =IF(SUM(AM$98:AM$100)>0,$E107*$F107,0) -> 0 | AP107: =IF(SUM(AO$98:AO$100)>0,$E107*$F107,0) -> 0 | AR107: =IF(SUM(AQ$98:AQ$100)>0,$E107*$F107,0) -> 0 | AT107: =IF(SUM(AS$98:AS$100)>0,$E107*$F107,0) -> 0 | AV107: 0 | AX107: 0 | AZ107: 0 | BB107: 0 | BD107: 0 | BF107: 0 | BH107: 0 | BJ107: 0 | BL107: 0 | BN107: 0 | BP107: 0 | BR107: 0 | BT107: 0 | BV107: 0 | BX107: 0 | BZ107: 0 | CB107: 0 | CD107: 0 | CF107: 0 | CH107: 0 | CJ107: 0 | CL107: 0 | CN107: 0 | CP107: 0 | CR107: 0 | CT107: 0 | CV107: 0 | CX107: 0 | CZ107: 0 | DB107: 0 | DD107: 0 | DF107: 0 | DH107: 0 | DJ107: 0 | DL107: 0 | DN107: 0 | DP107: 0 | DR107: 0 | DT107: 0 | DV107: 0 | DX107: 0
J108: 0 | L108: 0 | N108: 0 | P108: 0 | R108: 0 | T108: 0 | V108: 0 | X108: 0 | Z108: 0 | AB108: 0 | AD108: 0 | AF108: 0 | AH108: =IF(SUM(AG$98:AG$100)>0,$E108*$F108,0) -> 0 | AJ108: =IF(SUM(AI$98:AI$100)>0,$E108*$F108,0) -> 0 | AL108: =IF(SUM(AK$98:AK$100)>0,$E108*$F108,0) -> 0 | AN108: =IF(SUM(AM$98:AM$100)>0,$E108*$F108,0) -> 0 | AP108: =IF(SUM(AO$98:AO$100)>0,$E108*$F108,0) -> 0 | AR108: =IF(SUM(AQ$98:AQ$100)>0,$E108*$F108,0) -> 0 | AT108: =IF(SUM(AS$98:AS$100)>0,$E108*$F108,0) -> 0 | AV108: 0 | AX108: 0 | AZ108: 0 | BB108: 0 | BD108: 0 | BF108: 0 | BH108: 0 | BJ108: 0 | BL108: 0 | BN108: 0 | BP108: 0 | BR108: 0 | BT108: 0 | BV108: 0 | BX108: 0 | BZ108: 0 | CB108: 0 | CD108: 0 | CF108: 0 | CH108: 0 | CJ108: 0 | CL108: 0 | CN108: 0 | CP108: 0 | CR108: 0 | CT108: 0 | CV108: 0 | CX108: 0 | CZ108: 0 | DB108: 0 | DD108: 0 | DF108: 0 | DH108: 0 | DJ108: 0 | DL108: 0 | DN108: 0 | DP108: 0 | DR108: 0 | DT108: 0 | DV108: 0 | DX108: 0
J109: =IF(SUM(I$98:I$100)>0,$E109*$F109,0) -> 0 | L109: =IF(SUM(K$98:K$100)>0,$E109*$F109,0) -> 0 | N109: =IF(SUM(M$98:M$100)>0,$E109*$F109,0) -> 0 | P109: =IF(SUM(O$98:O$100)>0,$E109*$F109,0) -> 0 | R109: =IF(SUM(Q$98:Q$100)>0,$E109*$F109,0) -> 0 | T109: =IF(SUM(S$98:S$100)>0,$E109*$F109,0) -> 0 | V109: =IF(SUM(U$98:U$100)>0,$E109*$F109,0) -> 0 | X109: =IF(SUM(W$98:W$100)>0,$E109*$F109,0) -> 0 | Z109: =IF(SUM(Y$98:Y$100)>0,$E109*$F109,0) -> 0 | AB109: =IF(SUM(AA$98:AA$100)>0,$E109*$F109,0) -> 0 | AD109: 0 | AF109: =IF(SUM(AE$98:AE$100)>0,$E109*$F109,0) -> 0 | AH109: =IF(SUM(AG$98:AG$100)>0,$E109*$F109,0) -> 0 | AJ109: =IF(SUM(AI$98:AI$100)>0,$E109*$F109,0) -> 0 | AL109: =IF(SUM(AK$98:AK$100)>0,$E109*$F109,0) -> 0 | AN109: =IF(SUM(AM$98:AM$100)>0,$E109*$F109,0) -> 0 | AP109: =IF(SUM(AO$98:AO$100)>0,$E109*$F109,0) -> 0 | AR109: =IF(SUM(AQ$98:AQ$100)>0,$E109*$F109,0) -> 0 | AT109: =IF(SUM(AS$98:AS$100)>0,$E109*$F109,0) -> 0 | AV109: =IF(SUM(AU$98:AU$100)>0,$E109*$F109,0) -> 0 | AX109: =IF(SUM(AW$98:AW$100)>0,$E109*$F109,0) -> 0 | AZ109: =IF(SUM(AY$98:AY$100)>0,$E109*$F109,0) -> 0 | BB109: =IF(SUM(BA$98:BA$100)>0,$E109*$F109,0) -> 0 | BD109: =IF(SUM(BC$98:BC$100)>0,$E109*$F109,0) -> 0 | BF109: =IF(SUM(BE$98:BE$100)>0,$E109*$F109,0) -> 0 | BH109: =IF(SUM(BG$98:BG$100)>0,$E109*$F109,0) -> 0 | BJ109: =IF(SUM(BI$98:BI$100)>0,$E109*$F109,0) -> 0 | BL109: =IF(SUM(BK$98:BK$100)>0,$E109*$F109,0) -> 0 | BN109: =IF(SUM(BM$98:BM$100)>0,$E109*$F109,0) -> 0 | BP109: =IF(SUM(BO$98:BO$100)>0,$E109*$F109,0) -> 0 | BR109: =IF(SUM(BQ$98:BQ$100)>0,$E109*$F109,0) -> 0 | BT109: =IF(SUM(BS$98:BS$100)>0,$E109*$F109,0) -> 0 | BV109: =IF(SUM(BU$98:BU$100)>0,$E109*$F109,0) -> 0 | BX109: =IF(SUM(BW$98:BW$100)>0,$E109*$F109,0) -> 0 | BZ109: =IF(SUM(BY$98:BY$100)>0,$E109*$F109,0) -> 0 | CB109: =IF(SUM(CA$98:CA$100)>0,$E109*$F109,0) -> 0 | CD109: =IF(SUM(CC$98:CC$100)>0,$E109*$F109,0) -> 0 | CF109: =IF(SUM(CE$98:CE$100)>0,$E109*$F109,0) -> 0 | CH109: =IF(SUM(CG$98:CG$100)>0,$E109*$F109,0) -> 0 | CJ109: =IF(SUM(CI$98:CI$100)>0,$E109*$F109,0) -> 0 | CL109: =IF(SUM(CK$98:CK$100)>0,$E109*$F109,0) -> 0 | CN109: =IF(SUM(CM$98:CM$100)>0,$E109*$F109,0) -> 0 | CP109: =IF(SUM(CO$98:CO$100)>0,$E109*$F109,0) -> 0 | CR109: =IF(SUM(CQ$98:CQ$100)>0,$E109*$F109,0) -> 0 | CT109: =IF(SUM(CS$98:CS$100)>0,$E109*$F109,0) -> 0 | CV109: =IF(SUM(CU$98:CU$100)>0,$E109*$F109,0) -> 0 | CX109: =IF(SUM(CW$98:CW$100)>0,$E109*$F109,0) -> 0 | CZ109: =IF(SUM(CY$98:CY$100)>0,$E109*$F109,0) -> 0 | DB109: =IF(SUM(DA$98:DA$100)>0,$E109*$F109,0) -> 0 | DD109: =IF(SUM(DC$98:DC$100)>0,$E109*$F109,0) -> 0 | DF109: =IF(SUM(DE$98:DE$100)>0,$E109*$F109,0) -> 0 | DH109: =IF(SUM(DG$98:DG$100)>0,$E109*$F109,0) -> 0 | DJ109: =IF(SUM(DI$98:DI$100)>0,$E109*$F109,0) -> 0 | DL109: =IF(SUM(DK$98:DK$100)>0,$E109*$F109,0) -> 0 | DN109: =IF(SUM(DM$98:DM$100)>0,$E109*$F109,0) -> 0 | DP109: =IF(SUM(DO$98:DO$100)>0,$E109*$F109,0) -> 0 | DR109: =IF(SUM(DQ$98:DQ$100)>0,$E109*$F109,0) -> 0 | DT109: =IF(SUM(DS$98:DS$100)>0,$E109*$F109,0) -> 0 | DV109: =IF(SUM(DU$98:DU$100)>0,$E109*$F109,0) -> 0 | DX109: =IF(SUM(DW$98:DW$100)>0,$E109*$F109,0) -> 0
I112: =IF($C112=I$11,1,0) -> 0 | K112: =IF($C112=K$11,1,0) -> 0 | M112: =IF($C112=M$11,1,0) -> 0 | O112: =IF($C112=O$11,1,0) -> 0 | Q112: =IF($C112=Q$11,1,0) -> 0 | S112: =IF($C112=S$11,1,0) -> 0 | U112: =IF($C112=U$11,1,0) -> 0 | W112: =IF($C112=W$11,1,0) -> 0 | Y112: =IF($C112=Y$11,1,0) -> 0 | AA112: =IF($C112=AA$11,1,0) -> 0 | AC112: =IF($C112=AC$11,1,0) -> 0 | AE112: =IF($C112=AE$11,1,0) -> 0 | AG112: =IF($C112=AG$11,1,0) -> 0 | AI112: =IF($C112=AI$11,1,0) -> 0 | AK112: =IF($C112=AK$11,1,0) -> 0 | AM112: =IF($C112=AM$11,1,0) -> 0 | AO112: =IF($C112=AO$11,1,0) -> 0 | AQ112: =IF($C112=AQ$11,1,0) -> 0 | AS112: =IF($C112=AS$11,1,0) -> 0
I113: =IF($C113=I$11,1,0) -> 0 | J113: =IF($C113=J$11,1,0) -> 1 | K113: 0 | L113: 1 | M113: 0 | N113: 1 | O113: 0 | P113: 1 | Q113: 0 | R113: 1 | S113: 0 | T113: 1 | U113: 0 | V113: 1 | W113: 0 | X113: 1 | Y113: 0 | Z113: 1 | AA113: 0 | AB113: 1 | AC113: 0 | AD113: 1 | AE113: =IF($C113=AE$11,1,0) -> 0 | AF113: 1 | AG113: 0 | AH113: 1 | AI113: 0 | AJ113: 1 | AK113: 0 | AL113: 1 | AM113: 0 | AN113: 1 | AO113: 0 | AP113: 1 | AQ113: 0 | AR113: 1 | AS113: 0 | AT113: 1 | AU113: =IF($C113=AU$11,1,0) -> 0 | AV113: 1 | AW113: =IF($C113=AW$11,1,0) -> 0 | AX113: 1 | AY113: =IF($C113=AY$11,1,0) -> 0 | AZ113: 1 | BA113: =IF($C113=BA$11,1,0) -> 0 | BB113: 1 | BC113: =IF($C113=BC$11,1,0) -> 0 | BD113: 1 | BE113: =IF($C113=BE$11,1,0) -> 0 | BF113: 1 | BG113: =IF($C113=BG$11,1,0) -> 0 | BH113: 1 | BI113: =IF($C113=BI$11,1,0) -> 0 | BJ113: 1 | BK113: =IF($C113=BK$11,1,0) -> 0 | BL113: 1 | BM113: =IF($C113=BM$11,1,0) -> 0 | BN113: 1 | BO113: =IF($C113=BO$11,1,0) -> 0 | BP113: 1 | BQ113: =IF($C113=BQ$11,1,0) -> 0 | BR113: 1 | BS113: =IF($C113=BS$11,1,0) -> 0 | BT113: 1 | BU113: =IF($C113=BU$11,1,0) -> 0 | BV113: 1 | BW113: =IF($C113=BW$11,1,0) -> 0 | BX113: 1 | BY113: =IF($C113=BY$11,1,0) -> 0 | BZ113: 1 | CA113: =IF($C113=CA$11,1,0) -> 0 | CB113: 1 | CC113: =IF($C113=CC$11,1,0) -> 0 | CD113: 1 | CE113: =IF($C113=CE$11,1,0) -> 0 | CF113: 1 | CG113: =IF($C113=CG$11,1,0) -> 0 | CH113: 1 | CI113: =IF($C113=CI$11,1,0) -> 0 | CJ113: 1 | CK113: =IF($C113=CK$11,1,0) -> 0 | CL113: 1 | CM113: =IF($C113=CM$11,1,0) -> 0 | CN113: 1 | CO113: =IF($C113=CO$11,1,0) -> 0 | CP113: 1 | CQ113: =IF($C113=CQ$11,1,0) -> 0 | CR113: 1 | CS113: =IF($C113=CS$11,1,0) -> 0 | CT113: 1 | CU113: =IF($C113=CU$11,1,0) -> 0 | CV113: 1 | CW113: =IF($C113=CW$11,1,0) -> 0 | CX113: 1 | CY113: =IF($C113=CY$11,1,0) -> 0 | CZ113: 1 | DA113: =IF($C113=DA$11,1,0) -> 0 | DB113: 1 | DC113: =IF($C113=DC$11,1,0) -> 0 | DD113: 1 | DE113: =IF($C113=DE$11,1,0) -> 0 | DF113: 1 | DG113: =IF($C113=DG$11,1,0) -> 0 | DH113: 1 | DI113: =IF($C113=DI$11,1,0) -> 0 | DJ113: 1 | DK113: =IF($C113=DK$11,1,0) -> 0 | DL113: 1 | DM113: =IF($C113=DM$11,1,0) -> 0 | DN113: 1 | DO113: =IF($C113=DO$11,1,0) -> 0 | DP113: 1 | DQ113: =IF($C113=DQ$11,1,0) -> 0 | DR113: 1 | DS113: =IF($C113=DS$11,1,0) -> 0 | DT113: 1 | DU113: =IF($C113=DU$11,1,0) -> 0 | DV113: 1 | DW113: =IF($C113=DW$11,1,0) -> 0 | DX113: 1
I114: =IF($C114=I$11,1,0) -> 0 | K114: 0 | M114: 0 | O114: 0 | Q114: 0 | S114: 0 | U114: 0 | W114: 0 | Y114: 0 | AA114: 0 | AC114: 0 | AE114: =IF($C114=AE$11,1,0) -> 0 | AG114: 0 | AI114: 0 | AK114: 0 | AM114: 0 | AO114: 0 | AQ114: 0 | AS114: 0
J117: =IF(SUM(I$25:I$27)>0,$E117*$F117,0) -> 0 | L117: =IF(SUM(K$25:K$27)>0,$E117*$F117,0) -> 0 | N117: =IF(SUM(M$25:M$27)>0,$E117*$F117,0) -> 0 | P117: =IF(SUM(O$25:O$27)>0,$E117*$F117,0) -> 0 | R117: =IF(SUM(Q$25:Q$27)>0,$E117*$F117,0) -> 0 | T117: =IF(SUM(S$25:S$27)>0,$E117*$F117,0) -> 0 | V117: =IF(SUM(U$25:U$27)>0,$E117*$F117,0) -> 0 | X117: =IF(SUM(W$25:W$27)>0,$E117*$F117,0) -> 0 | Z117: =IF(SUM(Y$25:Y$27)>0,$E117*$F117,0) -> 0 | AB117: =IF(SUM(AA$25:AA$27)>0,$E117*$F117,0) -> 0 | AD117: =IF(SUM(AC$25:AC$27)>0,$E117*$F117,0) -> 0 | AF117: =IF(SUM(AE$25:AE$27)>0,$E117*$F117,0) -> 0 | AH117: =IF(SUM(AG$25:AG$27)>0,$E117*$F117,0) -> 0 | AJ117: =IF(SUM(AI$25:AI$27)>0,$E117*$F117,0) -> 0 | AL117: =IF(SUM(AK$25:AK$27)>0,$E117*$F117,0) -> 0 | AN117: =IF(SUM(AM$25:AM$27)>0,$E117*$F117,0) -> 0 | AP117: =IF(SUM(AO$25:AO$27)>0,$E117*$F117,0) -> 0 | AR117: =IF(SUM(AQ$25:AQ$27)>0,$E117*$F117,0) -> 0 | AT117: =IF(SUM(AS$25:AS$27)>0,$E117*$F117,0) -> 0 | AV117: =IF(SUM(AU$25:AU$27)>0,$E117*$F117,0) -> 0 | AX117: =IF(SUM(AW$25:AW$27)>0,$E117*$F117,0) -> 0 | AZ117: =IF(SUM(AY$25:AY$27)>0,$E117*$F117,0) -> 0 | BB117: =IF(SUM(BA$25:BA$27)>0,$E117*$F117,0) -> 0 | BD117: =IF(SUM(BC$25:BC$27)>0,$E117*$F117,0) -> 0 | BF117: =IF(SUM(BE$25:BE$27)>0,$E117*$F117,0) -> 0 | BH117: =IF(SUM(BG$25:BG$27)>0,$E117*$F117,0) -> 0 | BJ117: =IF(SUM(BI$25:BI$27)>0,$E117*$F117,0) -> 0 | BL117: =IF(SUM(BK$25:BK$27)>0,$E117*$F117,0) -> 0 | BN117: =IF(SUM(BM$25:BM$27)>0,$E117*$F117,0) -> 0 | BP117: =IF(SUM(BO$25:BO$27)>0,$E117*$F117,0) -> 0 | BR117: =IF(SUM(BQ$25:BQ$27)>0,$E117*$F117,0) -> 0 | BT117: =IF(SUM(BS$25:BS$27)>0,$E117*$F117,0) -> 0 | BV117: =IF(SUM(BU$25:BU$27)>0,$E117*$F117,0) -> 0 | BX117: =IF(SUM(BW$25:BW$27)>0,$E117*$F117,0) -> 0 | BZ117: =IF(SUM(BY$25:BY$27)>0,$E117*$F117,0) -> 0 | CB117: =IF(SUM(CA$25:CA$27)>0,$E117*$F117,0) -> 0 | CD117: =IF(SUM(CC$25:CC$27)>0,$E117*$F117,0) -> 0 | CF117: =IF(SUM(CE$25:CE$27)>0,$E117*$F117,0) -> 0 | CH117: =IF(SUM(CG$25:CG$27)>0,$E117*$F117,0) -> 0 | CJ117: =IF(SUM(CI$25:CI$27)>0,$E117*$F117,0) -> 0 | CL117: =IF(SUM(CK$25:CK$27)>0,$E117*$F117,0) -> 0 | CN117: =IF(SUM(CM$25:CM$27)>0,$E117*$F117,0) -> 0 | CP117: =IF(SUM(CO$25:CO$27)>0,$E117*$F117,0) -> 0 | CR117: =IF(SUM(CQ$25:CQ$27)>0,$E117*$F117,0) -> 0 | CT117: =IF(SUM(CS$25:CS$27)>0,$E117*$F117,0) -> 0 | CV117: =IF(SUM(CU$25:CU$27)>0,$E117*$F117,0) -> 0 | CX117: =IF(SUM(CW$25:CW$27)>0,$E117*$F117,0) -> 0 | CZ117: =IF(SUM(CY$25:CY$27)>0,$E117*$F117,0) -> 0 | DB117: =IF(SUM(DA$25:DA$27)>0,$E117*$F117,0) -> 0 | DD117: =IF(SUM(DC$25:DC$27)>0,$E117*$F117,0) -> 0 | DF117: =IF(SUM(DE$25:DE$27)>0,$E117*$F117,0) -> 0 | DH117: =IF(SUM(DG$25:DG$27)>0,$E117*$F117,0) -> 0 | DJ117: =IF(SUM(DI$25:DI$27)>0,$E117*$F117,0) -> 0 | DL117: =IF(SUM(DK$25:DK$27)>0,$E117*$F117,0) -> 0 | DN117: =IF(SUM(DM$25:DM$27)>0,$E117*$F117,0) -> 0 | DP117: =IF(SUM(DO$25:DO$27)>0,$E117*$F117,0) -> 0 | DR117: =IF(SUM(DQ$25:DQ$27)>0,$E117*$F117,0) -> 0 | DT117: =IF(SUM(DS$25:DS$27)>0,$E117*$F117,0) -> 0 | DV117: =IF(SUM(DU$25:DU$27)>0,$E117*$F117,0) -> 0 | DX117: =IF(SUM(DW$25:DW$27)>0,$E117*$F117,0) -> 0
J118: =IF(SUM(I$112:I$114)>0,$E118*$F118,0) -> 0 | L118: =IF(SUM(K$112:K$114)>0,$E118*$F118,0) -> 0 | N118: =IF(SUM(M$112:M$114)>0,$E118*$F118,0) -> 0 | P118: =IF(SUM(O$112:O$114)>0,$E118*$F118,0) -> 0 | R118: =IF(SUM(Q$112:Q$114)>0,$E118*$F118,0) -> 0 | T118: =IF(SUM(S$112:S$114)>0,$E118*$F118,0) -> 0 | V118: =IF(SUM(U$112:U$114)>0,$E118*$F118,0) -> 0 | X118: =IF(SUM(W$112:W$114)>0,$E118*$F118,0) -> 0 | Z118: =IF(SUM(Y$112:Y$114)>0,$E118*$F118,0) -> 0 | AB118: =IF(SUM(AA$112:AA$114)>0,$E118*$F118,0) -> 0 | AD118: =IF(SUM(AC$112:AC$114)>0,$E118*$F118,0) -> 0 | AF118: =IF(SUM(AE$112:AE$114)>0,$E118*$F118,0) -> 0 | AH118: =IF(SUM(AG$112:AG$114)>0,$E118*$F118,0) -> 0 | AJ118: =IF(SUM(AI$112:AI$114)>0,$E118*$F118,0) -> 0 | AL118: =IF(SUM(AK$112:AK$114)>0,$E118*$F118,0) -> 0 | AN118: =IF(SUM(AM$112:AM$114)>0,$E118*$F118,0) -> 0 | AP118: =IF(SUM(AO$112:AO$114)>0,$E118*$F118,0) -> 0 | AR118: =IF(SUM(AQ$112:AQ$114)>0,$E118*$F118,0) -> 0 | AT118: =IF(SUM(AS$112:AS$114)>0,$E118*$F118,0) -> 0 | AV118: =IF(SUM(AU$112:AU$114)>0,$E118*$F118,0) -> 0 | AX118: =IF(SUM(AW$112:AW$114)>0,$E118*$F118,0) -> 0 | AZ118: =IF(SUM(AY$112:AY$114)>0,$E118*$F118,0) -> 0 | BB118: =IF(SUM(BA$112:BA$114)>0,$E118*$F118,0) -> 0 | BD118: =IF(SUM(BC$112:BC$114)>0,$E118*$F118,0) -> 0 | BF118: =IF(SUM(BE$112:BE$114)>0,$E118*$F118,0) -> 0 | BH118: =IF(SUM(BG$112:BG$114)>0,$E118*$F118,0) -> 0 | BJ118: =IF(SUM(BI$112:BI$114)>0,$E118*$F118,0) -> 0 | BL118: =IF(SUM(BK$112:BK$114)>0,$E118*$F118,0) -> 0 | BN118: =IF(SUM(BM$112:BM$114)>0,$E118*$F118,0) -> 0 | BP118: =IF(SUM(BO$112:BO$114)>0,$E118*$F118,0) -> 0 | BR118: =IF(SUM(BQ$112:BQ$114)>0,$E118*$F118,0) -> 0 | BT118: =IF(SUM(BS$112:BS$114)>0,$E118*$F118,0) -> 0 | BV118: =IF(SUM(BU$112:BU$114)>0,$E118*$F118,0) -> 0 | BX118: =IF(SUM(BW$112:BW$114)>0,$E118*$F118,0) -> 0 | BZ118: =IF(SUM(BY$112:BY$114)>0,$E118*$F118,0) -> 0 | CB118: =IF(SUM(CA$112:CA$114)>0,$E118*$F118,0) -> 0 | CD118: =IF(SUM(CC$112:CC$114)>0,$E118*$F118,0) -> 0 | CF118: =IF(SUM(CE$112:CE$114)>0,$E118*$F118,0) -> 0 | CH118: =IF(SUM(CG$112:CG$114)>0,$E118*$F118,0) -> 0 | CJ118: =IF(SUM(CI$112:CI$114)>0,$E118*$F118,0) -> 0 | CL118: =IF(SUM(CK$112:CK$114)>0,$E118*$F118,0) -> 0 | CN118: =IF(SUM(CM$112:CM$114)>0,$E118*$F118,0) -> 0 | CP118: =IF(SUM(CO$112:CO$114)>0,$E118*$F118,0) -> 0 | CR118: =IF(SUM(CQ$112:CQ$114)>0,$E118*$F118,0) -> 0 | CT118: =IF(SUM(CS$112:CS$114)>0,$E118*$F118,0) -> 0 | CV118: =IF(SUM(CU$112:CU$114)>0,$E118*$F118,0) -> 0 | CX118: =IF(SUM(CW$112:CW$114)>0,$E118*$F118,0) -> 0 | CZ118: =IF(SUM(CY$112:CY$114)>0,$E118*$F118,0) -> 0 | DB118: =IF(SUM(DA$112:DA$114)>0,$E118*$F118,0) -> 0 | DD118: =IF(SUM(DC$112:DC$114)>0,$E118*$F118,0) -> 0 | DF118: =IF(SUM(DE$112:DE$114)>0,$E118*$F118,0) -> 0 | DH118: =IF(SUM(DG$112:DG$114)>0,$E118*$F118,0) -> 0 | DJ118: =IF(SUM(DI$112:DI$114)>0,$E118*$F118,0) -> 0 | DL118: =IF(SUM(DK$112:DK$114)>0,$E118*$F118,0) -> 0 | DN118: =IF(SUM(DM$112:DM$114)>0,$E118*$F118,0) -> 0 | DP118: =IF(SUM(DO$112:DO$114)>0,$E118*$F118,0) -> 0 | DR118: =IF(SUM(DQ$112:DQ$114)>0,$E118*$F118,0) -> 0 | DT118: =IF(SUM(DS$112:DS$114)>0,$E118*$F118,0) -> 0 | DV118: =IF(SUM(DU$112:DU$114)>0,$E118*$F118,0) -> 0 | DX118: =IF(SUM(DW$112:DW$114)>0,$E118*$F118,0) -> 0
J119: =IF(SUM(I$112:I$114)>0,$E119*$F119,0) -> 0 | L119: 0 | N119: 0 | P119: 0 | R119: 0 | T119: 0 | V119: 0 | X119: 0 | Z119: 0 | AB119: 0 | AD119: 0 | AF119: =IF(SUM(AE$112:AE$114)>0,$E119*$F119,0) -> 0 | AH119: =IF(SUM(AG$112:AG$114)>0,$E119*$F119,0) -> 0 | AJ119: =IF(SUM(AI$112:AI$114)>0,$E119*$F119,0) -> 0 | AL119: =IF(SUM(AK$112:AK$114)>0,$E119*$F119,0) -> 0 | AN119: =IF(SUM(AM$112:AM$114)>0,$E119*$F119,0) -> 0 | AP119: =IF(SUM(AO$112:AO$114)>0,$E119*$F119,0) -> 0 | AR119: =IF(SUM(AQ$112:AQ$114)>0,$E119*$F119,0) -> 0 | AT119: =IF(SUM(AS$112:AS$114)>0,$E119*$F119,0) -> 0 | AV119: =IF(SUM(AU$112:AU$114)>0,$E119*$F119,0) -> 0 | AX119: 0 | AZ119: 0 | BB119: 0 | BD119: 0 | BF119: 0 | BH119: 0 | BJ119: 0 | BL119: 0 | BN119: 0 | BP119: 0 | BR119: 0 | BT119: 0 | BV119: 0 | BX119: 0 | BZ119: 0 | CB119: 0 | CD119: 0 | CF119: 0 | CH119: 0 | CJ119: 0 | CL119: 0 | CN119: 0 | CP119: 0 | CR119: 0 | CT119: 0 | CV119: 0 | CX119: 0 | CZ119: 0 | DB119: 0 | DD119: 0 | DF119: 0 | DH119: 0 | DJ119: 0 | DL119: 0 | DN119: 0 | DP119: 0 | DR119: 0 | DT119: 0 | DV119: 0 | DX119: 0
J120: 0 | L120: 0 | N120: 0 | P120: 0 | R120: 0 | T120: 0 | V120: 0 | X120: 0 | Z120: 0 | AB120: 0 | AD120: 0 | AF120: 0 | AH120: =IF(SUM(AG$112:AG$114)>0,$E120*$F120,0) -> 0 | AJ120: =IF(SUM(AI$112:AI$114)>0,$E120*$F120,0) -> 0 | AL120: =IF(SUM(AK$112:AK$114)>0,$E120*$F120,0) -> 0 | AN120: =IF(SUM(AM$112:AM$114)>0,$E120*$F120,0) -> 0 | AP120: =IF(SUM(AO$112:AO$114)>0,$E120*$F120,0) -> 0 | AR120: =IF(SUM(AQ$112:AQ$114)>0,$E120*$F120,0) -> 0 | AT120: =IF(SUM(AS$112:AS$114)>0,$E120*$F120,0) -> 0 | AV120: =IF(SUM(AU$112:AU$114)>0,$E120*$F120,0) -> 0 | AX120: 0 | AZ120: 0 | BB120: 0 | BD120: 0 | BF120: 0 | BH120: 0 | BJ120: 0 | BL120: 0 | BN120: 0 | BP120: 0 | BR120: 0 | BT120: 0 | BV120: 0 | BX120: 0 | BZ120: 0 | CB120: 0 | CD120: 0 | CF120: 0 | CH120: 0 | CJ120: 0 | CL120: 0 | CN120: 0 | CP120: 0 | CR120: 0 | CT120: 0 | CV120: 0 | CX120: 0 | CZ120: 0 | DB120: 0 | DD120: 0 | DF120: 0 | DH120: 0 | DJ120: 0 | DL120: 0 | DN120: 0 | DP120: 0 | DR120: 0 | DT120: 0 | DV120: 0 | DX120: 0
J121: 0 | L121: 0 | N121: 0 | P121: 0 | R121: 0 | T121: 0 | V121: 0 | X121: 0 | Z121: 0 | AB121: 0 | AD121: 0 | AF121: 0 | AH121: =IF(SUM(AG$112:AG$114)>0,$E121*$F121,0) -> 0 | AJ121: =IF(SUM(AI$112:AI$114)>0,$E121*$F121,0) -> 0 | AL121: =IF(SUM(AK$112:AK$114)>0,$E121*$F121,0) -> 0 | AN121: =IF(SUM(AM$112:AM$114)>0,$E121*$F121,0) -> 0 | AP121: =IF(SUM(AO$112:AO$114)>0,$E121*$F121,0) -> 0 | AR121: =IF(SUM(AQ$112:AQ$114)>0,$E121*$F121,0) -> 0 | AT121: =IF(SUM(AS$112:AS$114)>0,$E121*$F121,0) -> 0 | AV121: 0 | AX121: 0 | AZ121: 0 | BB121: 0 | BD121: 0 | BF121: 0 | BH121: 0 | BJ121: 0 | BL121: 0 | BN121: 0 | BP121: 0 | BR121: 0 | BT121: 0 | BV121: 0 | BX121: 0 | BZ121: 0 | CB121: 0 | CD121: 0 | CF121: 0 | CH121: 0 | CJ121: 0 | CL121: 0 | CN121: 0 | CP121: 0 | CR121: 0 | CT121: 0 | CV121: 0 | CX121: 0 | CZ121: 0 | DB121: 0 | DD121: 0 | DF121: 0 | DH121: 0 | DJ121: 0 | DL121: 0 | DN121: 0 | DP121: 0 | DR121: 0 | DT121: 0 | DV121: 0 | DX121: 0
J122: 0 | L122: 0 | N122: 0 | P122: 0 | R122: 0 | T122: 0 | V122: 0 | X122: 0 | Z122: 0 | AB122: 0 | AD122: 0 | AF122: 0 | AH122: =IF(SUM(AG$112:AG$114)>0,$E122*$F122,0) -> 0 | AJ122: =IF(SUM(AI$112:AI$114)>0,$E122*$F122,0) -> 0 | AL122: =IF(SUM(AK$112:AK$114)>0,$E122*$F122,0) -> 0 | AN122: =IF(SUM(AM$112:AM$114)>0,$E122*$F122,0) -> 0 | AP122: =IF(SUM(AO$112:AO$114)>0,$E122*$F122,0) -> 0 | AR122: =IF(SUM(AQ$112:AQ$114)>0,$E122*$F122,0) -> 0 | AT122: =IF(SUM(AS$112:AS$114)>0,$E122*$F122,0) -> 0 | AV122: 0 | AX122: 0 | AZ122: 0 | BB122: 0 | BD122: 0 | BF122: 0 | BH122: 0 | BJ122: 0 | BL122: 0 | BN122: 0 | BP122: 0 | BR122: 0 | BT122: 0 | BV122: 0 | BX122: 0 | BZ122: 0 | CB122: 0 | CD122: 0 | CF122: 0 | CH122: 0 | CJ122: 0 | CL122: 0 | CN122: 0 | CP122: 0 | CR122: 0 | CT122: 0 | CV122: 0 | CX122: 0 | CZ122: 0 | DB122: 0 | DD122: 0 | DF122: 0 | DH122: 0 | DJ122: 0 | DL122: 0 | DN122: 0 | DP122: 0 | DR122: 0 | DT122: 0 | DV122: 0 | DX122: 0
J123: 0 | L123: 0 | N123: 0 | P123: 0 | R123: 0 | T123: 0 | V123: 0 | X123: 0 | Z123: 0 | AB123: 0 | AD123: 0 | AF123: 0 | AH123: =IF(SUM(AG$112:AG$114)>0,$E123*$F123,0) -> 0 | AJ123: =IF(SUM(AI$112:AI$114)>0,$E123*$F123,0) -> 0 | AL123: =IF(SUM(AK$112:AK$114)>0,$E123*$F123,0) -> 0 | AN123: =IF(SUM(AM$112:AM$114)>0,$E123*$F123,0) -> 0 | AP123: =IF(SUM(AO$112:AO$114)>0,$E123*$F123,0) -> 0 | AR123: =IF(SUM(AQ$112:AQ$114)>0,$E123*$F123,0) -> 0 | AT123: =IF(SUM(AS$112:AS$114)>0,$E123*$F123,0) -> 0 | AV123: 0 | AX123: 0 | AZ123: 0 | BB123: 0 | BD123: 0 | BF123: 0 | BH123: 0 | BJ123: 0 | BL123: 0 | BN123: 0 | BP123: 0 | BR123: 0 | BT123: 0 | BV123: 0 | BX123: 0 | BZ123: 0 | CB123: 0 | CD123: 0 | CF123: 0 | CH123: 0 | CJ123: 0 | CL123: 0 | CN123: 0 | CP123: 0 | CR123: 0 | CT123: 0 | CV123: 0 | CX123: 0 | CZ123: 0 | DB123: 0 | DD123: 0 | DF123: 0 | DH123: 0 | DJ123: 0 | DL123: 0 | DN123: 0 | DP123: 0 | DR123: 0 | DT123: 0 | DV123: 0 | DX123: 0
I126: =IF($C126=I$11,1,0) -> 0 | K126: =IF($C126=K$11,1,0) -> 0 | M126: =IF($C126=M$11,1,0) -> 0 | O126: =IF($C126=O$11,1,0) -> 0 | Q126: =IF($C126=Q$11,1,0) -> 0 | S126: =IF($C126=S$11,1,0) -> 0 | U126: =IF($C126=U$11,1,0) -> 0 | W126: =IF($C126=W$11,1,0) -> 0 | Y126: =IF($C126=Y$11,1,0) -> 0 | AA126: =IF($C126=AA$11,1,0) -> 0 | AC126: =IF($C126=AC$11,1,0) -> 0 | AE126: =IF($C126=AE$11,1,0) -> 0 | AG126: =IF($C126=AG$11,1,0) -> 0 | AI126: =IF($C126=AI$11,1,0) -> 0 | AK126: =IF($C126=AK$11,1,0) -> 0 | AM126: =IF($C126=AM$11,1,0) -> 0 | AO126: =IF($C126=AO$11,1,0) -> 0 | AQ126: =IF($C126=AQ$11,1,0) -> 0 | AS126: =IF($C126=AS$11,1,0) -> 0
I127: =IF($C127=I$11,1,0) -> 0 | J127: =IF($C127=J$11,1,0) -> 1 | K127: 0 | L127: 1 | M127: 0 | N127: 1 | O127: 0 | P127: 1 | Q127: 0 | R127: 1 | S127: 0 | T127: 1 | U127: 0 | V127: 1 | W127: 0 | X127: 1 | Y127: 0 | Z127: 1 | AA127: 0 | AB127: 1 | AC127: 0 | AD127: 1 | AE127: =IF($C127=AE$11,1,0) -> 0 | AF127: 1 | AG127: 0 | AH127: 1 | AI127: 0 | AJ127: 1 | AK127: 0 | AL127: 1 | AM127: 0 | AN127: 1 | AO127: 0 | AP127: 1 | AQ127: 0 | AR127: 1 | AS127: 0 | AT127: 1 | AU127: =IF($C127=AU$11,1,0) -> 0 | AV127: 1 | AW127: =IF($C127=AW$11,1,0) -> 0 | AX127: 1 | AY127: =IF($C127=AY$11,1,0) -> 0 | AZ127: 1 | BA127: =IF($C127=BA$11,1,0) -> 0 | BB127: 1 | BC127: =IF($C127=BC$11,1,0) -> 0 | BD127: 1 | BE127: =IF($C127=BE$11,1,0) -> 0 | BF127: 1 | BG127: =IF($C127=BG$11,1,0) -> 0 | BH127: 1 | BI127: =IF($C127=BI$11,1,0) -> 0 | BJ127: 1 | BK127: =IF($C127=BK$11,1,0) -> 0 | BL127: 1 | BM127: =IF($C127=BM$11,1,0) -> 0 | BN127: 1 | BO127: =IF($C127=BO$11,1,0) -> 0 | BP127: 1 | BQ127: =IF($C127=BQ$11,1,0) -> 0 | BR127: 1 | BS127: =IF($C127=BS$11,1,0) -> 0 | BT127: 1 | BU127: =IF($C127=BU$11,1,0) -> 0 | BV127: 1 | BW127: =IF($C127=BW$11,1,0) -> 0 | BX127: 1 | BY127: =IF($C127=BY$11,1,0) -> 0 | BZ127: 1 | CA127: =IF($C127=CA$11,1,0) -> 0 | CB127: 1 | CC127: =IF($C127=CC$11,1,0) -> 0 | CD127: 1 | CE127: =IF($C127=CE$11,1,0) -> 0 | CF127: 1 | CG127: =IF($C127=CG$11,1,0) -> 0 | CH127: 1 | CI127: =IF($C127=CI$11,1,0) -> 0 | CJ127: 1 | CK127: =IF($C127=CK$11,1,0) -> 0 | CL127: 1 | CM127: =IF($C127=CM$11,1,0) -> 0 | CN127: 1 | CO127: =IF($C127=CO$11,1,0) -> 0 | CP127: 1 | CQ127: =IF($C127=CQ$11,1,0) -> 0 | CR127: 1 | CS127: =IF($C127=CS$11,1,0) -> 0 | CT127: 1 | CU127: =IF($C127=CU$11,1,0) -> 0 | CV127: 1 | CW127: =IF($C127=CW$11,1,0) -> 0 | CX127: 1 | CY127: =IF($C127=CY$11,1,0) -> 0 | CZ127: 1 | DA127: =IF($C127=DA$11,1,0) -> 0 | DB127: 1 | DC127: =IF($C127=DC$11,1,0) -> 0 | DD127: 1 | DE127: =IF($C127=DE$11,1,0) -> 0 | DF127: 1 | DG127: =IF($C127=DG$11,1,0) -> 0 | DH127: 1 | DI127: =IF($C127=DI$11,1,0) -> 0 | DJ127: 1 | DK127: =IF($C127=DK$11,1,0) -> 0 | DL127: 1 | DM127: =IF($C127=DM$11,1,0) -> 0 | DN127: 1 | DO127: =IF($C127=DO$11,1,0) -> 0 | DP127: 1 | DQ127: =IF($C127=DQ$11,1,0) -> 0 | DR127: 1 | DS127: =IF($C127=DS$11,1,0) -> 0 | DT127: 1 | DU127: =IF($C127=DU$11,1,0) -> 0 | DV127: 1 | DW127: =IF($C127=DW$11,1,0) -> 0 | DX127: 1
I128: =IF($C128=I$11,1,0) -> 0 | K128: 0 | M128: 0 | O128: 0 | Q128: 0 | S128: 0 | U128: 0 | W128: 0 | Y128: 0 | AA128: 0 | AC128: 0 | AE128: =IF($C128=AE$11,1,0) -> 0 | AG128: 0 | AI128: 0 | AK128: 0 | AM128: 0 | AO128: 0 | AQ128: 0 | AS128: 0
J131: =IF(SUM(I$25:I$27)>0,$E131*$F131,0) -> 0 | L131: =IF(SUM(K$25:K$27)>0,$E131*$F131,0) -> 0 | N131: =IF(SUM(M$25:M$27)>0,$E131*$F131,0) -> 0 | P131: =IF(SUM(O$25:O$27)>0,$E131*$F131,0) -> 0 | R131: =IF(SUM(Q$25:Q$27)>0,$E131*$F131,0) -> 0 | T131: =IF(SUM(S$25:S$27)>0,$E131*$F131,0) -> 0 | V131: =IF(SUM(U$25:U$27)>0,$E131*$F131,0) -> 0 | X131: =IF(SUM(W$25:W$27)>0,$E131*$F131,0) -> 0 | Z131: =IF(SUM(Y$25:Y$27)>0,$E131*$F131,0) -> 0 | AB131: =IF(SUM(AA$25:AA$27)>0,$E131*$F131,0) -> 0 | AD131: =IF(SUM(AC$25:AC$27)>0,$E131*$F131,0) -> 0 | AF131: =IF(SUM(AE$25:AE$27)>0,$E131*$F131,0) -> 0 | AH131: =IF(SUM(AG$25:AG$27)>0,$E131*$F131,0) -> 0 | AJ131: =IF(SUM(AI$25:AI$27)>0,$E131*$F131,0) -> 0 | AL131: =IF(SUM(AK$25:AK$27)>0,$E131*$F131,0) -> 0 | AN131: =IF(SUM(AM$25:AM$27)>0,$E131*$F131,0) -> 0 | AP131: =IF(SUM(AO$25:AO$27)>0,$E131*$F131,0) -> 0 | AR131: =IF(SUM(AQ$25:AQ$27)>0,$E131*$F131,0) -> 0 | AT131: =IF(SUM(AS$25:AS$27)>0,$E131*$F131,0) -> 0 | AV131: =IF(SUM(AU$25:AU$27)>0,$E131*$F131,0) -> 0 | AX131: =IF(SUM(AW$25:AW$27)>0,$E131*$F131,0) -> 0 | AZ131: =IF(SUM(AY$25:AY$27)>0,$E131*$F131,0) -> 0 | BB131: =IF(SUM(BA$25:BA$27)>0,$E131*$F131,0) -> 0 | BD131: =IF(SUM(BC$25:BC$27)>0,$E131*$F131,0) -> 0 | BF131: =IF(SUM(BE$25:BE$27)>0,$E131*$F131,0) -> 0 | BH131: =IF(SUM(BG$25:BG$27)>0,$E131*$F131,0) -> 0 | BJ131: =IF(SUM(BI$25:BI$27)>0,$E131*$F131,0) -> 0 | BL131: =IF(SUM(BK$25:BK$27)>0,$E131*$F131,0) -> 0 | BN131: =IF(SUM(BM$25:BM$27)>0,$E131*$F131,0) -> 0 | BP131: =IF(SUM(BO$25:BO$27)>0,$E131*$F131,0) -> 0 | BR131: =IF(SUM(BQ$25:BQ$27)>0,$E131*$F131,0) -> 0 | BT131: =IF(SUM(BS$25:BS$27)>0,$E131*$F131,0) -> 0 | BV131: =IF(SUM(BU$25:BU$27)>0,$E131*$F131,0) -> 0 | BX131: =IF(SUM(BW$25:BW$27)>0,$E131*$F131,0) -> 0 | BZ131: =IF(SUM(BY$25:BY$27)>0,$E131*$F131,0) -> 0 | CB131: =IF(SUM(CA$25:CA$27)>0,$E131*$F131,0) -> 0 | CD131: =IF(SUM(CC$25:CC$27)>0,$E131*$F131,0) -> 0 | CF131: =IF(SUM(CE$25:CE$27)>0,$E131*$F131,0) -> 0 | CH131: =IF(SUM(CG$25:CG$27)>0,$E131*$F131,0) -> 0 | CJ131: =IF(SUM(CI$25:CI$27)>0,$E131*$F131,0) -> 0 | CL131: =IF(SUM(CK$25:CK$27)>0,$E131*$F131,0) -> 0 | CN131: =IF(SUM(CM$25:CM$27)>0,$E131*$F131,0) -> 0 | CP131: =IF(SUM(CO$25:CO$27)>0,$E131*$F131,0) -> 0 | CR131: =IF(SUM(CQ$25:CQ$27)>0,$E131*$F131,0) -> 0 | CT131: =IF(SUM(CS$25:CS$27)>0,$E131*$F131,0) -> 0 | CV131: =IF(SUM(CU$25:CU$27)>0,$E131*$F131,0) -> 0 | CX131: =IF(SUM(CW$25:CW$27)>0,$E131*$F131,0) -> 0 | CZ131: =IF(SUM(CY$25:CY$27)>0,$E131*$F131,0) -> 0 | DB131: =IF(SUM(DA$25:DA$27)>0,$E131*$F131,0) -> 0 | DD131: =IF(SUM(DC$25:DC$27)>0,$E131*$F131,0) -> 0 | DF131: =IF(SUM(DE$25:DE$27)>0,$E131*$F131,0) -> 0 | DH131: =IF(SUM(DG$25:DG$27)>0,$E131*$F131,0) -> 0 | DJ131: =IF(SUM(DI$25:DI$27)>0,$E131*$F131,0) -> 0 | DL131: =IF(SUM(DK$25:DK$27)>0,$E131*$F131,0) -> 0 | DN131: =IF(SUM(DM$25:DM$27)>0,$E131*$F131,0) -> 0 | DP131: =IF(SUM(DO$25:DO$27)>0,$E131*$F131,0) -> 0 | DR131: =IF(SUM(DQ$25:DQ$27)>0,$E131*$F131,0) -> 0 | DT131: =IF(SUM(DS$25:DS$27)>0,$E131*$F131,0) -> 0 | DV131: =IF(SUM(DU$25:DU$27)>0,$E131*$F131,0) -> 0 | DX131: =IF(SUM(DW$25:DW$27)>0,$E131*$F131,0) -> 0
J132: =IF(SUM(I$126:I$128)>0,$E132*$F132,0) -> 0 | L132: =IF(SUM(K$126:K$128)>0,$E132*$F132,0) -> 0 | N132: =IF(SUM(M$126:M$128)>0,$E132*$F132,0) -> 0 | P132: =IF(SUM(O$126:O$128)>0,$E132*$F132,0) -> 0 | R132: =IF(SUM(Q$126:Q$128)>0,$E132*$F132,0) -> 0 | T132: =IF(SUM(S$126:S$128)>0,$E132*$F132,0) -> 0 | V132: =IF(SUM(U$126:U$128)>0,$E132*$F132,0) -> 0 | X132: =IF(SUM(W$126:W$128)>0,$E132*$F132,0) -> 0 | Z132: =IF(SUM(Y$126:Y$128)>0,$E132*$F132,0) -> 0 | AB132: =IF(SUM(AA$126:AA$128)>0,$E132*$F132,0) -> 0 | AD132: =IF(SUM(AC$126:AC$128)>0,$E132*$F132,0) -> 0 | AF132: =IF(SUM(AE$126:AE$128)>0,$E132*$F132,0) -> 0 | AH132: =IF(SUM(AG$126:AG$128)>0,$E132*$F132,0) -> 0 | AJ132: =IF(SUM(AI$126:AI$128)>0,$E132*$F132,0) -> 0 | AL132: =IF(SUM(AK$126:AK$128)>0,$E132*$F132,0) -> 0 | AN132: =IF(SUM(AM$126:AM$128)>0,$E132*$F132,0) -> 0 | AP132: =IF(SUM(AO$126:AO$128)>0,$E132*$F132,0) -> 0 | AR132: =IF(SUM(AQ$126:AQ$128)>0,$E132*$F132,0) -> 0 | AT132: =IF(SUM(AS$126:AS$128)>0,$E132*$F132,0) -> 0 | AV132: =IF(SUM(AU$126:AU$128)>0,$E132*$F132,0) -> 0 | AX132: =IF(SUM(AW$126:AW$128)>0,$E132*$F132,0) -> 0 | AZ132: =IF(SUM(AY$126:AY$128)>0,$E132*$F132,0) -> 0 | BB132: =IF(SUM(BA$126:BA$128)>0,$E132*$F132,0) -> 0 | BD132: =IF(SUM(BC$126:BC$128)>0,$E132*$F132,0) -> 0 | BF132: =IF(SUM(BE$126:BE$128)>0,$E132*$F132,0) -> 0 | BH132: =IF(SUM(BG$126:BG$128)>0,$E132*$F132,0) -> 0 | BJ132: =IF(SUM(BI$126:BI$128)>0,$E132*$F132,0) -> 0 | BL132: =IF(SUM(BK$126:BK$128)>0,$E132*$F132,0) -> 0 | BN132: =IF(SUM(BM$126:BM$128)>0,$E132*$F132,0) -> 0 | BP132: =IF(SUM(BO$126:BO$128)>0,$E132*$F132,0) -> 0 | BR132: =IF(SUM(BQ$126:BQ$128)>0,$E132*$F132,0) -> 0 | BT132: =IF(SUM(BS$126:BS$128)>0,$E132*$F132,0) -> 0 | BV132: =IF(SUM(BU$126:BU$128)>0,$E132*$F132,0) -> 0 | BX132: =IF(SUM(BW$126:BW$128)>0,$E132*$F132,0) -> 0 | BZ132: =IF(SUM(BY$126:BY$128)>0,$E132*$F132,0) -> 0 | CB132: =IF(SUM(CA$126:CA$128)>0,$E132*$F132,0) -> 0 | CD132: =IF(SUM(CC$126:CC$128)>0,$E132*$F132,0) -> 0 | CF132: =IF(SUM(CE$126:CE$128)>0,$E132*$F132,0) -> 0 | CH132: =IF(SUM(CG$126:CG$128)>0,$E132*$F132,0) -> 0 | CJ132: =IF(SUM(CI$126:CI$128)>0,$E132*$F132,0) -> 0 | CL132: =IF(SUM(CK$126:CK$128)>0,$E132*$F132,0) -> 0 | CN132: =IF(SUM(CM$126:CM$128)>0,$E132*$F132,0) -> 0 | CP132: =IF(SUM(CO$126:CO$128)>0,$E132*$F132,0) -> 0 | CR132: =IF(SUM(CQ$126:CQ$128)>0,$E132*$F132,0) -> 0 | CT132: =IF(SUM(CS$126:CS$128)>0,$E132*$F132,0) -> 0 | CV132: =IF(SUM(CU$126:CU$128)>0,$E132*$F132,0) -> 0 | CX132: =IF(SUM(CW$126:CW$128)>0,$E132*$F132,0) -> 0 | CZ132: =IF(SUM(CY$126:CY$128)>0,$E132*$F132,0) -> 0 | DB132: =IF(SUM(DA$126:DA$128)>0,$E132*$F132,0) -> 0 | DD132: =IF(SUM(DC$126:DC$128)>0,$E132*$F132,0) -> 0 | DF132: =IF(SUM(DE$126:DE$128)>0,$E132*$F132,0) -> 0 | DH132: =IF(SUM(DG$126:DG$128)>0,$E132*$F132,0) -> 0 | DJ132: =IF(SUM(DI$126:DI$128)>0,$E132*$F132,0) -> 0 | DL132: =IF(SUM(DK$126:DK$128)>0,$E132*$F132,0) -> 0 | DN132: =IF(SUM(DM$126:DM$128)>0,$E132*$F132,0) -> 0 | DP132: =IF(SUM(DO$126:DO$128)>0,$E132*$F132,0) -> 0 | DR132: =IF(SUM(DQ$126:DQ$128)>0,$E132*$F132,0) -> 0 | DT132: =IF(SUM(DS$126:DS$128)>0,$E132*$F132,0) -> 0 | DV132: =IF(SUM(DU$126:DU$128)>0,$E132*$F132,0) -> 0 | DX132: =IF(SUM(DW$126:DW$128)>0,$E132*$F132,0) -> 0
J133: =IF(SUM(I$126:I$128)>0,$E133*$F133,0) -> 0 | L133: 0 | N133: 0 | P133: 0 | R133: 0 | T133: 0 | V133: 0 | X133: 0 | Z133: 0 | AB133: 0 | AD133: 0 | AF133: =IF(SUM(AE$126:AE$128)>0,$E133*$F133,0) -> 0 | AH133: =IF(SUM(AG$126:AG$128)>0,$E133*$F133,0) -> 0 | AJ133: =IF(SUM(AI$126:AI$128)>0,$E133*$F133,0) -> 0 | AL133: =IF(SUM(AK$126:AK$128)>0,$E133*$F133,0) -> 0 | AN133: =IF(SUM(AM$126:AM$128)>0,$E133*$F133,0) -> 0 | AP133: =IF(SUM(AO$126:AO$128)>0,$E133*$F133,0) -> 0 | AR133: =IF(SUM(AQ$126:AQ$128)>0,$E133*$F133,0) -> 0 | AT133: =IF(SUM(AS$126:AS$128)>0,$E133*$F133,0) -> 0 | AV133: =IF(SUM(AU$126:AU$128)>0,$E133*$F133,0) -> 0 | AX133: 0 | AZ133: 0 | BB133: 0 | BD133: 0 | BF133: 0 | BH133: 0 | BJ133: 0 | BL133: 0 | BN133: 0 | BP133: 0 | BR133: 0 | BT133: 0 | BV133: 0 | BX133: 0 | BZ133: 0 | CB133: 0 | CD133: 0 | CF133: 0 | CH133: 0 | CJ133: 0 | CL133: 0 | CN133: 0 | CP133: 0 | CR133: 0 | CT133: 0 | CV133: 0 | CX133: 0 | CZ133: 0 | DB133: 0 | DD133: 0 | DF133: 0 | DH133: 0 | DJ133: 0 | DL133: 0 | DN133: 0 | DP133: 0 | DR133: 0 | DT133: 0 | DV133: 0 | DX133: 0
J134: 0 | L134: 0 | N134: 0 | P134: 0 | R134: 0 | T134: 0 | V134: 0 | X134: 0 | Z134: 0 | AB134: 0 | AD134: 0 | AF134: 0 | AH134: =IF(SUM(AG$126:AG$128)>0,$E134*$F134,0) -> 0 | AJ134: =IF(SUM(AI$126:AI$128)>0,$E134*$F134,0) -> 0 | AL134: =IF(SUM(AK$126:AK$128)>0,$E134*$F134,0) -> 0 | AN134: =IF(SUM(AM$126:AM$128)>0,$E134*$F134,0) -> 0 | AP134: =IF(SUM(AO$126:AO$128)>0,$E134*$F134,0) -> 0 | AR134: =IF(SUM(AQ$126:AQ$128)>0,$E134*$F134,0) -> 0 | AT134: =IF(SUM(AS$126:AS$128)>0,$E134*$F134,0) -> 0 | AV134: =IF(SUM(AU$126:AU$128)>0,$E134*$F134,0) -> 0 | AX134: 0 | AZ134: 0 | BB134: 0 | BD134: 0 | BF134: 0 | BH134: 0 | BJ134: 0 | BL134: 0 | BN134: 0 | BP134: 0 | BR134: 0 | BT134: 0 | BV134: 0 | BX134: 0 | BZ134: 0 | CB134: 0 | CD134: 0 | CF134: 0 | CH134: 0 | CJ134: 0 | CL134: 0 | CN134: 0 | CP134: 0 | CR134: 0 | CT134: 0 | CV134: 0 | CX134: 0 | CZ134: 0 | DB134: 0 | DD134: 0 | DF134: 0 | DH134: 0 | DJ134: 0 | DL134: 0 | DN134: 0 | DP134: 0 | DR134: 0 | DT134: 0 | DV134: 0 | DX134: 0
I137: =IF($C137=I$11,1,0) -> 0 | K137: =IF($C137=K$11,1,0) -> 0 | M137: =IF($C137=M$11,1,0) -> 0 | O137: =IF($C137=O$11,1,0) -> 0 | Q137: =IF($C137=Q$11,1,0) -> 0 | S137: =IF($C137=S$11,1,0) -> 0 | U137: =IF($C137=U$11,1,0) -> 0 | W137: =IF($C137=W$11,1,0) -> 0 | Y137: =IF($C137=Y$11,1,0) -> 0 | AA137: =IF($C137=AA$11,1,0) -> 0 | AC137: =IF($C137=AC$11,1,0) -> 0 | AE137: =IF($C137=AE$11,1,0) -> 0 | AG137: =IF($C137=AG$11,1,0) -> 0 | AI137: =IF($C137=AI$11,1,0) -> 0 | AK137: =IF($C137=AK$11,1,0) -> 0 | AM137: =IF($C137=AM$11,1,0) -> 0 | AO137: =IF($C137=AO$11,1,0) -> 0 | AQ137: =IF($C137=AQ$11,1,0) -> 0 | AS137: =IF($C137=AS$11,1,0) -> 0
I138: =IF($C138=I$11,1,0) -> 0 | J138: =IF($C138=J$11,1,0) -> 1 | K138: 0 | L138: 1 | M138: 0 | N138: 1 | O138: 0 | P138: 1 | Q138: 0 | R138: 1 | S138: 0 | T138: 1 | U138: 0 | V138: 1 | W138: 0 | X138: 1 | Y138: 0 | Z138: 1 | AA138: 0 | AB138: 1 | AC138: 0 | AD138: 1 | AE138: =IF($C138=AE$11,1,0) -> 0 | AF138: 1 | AG138: 0 | AH138: 1 | AI138: 0 | AJ138: 1 | AK138: 0 | AL138: 1 | AM138: 0 | AN138: 1 | AO138: 0 | AP138: 1 | AQ138: 0 | AR138: 1 | AS138: 0 | AT138: 1 | AU138: =IF($C138=AU$11,1,0) -> 0 | AV138: 1 | AW138: =IF($C138=AW$11,1,0) -> 0 | AX138: 1 | AY138: =IF($C138=AY$11,1,0) -> 0 | AZ138: 1 | BA138: =IF($C138=BA$11,1,0) -> 0 | BB138: 1 | BC138: =IF($C138=BC$11,1,0) -> 0 | BD138: 1 | BE138: =IF($C138=BE$11,1,0) -> 0 | BF138: 1 | BG138: =IF($C138=BG$11,1,0) -> 0 | BH138: 1 | BI138: =IF($C138=BI$11,1,0) -> 0 | BJ138: 1 | BK138: =IF($C138=BK$11,1,0) -> 0 | BL138: 1 | BM138: =IF($C138=BM$11,1,0) -> 0 | BN138: 1 | BO138: =IF($C138=BO$11,1,0) -> 0 | BP138: 1 | BQ138: =IF($C138=BQ$11,1,0) -> 0 | BR138: 1 | BS138: =IF($C138=BS$11,1,0) -> 0 | BT138: 1 | BU138: =IF($C138=BU$11,1,0) -> 0 | BV138: 1 | BW138: =IF($C138=BW$11,1,0) -> 0 | BX138: 1 | BY138: =IF($C138=BY$11,1,0) -> 0 | BZ138: 1 | CA138: =IF($C138=CA$11,1,0) -> 0 | CB138: 1 | CC138: =IF($C138=CC$11,1,0) -> 0 | CD138: 1 | CE138: =IF($C138=CE$11,1,0) -> 0 | CF138: 1 | CG138: =IF($C138=CG$11,1,0) -> 0 | CH138: 1 | CI138: =IF($C138=CI$11,1,0) -> 0 | CJ138: 1 | CK138: =IF($C138=CK$11,1,0) -> 0 | CL138: 1 | CM138: =IF($C138=CM$11,1,0) -> 0 | CN138: 1 | CO138: =IF($C138=CO$11,1,0) -> 0 | CP138: 1 | CQ138: =IF($C138=CQ$11,1,0) -> 0 | CR138: 1 | CS138: =IF($C138=CS$11,1,0) -> 0 | CT138: 1 | CU138: =IF($C138=CU$11,1,0) -> 0 | CV138: 1 | CW138: =IF($C138=CW$11,1,0) -> 0 | CX138: 1 | CY138: =IF($C138=CY$11,1,0) -> 0 | CZ138: 1 | DA138: =IF($C138=DA$11,1,0) -> 0 | DB138: 1 | DC138: =IF($C138=DC$11,1,0) -> 0 | DD138: 1 | DE138: =IF($C138=DE$11,1,0) -> 0 | DF138: 1 | DG138: =IF($C138=DG$11,1,0) -> 0 | DH138: 1 | DI138: =IF($C138=DI$11,1,0) -> 0 | DJ138: 1 | DK138: =IF($C138=DK$11,1,0) -> 0 | DL138: 1 | DM138: =IF($C138=DM$11,1,0) -> 0 | DN138: 1 | DO138: =IF($C138=DO$11,1,0) -> 0 | DP138: 1 | DQ138: =IF($C138=DQ$11,1,0) -> 0 | DR138: 1 | DS138: =IF($C138=DS$11,1,0) -> 0 | DT138: 1 | DU138: =IF($C138=DU$11,1,0) -> 0 | DV138: 1 | DW138: =IF($C138=DW$11,1,0) -> 0 | DX138: 1
I139: =IF($C139=I$11,1,0) -> 0 | K139: 0 | M139: 0 | O139: 0 | Q139: 0 | S139: 0 | U139: 0 | W139: 0 | Y139: 0 | AA139: 0 | AC139: 0 | AE139: =IF($C139=AE$11,1,0) -> 0 | AG139: 0 | AI139: 0 | AK139: 0 | AM139: 0 | AO139: 0 | AQ139: 0 | AS139: 0
J142: =IF(SUM(I$25:I$27)>0,$E142*$F142,0) -> 0 | L142: =IF(SUM(K$25:K$27)>0,$E142*$F142,0) -> 0 | N142: =IF(SUM(M$25:M$27)>0,$E142*$F142,0) -> 0 | P142: =IF(SUM(O$25:O$27)>0,$E142*$F142,0) -> 0 | R142: =IF(SUM(Q$25:Q$27)>0,$E142*$F142,0) -> 0 | T142: =IF(SUM(S$25:S$27)>0,$E142*$F142,0) -> 0 | V142: =IF(SUM(U$25:U$27)>0,$E142*$F142,0) -> 0 | X142: =IF(SUM(W$25:W$27)>0,$E142*$F142,0) -> 0 | Z142: =IF(SUM(Y$25:Y$27)>0,$E142*$F142,0) -> 0 | AB142: =IF(SUM(AA$25:AA$27)>0,$E142*$F142,0) -> 0 | AD142: =IF(SUM(AC$25:AC$27)>0,$E142*$F142,0) -> 0 | AF142: =IF(SUM(AE$25:AE$27)>0,$E142*$F142,0) -> 0 | AH142: =IF(SUM(AG$25:AG$27)>0,$E142*$F142,0) -> 0 | AJ142: =IF(SUM(AI$25:AI$27)>0,$E142*$F142,0) -> 0 | AL142: =IF(SUM(AK$25:AK$27)>0,$E142*$F142,0) -> 0 | AN142: =IF(SUM(AM$25:AM$27)>0,$E142*$F142,0) -> 0 | AP142: =IF(SUM(AO$25:AO$27)>0,$E142*$F142,0) -> 0 | AR142: =IF(SUM(AQ$25:AQ$27)>0,$E142*$F142,0) -> 0 | AT142: =IF(SUM(AS$25:AS$27)>0,$E142*$F142,0) -> 0 | AV142: =IF(SUM(AU$25:AU$27)>0,$E142*$F142,0) -> 0 | AX142: =IF(SUM(AW$25:AW$27)>0,$E142*$F142,0) -> 0 | AZ142: =IF(SUM(AY$25:AY$27)>0,$E142*$F142,0) -> 0 | BB142: =IF(SUM(BA$25:BA$27)>0,$E142*$F142,0) -> 0 | BD142: =IF(SUM(BC$25:BC$27)>0,$E142*$F142,0) -> 0 | BF142: =IF(SUM(BE$25:BE$27)>0,$E142*$F142,0) -> 0 | BH142: =IF(SUM(BG$25:BG$27)>0,$E142*$F142,0) -> 0 | BJ142: =IF(SUM(BI$25:BI$27)>0,$E142*$F142,0) -> 0 | BL142: =IF(SUM(BK$25:BK$27)>0,$E142*$F142,0) -> 0 | BN142: =IF(SUM(BM$25:BM$27)>0,$E142*$F142,0) -> 0 | BP142: =IF(SUM(BO$25:BO$27)>0,$E142*$F142,0) -> 0 | BR142: =IF(SUM(BQ$25:BQ$27)>0,$E142*$F142,0) -> 0 | BT142: =IF(SUM(BS$25:BS$27)>0,$E142*$F142,0) -> 0 | BV142: =IF(SUM(BU$25:BU$27)>0,$E142*$F142,0) -> 0 | BX142: =IF(SUM(BW$25:BW$27)>0,$E142*$F142,0) -> 0 | BZ142: =IF(SUM(BY$25:BY$27)>0,$E142*$F142,0) -> 0 | CB142: =IF(SUM(CA$25:CA$27)>0,$E142*$F142,0) -> 0 | CD142: =IF(SUM(CC$25:CC$27)>0,$E142*$F142,0) -> 0 | CF142: =IF(SUM(CE$25:CE$27)>0,$E142*$F142,0) -> 0 | CH142: =IF(SUM(CG$25:CG$27)>0,$E142*$F142,0) -> 0 | CJ142: =IF(SUM(CI$25:CI$27)>0,$E142*$F142,0) -> 0 | CL142: =IF(SUM(CK$25:CK$27)>0,$E142*$F142,0) -> 0 | CN142: =IF(SUM(CM$25:CM$27)>0,$E142*$F142,0) -> 0 | CP142: =IF(SUM(CO$25:CO$27)>0,$E142*$F142,0) -> 0 | CR142: =IF(SUM(CQ$25:CQ$27)>0,$E142*$F142,0) -> 0 | CT142: =IF(SUM(CS$25:CS$27)>0,$E142*$F142,0) -> 0 | CV142: =IF(SUM(CU$25:CU$27)>0,$E142*$F142,0) -> 0 | CX142: =IF(SUM(CW$25:CW$27)>0,$E142*$F142,0) -> 0 | CZ142: =IF(SUM(CY$25:CY$27)>0,$E142*$F142,0) -> 0 | DB142: =IF(SUM(DA$25:DA$27)>0,$E142*$F142,0) -> 0 | DD142: =IF(SUM(DC$25:DC$27)>0,$E142*$F142,0) -> 0 | DF142: =IF(SUM(DE$25:DE$27)>0,$E142*$F142,0) -> 0 | DH142: =IF(SUM(DG$25:DG$27)>0,$E142*$F142,0) -> 0 | DJ142: =IF(SUM(DI$25:DI$27)>0,$E142*$F142,0) -> 0 | DL142: =IF(SUM(DK$25:DK$27)>0,$E142*$F142,0) -> 0 | DN142: =IF(SUM(DM$25:DM$27)>0,$E142*$F142,0) -> 0 | DP142: =IF(SUM(DO$25:DO$27)>0,$E142*$F142,0) -> 0 | DR142: =IF(SUM(DQ$25:DQ$27)>0,$E142*$F142,0) -> 0 | DT142: =IF(SUM(DS$25:DS$27)>0,$E142*$F142,0) -> 0 | DV142: =IF(SUM(DU$25:DU$27)>0,$E142*$F142,0) -> 0 | DX142: =IF(SUM(DW$25:DW$27)>0,$E142*$F142,0) -> 0
J143: =IF(SUM(I$137:I$139)>0,$E143*$F143,0) -> 0 | L143: =IF(SUM(K$137:K$139)>0,$E143*$F143,0) -> 0 | N143: =IF(SUM(M$137:M$139)>0,$E143*$F143,0) -> 0 | P143: =IF(SUM(O$137:O$139)>0,$E143*$F143,0) -> 0 | R143: =IF(SUM(Q$137:Q$139)>0,$E143*$F143,0) -> 0 | T143: =IF(SUM(S$137:S$139)>0,$E143*$F143,0) -> 0 | V143: =IF(SUM(U$137:U$139)>0,$E143*$F143,0) -> 0 | X143: =IF(SUM(W$137:W$139)>0,$E143*$F143,0) -> 0 | Z143: =IF(SUM(Y$137:Y$139)>0,$E143*$F143,0) -> 0 | AB143: =IF(SUM(AA$137:AA$139)>0,$E143*$F143,0) -> 0 | AD143: =IF(SUM(AC$137:AC$139)>0,$E143*$F143,0) -> 0 | AF143: =IF(SUM(AE$137:AE$139)>0,$E143*$F143,0) -> 0 | AH143: =IF(SUM(AG$137:AG$139)>0,$E143*$F143,0) -> 0 | AJ143: =IF(SUM(AI$137:AI$139)>0,$E143*$F143,0) -> 0 | AL143: =IF(SUM(AK$137:AK$139)>0,$E143*$F143,0) -> 0 | AN143: =IF(SUM(AM$137:AM$139)>0,$E143*$F143,0) -> 0 | AP143: =IF(SUM(AO$137:AO$139)>0,$E143*$F143,0) -> 0 | AR143: =IF(SUM(AQ$137:AQ$139)>0,$E143*$F143,0) -> 0 | AT143: =IF(SUM(AS$137:AS$139)>0,$E143*$F143,0) -> 0 | AV143: =IF(SUM(AU$137:AU$139)>0,$E143*$F143,0) -> 0 | AX143: =IF(SUM(AW$137:AW$139)>0,$E143*$F143,0) -> 0 | AZ143: =IF(SUM(AY$137:AY$139)>0,$E143*$F143,0) -> 0 | BB143: =IF(SUM(BA$137:BA$139)>0,$E143*$F143,0) -> 0 | BD143: =IF(SUM(BC$137:BC$139)>0,$E143*$F143,0) -> 0 | BF143: =IF(SUM(BE$137:BE$139)>0,$E143*$F143,0) -> 0 | BH143: =IF(SUM(BG$137:BG$139)>0,$E143*$F143,0) -> 0 | BJ143: =IF(SUM(BI$137:BI$139)>0,$E143*$F143,0) -> 0 | BL143: =IF(SUM(BK$137:BK$139)>0,$E143*$F143,0) -> 0 | BN143: =IF(SUM(BM$137:BM$139)>0,$E143*$F143,0) -> 0 | BP143: =IF(SUM(BO$137:BO$139)>0,$E143*$F143,0) -> 0 | BR143: =IF(SUM(BQ$137:BQ$139)>0,$E143*$F143,0) -> 0 | BT143: =IF(SUM(BS$137:BS$139)>0,$E143*$F143,0) -> 0 | BV143: =IF(SUM(BU$137:BU$139)>0,$E143*$F143,0) -> 0 | BX143: =IF(SUM(BW$137:BW$139)>0,$E143*$F143,0) -> 0 | BZ143: =IF(SUM(BY$137:BY$139)>0,$E143*$F143,0) -> 0 | CB143: =IF(SUM(CA$137:CA$139)>0,$E143*$F143,0) -> 0 | CD143: =IF(SUM(CC$137:CC$139)>0,$E143*$F143,0) -> 0 | CF143: =IF(SUM(CE$137:CE$139)>0,$E143*$F143,0) -> 0 | CH143: =IF(SUM(CG$137:CG$139)>0,$E143*$F143,0) -> 0 | CJ143: =IF(SUM(CI$137:CI$139)>0,$E143*$F143,0) -> 0 | CL143: =IF(SUM(CK$137:CK$139)>0,$E143*$F143,0) -> 0 | CN143: =IF(SUM(CM$137:CM$139)>0,$E143*$F143,0) -> 0 | CP143: =IF(SUM(CO$137:CO$139)>0,$E143*$F143,0) -> 0 | CR143: =IF(SUM(CQ$137:CQ$139)>0,$E143*$F143,0) -> 0 | CT143: =IF(SUM(CS$137:CS$139)>0,$E143*$F143,0) -> 0 | CV143: =IF(SUM(CU$137:CU$139)>0,$E143*$F143,0) -> 0 | CX143: =IF(SUM(CW$137:CW$139)>0,$E143*$F143,0) -> 0 | CZ143: =IF(SUM(CY$137:CY$139)>0,$E143*$F143,0) -> 0 | DB143: =IF(SUM(DA$137:DA$139)>0,$E143*$F143,0) -> 0 | DD143: =IF(SUM(DC$137:DC$139)>0,$E143*$F143,0) -> 0 | DF143: =IF(SUM(DE$137:DE$139)>0,$E143*$F143,0) -> 0 | DH143: =IF(SUM(DG$137:DG$139)>0,$E143*$F143,0) -> 0 | DJ143: =IF(SUM(DI$137:DI$139)>0,$E143*$F143,0) -> 0 | DL143: =IF(SUM(DK$137:DK$139)>0,$E143*$F143,0) -> 0 | DN143: =IF(SUM(DM$137:DM$139)>0,$E143*$F143,0) -> 0 | DP143: =IF(SUM(DO$137:DO$139)>0,$E143*$F143,0) -> 0 | DR143: =IF(SUM(DQ$137:DQ$139)>0,$E143*$F143,0) -> 0 | DT143: =IF(SUM(DS$137:DS$139)>0,$E143*$F143,0) -> 0 | DV143: =IF(SUM(DU$137:DU$139)>0,$E143*$F143,0) -> 0 | DX143: =IF(SUM(DW$137:DW$139)>0,$E143*$F143,0) -> 0
J144: =IF(SUM(I$137:I$139)>0,$E144*$F144,0) -> 0 | L144: 0 | N144: 0 | P144: 0 | R144: 0 | T144: 0 | V144: 0 | X144: 0 | Z144: 0 | AB144: 0 | AD144: 0 | AF144: =IF(SUM(AE$137:AE$139)>0,$E144*$F144,0) -> 0 | AH144: =IF(SUM(AG$137:AG$139)>0,$E144*$F144,0) -> 0 | AJ144: =IF(SUM(AI$137:AI$139)>0,$E144*$F144,0) -> 0 | AL144: =IF(SUM(AK$137:AK$139)>0,$E144*$F144,0) -> 0 | AN144: =IF(SUM(AM$137:AM$139)>0,$E144*$F144,0) -> 0 | AP144: =IF(SUM(AO$137:AO$139)>0,$E144*$F144,0) -> 0 | AR144: =IF(SUM(AQ$137:AQ$139)>0,$E144*$F144,0) -> 0 | AT144: =IF(SUM(AS$137:AS$139)>0,$E144*$F144,0) -> 0 | AV144: =IF(SUM(AU$137:AU$139)>0,$E144*$F144,0) -> 0 | AX144: 0 | AZ144: 0 | BB144: 0 | BD144: 0 | BF144: 0 | BH144: 0 | BJ144: 0 | BL144: 0 | BN144: 0 | BP144: 0 | BR144: 0 | BT144: 0 | BV144: 0 | BX144: 0 | BZ144: 0 | CB144: 0 | CD144: 0 | CF144: 0 | CH144: 0 | CJ144: 0 | CL144: 0 | CN144: 0 | CP144: 0 | CR144: 0 | CT144: 0 | CV144: 0 | CX144: 0 | CZ144: 0 | DB144: 0 | DD144: 0 | DF144: 0 | DH144: 0 | DJ144: 0 | DL144: 0 | DN144: 0 | DP144: 0 | DR144: 0 | DT144: 0 | DV144: 0 | DX144: 0
J145: 0 | L145: 0 | N145: 0 | P145: 0 | R145: 0 | T145: 0 | V145: 0 | X145: 0 | Z145: 0 | AB145: 0 | AD145: 0 | AF145: 0 | AH145: =IF(SUM(AG$137:AG$139)>0,$E145*$F145,0) -> 0 | AJ145: =IF(SUM(AI$137:AI$139)>0,$E145*$F145,0) -> 0 | AL145: =IF(SUM(AK$137:AK$139)>0,$E145*$F145,0) -> 0 | AN145: =IF(SUM(AM$137:AM$139)>0,$E145*$F145,0) -> 0 | AP145: =IF(SUM(AO$137:AO$139)>0,$E145*$F145,0) -> 0 | AR145: =IF(SUM(AQ$137:AQ$139)>0,$E145*$F145,0) -> 0 | AT145: =IF(SUM(AS$137:AS$139)>0,$E145*$F145,0) -> 0 | AV145: =IF(SUM(AU$137:AU$139)>0,$E145*$F145,0) -> 0 | AX145: 0 | AZ145: 0 | BB145: 0 | BD145: 0 | BF145: 0 | BH145: 0 | BJ145: 0 | BL145: 0 | BN145: 0 | BP145: 0 | BR145: 0 | BT145: 0 | BV145: 0 | BX145: 0 | BZ145: 0 | CB145: 0 | CD145: 0 | CF145: 0 | CH145: 0 | CJ145: 0 | CL145: 0 | CN145: 0 | CP145: 0 | CR145: 0 | CT145: 0 | CV145: 0 | CX145: 0 | CZ145: 0 | DB145: 0 | DD145: 0 | DF145: 0 | DH145: 0 | DJ145: 0 | DL145: 0 | DN145: 0 | DP145: 0 | DR145: 0 | DT145: 0 | DV145: 0 | DX145: 0
I148: =IF($C148=I$11,1,0) -> 0 | K148: =IF($C148=K$11,1,0) -> 0 | M148: =IF($C148=M$11,1,0) -> 0 | O148: =IF($C148=O$11,1,0) -> 0 | Q148: =IF($C148=Q$11,1,0) -> 0 | S148: =IF($C148=S$11,1,0) -> 0 | U148: =IF($C148=U$11,1,0) -> 0 | W148: =IF($C148=W$11,1,0) -> 0 | Y148: =IF($C148=Y$11,1,0) -> 0 | AA148: =IF($C148=AA$11,1,0) -> 0 | AC148: =IF($C148=AC$11,1,0) -> 0 | AE148: =IF($C148=AE$11,1,0) -> 0 | AG148: =IF($C148=AG$11,1,0) -> 0 | AI148: =IF($C148=AI$11,1,0) -> 0 | AK148: =IF($C148=AK$11,1,0) -> 0 | AM148: =IF($C148=AM$11,1,0) -> 0 | AO148: =IF($C148=AO$11,1,0) -> 0 | AQ148: =IF($C148=AQ$11,1,0) -> 0 | AS148: =IF($C148=AS$11,1,0) -> 0
I149: =IF($C149=I$11,1,0) -> 0 | J149: =IF($C149=J$11,1,0) -> 1 | K149: 0 | L149: 1 | M149: 0 | N149: 1 | O149: 0 | P149: 1 | Q149: 0 | R149: 1 | S149: 0 | T149: 1 | U149: 0 | V149: 1 | W149: 0 | X149: 1 | Y149: 0 | Z149: 1 | AA149: 0 | AB149: 1 | AC149: 0 | AD149: 1 | AE149: =IF($C149=AE$11,1,0) -> 0 | AF149: 1 | AG149: 0 | AH149: 1 | AI149: 0 | AJ149: 1 | AK149: 0 | AL149: 1 | AM149: 0 | AN149: 1 | AO149: 0 | AP149: 1 | AQ149: 0 | AR149: 1 | AS149: 0 | AT149: 1 | AU149: =IF($C149=AU$11,1,0) -> 0 | AV149: 1 | AW149: =IF($C149=AW$11,1,0) -> 0 | AX149: 1 | AY149: =IF($C149=AY$11,1,0) -> 0 | AZ149: 1 | BA149: =IF($C149=BA$11,1,0) -> 0 | BB149: 1 | BC149: =IF($C149=BC$11,1,0) -> 0 | BD149: 1 | BE149: =IF($C149=BE$11,1,0) -> 0 | BF149: 1 | BG149: =IF($C149=BG$11,1,0) -> 0 | BH149: 1 | BI149: =IF($C149=BI$11,1,0) -> 0 | BJ149: 1 | BK149: =IF($C149=BK$11,1,0) -> 0 | BL149: 1 | BM149: =IF($C149=BM$11,1,0) -> 0 | BN149: 1 | BO149: =IF($C149=BO$11,1,0) -> 0 | BP149: 1 | BQ149: =IF($C149=BQ$11,1,0) -> 0 | BR149: 1 | BS149: =IF($C149=BS$11,1,0) -> 0 | BT149: 1 | BU149: =IF($C149=BU$11,1,0) -> 0 | BV149: 1 | BW149: =IF($C149=BW$11,1,0) -> 0 | BX149: 1 | BY149: =IF($C149=BY$11,1,0) -> 0 | BZ149: 1 | CA149: =IF($C149=CA$11,1,0) -> 0 | CB149: 1 | CC149: =IF($C149=CC$11,1,0) -> 0 | CD149: 1 | CE149: =IF($C149=CE$11,1,0) -> 0 | CF149: 1 | CG149: =IF($C149=CG$11,1,0) -> 0 | CH149: 1 | CI149: =IF($C149=CI$11,1,0) -> 0 | CJ149: 1 | CK149: =IF($C149=CK$11,1,0) -> 0 | CL149: 1 | CM149: =IF($C149=CM$11,1,0) -> 0 | CN149: 1 | CO149: =IF($C149=CO$11,1,0) -> 0 | CP149: 1 | CQ149: =IF($C149=CQ$11,1,0) -> 0 | CR149: 1 | CS149: =IF($C149=CS$11,1,0) -> 0 | CT149: 1 | CU149: =IF($C149=CU$11,1,0) -> 0 | CV149: 1 | CW149: =IF($C149=CW$11,1,0) -> 0 | CX149: 1 | CY149: =IF($C149=CY$11,1,0) -> 0 | CZ149: 1 | DA149: =IF($C149=DA$11,1,0) -> 0 | DB149: 1 | DC149: =IF($C149=DC$11,1,0) -> 0 | DD149: 1 | DE149: =IF($C149=DE$11,1,0) -> 0 | DF149: 1 | DG149: =IF($C149=DG$11,1,0) -> 0 | DH149: 1 | DI149: =IF($C149=DI$11,1,0) -> 0 | DJ149: 1 | DK149: =IF($C149=DK$11,1,0) -> 0 | DL149: 1 | DM149: =IF($C149=DM$11,1,0) -> 0 | DN149: 1 | DO149: =IF($C149=DO$11,1,0) -> 0 | DP149: 1 | DQ149: =IF($C149=DQ$11,1,0) -> 0 | DR149: 1 | DS149: =IF($C149=DS$11,1,0) -> 0 | DT149: 1 | DU149: =IF($C149=DU$11,1,0) -> 0 | DV149: 1 | DW149: =IF($C149=DW$11,1,0) -> 0 | DX149: 1
I150: =IF($C150=I$11,1,0) -> 0 | K150: 0 | M150: 0 | O150: 0 | Q150: 0 | S150: 0 | U150: 0 | W150: 0 | Y150: 0 | AA150: 0 | AC150: 0 | AE150: =IF($C150=AE$11,1,0) -> 0 | AG150: 0 | AI150: 0 | AK150: 0 | AM150: 0 | AO150: 0 | AQ150: 0 | AS150: 0
J153: =IF(SUM(I$25:I$27)>0,$E153*$F153,0) -> 0 | L153: =IF(SUM(K$25:K$27)>0,$E153*$F153,0) -> 0 | N153: =IF(SUM(M$25:M$27)>0,$E153*$F153,0) -> 0 | P153: =IF(SUM(O$25:O$27)>0,$E153*$F153,0) -> 0 | R153: =IF(SUM(Q$25:Q$27)>0,$E153*$F153,0) -> 0 | T153: =IF(SUM(S$25:S$27)>0,$E153*$F153,0) -> 0 | V153: =IF(SUM(U$25:U$27)>0,$E153*$F153,0) -> 0 | X153: =IF(SUM(W$25:W$27)>0,$E153*$F153,0) -> 0 | Z153: =IF(SUM(Y$25:Y$27)>0,$E153*$F153,0) -> 0 | AB153: =IF(SUM(AA$25:AA$27)>0,$E153*$F153,0) -> 0 | AD153: =IF(SUM(AC$25:AC$27)>0,$E153*$F153,0) -> 0 | AF153: =IF(SUM(AE$25:AE$27)>0,$E153*$F153,0) -> 0 | AH153: =IF(SUM(AG$25:AG$27)>0,$E153*$F153,0) -> 0 | AJ153: =IF(SUM(AI$25:AI$27)>0,$E153*$F153,0) -> 0 | AL153: =IF(SUM(AK$25:AK$27)>0,$E153*$F153,0) -> 0 | AN153: =IF(SUM(AM$25:AM$27)>0,$E153*$F153,0) -> 0 | AP153: =IF(SUM(AO$25:AO$27)>0,$E153*$F153,0) -> 0 | AR153: =IF(SUM(AQ$25:AQ$27)>0,$E153*$F153,0) -> 0 | AT153: =IF(SUM(AS$25:AS$27)>0,$E153*$F153,0) -> 0 | AV153: =IF(SUM(AU$25:AU$27)>0,$E153*$F153,0) -> 0 | AX153: =IF(SUM(AW$25:AW$27)>0,$E153*$F153,0) -> 0 | AZ153: =IF(SUM(AY$25:AY$27)>0,$E153*$F153,0) -> 0 | BB153: =IF(SUM(BA$25:BA$27)>0,$E153*$F153,0) -> 0 | BD153: =IF(SUM(BC$25:BC$27)>0,$E153*$F153,0) -> 0 | BF153: =IF(SUM(BE$25:BE$27)>0,$E153*$F153,0) -> 0 | BH153: =IF(SUM(BG$25:BG$27)>0,$E153*$F153,0) -> 0 | BJ153: =IF(SUM(BI$25:BI$27)>0,$E153*$F153,0) -> 0 | BL153: =IF(SUM(BK$25:BK$27)>0,$E153*$F153,0) -> 0 | BN153: =IF(SUM(BM$25:BM$27)>0,$E153*$F153,0) -> 0 | BP153: =IF(SUM(BO$25:BO$27)>0,$E153*$F153,0) -> 0 | BR153: =IF(SUM(BQ$25:BQ$27)>0,$E153*$F153,0) -> 0 | BT153: =IF(SUM(BS$25:BS$27)>0,$E153*$F153,0) -> 0 | BV153: =IF(SUM(BU$25:BU$27)>0,$E153*$F153,0) -> 0 | BX153: =IF(SUM(BW$25:BW$27)>0,$E153*$F153,0) -> 0 | BZ153: =IF(SUM(BY$25:BY$27)>0,$E153*$F153,0) -> 0 | CB153: =IF(SUM(CA$25:CA$27)>0,$E153*$F153,0) -> 0 | CD153: =IF(SUM(CC$25:CC$27)>0,$E153*$F153,0) -> 0 | CF153: =IF(SUM(CE$25:CE$27)>0,$E153*$F153,0) -> 0 | CH153: =IF(SUM(CG$25:CG$27)>0,$E153*$F153,0) -> 0 | CJ153: =IF(SUM(CI$25:CI$27)>0,$E153*$F153,0) -> 0 | CL153: =IF(SUM(CK$25:CK$27)>0,$E153*$F153,0) -> 0 | CN153: =IF(SUM(CM$25:CM$27)>0,$E153*$F153,0) -> 0 | CP153: =IF(SUM(CO$25:CO$27)>0,$E153*$F153,0) -> 0 | CR153: =IF(SUM(CQ$25:CQ$27)>0,$E153*$F153,0) -> 0 | CT153: =IF(SUM(CS$25:CS$27)>0,$E153*$F153,0) -> 0 | CV153: =IF(SUM(CU$25:CU$27)>0,$E153*$F153,0) -> 0 | CX153: =IF(SUM(CW$25:CW$27)>0,$E153*$F153,0) -> 0 | CZ153: =IF(SUM(CY$25:CY$27)>0,$E153*$F153,0) -> 0 | DB153: =IF(SUM(DA$25:DA$27)>0,$E153*$F153,0) -> 0 | DD153: =IF(SUM(DC$25:DC$27)>0,$E153*$F153,0) -> 0 | DF153: =IF(SUM(DE$25:DE$27)>0,$E153*$F153,0) -> 0 | DH153: =IF(SUM(DG$25:DG$27)>0,$E153*$F153,0) -> 0 | DJ153: =IF(SUM(DI$25:DI$27)>0,$E153*$F153,0) -> 0 | DL153: =IF(SUM(DK$25:DK$27)>0,$E153*$F153,0) -> 0 | DN153: =IF(SUM(DM$25:DM$27)>0,$E153*$F153,0) -> 0 | DP153: =IF(SUM(DO$25:DO$27)>0,$E153*$F153,0) -> 0 | DR153: =IF(SUM(DQ$25:DQ$27)>0,$E153*$F153,0) -> 0 | DT153: =IF(SUM(DS$25:DS$27)>0,$E153*$F153,0) -> 0 | DV153: =IF(SUM(DU$25:DU$27)>0,$E153*$F153,0) -> 0 | DX153: =IF(SUM(DW$25:DW$27)>0,$E153*$F153,0) -> 0
